Workbook

Sheet Proposed NW Projects (Reg Yr)
A1: INCLUDES NETWORK BUSINESS OVERHEADS | D1: $2017-18 ($'000)
C3: AER RIN ref | D3: Doc/Plan ref | E3: 2020/21 | F3: 2021/22 | G3: 2022/23 | H3: 2023/24 | I3: 2024/25 | J3: Total
A4: Category / Description | C4: (Repex,Augex etc) | D4: (eg AP) | E4: Jul-Jun | F4: =E4 -> Jul-Jun | G4: =F4 -> Jul-Jun | H4: =G4 -> Jul-Jun | I4: =H4 -> Jul-Jun | K4: SEM Reference
A5: Capacity Upgrade
B6: Connection Point Capacity (ETC/NER Code) | C6: Augex | D6: AP.1.1.01 | E6: 4334.65995 | F6: 5263.828715 | G6: 1547.153652 | H6: 0 | I6: 0 | J6: =SUM(E6:I6) -> 11145.64232 | K6: C-2
B7: LV & Distribution Transformers (QoS BAU) | C7: Augex | D7: AP.1.1.01 | E7: 7889.168766 | F7: 8239.798489 | G7: 8590.428212 | H7: 8941.057935 | I7: 9291.687657 | J7: 42952.14106 | K7: C-2
B8: Distribution Feeders (11 & 7.6kV) | C8: Augex | D8: AP.1.1.01 | E8: 2410.579345 | F8: 289.2695214 | G8: 74.50881612 | H8: 547.8589421 | I8: 793.2997481 | J8: 4115.516373 | K8: C-2
B9: Strategic Network Capacity (Other) | C9: Augex | D9: AP.1.1.01 | E9: 3593.95466 | F9: 3593.95466 | G9: 3593.95466 | H9: 3593.95466 | I9: 3593.95466 | J9: 17969.7733 | K9: C-2
B10: Substation Capacity | C10: Augex | D10: AP.1.1.01 | E10: 3133.753149 | F10: 2138.84131 | G10: 2910.2267 | H10: 2108.161209 | I10: 701.2594458 | J10: 10992.24181 | K10: C-2
B11: Subtransmission Network | C11: Augex | D11: AP.1.1.01 | E11: 7643.72796 | F11: 4141.813602 | G11: 999.2947103 | H11: 1398.13602 | I11: 4882.518892 | J11: 19065.49118 | K11: C-2
B12: Distribution Line - SWER Replacements | C12: Augex | D12: AP.1.1.01 | E12: 613.6020151 | F12: 613.6020151 | G12: 613.6020151 | H12: 613.6020151 | I12: 613.6020151 | J12: 3068.010076 | K12: C-2
B13: Voltage Regulation | C13: Augex | D13: AP.1.1.01 | E13: 2502.619647 | F13: 2502.619647 | G13: 2502.619647 | H13: 3208.261965 | I13: 3208.261965 | J13: 13924.38287 | K13: C-2
B14: Land | C14: Augex | D14: AP.1.1.01 | E14: 0 | F14: 0 | G14: 0 | H14: 1358.690176 | I14: 1358.690176 | J14: 2717.380353 | K14: C-2
B15: LV Two Way Network (QoS) | C15: Augex | D15: AP.1.1.01 | E15: 3506.297229 | F15: 3506.297229 | G15: 3506.297229 | H15: 3506.297229 | I15: 3506.297229 | J15: 17531.48615 | K15: C-2
B17: Capacity Augmentation (Total) | D17: Total | E17: =SUM(E6:E16) -> 35628.36272 | F17: =SUM(F6:F16) -> 30290.02519 | G17: =SUM(G6:G16) -> 24338.08564 | H17: =SUM(H6:H16) -> 25276.02015 | I17: =SUM(I6:I16) -> 27949.57179 | J17: =SUM(E17:I17) -> 143482.0655
A18: Customer Connect (gross)
B19: Customer Connect < $30k | C19: Connections | D19: AP.7.1.01 | E19: 15379.87417 | F19: 15785.75006 | G19: 15750.54298 | H19: 15303.73579 | I19: 19418.87408 | J19: =E19+F19+G19+H19+I19 -> 81638.77709 | K19: C-3
B20: Customer Connect > $30k<$100k | C20: Connections | D20: AP.7.1.01 | E20: 23329.37292 | F20: 24205.32784 | G20: 24411.89926 | H20: 23835.69752 | I20: 22649.36816 | J20: =E20+F20+G20+H20+I20 -> 118431.6657 | K20: C-3
B21: Customer Connect > $100k | C21: Connections | D21: AP.7.1.01 | E21: 33915.03446 | F21: 33623.30481 | G21: 33971.09898 | H21: 34190.52492 | I21: 27752.86486 | J21: =E21+F21+G21+H21+I21 -> 163452.828 | K21: C-3
B22: Gifting | C22: Connections | D22: NA | E22: 25993 | F22: 25993 | G22: 25993 | H22: 25993 | I22: 25993 | J22: =E22+F22+G22+H22+I22 -> 129965 | K22: C-3 | L22: Based on average 2015-2018 - note this nets out
B23: URDs | C23: Connections | D23: AP.7.1.01 | E23: 5517.05594 | F23: 5659.017197 | G23: 5539.652518 | H23: 5305.894076 | I23: 4816.717142 | J23: =E23+F23+G23+H23+I23 -> 26838.33687 | K23: C-3
B25: Gross Customer Connect (total, incl gifting) | D25: Total | E25: =SUM(E19:E24) -> 104134.3375 | F25: 105266.3999 | G25: 105666.1937 | H25: 104628.8523 | I25: 100630.8242 | J25: 520326.6077
A26: Reliability & Resilience
B27: Existing Network Protection Mgt - Planned | C27: Augex | D27: Historical | E27: 1402.518892 | F27: 1402.518892 | G27: 1402.518892 | H27: 1402.518892 | I27: 1402.518892 | J27: =SUM(E27:I27) -> 7012.594458 | K27: C-5
B28: Maintain Underlying Reliability Performance | C28: Augex | D28: AP.2.1.01 | E28: 4733.501259 | F28: 4733.501259 | G28: 4733.501259 | H28: 4733.501259 | I28: 4733.501259 | J28: =SUM(E28:I28) -> 23667.5063 | K28: C-5
B29: Air Conditioning Relay Rooms | C29: Augex | D29: AP.3.2.14 | E29: 175.3148615 | F29: 175.3148615 | G29: 175.3148615 | H29: 175.3148615 | I29: 175.3148615 | J29: =SUM(E29:I29) -> 876.5743073 | K29: C-5
B30: Network Hardening | C30: Augex | D30: AP.2.1.05 | E30: 2805.037783 | F30: 2805.037783 | G30: 2805.037783 | H30: 2805.037783 | I30: 2805.037783 | J30: =SUM(E30:I30) -> 14025.18892 | K30: C-5
B31: Low Reliability Feeders | C31: Augex | D31: AP.2.1.06 | E31: 2717.380353 | F31: 2717.380353 | G31: 2717.380353 | H31: 2717.380353 | I31: 2717.380353 | J31: =SUM(E31:I31) -> 13586.90176 | K31: C-5
B33: Reliability (total) | D33: total | E33: =SUM(E27:E32) -> 11833.75315 | F33: 11833.75315 | G33: 11833.75315 | H33: 11833.75315 | I33: 11833.75315 | J33: 59168.76574
A34: Asset Replace/Refurbish
B35: Line Repex/Refurb - Planned
B36: Cable replacement planned | C36: Repex | D36: AP.3.1.09 | E36: 1251.615953 | F36: 1180.27719 | G36: 1180.27719 | H36: 1180.27719 | I36: 1180.27719 | J36: =SUM(E36:I36) -> 5972.724713 | K36: C-1
B37: Conductor Replacement - Planned | C37: Repex | D37: AP.3.1.10 | E37: 2779.569634 | F37: 2522.483777 | G37: 2522.483777 | H37: 2522.483777 | I37: 2522.483777 | J37: 12869.50474 | K37: C-1
B38: Line Ancillary Equipment - Planned (incl LFIs, fences, gates, signs etc) | C38: Repex | D38: AP.3.1.20 | E38: 375.411379 | F38: 500.5485053 | G38: 500.5485053 | H38: 500.5485053 | I38: 500.5485053 | J38: 2377.6054 | K38: C-1
B39: Line Regulation - Planned (incl regulators, capacitors) | C39: Repex | D39: AP.3.1.19 | E39: 760.2528967 | F39: 1013.670529 | G39: 1013.670529 | H39: 1022.436272 | I39: 1031.202015 | J39: 4841.232242 | K39: C-1
B40: Overhead Line Components - Planned (incl insulators, crossarms, taps, pole earths) | C40: Repex | D40: AP.3.1.06 | E40: 11554.87644 | F40: 11797.93769 | G40: 11797.93769 | H40: 11797.93769 | I40: 11797.93769 | J40: 58746.62721 | K40: C-1
B41: Pole Replacement Maint. Tasks - Planned | C41: Repex | D41: AP.3.1.05 | E41: 17309.86436 | F41: 18638.50932 | G41: 18638.50932 | H41: 18638.50932 | I41: 18638.50932 | J41: 91863.90164 | K41: C-1
B42: Recloser Refurbishment - Planned | C42: Repex | D42: AP.3.1.13 | E42: 658.8770781 | F42: 662.0765743 | G42: 662.0765743 | H42: 662.0765743 | I42: 662.0765743 | J42: 3307.183375 | K42: C-1
B43: Recloser Replacement - Planned | C43: Repex | D43: AP.3.1.13 | E43: 1875.869018 | F43: 1885.073048 | G43: 1885.949622 | H43: 1886.826196 | I43: 1887.702771 | J43: 9421.420655 | K43: C-1
B44: Services Maintenance Tasks - Planned | C44: Repex | D44: AP.3.1.08 | E44: 2970.861787 | F44: 3128.403458 | G44: 3128.403458 | H44: 3128.403458 | I44: 3128.403458 | J44: 15484.47562 | K44: C-1
B45: Switchgear - Overhead - Planned | C45: Repex | D45: AP.3.1.07 | E45: 2596.851385 | F45: 2629.722922 | G45: 2629.722922 | H45: 2629.722922 | I45: 2629.722922 | J45: 13115.74307 | K45: C-1
B46: Transformers - Planned | C46: Repex | D46: AP.3.1.01 | E46: 2519.110224 | F46: 2803.649904 | G46: 2803.649904 | H46: 2803.649904 | I46: 2803.649904 | J46: 13733.70984 | K46: C-1
B47: Poles - Planned plating | C47: Repex | D47: AP.3.1.05 | E47: 6160.617465 | F47: 6548.665437 | G47: 6548.665437 | H47: 6548.665437 | I47: 6548.665437 | J47: 32355.27921 | K47: C-1
B48: CBD ducts & manholes | C48: Repex | D48: AP.2.1.07 | E48: 2375.516373 | F48: 2612.191436 | G48: 2612.191436 | H48: 2612.191436 | I48: 2612.191436 | J48: 12824.28212 | K48: C-1
B49: Cables - CBD 11kV PILC cable replacements | C49: Repex | D49: AP.2.1.07 | E49: 2101.99061 | F49: 2802.654146 | G49: 2802.654146 | H49: 2802.654146 | I49: 2802.654146 | J49: 13312.60719 | K49: C-1
B50: Services - Aluminium neutral screen service line replacements | C50: Repex | D50: AP.3.1.08 | E50: 553.2536623 | F50: 737.6715497 | G50: 737.6715497 | H50: 737.6715497 | I50: 737.6715497 | J50: 3503.939861 | K50: C-1
K51: C-1
B52: Line Repex/Refurb - Unplanned | K52: C-1
B53: (Distribution) Cable Replacement - Unplanned | C53: Repex | D53: AP.3.1.09 | E53: 547.3329975 | F53: 561.0075567 | G53: 561.0075567 | H53: 561.0075567 | I53: 561.0075567 | J53: =SUM(E53:I53) -> 2791.363224 | K53: C-1
B54: Line Regulation - Unplanned (incl regulators, capacitors) | C54: Repex | D54: AP.3.1.19 | E54: 118.3375315 | F54: 118.3375315 | G54: 138.0604534 | H54: 157.7833753 | I54: 157.7833753 | J54: 690.302267 | K54: C-1
B55: Overhead Line Components - Unplanned (incl insulators, X-arms, pole earths) | C55: Repex | D55: AP.3.1.06 | E55: 5571.898135 | F55: 5763.70633 | G55: 5763.70633 | H55: 5763.70633 | I55: 5763.70633 | J55: 28626.72346 | K55: C-1
B56: Poles - Unplanned | C56: Repex | D56: AP.3.1.05 | E56: 2184.861461 | F56: 2191.435768 | G56: 2191.435768 | H56: 2191.435768 | I56: 2191.435768 | J56: 10950.60453 | K56: C-1
B57: Recloser Replacement - Unplanned | C57: Repex | D57: AP.3.1.13 | E57: 1059.011335 | F57: 981.7632242 | G57: 981.7632242 | H57: 981.7632242 | I57: 981.7632242 | J57: 4986.064232 | K57: C-1
B58: Services Replacement - Unplanned | C58: Repex | D58: AP.3.1.08 | E58: 3679.420655 | F58: 3962.115869 | G58: 3962.115869 | H58: 3962.115869 | I58: 3962.115869 | J58: 19527.88413 | K58: C-1
B59: Switchgear - Ground Level - Unplanned | C59: Repex | D59: AP.3.1.03 | E59: 379.5566751 | F59: 350.6297229 | G59: 350.6297229 | H59: 350.6297229 | I59: 350.6297229 | J59: 1782.075567 | K59: C-1
B60: Switchgear - Overhead - Unplanned | C60: Repex | D60: AP.3.1.07 | E60: 2717.380353 | F60: 3068.010076 | G60: 3068.010076 | H60: 3068.010076 | I60: 3068.010076 | J60: 14989.42065 | K60: C-1
B61: Transformers - Unplanned | C61: Repex | D61: AP.3.1.01 | E61: 4629.40806 | F61: 4645.843829 | G61: 4645.843829 | H61: 4645.843829 | I61: 4645.843829 | J61: 23212.78338 | K61: C-1
B63: Repex/Refurb - Lines (subtotal) | D63: subtotal | E63: =SUM(E36:E62) -> 76731.74547 | F63: 81106.38539 | G63: 81126.98489 | H63: 81156.35013 | I63: 81165.99245 | J63: 401287.4583
B64: Substations Repex/Refurb | K64: C-1
B65: Auxillary DC Supplies excl AC - Battery Banks & Chargers | C65: Repex | D65: AP.3.2.08 | E65: 566.3546599 | F65: 566.3546599 | G65: 566.3546599 | H65: 566.3546599 | I65: 319.1168766 | J65: =SUM(E65:I65) -> 2584.535516 | K65: C-1
B66: Circuit Breakers Planned Replacement | C66: Repex | D66: AP.3.2.05 | E66: 9585.763249 | F66: 9415.239983 | G66: 10182.06719 | H66: 10047.95132 | I66: 9218.010764 | J66: 48449.0325 | K66: C-1
B67: Circuit Breakers Planned Refurb | C67: Repex | D67: AP.3.2.02 | E67: 1065.084805 | F67: 1046.137776 | G67: 1131.340799 | H67: 1116.439035 | I67: 1024.223418 | J67: 5383.225834 | K67: C-1
B68: Mobile Substations | C68: Repex | D68: AP.3.2.13 | E68: 262.9722922 | F68: 262.9722922 | G68: 262.9722922 | H68: 262.9722922 | I68: 262.9722922 | J68: 1314.861461 | K68: C-1
B69: Substation Insurance Spares & Asset Mgt | C69: Repex | D69: Historical | E69: 1402.518892 | F69: 1402.518892 | G69: 1402.518892 | H69: 1402.518892 | I69: 1402.518892 | J69: 7012.594458 | K69: C-1
B70: Substation Infrastructure - Civil (incl buildings, structures) | C70: Repex | D70: AP3.2.16 | E70: 1314.861461 | F70: 1314.861461 | G70: 1314.861461 | H70: 1314.861461 | I70: 1314.861461 | J70: 6574.307305 | K70: C-1
B71: Substation Transformer Repl. | C71: Repex | D71: AP.3.2.01 | E71: 4100.291661 | F71: 4041.122895 | G71: 4707.319369 | H71: 3863.616598 | I71: 3079.082593 | J71: 19791.43312 | K71: C-1
B72: TF Refurb (18665 & 18977) | C72: Repex | D72: AP.3.2.01 | E72: 1380.604534 | F72: 1095.717884 | G72: 832.7455919 | H72: 832.7455919 | I72: 832.7455919 | J72: 4974.559194 | K72: C-1
B73: Surge Arrester | C73: Repex | D73: AP.3.2.03 | E73: 274.2046472 | F73: 300.9563201 | G73: 300.9563201 | H73: 294.2684019 | I73: 187.2617103 | J73: 1357.6474 | K73: C-1
B74: AC Panels + auxilary supply | C74: Repex | D74: AP 3.2.22 | E74: 631.1335013 | F74: 631.1335013 | G74: 631.1335013 | H74: 631.1335013 | I74: 523.7531486 | J74: 3048.287154 | K74: C-1
B75: Protection Asset Replacement | C75: Repex | D75: AP.3.2.14 | E75: 2454.40806 | F75: 2498.236776 | G75: 2322.921914 | H75: 2147.607053 | I75: 2191.435768 | J75: 11614.60957 | K75: C-1
B76: Unplanned CB Replacement | C76: Repex | D76: Historical | E76: 409.3602015 | F76: 409.3602015 | G76: 409.3602015 | H76: 409.3602015 | I76: 409.3602015 | J76: 2046.801008 | K76: C-1
B77: Unplanned Substation Asset Repl - PROTECTION | C77: Repex | D77: Historical | E77: 701.2594458 | F77: 701.2594458 | G77: 701.2594458 | H77: 701.2594458 | I77: 701.2594458 | J77: 3506.297229 | K77: C-1
B78: Other (sub cables) | C78: Repex | D78: AP 3.02.09 | E78: 626.2041296 | F78: 222.5416611 | G78: 231.7456913 | H78: 231.7456913 | I78: 194.9295704 | J78: 1507.166744 | K78: C-1
B79: Northfield 66kV GIS Switchboard replacement (1/3rd) | C79: Repex | D79: AP 3.02.06 | E79: 1095.717884 | F79: 3681.612091 | G79: 4382.871537 | H79: 1753.148615 | I79: 0 | J79: 10913.35013 | K79: C-1
B81: Repex/Refurb - Substations (subtotal) | D81: subtotal | E81: =SUM(E65:E80) -> 25870.73942 | F81: 27590.02584 | G81: 29380.42886 | H81: 25575.98276 | I81: 21661.53173 | J81: 130078.7086
B82: Telecom'n Repex/Refurb | K82: C-1
B83: 48V DC Systems | C83: Repex | D83: AP.3.3.02 | E83: 294.0906801 | F83: 273.4911839 | G83: 273.4911839 | H83: 273.4911839 | I83: 289.2695214 | J83: =SUM(E83:I83) -> 1403.833753 | K83: C-1
B84: UPAX/Business Telephone Network | C84: Non-network | D84: AP.3.3.07 | E84: 723.1738035 | F84: 131.4861461 | G84: 241.0579345 | H84: 525.9445844 | I84: 416.372796 | J84: 2038.035264 | K84: C-1
B85: Data Network | C85: Repex | D85: AP.3.3.12 | E85: 1469.576826 | F85: 1469.576826 | G85: 1029.098237 | H85: 1243.420655 | I85: 1243.420655 | J85: 6455.093199 | K85: C-1
B86: Microwave Radio | C86: Repex | D86: AP.3.3.01 | E86: 127.1032746 | F86: 267.3551637 | G86: 280.5037783 | H86: 280.5037783 | I86: 280.5037783 | J86: 1235.969773 | K86: C-1
B87: Minor Works - Unplanned | C87: Repex | D87: Historic | E87: 788.9168766 | F87: 788.9168766 | G87: 832.7455919 | H87: 876.5743073 | I87: 876.5743073 | J87: 4163.72796 | K87: C-1
B88: Misc Radio Systems | C88: Repex | D88: AP.3.3.05 | E88: 637.2695214 | F88: 170.9319899 | G88: 170.9319899 | H88: 170.9319899 | I88: 170.9319899 | J88: 1320.997481 | K88: C-1
B89: Network Tel Planning Labour Capitalisation | C89: Repex | D89: Historic | E89: 613.6020151 | F89: 613.6020151 | G89: 613.6020151 | H89: 613.6020151 | I89: 613.6020151 | J89: 3068.010076 | K89: C-1
B90: Optical Fibre Network | C90: Repex | D90: AP.3.3.04 | E90: 438.2871537 | F90: 438.2871537 | G90: 438.2871537 | H90: 438.2871537 | I90: 438.2871537 | J90: 2191.435768 | K90: C-1
B91: Pilot Cable Network (incl CBD) stage 2 | C91: Repex | D91: AP.3.3.03 | E91: 43.82871537 | F91: 43.82871537 | G91: 43.82871537 | H91: 43.82871537 | I91: 43.82871537 | J91: 219.1435768 | K91: C-1
B92: SDH Network | C92: Repex | D92: AP.3.3.10 | E92: 58.73047859 | F92: 336.1662469 | G92: 336.1662469 | H92: 58.73047859 | I92: 58.73047859 | J92: 848.5239295 | K92: C-1
B93: TNOC Management Systems | C93: Non-network | D93: AP.3.3.08 | E93: 306.8010076 | F93: 745.0881612 | G93: 810.8312343 | H93: 372.5440806 | I93: 372.5440806 | J93: 2607.808564 | K93: C-1
B94: OT Cyber Security | C94: Non-network | D94: New | E94: 525.9445844 | F94: 1402.518892 | G94: 1446.347607 | H94: 657.4307305 | I94: 613.6020151 | J94: 4645.843829 | K94: C-1
B95: Other | C95: Repex | E95: 350.6297229 | F95: 350.6297229 | G95: 350.6297229 | H95: 350.6297229 | I95: 350.6297229 | J95: 1753.148615 | K95: C-1
D96: Non-network | E96: =-(E94+E93+E84) -> -1555.919395 | F96: =-(F94+F93+F84) -> -2279.093199 | G96: =-(G94+G93+G84) -> -2498.236776 | H96: =-(H94+H93+H84) -> -1555.919395 | I96: =-(I94+I93+I84) -> -1402.518892 | J96: -9291.687657 | K96: C-1
B97: Repex / Refurb - Telecom'n (subtotal) | D97: subtotal | E97: =SUM(E83:E96) -> 4822.035264 | F97: 4752.785894 | G97: 4369.284635 | H97: 4350 | I97: 4365.778338 | J97: 22659.88413
B98: Replacement & Refurbishment (Total) | D98: Total | E98: =SUM(E63,E81,E97,) -> 107424.5202 | F98: 113449.1971 | G98: 114876.6984 | H98: 111082.3329 | I98: 107193.3025 | J98: 554026.0511
A99: Environment
B100: Environmental Management - Lines (incl oil containment, EMF) | C100: Augex | D100: AP.4.1.03 | E100: 175.3148615 | F100: 175.3148615 | G100: 175.3148615 | H100: 175.3148615 | I100: 175.3148615 | J100: =SUM(E100:I100) -> 876.5743073 | K100: C-6
B101: Oil Containment - Substation | C101: Augex | D101: AP.4.1.01 | E101: 1490.176322 | F101: 1490.176322 | G101: 1490.176322 | H101: 1490.176322 | I101: 1490.176322 | J101: =SUM(E101:I101) -> 7450.881612 | K101: C-6
B102: Environmental Management - Subs (eg noise abatement) | C102: Augex | D102: AP.4.1.05 | E102: 149.8942065 | F102: 149.8942065 | G102: 149.8942065 | H102: 149.8942065 | I102: 149.8942065 | J102: =SUM(E102:I102) -> 749.4710327 | K102: C-6
B104: Environment (Total) | D104: Total | E104: =SUM(E100:E103) -> 1815.38539 | F104: 1815.38539 | G104: 1815.38539 | H104: 1815.38539 | I104: 1815.38539 | J104: 9076.926952
A105: Safety
B106: Elizabeth Transformer Stations | C106: Repex | D106: AP.5.1.02 | E106: 432.8085642 | F106: 438.2871537 | G106: 438.2871537 | H106: 438.2871537 | I106: 438.2871537 | J106: =SUM(E106:I106) -> 2185.957179 | K106: C-8
B107: Line Clearance Rectification - Distribution | C107: Repex | D107: AP.5.1.06 | E107: 3275.100756 | F107: 3506.297229 | G107: 3506.297229 | H107: 3506.297229 | I107: 3506.297229 | J107: 17300.28967 | K107: C-8
B108: Substation Lighting | C108: Augex | D108: AP.5.1.05 | E108: 105.1889169 | F108: 105.1889169 | G108: 105.1889169 | H108: 105.1889169 | I108: 105.1889169 | J108: 525.9445844 | K108: C-7
B109: Substation Security & Fencing | C109: Augex | D109: AP.5.1.03 | E109: 2281.722922 | F109: 2290.488665 | G109: 2299.254408 | H109: 2299.254408 | I109: 2296.186398 | J109: 11466.9068 | K109: C-7
B110: CBD Maintenance Projects (CBD Safety) | C110: Repex | D110: AP.2.1.07 | E110: 370.0896725 | F110: 370.0896725 | G110: 370.0896725 | H110: 370.0896725 | I110: 370.0896725 | J110: 1850.448363 | K110: C-8
B111: Emergency Switching Communication (Mobile Radio) | C111: Repex | D111: AP.3.3.06 | E111: 767.0025189 | F111: 767.0025189 | G111: 328.7153652 | H111: 876.5743073 | I111: 788.9168766 | J111: 3528.211587 | K111: C-8
B112: Substation Infrastructure - Earth systems (Earth Grid Upgrades) | C112: Augex | D112: AP.3.2.10 | E112: 1078.186398 | F112: 1078.186398 | G112: 1078.186398 | H112: 1078.186398 | I112: 1078.186398 | J112: 5390.93199 | K112: C-7
B113: Distribution Earthing | C113: Repex | D113: AP.3.1.18 | E113: 79.06488663 | F113: 105.4198488 | G113: 105.4198488 | H113: 105.4198488 | I113: 105.4198488 | J113: 500.744282 | K113: C-8
B114: Telco Structures | C114: Repex | D114: AP.3.3.13 | E114: 289.2695214 | F114: 289.2695214 | G114: 289.2695214 | H114: 289.2695214 | I114: 802.0654912 | J114: 1959.143577 | K114: C-8
B115: Switchgear - Ground Level - Planned | C115: Repex | D115: AP.3.1.03 | E115: 3739.368765 | F115: 3597.915699 | G115: 3597.915699 | H115: 3597.915699 | I115: 3597.915699 | J115: 18131.03156 | K115: C-8
B116: Instrument Transformers (CTs & VTs) | C116: Repex | D116: AP.3.2.02 | E116: 512.3576826 | F116: 604.3979849 | G116: 568.8967254 | H116: 568.8967254 | I116: 568.8967254 | J116: 2823.445844 | K116: C-8
B117: Protection Compliance (Primary&Backup) | C117: Augex | D117: AP.3.2.14 | E117: 2459.667506 | F117: 2459.667506 | G117: 2459.667506 | H117: 2459.667506 | I117: 2459.667506 | J117: 12298.33753 | K117: C-7
B118: Network Protection Substation Audits | C118: Augex | D118: Historic | E118: 262.9722922 | F118: 262.9722922 | G118: 262.9722922 | H118: 262.9722922 | I118: 262.9722922 | J118: 1314.861461 | K118: C-7
B119: CBD 33kV Substation Migration to 11kV | C119: Augex | D119: AP.2.1.07 | E119: 3068.010076 | F119: 3068.010076 | G119: 1753.148615 | H119: 1753.148615 | I119: 1753.148615 | J119: 11395.46599 | K119: C-7
B120: Planned & Unplanned Disconnector Repl | C120: Repex | D120: AP.3.2.17 | E120: 403.2241814 | F120: 403.2241814 | G120: 391.3904282 | H120: 379.5566751 | I120: 379.5566751 | J120: 1956.952141 | K120: C-8
B121: Substations rebuilds at BHP Ardrossan, Quorn & Burra substations. Kleins Point & Walkers Flat substation rebuilds + Wilmington (19672) | C121: Repex | D121: AP.3.2.12 | E121: 2708.61461 | F121: 2708.61461 | G121: 2708.61461 | H121: 2542.065491 | I121: 2173.904282 | J121: 12841.8136 | K121: C-8
B122: CBD Pilot Cable replacement program | E122: 660.1722724 | J122: 660.1722724 | K122: C-8
B124: Bushfire
B125: Bushfire Risk Reduction | C125: Augex | D125: B Case | E125: 2134.458438 | F125: 2101.586902 | G125: 2121.309824 | H125: 2095.012594 | I125: 2081.86398 | J125: =SUM(E125:I125) -> 10534.23174 | K125: C-18
B127: Repex Sub-total | C127: Repex | E127: =SUM(E106:E107,E110:E111,E113:E116,E120:E122) -> 13237.07343 | F127: =SUM(F106:F107,F110:F111,F113:F116,F120:F122) -> 12790.51842 | G127: =SUM(G106:G107,G110:G111,G113:G116,G120:G122) -> 12304.89625 | H127: =SUM(H106:H107,H110:H111,H113:H116,H120:H122) -> 12674.37232 | I127: =SUM(I106:I107,I110:I111,I113:I116,I120:I122) -> 12731.34965 | J127: =SUM(E127:I127) -> 63738.21008
B128: Augex Sub-total | C128: Augex | E128: =SUM(E108:E109,E112,E117:E119,) -> 9255.748111 | F128: =SUM(F108:F109,F112,F117:F119,) -> 9264.513854 | G128: =SUM(G108:G109,G112,G117:G119,) -> 7958.418136 | H128: =SUM(H108:H109,H112,H117:H119,) -> 7958.418136 | I128: =SUM(I108:I109,I112,I117:I119,) -> 7955.350126 | J128: =SUM(E128:I128) -> 42392.44836
B130: Safety (Total) | D130: Total | E130: =E125+E127+E128+E129 -> 24627.27998 | F130: 24156.61918 | G130: 22384.62421 | H130: 22727.80305 | I130: 22768.56376 | J130: 116664.8902
A131: Network ("Strategic" category)
B132: Substations CM equip | C132: Augex | D132: AMP 3.0.01 | E132: 262.9722922 | F132: 262.9722922 | G132: 262.9722922 | H132: 262.9722922 | I132: 262.9722922 | J132: =SUM(E132:I132) -> 1314.861461 | K132: C-15
B134: Network - Strategic (Total) | D134: Total | E134: =SUM(E132:E133) -> 262.9722922 | F134: 262.9722922 | G134: 262.9722922 | H134: 262.9722922 | I134: 262.9722922 | J134: 1314.861461
A135: Network Control
B136: SCADA to remaining substations | C136: Augex | D136: AP.2.1.02 | E136: 1556.357683 | F136: 1556.357683 | G136: 1453.360202 | H136: 1453.360202 | I136: 1453.360202 | J136: =SUM(E136:I136) -> 7472.79597 | K136: C-15
B137: Network Data Capture | C137: Augex | D137: Historic | E137: 525.9445844 | F137: 525.9445844 | G137: 525.9445844 | H137: 525.9445844 | I137: 525.9445844 | J137: 2629.722922 | K137: C-15
B138: SCADA Improvement Project (inc TDU & RTU) | C138: Augex | D138: AP.2.1.02 | E138: 760.8664987 | F138: 760.8664987 | G138: 760.8664987 | H138: 760.8664987 | I138: 760.8664987 | J138: 3804.332494 | K138: C-15
B139: SCADA Data Concentrator | C139: Augex | D139: AP.2.1.02 | E139: 0 | F139: 234.4836272 | G139: 234.4836272 | H139: 0 | I139: 0 | J139: 468.9672544 | K139: C-15
B140: Low Voltage Management | C140: Augex | D140: B Case | E140: 5549.59194 | F140: 8298.967254 | G140: 6120.241814 | H140: 5587.722922 | I140: 3631.209068 | J140: 29187.733 | K140: C-15
B141: OMS Replacement Project | C141: Non-network | D141: AP.2.1.02 | E141: 122.720403 | F141: 0 | G141: 0 | H141: 0 | I141: 0 | J141: 122.720403
B142: ADMS/OMS Hardware Upgrade | C142: Non-network | D142: AP.2.1.02 | E142: 1625.168766 | F142: 10.51889169 | G142: 10.51889169 | H142: 1625.168766 | I142: 1625.168766 | J142: 4896.544081
B143: ADMS/OMS Software Upgrade | C143: Non-network | D143: AP.2.1.02 | E143: 1460.811083 | F143: 0 | G143: 0 | H143: 1619.90932 | I143: 3239.81864 | J143: 6320.539043
D144: Non-network | E144: =-(E143+E142+E141) -> -3208.700252 | F144: -10.51889169 | G144: -10.51889169 | H144: -3245.078086 | I144: -4864.987406 | J144: -11339.80353
B146: Network Control (Total) | D146: Total | E146: =SUM(E136:E145) -> 8392.760705 | F146: 11376.61965 | G146: 9094.896725 | H146: 8327.894207 | I146: 6371.380353 | J146: 43563.55164
A147: PLEC
B148: PLEC - Non-Specific (gross) | C148: Augex | E148: 10080.60453 | F148: 10080.60453 | G148: 10080.60453 | H148: 10080.60453 | I148: 10080.60453 | J148: =SUM(E148:I148) -> 50403.02267 | K148: C-10
B150: PLEC (Total) | D150: Total | E150: =SUM(E148:E149) -> 10080.60453 | F150: 10080.60453 | G150: 10080.60453 | H150: 10080.60453 | I150: 10080.60453 | J150: 50403.02267
A151: Customer Contributions
B152: Customer Connect <$30k | C152: Connections | D152: AP.7.1.01 | E152: 5049.894575 | F152: 5071.389628 | G152: 5060.078868 | H152: 4916.535905 | I152: 6238.580759 | J152: =SUM(E152:I152) -> 26336.47973 | K152: C-4
B153: Customer Connect >$30k<$100k | C153: Connections | D153: AP.7.1.01 | E153: 6835.025648 | F153: 6957.147 | G153: 7016.5202 | H153: 6850.907064 | I153: 6509.929748 | J153: 34169.52966 | K153: C-4
B154: Customer Projects >$100k | C154: Connections | D154: AP.7.1.01 | E154: 18032.225 | F154: 17103.08714 | G154: 17279.99878 | H154: 17391.61365 | I154: 14116.9843 | J154: 83923.90886 | K154: C-4
B155: URDs | C155: Connections | D155: AP.7.1.01 | E155: 7819.934691 | F155: 7870.290984 | G155: 7704.284287 | H155: 7379.184204 | I155: 6698.860274 | J155: 37472.55444 | K155: C-4
B156: PLEC | C156: Connections | D156: AP.7.1.01 | E156: 2366.75063 | F156: 2366.75063 | G156: 2366.75063 | H156: 2366.75063 | I156: 2366.75063 | J156: 11833.75315 | K156: C-4
B157: Gifting | C157: Augex | D157: NA | E157: =E22 -> 25993 | F157: =F22 -> 25993 | G157: =G22 -> 25993 | H157: =H22 -> 25993 | I157: =I22 -> 25993 | J157: 129965 | K157: C-4
E158: 0 | F158: 0 | G158: 0 | H158: 0 | I158: 0 | J158: 0
E159: 0 | F159: 0 | G159: 0 | H159: 0 | I159: 0 | J159: 0
B160: Customer Contributions (Total) | D160: Total | E160: =SUM(E152:E159) -> 66096.83054 | F160: 65361.66538 | G160: 65420.63276 | H160: 64897.99145 | I160: 61924.10571 | J160: 323701.2258
A161: Network
B162: Total (gross) - incl Gifting | E162: =SUM(E150,E146,E134,E130,E104,E98,E33,E25,E17) -> 304199.9764 | F162: 308531.5764 | G162: 300353.2141 | H162: 296035.618 | I162: 288906.358 | J162: 1498026.743
B163: Total (net) | E163: =E162-E160 -> 238103.1459 | F163: =F162-F160 -> 243169.911 | G163: =G162-G160 -> 234932.5813 | H163: =H162-H160 -> 231137.6265 | I163: =I162-I160 -> 226982.2523 | J163: =SUM(E163:I163) -> 1174325.517

Sheet Proposed NW Proj Direct Costs
A1: EXCLUDES OVERHEADS | C1: Direct Costs | D1: $2017-18 ($'000)
L2: Network Business Overheads Rate
C3: AER RIN ref | D3: Doc/Plan ref | E3: 2020/21 | F3: 2021/22 | G3: 2022/23 | H3: 2023/24 | I3: 2024/25 | J3: Total | L3: 0.05072810203
A4: Category / Description | C4: (Repex,Augex etc) | D4: (eg AP) | E4: Jul-Jun | F4: =E4 -> Jul-Jun | G4: Jul-Jun | H4: Jul-Jun | I4: Jul-Jun | K4: SEM Reference
A5: Capacity Upgrade
B6: Connection Point Capacity (ETC/NER Code) | C6: Augex | D6: AP.1.1.01 | E6: ='Proposed NW Projects (Reg Yr)'!E6/(1+$L$3) -> 4125.386902 | F6: ='Proposed NW Projects (Reg Yr)'!F6/(1+$L$3) -> 5009.696329 | G6: ='Proposed NW Projects (Reg Yr)'!G6/(1+$L$3) -> 1472.458621 | H6: ='Proposed NW Projects (Reg Yr)'!H6/(1+$L$3) -> 0 | I6: ='Proposed NW Projects (Reg Yr)'!I6/(1+$L$3) -> 0 | J6: =SUM(E6:I6) -> 10607.54185 | K6: C-2
B7: LV & Distribution Transformers (QoS BAU) | C7: Augex | D7: AP.1.1.01 | E7: ='Proposed NW Projects (Reg Yr)'!E7/(1+$L$3) -> 7508.287587 | F7: ='Proposed NW Projects (Reg Yr)'!F7/(1+$L$3) -> 7841.989258 | G7: ='Proposed NW Projects (Reg Yr)'!G7/(1+$L$3) -> 8175.690928 | H7: ='Proposed NW Projects (Reg Yr)'!H7/(1+$L$3) -> 8509.392599 | I7: ='Proposed NW Projects (Reg Yr)'!I7/(1+$L$3) -> 8843.094269 | J7: 40878.45464 | K7: C-2
B8: Distribution Feeders (11 & 7.6kV) | C8: Augex | D8: AP.1.1.01 | E8: ='Proposed NW Projects (Reg Yr)'!E8/(1+$L$3) -> 2294.198985 | F8: ='Proposed NW Projects (Reg Yr)'!F8/(1+$L$3) -> 275.3038782 | G8: ='Proposed NW Projects (Reg Yr)'!G8/(1+$L$3) -> 70.91160499 | H8: ='Proposed NW Projects (Reg Yr)'!H8/(1+$L$3) -> 521.4088602 | I8: ='Proposed NW Projects (Reg Yr)'!I8/(1+$L$3) -> 755.0000296 | J8: 3916.823358 | K8: C-2
B9: Strategic Network Capacity (Other) | C9: Augex | D9: AP.1.1.01 | E9: ='Proposed NW Projects (Reg Yr)'!E9/(1+$L$3) -> 3420.442123 | F9: ='Proposed NW Projects (Reg Yr)'!F9/(1+$L$3) -> 3420.442123 | G9: ='Proposed NW Projects (Reg Yr)'!G9/(1+$L$3) -> 3420.442123 | H9: ='Proposed NW Projects (Reg Yr)'!H9/(1+$L$3) -> 3420.442123 | I9: ='Proposed NW Projects (Reg Yr)'!I9/(1+$L$3) -> 3420.442123 | J9: 17102.21061 | K9: C-2
B10: Substation Capacity | C10: Augex | D10: AP.1.1.01 | E10: ='Proposed NW Projects (Reg Yr)'!E10/(1+$L$3) -> 2982.45868 | F10: ='Proposed NW Projects (Reg Yr)'!F10/(1+$L$3) -> 2035.58019 | G10: ='Proposed NW Projects (Reg Yr)'!G10/(1+$L$3) -> 2769.723865 | H10: ='Proposed NW Projects (Reg Yr)'!H10/(1+$L$3) -> 2006.381294 | I10: ='Proposed NW Projects (Reg Yr)'!I10/(1+$L$3) -> 667.4033411 | J10: 10461.54737 | K10: C-2
B11: Subtransmission Network | C11: Augex | D11: AP.1.1.01 | E11: ='Proposed NW Projects (Reg Yr)'!E11/(1+$L$3) -> 7274.696418 | F11: ='Proposed NW Projects (Reg Yr)'!F11/(1+$L$3) -> 3941.850983 | G11: ='Proposed NW Projects (Reg Yr)'!G11/(1+$L$3) -> 951.049761 | H11: ='Proposed NW Projects (Reg Yr)'!H11/(1+$L$3) -> 1330.635411 | I11: ='Proposed NW Projects (Reg Yr)'!I11/(1+$L$3) -> 4646.795762 | J11: 18145.02834 | K11: C-2
B12: Distribution Line - SWER Replacements | C12: Augex | D12: AP.1.1.01 | E12: ='Proposed NW Projects (Reg Yr)'!E12/(1+$L$3) -> 583.9779234 | F12: ='Proposed NW Projects (Reg Yr)'!F12/(1+$L$3) -> 583.9779234 | G12: ='Proposed NW Projects (Reg Yr)'!G12/(1+$L$3) -> 583.9779234 | H12: ='Proposed NW Projects (Reg Yr)'!H12/(1+$L$3) -> 583.9779234 | I12: ='Proposed NW Projects (Reg Yr)'!I12/(1+$L$3) -> 583.9779234 | J12: 2919.889617 | K12: C-2
B13: Voltage Regulation | C13: Augex | D13: AP.1.1.01 | E13: ='Proposed NW Projects (Reg Yr)'!E13/(1+$L$3) -> 2381.795673 | F13: ='Proposed NW Projects (Reg Yr)'!F13/(1+$L$3) -> 2381.795673 | G13: ='Proposed NW Projects (Reg Yr)'!G13/(1+$L$3) -> 2381.795673 | H13: ='Proposed NW Projects (Reg Yr)'!H13/(1+$L$3) -> 3053.370285 | I13: ='Proposed NW Projects (Reg Yr)'!I13/(1+$L$3) -> 3053.370285 | J13: 13252.12759 | K13: C-2
B14: Land | C14: Augex | D14: AP.1.1.01 | E14: ='Proposed NW Projects (Reg Yr)'!E14/(1+$L$3) -> 0 | F14: ='Proposed NW Projects (Reg Yr)'!F14/(1+$L$3) -> 0 | G14: ='Proposed NW Projects (Reg Yr)'!G14/(1+$L$3) -> 0 | H14: ='Proposed NW Projects (Reg Yr)'!H14/(1+$L$3) -> 1293.093973 | I14: ='Proposed NW Projects (Reg Yr)'!I14/(1+$L$3) -> 1293.093973 | J14: =SUM(E14:I14) -> 2586.187947 | K14: C-2
B15: LV Two Way Network (QoS) | C15: Augex | D15: AP.1.1.01 | E15: ='Proposed NW Projects (Reg Yr)'!E15/(1+$L$3) -> 3337.016705 | F15: ='Proposed NW Projects (Reg Yr)'!F15/(1+$L$3) -> 3337.016705 | G15: ='Proposed NW Projects (Reg Yr)'!G15/(1+$L$3) -> 3337.016705 | H15: ='Proposed NW Projects (Reg Yr)'!H15/(1+$L$3) -> 3337.016705 | I15: ='Proposed NW Projects (Reg Yr)'!I15/(1+$L$3) -> 3337.016705 | J15: 16685.08353 | K15: C-2
B17: Capacity Augmentation (Total) | D17: Total | E17: =SUM(E6:E16) -> 33908.261 | F17: =SUM(F6:F16) -> 28827.65306 | G17: =SUM(G6:G16) -> 23163.06721 | H17: =SUM(H6:H16) -> 24055.71917 | I17: =SUM(I6:I16) -> 26600.19441 | J17: =SUM(E17:I17) -> 136554.8949 | K17: =K15 -> C-2
A18: Customer Connect (gross)
B19: Customer Connect < $30k | C19: Connections | D19: AP.7.1.01 | E19: ='Proposed NW Projects (Reg Yr)'!E19/(1+$L$3) -> 14637.34923 | F19: ='Proposed NW Projects (Reg Yr)'!F19/(1+$L$3) -> 15023.62983 | G19: ='Proposed NW Projects (Reg Yr)'!G19/(1+$L$3) -> 14990.12252 | H19: ='Proposed NW Projects (Reg Yr)'!H19/(1+$L$3) -> 14564.88673 | I19: ='Proposed NW Projects (Reg Yr)'!I19/(1+$L$3) -> 18481.35026 | J19: =E19+F19+G19+H19+I19 -> 77697.33857 | K19: C-3
B20: Customer Connect > $30k<$100k | C20: Connections | D20: AP.7.1.01 | E20: ='Proposed NW Projects (Reg Yr)'!E20/(1+$L$3) -> 22203.05412 | F20: ='Proposed NW Projects (Reg Yr)'!F20/(1+$L$3) -> 23036.71882 | G20: ='Proposed NW Projects (Reg Yr)'!G20/(1+$L$3) -> 23233.31718 | H20: ='Proposed NW Projects (Reg Yr)'!H20/(1+$L$3) -> 22684.93388 | I20: ='Proposed NW Projects (Reg Yr)'!I20/(1+$L$3) -> 21555.87932 | J20: =E20+F20+G20+H20+I20 -> 112713.9033 | K20: C-3
B21: Customer Connect > $100k | C21: Connections | D21: AP.7.1.01 | E21: ='Proposed NW Projects (Reg Yr)'!E21/(1+$L$3) -> 32277.65052 | F21: ='Proposed NW Projects (Reg Yr)'!F21/(1+$L$3) -> 32000.00527 | G21: ='Proposed NW Projects (Reg Yr)'!G21/(1+$L$3) -> 32331.00829 | H21: ='Proposed NW Projects (Reg Yr)'!H21/(1+$L$3) -> 32539.84057 | I21: ='Proposed NW Projects (Reg Yr)'!I21/(1+$L$3) -> 26412.98429 | J21: =E21+F21+G21+H21+I21 -> 155561.4889 | K21: C-3
B22: Gifting | C22: Connections | D22: NA | E22: ='Proposed NW Projects (Reg Yr)'!E22/(1+$L$3) -> 24738.08395 | F22: ='Proposed NW Projects (Reg Yr)'!F22/(1+$L$3) -> 24738.08395 | G22: ='Proposed NW Projects (Reg Yr)'!G22/(1+$L$3) -> 24738.08395 | H22: ='Proposed NW Projects (Reg Yr)'!H22/(1+$L$3) -> 24738.08395 | I22: ='Proposed NW Projects (Reg Yr)'!I22/(1+$L$3) -> 24738.08395 | J22: =E22+F22+G22+H22+I22 -> 123690.4198 | K22: C-3 | L22: Based on average 2015-2018 - note this nets out
B23: URDs | C23: Connections | D23: AP.7.1.01 | E23: ='Proposed NW Projects (Reg Yr)'!E23/(1+$L$3) -> 5250.697996 | F23: ='Proposed NW Projects (Reg Yr)'!F23/(1+$L$3) -> 5385.805506 | G23: ='Proposed NW Projects (Reg Yr)'!G23/(1+$L$3) -> 5272.203634 | H23: ='Proposed NW Projects (Reg Yr)'!H23/(1+$L$3) -> 5049.730816 | I23: ='Proposed NW Projects (Reg Yr)'!I23/(1+$L$3) -> 4584.170855 | J23: =E23+F23+G23+H23+I23 -> 25542.60881 | K23: C-3
B25: Gross Customer Connect (total, incl gifting) | D25: Total | E25: =SUM(E19:E24) -> 99106.83582 | F25: 100184.2434 | G25: 100564.7356 | H25: 99577.47594 | I25: 95772.46868 | J25: =SUM(J19:J24) -> 495205.7594 | K25: =K23 -> C-3
A26: Reliability & Resilience
B27: Existing Network Protection Mgt - Planned | C27: Augex | D27: Historical | E27: ='Proposed NW Projects (Reg Yr)'!E27/(1+$L$3) -> 1334.806682 | F27: ='Proposed NW Projects (Reg Yr)'!F27/(1+$L$3) -> 1334.806682 | G27: ='Proposed NW Projects (Reg Yr)'!G27/(1+$L$3) -> 1334.806682 | H27: ='Proposed NW Projects (Reg Yr)'!H27/(1+$L$3) -> 1334.806682 | I27: ='Proposed NW Projects (Reg Yr)'!I27/(1+$L$3) -> 1334.806682 | J27: =SUM(E27:I27) -> 6674.033411 | K27: C-5
B28: Maintain Underlying Reliability Performance | C28: Augex | D28: AP.2.1.01 | E28: ='Proposed NW Projects (Reg Yr)'!E28/(1+$L$3) -> 4504.972552 | F28: ='Proposed NW Projects (Reg Yr)'!F28/(1+$L$3) -> 4504.972552 | G28: ='Proposed NW Projects (Reg Yr)'!G28/(1+$L$3) -> 4504.972552 | H28: ='Proposed NW Projects (Reg Yr)'!H28/(1+$L$3) -> 4504.972552 | I28: ='Proposed NW Projects (Reg Yr)'!I28/(1+$L$3) -> 4504.972552 | J28: =SUM(E28:I28) -> 22524.86276 | K28: C-5
B29: Air Conditioning Relay Rooms | C29: Augex | D29: AP.3.2.14 | E29: ='Proposed NW Projects (Reg Yr)'!E29/(1+$L$3) -> 166.8508353 | F29: ='Proposed NW Projects (Reg Yr)'!F29/(1+$L$3) -> 166.8508353 | G29: ='Proposed NW Projects (Reg Yr)'!G29/(1+$L$3) -> 166.8508353 | H29: ='Proposed NW Projects (Reg Yr)'!H29/(1+$L$3) -> 166.8508353 | I29: ='Proposed NW Projects (Reg Yr)'!I29/(1+$L$3) -> 166.8508353 | J29: =SUM(E29:I29) -> 834.2541763 | K29: C-5
B30: Network Hardening | C30: Augex | D30: AP.2.1.05 | E30: ='Proposed NW Projects (Reg Yr)'!E30/(1+$L$3) -> 2669.613364 | F30: ='Proposed NW Projects (Reg Yr)'!F30/(1+$L$3) -> 2669.613364 | G30: ='Proposed NW Projects (Reg Yr)'!G30/(1+$L$3) -> 2669.613364 | H30: ='Proposed NW Projects (Reg Yr)'!H30/(1+$L$3) -> 2669.613364 | I30: ='Proposed NW Projects (Reg Yr)'!I30/(1+$L$3) -> 2669.613364 | J30: =SUM(E30:I30) -> 13348.06682 | K30: C-5
B31: Low Reliability Feeders | C31: Augex | D31: AP.2.1.06 | E31: ='Proposed NW Projects (Reg Yr)'!E31/(1+$L$3) -> 2586.187947 | F31: ='Proposed NW Projects (Reg Yr)'!F31/(1+$L$3) -> 2586.187947 | G31: ='Proposed NW Projects (Reg Yr)'!G31/(1+$L$3) -> 2586.187947 | H31: ='Proposed NW Projects (Reg Yr)'!H31/(1+$L$3) -> 2586.187947 | I31: ='Proposed NW Projects (Reg Yr)'!I31/(1+$L$3) -> 2586.187947 | J31: =SUM(E31:I31) -> 12930.93973 | K31: C-5
B33: Reliability (total) | D33: total | E33: =SUM(E27:E32) -> 11262.43138 | F33: 11262.43138 | G33: 11262.43138 | H33: 11262.43138 | I33: 11262.43138 | J33: 56312.1569 | K33: =K31 -> C-5
A34: Asset Replace/Refurbish
B35: Line Repex/Refurb - Planned
B36: Cable replacement planned | C36: Repex | D36: AP.3.1.09 | E36: ='Proposed NW Projects (Reg Yr)'!E36/(1+$L$3) -> 1191.189186 | F36: ='Proposed NW Projects (Reg Yr)'!F36/(1+$L$3) -> 1123.294587 | G36: ='Proposed NW Projects (Reg Yr)'!G36/(1+$L$3) -> 1123.294587 | H36: ='Proposed NW Projects (Reg Yr)'!H36/(1+$L$3) -> 1123.294587 | I36: ='Proposed NW Projects (Reg Yr)'!I36/(1+$L$3) -> 1123.294587 | J36: =SUM(E36:I36) -> 5684.367536 | K36: C-1
B37: Conductor Replacement - Planned | C37: Repex | D37: AP.3.1.10 | E37: ='Proposed NW Projects (Reg Yr)'!E37/(1+$L$3) -> 2645.374792 | F37: ='Proposed NW Projects (Reg Yr)'!F37/(1+$L$3) -> 2400.700783 | G37: ='Proposed NW Projects (Reg Yr)'!G37/(1+$L$3) -> 2400.700783 | H37: ='Proposed NW Projects (Reg Yr)'!H37/(1+$L$3) -> 2400.700783 | I37: ='Proposed NW Projects (Reg Yr)'!I37/(1+$L$3) -> 2400.700783 | J37: 12248.17792 | K37: C-1
B38: Line Ancillary Equipment - Planned (incl LFIs, fences, gates, signs etc) | C38: Repex | D38: AP.3.1.20 | E38: ='Proposed NW Projects (Reg Yr)'!E38/(1+$L$3) -> 357.286893 | F38: ='Proposed NW Projects (Reg Yr)'!F38/(1+$L$3) -> 476.382524 | G38: ='Proposed NW Projects (Reg Yr)'!G38/(1+$L$3) -> 476.382524 | H38: ='Proposed NW Projects (Reg Yr)'!H38/(1+$L$3) -> 476.382524 | I38: ='Proposed NW Projects (Reg Yr)'!I38/(1+$L$3) -> 476.382524 | J38: 2262.816989 | K38: C-1
B39: Line Regulation - Planned (incl regulators, capacitors) | C39: Repex | D39: AP.3.1.19 | E39: ='Proposed NW Projects (Reg Yr)'!E39/(1+$L$3) -> 723.5486471 | F39: ='Proposed NW Projects (Reg Yr)'!F39/(1+$L$3) -> 964.7315295 | G39: ='Proposed NW Projects (Reg Yr)'!G39/(1+$L$3) -> 964.7315295 | H39: ='Proposed NW Projects (Reg Yr)'!H39/(1+$L$3) -> 973.0740713 | I39: ='Proposed NW Projects (Reg Yr)'!I39/(1+$L$3) -> 981.416613 | J39: 4607.50239 | K39: C-1
B40: Overhead Line Components - Planned (incl insulators, crossarms, taps, pole earths) | C40: Repex | D40: AP.3.1.06 | E40: ='Proposed NW Projects (Reg Yr)'!E40/(1+$L$3) -> 10997.01856 | F40: ='Proposed NW Projects (Reg Yr)'!F40/(1+$L$3) -> 11228.34506 | G40: ='Proposed NW Projects (Reg Yr)'!G40/(1+$L$3) -> 11228.34506 | H40: ='Proposed NW Projects (Reg Yr)'!H40/(1+$L$3) -> 11228.34506 | I40: ='Proposed NW Projects (Reg Yr)'!I40/(1+$L$3) -> 11228.34506 | J40: 55910.3988 | K40: C-1
B41: Pole Replacement Maint. Tasks - Planned | C41: Repex | D41: AP.3.1.05 | E41: ='Proposed NW Projects (Reg Yr)'!E41/(1+$L$3) -> 16474.16142 | F41: ='Proposed NW Projects (Reg Yr)'!F41/(1+$L$3) -> 17738.66073 | G41: ='Proposed NW Projects (Reg Yr)'!G41/(1+$L$3) -> 17738.66073 | H41: ='Proposed NW Projects (Reg Yr)'!H41/(1+$L$3) -> 17738.66073 | I41: ='Proposed NW Projects (Reg Yr)'!I41/(1+$L$3) -> 17738.66073 | J41: 87428.80433 | K41: C-1
B42: Recloser Refurbishment - Planned | C42: Repex | D42: AP.3.1.13 | E42: ='Proposed NW Projects (Reg Yr)'!E42/(1+$L$3) -> 627.0671516 | F42: ='Proposed NW Projects (Reg Yr)'!F42/(1+$L$3) -> 630.1121794 | G42: ='Proposed NW Projects (Reg Yr)'!G42/(1+$L$3) -> 630.1121794 | H42: ='Proposed NW Projects (Reg Yr)'!H42/(1+$L$3) -> 630.1121794 | I42: ='Proposed NW Projects (Reg Yr)'!I42/(1+$L$3) -> 630.1121794 | J42: 3147.515869 | K42: C-1
B43: Recloser Replacement - Planned | C43: Repex | D43: AP.3.1.13 | E43: ='Proposed NW Projects (Reg Yr)'!E43/(1+$L$3) -> 1785.303937 | F43: ='Proposed NW Projects (Reg Yr)'!F43/(1+$L$3) -> 1794.063606 | G43: ='Proposed NW Projects (Reg Yr)'!G43/(1+$L$3) -> 1794.89786 | H43: ='Proposed NW Projects (Reg Yr)'!H43/(1+$L$3) -> 1795.732115 | I43: ='Proposed NW Projects (Reg Yr)'!I43/(1+$L$3) -> 1796.566369 | J43: 8966.563887 | K43: C-1
B44: Services Maintenance Tasks - Planned | C44: Repex | D44: AP.3.1.08 | E44: ='Proposed NW Projects (Reg Yr)'!E44/(1+$L$3) -> 2827.431551 | F44: ='Proposed NW Projects (Reg Yr)'!F44/(1+$L$3) -> 2977.367267 | G44: ='Proposed NW Projects (Reg Yr)'!G44/(1+$L$3) -> 2977.367267 | H44: ='Proposed NW Projects (Reg Yr)'!H44/(1+$L$3) -> 2977.367267 | I44: ='Proposed NW Projects (Reg Yr)'!I44/(1+$L$3) -> 2977.367267 | J44: 14736.90062 | K44: C-1
B45: Switchgear - Overhead - Planned | C45: Repex | D45: AP.3.1.07 | E45: ='Proposed NW Projects (Reg Yr)'!E45/(1+$L$3) -> 2471.477997 | F45: ='Proposed NW Projects (Reg Yr)'!F45/(1+$L$3) -> 2502.762529 | G45: ='Proposed NW Projects (Reg Yr)'!G45/(1+$L$3) -> 2502.762529 | H45: ='Proposed NW Projects (Reg Yr)'!H45/(1+$L$3) -> 2502.762529 | I45: ='Proposed NW Projects (Reg Yr)'!I45/(1+$L$3) -> 2502.762529 | J45: 12482.52811 | K45: C-1
B46: Transformers - Planned | C46: Repex | D46: AP.3.1.01 | E46: ='Proposed NW Projects (Reg Yr)'!E46/(1+$L$3) -> 2397.490101 | F46: ='Proposed NW Projects (Reg Yr)'!F46/(1+$L$3) -> 2668.29249 | G46: ='Proposed NW Projects (Reg Yr)'!G46/(1+$L$3) -> 2668.29249 | H46: ='Proposed NW Projects (Reg Yr)'!H46/(1+$L$3) -> 2668.29249 | I46: ='Proposed NW Projects (Reg Yr)'!I46/(1+$L$3) -> 2668.29249 | J46: 13070.66006 | K46: C-1
B47: Poles - Planned plating | C47: Repex | D47: AP.3.1.05 | E47: ='Proposed NW Projects (Reg Yr)'!E47/(1+$L$3) -> 5863.189015 | F47: ='Proposed NW Projects (Reg Yr)'!F47/(1+$L$3) -> 6232.502418 | G47: ='Proposed NW Projects (Reg Yr)'!G47/(1+$L$3) -> 6232.502418 | H47: ='Proposed NW Projects (Reg Yr)'!H47/(1+$L$3) -> 6232.502418 | I47: ='Proposed NW Projects (Reg Yr)'!I47/(1+$L$3) -> 6232.502418 | J47: 30793.19869 | K47: C-1
B48: CBD ducts & manholes | C48: Repex | D48: AP.2.1.07 | E48: ='Proposed NW Projects (Reg Yr)'!E48/(1+$L$3) -> 2260.828818 | F48: ='Proposed NW Projects (Reg Yr)'!F48/(1+$L$3) -> 2486.077445 | G48: ='Proposed NW Projects (Reg Yr)'!G48/(1+$L$3) -> 2486.077445 | H48: ='Proposed NW Projects (Reg Yr)'!H48/(1+$L$3) -> 2486.077445 | I48: ='Proposed NW Projects (Reg Yr)'!I48/(1+$L$3) -> 2486.077445 | J48: 12205.1386 | K48: C-1
B49: Cables - CBD 11kV PILC cable replacements | C49: Repex | D49: AP.2.1.07 | E49: ='Proposed NW Projects (Reg Yr)'!E49/(1+$L$3) -> 2000.508605 | F49: ='Proposed NW Projects (Reg Yr)'!F49/(1+$L$3) -> 2667.344807 | G49: ='Proposed NW Projects (Reg Yr)'!G49/(1+$L$3) -> 2667.344807 | H49: ='Proposed NW Projects (Reg Yr)'!H49/(1+$L$3) -> 2667.344807 | I49: ='Proposed NW Projects (Reg Yr)'!I49/(1+$L$3) -> 2667.344807 | J49: 12669.88783 | K49: C-1
B50: Services - Aluminium neutral screen service line replacements | C50: Repex | D50: AP.3.1.08 | E50: ='Proposed NW Projects (Reg Yr)'!E50/(1+$L$3) -> 526.5431287 | F50: ='Proposed NW Projects (Reg Yr)'!F50/(1+$L$3) -> 702.057505 | G50: ='Proposed NW Projects (Reg Yr)'!G50/(1+$L$3) -> 702.057505 | H50: ='Proposed NW Projects (Reg Yr)'!H50/(1+$L$3) -> 702.057505 | I50: ='Proposed NW Projects (Reg Yr)'!I50/(1+$L$3) -> 702.057505 | J50: 3334.773149 | K50: C-1
B52: Line Repex/Refurb - Unplanned
B53: (Distribution) Cable Replacement - Unplanned | C53: Repex | D53: AP.3.1.09 | E53: ='Proposed NW Projects (Reg Yr)'!E53/(1+$L$3) -> 520.9083077 | F53: ='Proposed NW Projects (Reg Yr)'!F53/(1+$L$3) -> 533.9226729 | G53: ='Proposed NW Projects (Reg Yr)'!G53/(1+$L$3) -> 533.9226729 | H53: ='Proposed NW Projects (Reg Yr)'!H53/(1+$L$3) -> 533.9226729 | I53: ='Proposed NW Projects (Reg Yr)'!I53/(1+$L$3) -> 533.9226729 | J53: =SUM(E53:I53) -> 2656.598999 | K53: C-1
B54: Line Regulation - Unplanned (incl regulators, capacitors) | C54: Repex | D54: AP.3.1.19 | E54: ='Proposed NW Projects (Reg Yr)'!E54/(1+$L$3) -> 112.6243138 | F54: ='Proposed NW Projects (Reg Yr)'!F54/(1+$L$3) -> 112.6243138 | G54: ='Proposed NW Projects (Reg Yr)'!G54/(1+$L$3) -> 131.3950328 | H54: ='Proposed NW Projects (Reg Yr)'!H54/(1+$L$3) -> 150.1657517 | I54: ='Proposed NW Projects (Reg Yr)'!I54/(1+$L$3) -> 150.1657517 | J54: 656.9751639 | K54: C-1
B55: Overhead Line Components - Unplanned (incl insulators, X-arms, pole earths) | C55: Repex | D55: AP.3.1.06 | E55: ='Proposed NW Projects (Reg Yr)'!E55/(1+$L$3) -> 5302.892465 | F55: ='Proposed NW Projects (Reg Yr)'!F55/(1+$L$3) -> 5485.440352 | G55: ='Proposed NW Projects (Reg Yr)'!G55/(1+$L$3) -> 5485.440352 | H55: ='Proposed NW Projects (Reg Yr)'!H55/(1+$L$3) -> 5485.440352 | I55: ='Proposed NW Projects (Reg Yr)'!I55/(1+$L$3) -> 5485.440352 | J55: 27244.65387 | K55: C-1
B56: Poles - Unplanned | C56: Repex | D56: AP.3.1.05 | E56: ='Proposed NW Projects (Reg Yr)'!E56/(1+$L$3) -> 2079.378535 | F56: ='Proposed NW Projects (Reg Yr)'!F56/(1+$L$3) -> 2085.635441 | G56: ='Proposed NW Projects (Reg Yr)'!G56/(1+$L$3) -> 2085.635441 | H56: ='Proposed NW Projects (Reg Yr)'!H56/(1+$L$3) -> 2085.635441 | I56: ='Proposed NW Projects (Reg Yr)'!I56/(1+$L$3) -> 2085.635441 | J56: 10421.9203 | K56: C-1
B57: Recloser Replacement - Unplanned | C57: Repex | D57: AP.3.1.13 | E57: ='Proposed NW Projects (Reg Yr)'!E57/(1+$L$3) -> 1007.883327 | F57: ='Proposed NW Projects (Reg Yr)'!F57/(1+$L$3) -> 934.3646775 | G57: ='Proposed NW Projects (Reg Yr)'!G57/(1+$L$3) -> 934.3646775 | H57: ='Proposed NW Projects (Reg Yr)'!H57/(1+$L$3) -> 934.3646775 | I57: ='Proposed NW Projects (Reg Yr)'!I57/(1+$L$3) -> 934.3646775 | J57: 4745.342037 | K57: C-1
B58: Services Replacement - Unplanned | C58: Repex | D58: AP.3.1.08 | E58: ='Proposed NW Projects (Reg Yr)'!E58/(1+$L$3) -> 3501.781905 | F58: ='Proposed NW Projects (Reg Yr)'!F58/(1+$L$3) -> 3770.828877 | G58: ='Proposed NW Projects (Reg Yr)'!G58/(1+$L$3) -> 3770.828877 | H58: ='Proposed NW Projects (Reg Yr)'!H58/(1+$L$3) -> 3770.828877 | I58: ='Proposed NW Projects (Reg Yr)'!I58/(1+$L$3) -> 3770.828877 | J58: 18585.09741 | K58: C-1
B59: Switchgear - Ground Level - Unplanned | C59: Repex | D59: AP.3.1.03 | E59: ='Proposed NW Projects (Reg Yr)'!E59/(1+$L$3) -> 361.2320584 | F59: ='Proposed NW Projects (Reg Yr)'!F59/(1+$L$3) -> 333.7016705 | G59: ='Proposed NW Projects (Reg Yr)'!G59/(1+$L$3) -> 333.7016705 | H59: ='Proposed NW Projects (Reg Yr)'!H59/(1+$L$3) -> 333.7016705 | I59: ='Proposed NW Projects (Reg Yr)'!I59/(1+$L$3) -> 333.7016705 | J59: 1696.03874 | K59: C-1
B60: Switchgear - Overhead - Unplanned | C60: Repex | D60: AP.3.1.07 | E60: ='Proposed NW Projects (Reg Yr)'!E60/(1+$L$3) -> 2586.187947 | F60: ='Proposed NW Projects (Reg Yr)'!F60/(1+$L$3) -> 2919.889617 | G60: ='Proposed NW Projects (Reg Yr)'!G60/(1+$L$3) -> 2919.889617 | H60: ='Proposed NW Projects (Reg Yr)'!H60/(1+$L$3) -> 2919.889617 | I60: ='Proposed NW Projects (Reg Yr)'!I60/(1+$L$3) -> 2919.889617 | J60: 14265.74642 | K60: C-1
B61: Transformers - Unplanned | C61: Repex | D61: AP.3.1.01 | E61: ='Proposed NW Projects (Reg Yr)'!E61/(1+$L$3) -> 4405.904869 | F61: ='Proposed NW Projects (Reg Yr)'!F61/(1+$L$3) -> 4421.547135 | G61: ='Proposed NW Projects (Reg Yr)'!G61/(1+$L$3) -> 4421.547135 | H61: ='Proposed NW Projects (Reg Yr)'!H61/(1+$L$3) -> 4421.547135 | I61: ='Proposed NW Projects (Reg Yr)'!I61/(1+$L$3) -> 4421.547135 | J61: 22092.09341 | K61: C-1
B63: Repex/Refurb - Lines (subtotal) | D63: subtotal | E63: =SUM(E36:E62) -> 73027.21353 | F63: 77190.65021 | G63: 77210.25519 | H63: 77238.2027 | I63: 77247.3795 | J63: 381913.7011 | K63: =K61 -> C-1
B64: Substations Repex/Refurb
B65: Auxillary DC Supplies excl AC - Battery Banks & Chargers | C65: Repex | D65: AP.3.2.08 | E65: ='Proposed NW Projects (Reg Yr)'!E65/(1+$L$3) -> 539.0116233 | F65: ='Proposed NW Projects (Reg Yr)'!F65/(1+$L$3) -> 539.0116233 | G65: ='Proposed NW Projects (Reg Yr)'!G65/(1+$L$3) -> 539.0116233 | H65: ='Proposed NW Projects (Reg Yr)'!H65/(1+$L$3) -> 539.0116233 | I65: ='Proposed NW Projects (Reg Yr)'!I65/(1+$L$3) -> 303.7102329 | J65: =SUM(E65:I65) -> 2459.756726 | K65: C-1
B66: Circuit Breakers Planned Replacement | C66: Repex | D66: AP.3.2.05 | E66: ='Proposed NW Projects (Reg Yr)'!E66/(1+$L$3) -> 9122.972185 | F66: ='Proposed NW Projects (Reg Yr)'!F66/(1+$L$3) -> 8960.681612 | G66: ='Proposed NW Projects (Reg Yr)'!G66/(1+$L$3) -> 9690.487166 | H66: ='Proposed NW Projects (Reg Yr)'!H66/(1+$L$3) -> 9562.846277 | I66: ='Proposed NW Projects (Reg Yr)'!I66/(1+$L$3) -> 8772.974423 | J66: 46109.96166 | K66: C-1
B67: Circuit Breakers Planned Refurb | C67: Repex | D67: AP.3.2.02 | E67: ='Proposed NW Projects (Reg Yr)'!E67/(1+$L$3) -> 1013.663576 | F67: ='Proposed NW Projects (Reg Yr)'!F67/(1+$L$3) -> 995.6312902 | G67: ='Proposed NW Projects (Reg Yr)'!G67/(1+$L$3) -> 1076.720796 | H67: ='Proposed NW Projects (Reg Yr)'!H67/(1+$L$3) -> 1062.538475 | I67: ='Proposed NW Projects (Reg Yr)'!I67/(1+$L$3) -> 974.7749358 | J67: 5123.329074 | K67: C-1
B68: Mobile Substations | C68: Repex | D68: AP.3.2.13 | E68: ='Proposed NW Projects (Reg Yr)'!E68/(1+$L$3) -> 250.2762529 | F68: ='Proposed NW Projects (Reg Yr)'!F68/(1+$L$3) -> 250.2762529 | G68: ='Proposed NW Projects (Reg Yr)'!G68/(1+$L$3) -> 250.2762529 | H68: ='Proposed NW Projects (Reg Yr)'!H68/(1+$L$3) -> 250.2762529 | I68: ='Proposed NW Projects (Reg Yr)'!I68/(1+$L$3) -> 250.2762529 | J68: 1251.381264 | K68: C-1
B69: Substation Insurance Spares & Asset Mgt | C69: Repex | D69: Historical | E69: ='Proposed NW Projects (Reg Yr)'!E69/(1+$L$3) -> 1334.806682 | F69: ='Proposed NW Projects (Reg Yr)'!F69/(1+$L$3) -> 1334.806682 | G69: ='Proposed NW Projects (Reg Yr)'!G69/(1+$L$3) -> 1334.806682 | H69: ='Proposed NW Projects (Reg Yr)'!H69/(1+$L$3) -> 1334.806682 | I69: ='Proposed NW Projects (Reg Yr)'!I69/(1+$L$3) -> 1334.806682 | J69: 6674.033411 | K69: C-1
B70: Substation Infrastructure - Civil (incl buildings, structures) | C70: Repex | D70: AP3.2.16 | E70: ='Proposed NW Projects (Reg Yr)'!E70/(1+$L$3) -> 1251.381264 | F70: ='Proposed NW Projects (Reg Yr)'!F70/(1+$L$3) -> 1251.381264 | G70: ='Proposed NW Projects (Reg Yr)'!G70/(1+$L$3) -> 1251.381264 | H70: ='Proposed NW Projects (Reg Yr)'!H70/(1+$L$3) -> 1251.381264 | I70: ='Proposed NW Projects (Reg Yr)'!I70/(1+$L$3) -> 1251.381264 | J70: 6256.906322 | K70: C-1
B71: Substation Transformer Repl. | C71: Repex | D71: AP.3.2.01 | E71: ='Proposed NW Projects (Reg Yr)'!E71/(1+$L$3) -> 3902.33368 | F71: ='Proposed NW Projects (Reg Yr)'!F71/(1+$L$3) -> 3846.021523 | G71: ='Proposed NW Projects (Reg Yr)'!G71/(1+$L$3) -> 4480.054697 | H71: ='Proposed NW Projects (Reg Yr)'!H71/(1+$L$3) -> 3677.085052 | I71: ='Proposed NW Projects (Reg Yr)'!I71/(1+$L$3) -> 2930.427565 | J71: 18835.92252 | K71: C-1
B72: TF Refurb (18665 & 18977) | C72: Repex | D72: AP.3.2.01 | E72: ='Proposed NW Projects (Reg Yr)'!E72/(1+$L$3) -> 1313.950328 | F72: ='Proposed NW Projects (Reg Yr)'!F72/(1+$L$3) -> 1042.81772 | G72: ='Proposed NW Projects (Reg Yr)'!G72/(1+$L$3) -> 792.5414675 | H72: ='Proposed NW Projects (Reg Yr)'!H72/(1+$L$3) -> 792.5414675 | I72: ='Proposed NW Projects (Reg Yr)'!I72/(1+$L$3) -> 792.5414675 | J72: 4734.392451 | K72: C-1
B73: Surge Arrester | C73: Repex | D73: AP.3.2.03 | E73: ='Proposed NW Projects (Reg Yr)'!E73/(1+$L$3) -> 260.966321 | F73: ='Proposed NW Projects (Reg Yr)'!F73/(1+$L$3) -> 286.4264499 | G73: ='Proposed NW Projects (Reg Yr)'!G73/(1+$L$3) -> 286.4264499 | H73: ='Proposed NW Projects (Reg Yr)'!H73/(1+$L$3) -> 280.0614177 | I73: ='Proposed NW Projects (Reg Yr)'!I73/(1+$L$3) -> 178.2209022 | J73: 1292.101541 | K73: C-1
B74: AC Panels + auxilary supply | C74: Repex | D74: AP 3.2.22 | E74: ='Proposed NW Projects (Reg Yr)'!E74/(1+$L$3) -> 600.663007 | F74: ='Proposed NW Projects (Reg Yr)'!F74/(1+$L$3) -> 600.663007 | G74: ='Proposed NW Projects (Reg Yr)'!G74/(1+$L$3) -> 600.663007 | H74: ='Proposed NW Projects (Reg Yr)'!H74/(1+$L$3) -> 600.663007 | I74: ='Proposed NW Projects (Reg Yr)'!I74/(1+$L$3) -> 498.4668704 | J74: 2901.118898 | K74: C-1
B75: Protection Asset Replacement | C75: Repex | D75: AP.3.2.14 | E75: ='Proposed NW Projects (Reg Yr)'!E75/(1+$L$3) -> 2335.911694 | F75: ='Proposed NW Projects (Reg Yr)'!F75/(1+$L$3) -> 2377.624403 | G75: ='Proposed NW Projects (Reg Yr)'!G75/(1+$L$3) -> 2210.773567 | H75: ='Proposed NW Projects (Reg Yr)'!H75/(1+$L$3) -> 2043.922732 | I75: ='Proposed NW Projects (Reg Yr)'!I75/(1+$L$3) -> 2085.635441 | J75: 11053.86784 | K75: C-1
B76: Unplanned CB Replacement | C76: Repex | D76: Historical | E76: ='Proposed NW Projects (Reg Yr)'!E76/(1+$L$3) -> 389.5967003 | F76: ='Proposed NW Projects (Reg Yr)'!F76/(1+$L$3) -> 389.5967003 | G76: ='Proposed NW Projects (Reg Yr)'!G76/(1+$L$3) -> 389.5967003 | H76: ='Proposed NW Projects (Reg Yr)'!H76/(1+$L$3) -> 389.5967003 | I76: ='Proposed NW Projects (Reg Yr)'!I76/(1+$L$3) -> 389.5967003 | J76: 1947.983502 | K76: C-1
B77: Unplanned Substation Asset Repl - PROTECTION | C77: Repex | D77: Historical | E77: ='Proposed NW Projects (Reg Yr)'!E77/(1+$L$3) -> 667.4033411 | F77: ='Proposed NW Projects (Reg Yr)'!F77/(1+$L$3) -> 667.4033411 | G77: ='Proposed NW Projects (Reg Yr)'!G77/(1+$L$3) -> 667.4033411 | H77: ='Proposed NW Projects (Reg Yr)'!H77/(1+$L$3) -> 667.4033411 | I77: ='Proposed NW Projects (Reg Yr)'!I77/(1+$L$3) -> 667.4033411 | J77: 3337.016705 | K77: C-1
B78: Other (sub cables) | C78: Repex | D78: AP 3.02.09 | E78: ='Proposed NW Projects (Reg Yr)'!E78/(1+$L$3) -> 595.9716204 | F78: ='Proposed NW Projects (Reg Yr)'!F78/(1+$L$3) -> 211.7975722 | G78: ='Proposed NW Projects (Reg Yr)'!G78/(1+$L$3) -> 220.5572411 | H78: ='Proposed NW Projects (Reg Yr)'!H78/(1+$L$3) -> 220.5572411 | I78: ='Proposed NW Projects (Reg Yr)'!I78/(1+$L$3) -> 185.5185657 | J78: 1434.402241 | K78: C-1
B79: Northfield 66kV GIS Switchboard replacement (1/3rd) | C79: Repex | D79: AP 3.02.06 | E79: ='Proposed NW Projects (Reg Yr)'!E79/(1+$L$3) -> 1042.81772 | F79: ='Proposed NW Projects (Reg Yr)'!F79/(1+$L$3) -> 3503.867541 | G79: ='Proposed NW Projects (Reg Yr)'!G79/(1+$L$3) -> 4171.270882 | H79: ='Proposed NW Projects (Reg Yr)'!H79/(1+$L$3) -> 1668.508353 | I79: ='Proposed NW Projects (Reg Yr)'!I79/(1+$L$3) -> 0 | J79: 10386.4645 | K79: C-1
B81: Repex/Refurb - Substations (subtotal) | D81: subtotal | E81: =SUM(E65:E80) -> 24621.726 | F81: 26258.00698 | G81: 27961.97114 | H81: 24341.19989 | I81: 20615.73464 | J81: 123798.6386 | K81: =K79 -> C-1
B82: Telecom'n Repex/Refurb | K82: C-1
B83: 48V DC Systems | C83: Repex | D83: AP.3.3.02 | E83: ='Proposed NW Projects (Reg Yr)'!E83/(1+$L$3) -> 279.8922762 | F83: ='Proposed NW Projects (Reg Yr)'!F83/(1+$L$3) -> 260.287303 | G83: ='Proposed NW Projects (Reg Yr)'!G83/(1+$L$3) -> 260.287303 | H83: ='Proposed NW Projects (Reg Yr)'!H83/(1+$L$3) -> 260.287303 | I83: ='Proposed NW Projects (Reg Yr)'!I83/(1+$L$3) -> 275.3038782 | J83: =SUM(E83:I83) -> 1336.058063 | K83: C-1
B84: UPAX/Business Telephone Network | C84: Non-network | D84: AP.3.3.07 | E84: ='Proposed NW Projects (Reg Yr)'!E84 -> 723.1738035 | F84: ='Proposed NW Projects (Reg Yr)'!F84 -> 131.4861461 | G84: ='Proposed NW Projects (Reg Yr)'!G84 -> 241.0579345 | H84: ='Proposed NW Projects (Reg Yr)'!H84 -> 525.9445844 | I84: ='Proposed NW Projects (Reg Yr)'!I84 -> 416.372796 | J84: 2038.035264 | K84: C-1
B85: Data Network | C85: Repex | D85: AP.3.3.12 | E85: ='Proposed NW Projects (Reg Yr)'!E85/(1+$L$3) -> 1398.627127 | F85: ='Proposed NW Projects (Reg Yr)'!F85/(1+$L$3) -> 1398.627127 | G85: ='Proposed NW Projects (Reg Yr)'!G85/(1+$L$3) -> 979.414403 | H85: ='Proposed NW Projects (Reg Yr)'!H85/(1+$L$3) -> 1183.389549 | I85: ='Proposed NW Projects (Reg Yr)'!I85/(1+$L$3) -> 1183.389549 | J85: 6143.447755 | K85: C-1
B86: Microwave Radio | C86: Repex | D86: AP.3.3.01 | E86: ='Proposed NW Projects (Reg Yr)'!E86/(1+$L$3) -> 120.9668556 | F86: ='Proposed NW Projects (Reg Yr)'!F86/(1+$L$3) -> 254.4475238 | G86: ='Proposed NW Projects (Reg Yr)'!G86/(1+$L$3) -> 266.9613364 | H86: ='Proposed NW Projects (Reg Yr)'!H86/(1+$L$3) -> 266.9613364 | I86: ='Proposed NW Projects (Reg Yr)'!I86/(1+$L$3) -> 266.9613364 | J86: 1176.298389 | K86: C-1
B87: Minor Works - Unplanned | C87: Repex | D87: Historic | E87: ='Proposed NW Projects (Reg Yr)'!E87/(1+$L$3) -> 750.8287587 | F87: ='Proposed NW Projects (Reg Yr)'!F87/(1+$L$3) -> 750.8287587 | G87: ='Proposed NW Projects (Reg Yr)'!G87/(1+$L$3) -> 792.5414675 | H87: ='Proposed NW Projects (Reg Yr)'!H87/(1+$L$3) -> 834.2541763 | I87: ='Proposed NW Projects (Reg Yr)'!I87/(1+$L$3) -> 834.2541763 | J87: 3962.707338 | K87: C-1
B88: Misc Radio Systems | C88: Repex | D88: AP.3.3.05 | E88: ='Proposed NW Projects (Reg Yr)'!E88/(1+$L$3) -> 606.5027862 | F88: ='Proposed NW Projects (Reg Yr)'!F88/(1+$L$3) -> 162.6795644 | G88: ='Proposed NW Projects (Reg Yr)'!G88/(1+$L$3) -> 162.6795644 | H88: ='Proposed NW Projects (Reg Yr)'!H88/(1+$L$3) -> 162.6795644 | I88: ='Proposed NW Projects (Reg Yr)'!I88/(1+$L$3) -> 162.6795644 | J88: 1257.221044 | K88: C-1
B89: Network Tel Planning Labour Capitalisation | C89: Repex | D89: Historic | E89: ='Proposed NW Projects (Reg Yr)'!E89/(1+$L$3) -> 583.9779234 | F89: ='Proposed NW Projects (Reg Yr)'!F89/(1+$L$3) -> 583.9779234 | G89: ='Proposed NW Projects (Reg Yr)'!G89/(1+$L$3) -> 583.9779234 | H89: ='Proposed NW Projects (Reg Yr)'!H89/(1+$L$3) -> 583.9779234 | I89: ='Proposed NW Projects (Reg Yr)'!I89/(1+$L$3) -> 583.9779234 | J89: 2919.889617 | K89: C-1
B90: Optical Fibre Network | C90: Repex | D90: AP.3.3.04 | E90: ='Proposed NW Projects (Reg Yr)'!E90/(1+$L$3) -> 417.1270882 | F90: ='Proposed NW Projects (Reg Yr)'!F90/(1+$L$3) -> 417.1270882 | G90: ='Proposed NW Projects (Reg Yr)'!G90/(1+$L$3) -> 417.1270882 | H90: ='Proposed NW Projects (Reg Yr)'!H90/(1+$L$3) -> 417.1270882 | I90: ='Proposed NW Projects (Reg Yr)'!I90/(1+$L$3) -> 417.1270882 | J90: 2085.635441 | K90: C-1
B91: Pilot Cable Network (incl CBD) stage 2 | C91: Repex | D91: AP.3.3.03 | E91: ='Proposed NW Projects (Reg Yr)'!E91/(1+$L$3) -> 41.71270882 | F91: ='Proposed NW Projects (Reg Yr)'!F91/(1+$L$3) -> 41.71270882 | G91: ='Proposed NW Projects (Reg Yr)'!G91/(1+$L$3) -> 41.71270882 | H91: ='Proposed NW Projects (Reg Yr)'!H91/(1+$L$3) -> 41.71270882 | I91: ='Proposed NW Projects (Reg Yr)'!I91/(1+$L$3) -> 41.71270882 | J91: 208.5635441 | K91: C-1
B92: SDH Network | C92: Repex | D92: AP.3.3.10 | E92: ='Proposed NW Projects (Reg Yr)'!E92/(1+$L$3) -> 55.89502981 | F92: ='Proposed NW Projects (Reg Yr)'!F92/(1+$L$3) -> 319.9364766 | G92: ='Proposed NW Projects (Reg Yr)'!G92/(1+$L$3) -> 319.9364766 | H92: ='Proposed NW Projects (Reg Yr)'!H92/(1+$L$3) -> 55.89502981 | I92: ='Proposed NW Projects (Reg Yr)'!I92/(1+$L$3) -> 55.89502981 | J92: 807.5580427 | K92: C-1
B93: TNOC Management Systems | C93: Non-network | D93: AP.3.3.08 | E93: ='Proposed NW Projects (Reg Yr)'!E93 -> 306.8010076 | F93: ='Proposed NW Projects (Reg Yr)'!F93 -> 745.0881612 | G93: ='Proposed NW Projects (Reg Yr)'!G93 -> 810.8312343 | H93: ='Proposed NW Projects (Reg Yr)'!H93 -> 372.5440806 | I93: ='Proposed NW Projects (Reg Yr)'!I93 -> 372.5440806 | J93: 2607.808564 | K93: C-1
B94: OT Cyber Security | C94: Non-network | D94: New | E94: ='Proposed NW Projects (Reg Yr)'!E94 -> 525.9445844 | F94: ='Proposed NW Projects (Reg Yr)'!F94 -> 1402.518892 | G94: ='Proposed NW Projects (Reg Yr)'!G94 -> 1446.347607 | H94: ='Proposed NW Projects (Reg Yr)'!H94 -> 657.4307305 | I94: ='Proposed NW Projects (Reg Yr)'!I94 -> 613.6020151 | J94: 4645.843829 | K94: C-1
B95: Other | C95: Repex | E95: ='Proposed NW Projects (Reg Yr)'!E95/(1+$L$3) -> 333.7016705 | F95: ='Proposed NW Projects (Reg Yr)'!F95/(1+$L$3) -> 333.7016705 | G95: ='Proposed NW Projects (Reg Yr)'!G95/(1+$L$3) -> 333.7016705 | H95: ='Proposed NW Projects (Reg Yr)'!H95/(1+$L$3) -> 333.7016705 | I95: ='Proposed NW Projects (Reg Yr)'!I95/(1+$L$3) -> 333.7016705 | J95: 1668.508353 | K95: C-1
D96: Non-network | E96: =-(E94+E93+E84) -> -1555.919395 | F96: =-(F94+F93+F84) -> -2279.093199 | G96: =-(G94+G93+G84) -> -2498.236776 | H96: =-(H94+H93+H84) -> -1555.919395 | I96: =-(I94+I93+I84) -> -1402.518892 | J96: -9291.687657 | K96: C-1
B97: Repex / Refurb - Telecom'n (subtotal) | D97: subtotal | E97: =SUM(E83:E96) -> 4589.232224 | F97: 4523.326144 | G97: 4158.339942 | H97: 4139.98635 | I97: 4155.002925 | J97: 21565.88759
B98: Replacement & Refurbishment (Total) | D98: Total | E98: =SUM(E63,E81,E97,) -> 102238.1718 | F98: 107971.9833 | G98: 109330.5663 | H98: 105719.3889 | I98: 102018.1171 | J98: 527278.2274 | K98: =K96 -> C-1
A99: Environment
B100: Environmental Management - Lines (incl oil containment, EMF) | C100: Augex | D100: AP.4.1.03 | E100: ='Proposed NW Projects (Reg Yr)'!E100/(1+$L$3) -> 166.8508353 | F100: ='Proposed NW Projects (Reg Yr)'!F100/(1+$L$3) -> 166.8508353 | G100: ='Proposed NW Projects (Reg Yr)'!G100/(1+$L$3) -> 166.8508353 | H100: ='Proposed NW Projects (Reg Yr)'!H100/(1+$L$3) -> 166.8508353 | I100: ='Proposed NW Projects (Reg Yr)'!I100/(1+$L$3) -> 166.8508353 | J100: =SUM(E100:I100) -> 834.2541763 | K100: C-6
B101: Oil Containment - Substation | C101: Augex | D101: AP.4.1.01 | E101: ='Proposed NW Projects (Reg Yr)'!E101/(1+$L$3) -> 1418.2321 | F101: ='Proposed NW Projects (Reg Yr)'!F101/(1+$L$3) -> 1418.2321 | G101: ='Proposed NW Projects (Reg Yr)'!G101/(1+$L$3) -> 1418.2321 | H101: ='Proposed NW Projects (Reg Yr)'!H101/(1+$L$3) -> 1418.2321 | I101: ='Proposed NW Projects (Reg Yr)'!I101/(1+$L$3) -> 1418.2321 | J101: =SUM(E101:I101) -> 7091.160499 | K101: C-6
B102: Environmental Management - Subs (eg noise abatement) | C102: Augex | D102: AP.4.1.05 | E102: ='Proposed NW Projects (Reg Yr)'!E102/(1+$L$3) -> 142.6574642 | F102: ='Proposed NW Projects (Reg Yr)'!F102/(1+$L$3) -> 142.6574642 | G102: ='Proposed NW Projects (Reg Yr)'!G102/(1+$L$3) -> 142.6574642 | H102: ='Proposed NW Projects (Reg Yr)'!H102/(1+$L$3) -> 142.6574642 | I102: ='Proposed NW Projects (Reg Yr)'!I102/(1+$L$3) -> 142.6574642 | J102: =SUM(E102:I102) -> 713.2873208 | K102: C-6
B104: Environment (Total) | D104: Total | E104: =SUM(E100:E103) -> 1727.740399 | F104: 1727.740399 | G104: 1727.740399 | H104: 1727.740399 | I104: 1727.740399 | J104: 8638.701996 | K104: =K102 -> C-6
A105: Safety
B106: Elizabeth Transformer Stations | C106: Repex | D106: AP.5.1.02 | E106: ='Proposed NW Projects (Reg Yr)'!E106/(1+$L$3) -> 411.9129996 | F106: ='Proposed NW Projects (Reg Yr)'!F106/(1+$L$3) -> 417.1270882 | G106: ='Proposed NW Projects (Reg Yr)'!G106/(1+$L$3) -> 417.1270882 | H106: ='Proposed NW Projects (Reg Yr)'!H106/(1+$L$3) -> 417.1270882 | I106: ='Proposed NW Projects (Reg Yr)'!I106/(1+$L$3) -> 417.1270882 | J106: =SUM(E106:I106) -> 2080.421352 | K106: C-8
B107: Line Clearance Rectification - Distribution | C107: Repex | D107: AP.5.1.06 | E107: ='Proposed NW Projects (Reg Yr)'!E107/(1+$L$3) -> 3116.982166 | F107: ='Proposed NW Projects (Reg Yr)'!F107/(1+$L$3) -> 3337.016705 | G107: ='Proposed NW Projects (Reg Yr)'!G107/(1+$L$3) -> 3337.016705 | H107: ='Proposed NW Projects (Reg Yr)'!H107/(1+$L$3) -> 3337.016705 | I107: ='Proposed NW Projects (Reg Yr)'!I107/(1+$L$3) -> 3337.016705 | J107: 16465.04899 | K107: C-8
B108: Substation Lighting | C108: Augex | D108: AP.5.1.05 | E108: ='Proposed NW Projects (Reg Yr)'!E108/(1+$L$3) -> 100.1105012 | F108: ='Proposed NW Projects (Reg Yr)'!F108/(1+$L$3) -> 100.1105012 | G108: ='Proposed NW Projects (Reg Yr)'!G108/(1+$L$3) -> 100.1105012 | H108: ='Proposed NW Projects (Reg Yr)'!H108/(1+$L$3) -> 100.1105012 | I108: ='Proposed NW Projects (Reg Yr)'!I108/(1+$L$3) -> 100.1105012 | J108: 500.5525058 | K108: C-7
B109: Substation Security & Fencing | C109: Augex | D109: AP.5.1.03 | E109: ='Proposed NW Projects (Reg Yr)'!E109/(1+$L$3) -> 2171.563621 | F109: ='Proposed NW Projects (Reg Yr)'!F109/(1+$L$3) -> 2179.906163 | G109: ='Proposed NW Projects (Reg Yr)'!G109/(1+$L$3) -> 2188.248705 | H109: ='Proposed NW Projects (Reg Yr)'!H109/(1+$L$3) -> 2188.248705 | I109: ='Proposed NW Projects (Reg Yr)'!I109/(1+$L$3) -> 2185.328815 | J109: 10913.29601 | K109: C-7
B110: CBD Maintenance Projects (CBD Safety) | C110: Repex | D110: AP.2.1.07 | E110: ='Proposed NW Projects (Reg Yr)'!E110/(1+$L$3) -> 352.2221132 | F110: ='Proposed NW Projects (Reg Yr)'!F110/(1+$L$3) -> 352.2221132 | G110: ='Proposed NW Projects (Reg Yr)'!G110/(1+$L$3) -> 352.2221132 | H110: ='Proposed NW Projects (Reg Yr)'!H110/(1+$L$3) -> 352.2221132 | I110: ='Proposed NW Projects (Reg Yr)'!I110/(1+$L$3) -> 352.2221132 | J110: 1761.110566 | K110: C-8
B111: Emergency Switching Communication (Mobile Radio) | C111: Repex | D111: AP.3.3.06 | E111: ='Proposed NW Projects (Reg Yr)'!E111/(1+$L$3) -> 729.9724043 | F111: ='Proposed NW Projects (Reg Yr)'!F111/(1+$L$3) -> 729.9724043 | G111: ='Proposed NW Projects (Reg Yr)'!G111/(1+$L$3) -> 312.8453161 | H111: ='Proposed NW Projects (Reg Yr)'!H111/(1+$L$3) -> 834.2541763 | I111: ='Proposed NW Projects (Reg Yr)'!I111/(1+$L$3) -> 750.8287587 | J111: 3357.87306 | K111: C-8
B112: Substation Infrastructure - Earth systems (Earth Grid Upgrades) | C112: Augex | D112: AP.3.2.10 | E112: ='Proposed NW Projects (Reg Yr)'!E112/(1+$L$3) -> 1026.132637 | F112: ='Proposed NW Projects (Reg Yr)'!F112/(1+$L$3) -> 1026.132637 | G112: ='Proposed NW Projects (Reg Yr)'!G112/(1+$L$3) -> 1026.132637 | H112: ='Proposed NW Projects (Reg Yr)'!H112/(1+$L$3) -> 1026.132637 | I112: ='Proposed NW Projects (Reg Yr)'!I112/(1+$L$3) -> 1026.132637 | J112: 5130.663184 | K112: C-7
B113: Distribution Earthing | C113: Repex | D113: AP.3.1.18 | E113: ='Proposed NW Projects (Reg Yr)'!E113/(1+$L$3) -> 75.24771297 | F113: ='Proposed NW Projects (Reg Yr)'!F113/(1+$L$3) -> 100.330284 | G113: ='Proposed NW Projects (Reg Yr)'!G113/(1+$L$3) -> 100.330284 | H113: ='Proposed NW Projects (Reg Yr)'!H113/(1+$L$3) -> 100.330284 | I113: ='Proposed NW Projects (Reg Yr)'!I113/(1+$L$3) -> 100.330284 | J113: 476.5688488 | K113: C-8
B114: Telco Structures | C114: Repex | D114: AP.3.3.13 | E114: ='Proposed NW Projects (Reg Yr)'!E114/(1+$L$3) -> 275.3038782 | F114: ='Proposed NW Projects (Reg Yr)'!F114/(1+$L$3) -> 275.3038782 | G114: ='Proposed NW Projects (Reg Yr)'!G114/(1+$L$3) -> 275.3038782 | H114: ='Proposed NW Projects (Reg Yr)'!H114/(1+$L$3) -> 275.3038782 | I114: ='Proposed NW Projects (Reg Yr)'!I114/(1+$L$3) -> 763.3425713 | J114: 1864.558084 | K114: C-8
B115: Switchgear - Ground Level - Planned | C115: Repex | D115: AP.3.1.03 | E115: ='Proposed NW Projects (Reg Yr)'!E115/(1+$L$3) -> 3558.83578 | F115: ='Proposed NW Projects (Reg Yr)'!F115/(1+$L$3) -> 3424.211927 | G115: ='Proposed NW Projects (Reg Yr)'!G115/(1+$L$3) -> 3424.211927 | H115: ='Proposed NW Projects (Reg Yr)'!H115/(1+$L$3) -> 3424.211927 | I115: ='Proposed NW Projects (Reg Yr)'!I115/(1+$L$3) -> 3424.211927 | J115: 17255.68349 | K115: C-8
B116: Instrument Transformers (CTs & VTs) | C116: Repex | D116: AP.3.2.02 | E116: ='Proposed NW Projects (Reg Yr)'!E116/(1+$L$3) -> 487.6215661 | F116: ='Proposed NW Projects (Reg Yr)'!F116/(1+$L$3) -> 575.2182546 | G116: ='Proposed NW Projects (Reg Yr)'!G116/(1+$L$3) -> 541.4309604 | H116: ='Proposed NW Projects (Reg Yr)'!H116/(1+$L$3) -> 541.4309604 | I116: ='Proposed NW Projects (Reg Yr)'!I116/(1+$L$3) -> 541.4309604 | J116: 2687.132702 | K116: C-8
B117: Protection Compliance (Primary&Backup) | C117: Augex | D117: AP.3.2.14 | E117: ='Proposed NW Projects (Reg Yr)'!E117/(1+$L$3) -> 2340.917219 | F117: ='Proposed NW Projects (Reg Yr)'!F117/(1+$L$3) -> 2340.917219 | G117: ='Proposed NW Projects (Reg Yr)'!G117/(1+$L$3) -> 2340.917219 | H117: ='Proposed NW Projects (Reg Yr)'!H117/(1+$L$3) -> 2340.917219 | I117: ='Proposed NW Projects (Reg Yr)'!I117/(1+$L$3) -> 2340.917219 | J117: 11704.58609 | K117: C-7
B118: Network Protection Substation Audits | C118: Augex | D118: Historic | E118: ='Proposed NW Projects (Reg Yr)'!E118/(1+$L$3) -> 250.2762529 | F118: ='Proposed NW Projects (Reg Yr)'!F118/(1+$L$3) -> 250.2762529 | G118: ='Proposed NW Projects (Reg Yr)'!G118/(1+$L$3) -> 250.2762529 | H118: ='Proposed NW Projects (Reg Yr)'!H118/(1+$L$3) -> 250.2762529 | I118: ='Proposed NW Projects (Reg Yr)'!I118/(1+$L$3) -> 250.2762529 | J118: 1251.381264 | K118: C-7
B119: CBD 33kV Substation Migration to 11kV | C119: Augex | D119: AP.2.1.07 | E119: ='Proposed NW Projects (Reg Yr)'!E119/(1+$L$3) -> 2919.889617 | F119: ='Proposed NW Projects (Reg Yr)'!F119/(1+$L$3) -> 2919.889617 | G119: ='Proposed NW Projects (Reg Yr)'!G119/(1+$L$3) -> 1668.508353 | H119: ='Proposed NW Projects (Reg Yr)'!H119/(1+$L$3) -> 1668.508353 | I119: ='Proposed NW Projects (Reg Yr)'!I119/(1+$L$3) -> 1668.508353 | J119: 10845.30429 | K119: C-7
B120: Planned & Unplanned Disconnector Repl | C120: Repex | D120: AP.3.2.17 | E120: ='Proposed NW Projects (Reg Yr)'!E120/(1+$L$3) -> 383.7569211 | F120: ='Proposed NW Projects (Reg Yr)'!F120/(1+$L$3) -> 383.7569211 | G120: ='Proposed NW Projects (Reg Yr)'!G120/(1+$L$3) -> 372.4944897 | H120: ='Proposed NW Projects (Reg Yr)'!H120/(1+$L$3) -> 361.2320584 | I120: ='Proposed NW Projects (Reg Yr)'!I120/(1+$L$3) -> 361.2320584 | J120: 1862.472449 | K120: C-8
B121: Substations rebuilds at BHP Ardrossan, Quorn & Burra substations. Kleins Point & Walkers Flat substation rebuilds + Wilmington (19672) | C121: Repex | D121: AP.3.2.12 | E121: ='Proposed NW Projects (Reg Yr)'!E121/(1+$L$3) -> 2577.845405 | F121: ='Proposed NW Projects (Reg Yr)'!F121/(1+$L$3) -> 2577.845405 | G121: ='Proposed NW Projects (Reg Yr)'!G121/(1+$L$3) -> 2577.845405 | H121: ='Proposed NW Projects (Reg Yr)'!H121/(1+$L$3) -> 2419.337111 | I121: ='Proposed NW Projects (Reg Yr)'!I121/(1+$L$3) -> 2068.950357 | J121: 12221.82368 | K121: C-8
B122: CBD Pilot Cable replacement program | E122: ='Proposed NW Projects (Reg Yr)'!E122/(1+$L$3) -> 628.2998152 | F122: ='Proposed NW Projects (Reg Yr)'!F122/(1+$L$3) -> 0 | G122: ='Proposed NW Projects (Reg Yr)'!G122/(1+$L$3) -> 0 | H122: ='Proposed NW Projects (Reg Yr)'!H122/(1+$L$3) -> 0 | I122: ='Proposed NW Projects (Reg Yr)'!I122/(1+$L$3) -> 0 | J122: 628.2998152 | K122: C-8
B124: Bushfire
B125: Bushfire Risk Reduction | C125: Augex | D125: B Case | E125: ='Proposed NW Projects (Reg Yr)'!E125/(1+$L$3) -> 2031.408919 | F125: ='Proposed NW Projects (Reg Yr)'!F125/(1+$L$3) -> 2000.124388 | G125: ='Proposed NW Projects (Reg Yr)'!G125/(1+$L$3) -> 2018.895107 | H125: ='Proposed NW Projects (Reg Yr)'!H125/(1+$L$3) -> 1993.867481 | I125: ='Proposed NW Projects (Reg Yr)'!I125/(1+$L$3) -> 1981.353669 | J125: =SUM(E125:I125) -> 10025.64956 | K125: C-18
B127: Repex Sub-total | C127: Repex | E127: =SUM(E106:E107,E110:E111,E113:E116,E120:E122) -> 12598.00076 | F127: =SUM(F106:F107,F110:F111,F113:F116,F120:F122) -> 12173.00498 | G127: 11710.82817 | H127: 12062.4663 | I127: 12116.69282 | J127: 60660.99304 | K127: =K122 -> C-8
B128: Augex Sub-total | C128: Augex | E128: =SUM(E108:E109,E112,E117:E119,) -> 8808.889848 | F128: =SUM(F108:F109,F112,F117:F119,) -> 8817.23239 | G128: 7574.193667 | H128: 7574.193667 | I128: 7571.273777 | J128: 40345.78335 | K128: =K119 -> C-7
B130: Safety (Total) | D130: Total | E130: =E125+E127+E128+E129 -> 23438.29953 | F130: 22990.36176 | G130: 21303.91694 | H130: 21630.52745 | I130: 21669.32027 | J130: 111032.426
A131: Network ("Strategic" category)
B132: Substations CM equip | C132: Augex | D132: AMP 3.0.01 | E132: ='Proposed NW Projects (Reg Yr)'!E132/(1+$L$3) -> 250.2762529 | F132: ='Proposed NW Projects (Reg Yr)'!F132/(1+$L$3) -> 250.2762529 | G132: ='Proposed NW Projects (Reg Yr)'!G132/(1+$L$3) -> 250.2762529 | H132: ='Proposed NW Projects (Reg Yr)'!H132/(1+$L$3) -> 250.2762529 | I132: ='Proposed NW Projects (Reg Yr)'!I132/(1+$L$3) -> 250.2762529 | J132: =SUM(E132:I132) -> 1251.381264 | K132: C-15
B134: Network - Strategic (Total) | D134: Total | E134: =SUM(E132:E133) -> 250.2762529 | F134: 250.2762529 | G134: 250.2762529 | H134: 250.2762529 | I134: 250.2762529 | J134: 1251.381264 | K134: =K132 -> C-15
A135: Network Control
B136: SCADA to remaining substations | C136: Augex | D136: AP.2.1.02 | E136: ='Proposed NW Projects (Reg Yr)'!E136/(1+$L$3) -> 1481.21829 | F136: ='Proposed NW Projects (Reg Yr)'!F136/(1+$L$3) -> 1481.21829 | G136: ='Proposed NW Projects (Reg Yr)'!G136/(1+$L$3) -> 1383.193424 | H136: ='Proposed NW Projects (Reg Yr)'!H136/(1+$L$3) -> 1383.193424 | I136: ='Proposed NW Projects (Reg Yr)'!I136/(1+$L$3) -> 1383.193424 | J136: =SUM(E136:I136) -> 7112.016853 | K136: C-15
B137: Network Data Capture | C137: Augex | D137: Historic | E137: ='Proposed NW Projects (Reg Yr)'!E137/(1+$L$3) -> 500.5525058 | F137: ='Proposed NW Projects (Reg Yr)'!F137/(1+$L$3) -> 500.5525058 | G137: ='Proposed NW Projects (Reg Yr)'!G137/(1+$L$3) -> 500.5525058 | H137: ='Proposed NW Projects (Reg Yr)'!H137/(1+$L$3) -> 500.5525058 | I137: ='Proposed NW Projects (Reg Yr)'!I137/(1+$L$3) -> 500.5525058 | J137: 2502.762529 | K137: C-15
B138: SCADA Improvement Project (inc TDU & RTU) | C138: Augex | D138: AP.2.1.02 | E138: ='Proposed NW Projects (Reg Yr)'!E138/(1+$L$3) -> 724.1326251 | F138: ='Proposed NW Projects (Reg Yr)'!F138/(1+$L$3) -> 724.1326251 | G138: ='Proposed NW Projects (Reg Yr)'!G138/(1+$L$3) -> 724.1326251 | H138: ='Proposed NW Projects (Reg Yr)'!H138/(1+$L$3) -> 724.1326251 | I138: ='Proposed NW Projects (Reg Yr)'!I138/(1+$L$3) -> 724.1326251 | J138: 3620.663125 | K138: C-15
B139: SCADA Data Concentrator | C139: Augex | D139: AP.2.1.02 | E139: ='Proposed NW Projects (Reg Yr)'!E139/(1+$L$3) -> 0 | F139: ='Proposed NW Projects (Reg Yr)'!F139/(1+$L$3) -> 223.1629922 | G139: ='Proposed NW Projects (Reg Yr)'!G139/(1+$L$3) -> 223.1629922 | H139: ='Proposed NW Projects (Reg Yr)'!H139/(1+$L$3) -> 0 | I139: ='Proposed NW Projects (Reg Yr)'!I139/(1+$L$3) -> 0 | J139: 446.3259843 | K139: C-15
B140: Low Voltage Management | C140: Augex | D140: B Case | E140: ='Proposed NW Projects (Reg Yr)'!E140/(1+$L$3) -> 5281.66319 | F140: ='Proposed NW Projects (Reg Yr)'!F140/(1+$L$3) -> 7898.301414 | G140: ='Proposed NW Projects (Reg Yr)'!G140/(1+$L$3) -> 5824.762659 | H140: ='Proposed NW Projects (Reg Yr)'!H140/(1+$L$3) -> 5317.953247 | I140: ='Proposed NW Projects (Reg Yr)'!I140/(1+$L$3) -> 3455.897925 | J140: 27778.57844 | K140: C-15
B141: OMS Replacement Project | C141: Non-network | D141: AP.2.1.02 | E141: ='Proposed NW Projects (Reg Yr)'!E141 -> 122.720403 | F141: ='Proposed NW Projects (Reg Yr)'!F141 -> 0 | G141: ='Proposed NW Projects (Reg Yr)'!G141 -> 0 | H141: ='Proposed NW Projects (Reg Yr)'!H141 -> 0 | I141: ='Proposed NW Projects (Reg Yr)'!I141 -> 0 | J141: 122.720403
B142: ADMS/OMS Hardware Upgrade | C142: Non-network | D142: AP.2.1.02 | E142: ='Proposed NW Projects (Reg Yr)'!E142 -> 1625.168766 | F142: ='Proposed NW Projects (Reg Yr)'!F142 -> 10.51889169 | G142: ='Proposed NW Projects (Reg Yr)'!G142 -> 10.51889169 | H142: ='Proposed NW Projects (Reg Yr)'!H142 -> 1625.168766 | I142: ='Proposed NW Projects (Reg Yr)'!I142 -> 1625.168766 | J142: 4896.544081
B143: ADMS/OMS Software Upgrade | C143: Non-network | D143: AP.2.1.02 | E143: ='Proposed NW Projects (Reg Yr)'!E143 -> 1460.811083 | F143: ='Proposed NW Projects (Reg Yr)'!F143 -> 0 | G143: ='Proposed NW Projects (Reg Yr)'!G143 -> 0 | H143: ='Proposed NW Projects (Reg Yr)'!H143 -> 1619.90932 | I143: ='Proposed NW Projects (Reg Yr)'!I143 -> 3239.81864 | J143: 6320.539043
D144: Non-network | E144: =-(E143+E142+E141) -> -3208.700252 | F144: -10.51889169 | G144: -10.51889169 | H144: -3245.078086 | I144: -4864.987406 | J144: -11339.80353
B146: Network Control (Total) | D146: Total | E146: =SUM(E136:E145) -> 7987.566611 | F146: 10827.36783 | G146: 8655.804207 | H146: 7925.831802 | I146: 6063.776481 | J146: 41460.34693 | K146: =K140 -> C-15
A147: PLEC
B148: PLEC - Non-Specific (gross) | C148: Augex | E148: ='Proposed NW Projects (Reg Yr)'!E148/(1+$L$3) -> 9593.923028 | F148: ='Proposed NW Projects (Reg Yr)'!F148/(1+$L$3) -> 9593.923028 | G148: ='Proposed NW Projects (Reg Yr)'!G148/(1+$L$3) -> 9593.923028 | H148: ='Proposed NW Projects (Reg Yr)'!H148/(1+$L$3) -> 9593.923028 | I148: ='Proposed NW Projects (Reg Yr)'!I148/(1+$L$3) -> 9593.923028 | J148: =SUM(E148:I148) -> 47969.61514 | K148: C-10
B150: PLEC (Total) | D150: Total | E150: =SUM(E148:E149) -> 9593.923028 | F150: 9593.923028 | G150: 9593.923028 | H150: 9593.923028 | I150: 9593.923028 | J150: =SUM(J148:J149) -> 47969.61514 | K150: =K148 -> C-10
A151: Customer Contributions
B152: Customer Connect <$30k | C152: Connections | D152: AP.7.1.01 | E152: ='Proposed NW Projects (Reg Yr)'!E152/(1+$L$3) -> 4806.090715 | F152: ='Proposed NW Projects (Reg Yr)'!F152/(1+$L$3) -> 4826.548008 | G152: ='Proposed NW Projects (Reg Yr)'!G152/(1+$L$3) -> 4815.78332 | H152: ='Proposed NW Projects (Reg Yr)'!H152/(1+$L$3) -> 4679.170468 | I152: ='Proposed NW Projects (Reg Yr)'!I152/(1+$L$3) -> 5937.388319 | J152: =SUM(E152:I152) -> 25064.98083 | K152: C-4
B153: Customer Connect >$30k<$100k | C153: Connections | D153: AP.7.1.01 | E153: ='Proposed NW Projects (Reg Yr)'!E153/(1+$L$3) -> 6505.037445 | F153: ='Proposed NW Projects (Reg Yr)'!F153/(1+$L$3) -> 6621.2629 | G153: ='Proposed NW Projects (Reg Yr)'!G153/(1+$L$3) -> 6677.769622 | H153: ='Proposed NW Projects (Reg Yr)'!H153/(1+$L$3) -> 6520.152122 | I153: ='Proposed NW Projects (Reg Yr)'!I153/(1+$L$3) -> 6195.63685 | J153: 32519.85894 | K153: C-4
B154: Customer Projects >$100k | C154: Connections | D154: AP.7.1.01 | E154: ='Proposed NW Projects (Reg Yr)'!E154/(1+$L$3) -> 17161.64721 | F154: ='Proposed NW Projects (Reg Yr)'!F154/(1+$L$3) -> 16277.36719 | G154: ='Proposed NW Projects (Reg Yr)'!G154/(1+$L$3) -> 16445.73772 | H154: ='Proposed NW Projects (Reg Yr)'!H154/(1+$L$3) -> 16551.96394 | I154: ='Proposed NW Projects (Reg Yr)'!I154/(1+$L$3) -> 13435.43041 | J154: 79872.14647 | K154: C-4
B155: URDs | C155: Connections | D155: AP.7.1.01 | E155: ='Proposed NW Projects (Reg Yr)'!E155/(1+$L$3) -> 7442.396064 | F155: ='Proposed NW Projects (Reg Yr)'!F155/(1+$L$3) -> 7490.321206 | G155: ='Proposed NW Projects (Reg Yr)'!G155/(1+$L$3) -> 7332.329146 | H155: ='Proposed NW Projects (Reg Yr)'!H155/(1+$L$3) -> 7022.92457 | I155: ='Proposed NW Projects (Reg Yr)'!I155/(1+$L$3) -> 6375.445999 | J155: 35663.41699 | K155: C-4
B156: PLEC | C156: Connections | D156: AP.7.1.01 | E156: ='Proposed NW Projects (Reg Yr)'!E156/(1+$L$3) -> 2252.486276 | F156: ='Proposed NW Projects (Reg Yr)'!F156/(1+$L$3) -> 2252.486276 | G156: ='Proposed NW Projects (Reg Yr)'!G156/(1+$L$3) -> 2252.486276 | H156: ='Proposed NW Projects (Reg Yr)'!H156/(1+$L$3) -> 2252.486276 | I156: ='Proposed NW Projects (Reg Yr)'!I156/(1+$L$3) -> 2252.486276 | J156: 11262.43138 | K156: C-4
B157: Gifting | C157: Augex | D157: NA | E157: =E22 -> 24738.08395 | F157: =F22 -> 24738.08395 | G157: =G22 -> 24738.08395 | H157: =H22 -> 24738.08395 | I157: =I22 -> 24738.08395 | J157: 123690.4198 | K157: C-4
B160: Customer Contributions (Total) | D160: Total | E160: =SUM(E152:E159) -> 62905.74166 | F160: 62206.06954 | G160: 62262.19003 | H160: 61764.78133 | I160: 58934.47181 | J160: 308073.2544 | K160: =K157 -> C-4
A161: Network
B162: Total (gross) - incl Gifting | E162: =SUM(E150,E146,E134,E130,E104,E98,E33,E25,E17) -> 289513.5058 | F162: 293635.9804 | G162: 285852.4613 | H162: 281743.3144 | I162: 274958.248 | J162: 1425703.51
B163: Total (net) | E163: =E162-E160 -> 226607.7641 | F163: 231429.9109 | G163: =G162-G160 -> 223590.2712 | H163: 219978.533 | I163: =I162-I160 -> 216023.7762 | J163: =SUM(E163:I163) -> 1117630.255
H166: =B162 -> Total (gross) - incl Gifting | I166: Check | J166: 0
H167: =B163 -> Total (net) | I167: Check | J167: 2.220446049e-16

Sheet Misc Data
AF1: =AH2 -> RAB Capex Category Proportions
K2: RAB Capex Category Proportions | AH2: =$K$2 -> RAB Capex Category Proportions | BE2: =$K$2 -> RAB Capex Category Proportions | CB2: =$K$2 -> RAB Capex Category Proportions | CY2: =$K$2 -> RAB Capex Category Proportions
D3: Direct Base Costs Split | K3: 2020/21 | L3: =K3 -> 2020/21 | M3: =L3 -> 2020/21 | N3: 2020/21 | O3: 2020/21 | P3: 2020/21 | Q3: 2020/21 | R3: 2020/21 | S3: 2020/21 | T3: 2020/21 | U3: 2020/21 | V3: 2020/21 | W3: 2020/21 | X3: 2020/21 | Y3: 2020/21 | Z3: 2020/21 | AA3: 2020/21 | AB3: 2020/21 | AC3: 2020/21 | AD3: 2020/21 | AE3: 2020/21 | AF3: 2020/21 | AH3: 2021/22 | AI3: =AH3 -> 2021/22 | AJ3: =AI3 -> 2021/22 | AK3: 2021/22 | AL3: 2021/22 | AM3: 2021/22 | AN3: 2021/22 | AO3: 2021/22 | AP3: 2021/22 | AQ3: 2021/22 | AR3: 2021/22 | AS3: 2021/22 | AT3: 2021/22 | AU3: 2021/22 | AV3: 2021/22 | AW3: 2021/22 | AX3: 2021/22 | AY3: 2021/22 | AZ3: 2021/22 | BA3: 2021/22 | BB3: 2021/22 | BC3: 2021/22 | BE3: 2022/23 | BF3: =BE3 -> 2022/23 | BG3: =BF3 -> 2022/23 | BH3: 2022/23 | BI3: 2022/23 | BJ3: 2022/23 | BK3: 2022/23 | BL3: 2022/23 | BM3: 2022/23 | BN3: 2022/23 | BO3: 2022/23 | BP3: 2022/23 | BQ3: 2022/23 | BR3: 2022/23 | BS3: 2022/23 | BT3: 2022/23 | BU3: 2022/23 | BV3: 2022/23 | BW3: 2022/23 | BX3: 2022/23 | BY3: 2022/23 | BZ3: 2022/23 | CB3: 2023/24 | CC3: =CB3 -> 2023/24 | CD3: =CC3 -> 2023/24 | CE3: 2023/24 | CF3: 2023/24 | CG3: 2023/24 | CH3: 2023/24 | CI3: 2023/24 | CJ3: 2023/24 | CK3: 2023/24 | CL3: 2023/24 | CM3: 2023/24 | CN3: 2023/24 | CO3: 2023/24 | CP3: 2023/24 | CQ3: 2023/24 | CR3: 2023/24 | CS3: 2023/24 | CT3: 2023/24 | CU3: 2023/24 | CV3: 2023/24 | CW3: 2023/24 | CY3: 2024/25 | CZ3: =CY3 -> 2024/25 | DA3: =CZ3 -> 2024/25 | DB3: 2024/25 | DC3: 2024/25 | DD3: 2024/25 | DE3: 2024/25 | DF3: 2024/25 | DG3: 2024/25 | DH3: 2024/25 | DI3: 2024/25 | DJ3: 2024/25 | DK3: 2024/25 | DL3: 2024/25 | DM3: 2024/25 | DN3: 2024/25 | DO3: 2024/25 | DP3: 2024/25 | DQ3: 2024/25 | DR3: 2024/25 | DS3: 2024/25 | DT3: 2024/25
D4: Labour | E4: Materials | F4: Contracts | G4: Services Other | H4: Business Overheads | I4: Other | J4: Check | K4: Sub-transmission lines | L4: Distribution Lines | M4: Substations | N4: Distribution Transformers | O4: LVS | P4: Communications | Q4: Contributions | R4: Land | S4: Substation Land | T4: Easements | U4: Buildings | V4: Heavy Vehicles - 15 year | W4: Heavy Vehicles - 10 year | X4: Light Vehicles | Y4: IT Assets | Z4: Plant & Tools/Office Furniture | AA4: Distribution Lines-Refurbish and Shorter Life | AB4: Substations-Refurbish and Shorter Life | AC4: Network Electronics | AD4: in-house software | AE4: Buildings | AF4: Check | AH4: =$K$4 -> Sub-transmission lines | AI4: =$L$4 -> Distribution Lines | AJ4: =$M$4 -> Substations | AK4: =$N$4 -> Distribution Transformers | AL4: =$O$4 -> LVS | AM4: =$P$4 -> Communications | AN4: =$Q$4 -> Contributions | AO4: =$R$4 -> Land | AP4: =$S$4 -> Substation Land | AQ4: =$T$4 -> Easements | AR4: =$U$4 -> Buildings | AS4: =$V$4 -> Heavy Vehicles - 15 year | AT4: =$W$4 -> Heavy Vehicles - 10 year | AU4: =$X$4 -> Light Vehicles | AV4: =$Y$4 -> IT Assets | AW4: =$Z$4 -> Plant & Tools/Office Furniture | AX4: =$AA$4 -> Distribution Lines-Refurbish and Shorter Life | AY4: =$AB$4 -> Substations-Refurbish and Shorter Life | AZ4: =$AC$4 -> Network Electronics | BA4: =$AD$4 -> in-house software | BB4: =$AE$4 -> Buildings | BC4: Check | BE4: =$K$4 -> Sub-transmission lines | BF4: =$L$4 -> Distribution Lines | BG4: =$M$4 -> Substations | BH4: =$N$4 -> Distribution Transformers | BI4: =$O$4 -> LVS | BJ4: =$P$4 -> Communications | BK4: =$Q$4 -> Contributions | BL4: =$R$4 -> Land | BM4: =$S$4 -> Substation Land | BN4: =$T$4 -> Easements | BO4: =$U$4 -> Buildings | BP4: =$V$4 -> Heavy Vehicles - 15 year | BQ4: =$W$4 -> Heavy Vehicles - 10 year | BR4: =$X$4 -> Light Vehicles | BS4: =$Y$4 -> IT Assets | BT4: =$Z$4 -> Plant & Tools/Office Furniture | BU4: =$AA$4 -> Distribution Lines-Refurbish and Shorter Life | BV4: =$AB$4 -> Substations-Refurbish and Shorter Life | BW4: =$AC$4 -> Network Electronics | BX4: =$AD$4 -> in-house software | BY4: =$AE$4 -> Buildings | BZ4: Check | CB4: =$K$4 -> Sub-transmission lines | CC4: =$L$4 -> Distribution Lines | CD4: =$M$4 -> Substations | CE4: =$N$4 -> Distribution Transformers | CF4: =$O$4 -> LVS | CG4: =$P$4 -> Communications | CH4: =$Q$4 -> Contributions | CI4: =$R$4 -> Land | CJ4: =$S$4 -> Substation Land | CK4: =$T$4 -> Easements | CL4: =$U$4 -> Buildings | CM4: =$V$4 -> Heavy Vehicles - 15 year | CN4: =$W$4 -> Heavy Vehicles - 10 year | CO4: =$X$4 -> Light Vehicles | CP4: =$Y$4 -> IT Assets | CQ4: =$Z$4 -> Plant & Tools/Office Furniture | CR4: =$AA$4 -> Distribution Lines-Refurbish and Shorter Life | CS4: =$AB$4 -> Substations-Refurbish and Shorter Life | CT4: =$AC$4 -> Network Electronics | CU4: =$AD$4 -> in-house software | CV4: =$AE$4 -> Buildings | CW4: Check | CY4: =$K$4 -> Sub-transmission lines | CZ4: =$L$4 -> Distribution Lines | DA4: =$M$4 -> Substations | DB4: =$N$4 -> Distribution Transformers | DC4: =$O$4 -> LVS | DD4: =$P$4 -> Communications | DE4: =$Q$4 -> Contributions | DF4: =$R$4 -> Land | DG4: =$S$4 -> Substation Land | DH4: =$T$4 -> Easements | DI4: =$U$4 -> Buildings | DJ4: =$V$4 -> Heavy Vehicles - 15 year | DK4: =$W$4 -> Heavy Vehicles - 10 year | DL4: =$X$4 -> Light Vehicles | DM4: =$Y$4 -> IT Assets | DN4: =$Z$4 -> Plant & Tools/Office Furniture | DO4: =$AA$4 -> Distribution Lines-Refurbish and Shorter Life | DP4: =$AB$4 -> Substations-Refurbish and Shorter Life | DQ4: =$AC$4 -> Network Electronics | DR4: =$AD$4 -> in-house software | DS4: =$AE$4 -> Buildings | DT4: Check
D5: % | E5: % | F5: % | G5: % | H5: % | I5: % | J5: =IF(SUM(J6:J24)>0.00001,"Error","Ok") -> Ok | AF5: =IF(SUM(AF6:AF24)>0.00001,"Error","Ok") -> Ok | BC5: =IF(SUM(BC6:BC24)>0.00001,"Error","Ok") -> Ok | BZ5: =IF(SUM(BZ6:BZ24)>0.00001,"Error","Ok") -> Ok | CW5: =IF(SUM(CW6:CW24)>0.00001,"Error","Ok") -> Ok | DT5: =IF(SUM(DT6:DT24)>0.00001,"Error","Ok") -> Ok
A6: C-1 | B6: Repex | C6: Asset Replacement and Refurbishment | D6: 0.41 | E6: 0.25 | F6: 0.12 | G6: 0.17 | H6: 0.05 | I6: 0 | J6: =ABS(1-SUM(D6:I6)) -> 0 | L6: ='Lives for Lines & Subs'!J7 -> 0.6426247974 | M6: 0.1775376273 | P6: 0.04488765933 | AA6: ='Lives for Lines & Subs'!J8 -> 0.07166040826 | AB6: 0.03516964545 | AC6: 0.02811986236 | AF6: =ABS(1-SUM(K6:AE6)) -> 1.110223025e-16 | AI6: ='Lives for Lines & Subs'!K7 -> 0.6413763796 | AJ6: 0.185556058 | AM6: 0.04189351723 | AX6: ='Lives for Lines & Subs'!K8 -> 0.0735373214 | AY6: 0.03062382719 | AZ6: 0.02701289664 | BC6: =ABS(1-SUM(AH6:BB6)) -> 0 | BF6: ='Lives for Lines & Subs'!L7 -> 0.6334140249 | BG6: 0.201909293 | BJ6: 0.03803455963 | BU6: ='Lives for Lines & Subs'!L8 -> 0.07279520661 | BV6: 0.02869580501 | BW6: 0.02515111084 | BZ6: =ABS(1-SUM(BE6:BY6)) -> 2.220446049e-16 | CC6: ='Lives for Lines & Subs'!M7 -> 0.6550581589 | CD6: 0.1762696458 | CG6: 0.03916014263 | CR6: ='Lives for Lines & Subs'!M8 -> 0.07553821963 | CS6: 0.02954184963 | CT6: 0.0244319834 | CW6: =ABS(1-SUM(CB6:CV6)) -> 2.220446049e-16 | CZ6: ='Lives for Lines & Subs'!N7 -> 0.6788321969 | DA6: 0.1499067302 | DD6: 0.04072808874 | DO6: ='Lives for Lines & Subs'!N8 -> 0.07836056175 | DP6: 0.0287516247 | DQ6: 0.02342079762 | DT6: =ABS(1-SUM(CY6:DS6)) -> 2.220446049e-16
A7: C-2 | B7: Augex | C7: Augmentation/Capacity | D7: 0.4 | E7: 0.2 | F7: 0.03 | G7: 0.34 | H7: 0.03 | I7: 0 | J7: =ABS(1-SUM(D7:I7)) -> 0 | K7: 0.2145405339 | L7: 0.1857547054 | M7: ='Lives for Lines & Subs'!J27 -> 0.1581990405 | N7: 0.1216631812 | O7: 0.2214294501 | AB7: ='Lives for Lines & Subs'!J28 -> 0 | AC7: 0.09841308894 | AF7: =ABS(1-SUM(K7:AE7)) -> 2.220446049e-16 | AH7: 0.1367385328 | AI7: 0.1484589784 | AJ7: ='Lives for Lines & Subs'!K27 -> 0.1532339748 | AK7: 0.173780929 | AL7: 0.2720300969 | AP7: 0 | AY7: ='Lives for Lines & Subs'!K28 -> 0 | AZ7: 0.1157574881 | BC7: =ABS(1-SUM(AH7:BB7)) -> 1.110223025e-16 | BE7: 0.04105888709 | BF7: 0.1759409328 | BG7: ='Lives for Lines & Subs'!L27 -> 0.2224023051 | BH7: 0.06356924185 | BI7: 0.3529623627 | BM7: 0 | BV7: ='Lives for Lines & Subs'!L28 -> 0 | BW7: 0.1440662705 | BZ7: =ABS(1-SUM(BE7:BY7)) -> 2.220446049e-16 | CB7: 0.05531472169 | CC7: 0.1881394139 | CD7: ='Lives for Lines & Subs'!M27 -> 0.2103346627 | CF7: 0.3537367782 | CJ7: 0.05375411826 | CS7: ='Lives for Lines & Subs'!M28 -> 0 | CT7: 0.1387203052 | CW7: =ABS(1-SUM(CB7:CV7)) -> 1.110223025e-16 | CY7: 0.1746902932 | CZ7: 0.1789242591 | DA7: ='Lives for Lines & Subs'!N27 -> 0.1398776854 | DC7: 0.3324447232 | DG7: 0.04861220009 | DP7: ='Lives for Lines & Subs'!N28 -> 0 | DQ7: 0.125450839 | DT7: =ABS(1-SUM(CY7:DS7)) -> 2.220446049e-16
A8: C-3 | B8: Connections | C8: Connections | D8: 0.47 | E8: 0.24 | F8: 0.03 | G8: 0.21 | H8: 0.05 | I8: 0 | J8: 0 | L8: 0.85230737 | O8: 0.14769263 | AF8: 0 | AI8: 0.850039993 | AL8: 0.149960007 | BC8: 1.110223025e-16 | BF8: 0.8509405665 | BI8: 0.1490594335 | BZ8: 0 | CC8: 0.8537331199 | CF8: 0.1462668801 | CW8: 2.220446049e-16 | CZ8: 0.8070285697 | DC8: 0.1929714303 | DT8: 1.110223025e-16
A9: C-4 | B9: Connections | C9: Contributions | D9: 0.5 | E9: 0.25 | F9: 0.03 | G9: 0.22 | H9: 0 | I9: 0 | J9: 0 | L9: 0.9235985367 | O9: 0.07640146333 | AF9: 0 | AI9: 0.9224103364 | AL9: 0.07758966358 | BC9: 0 | BF9: 0.9226531653 | BI9: 0.0773468347 | BZ9: 0 | CC9: 0.9242420945 | CF9: 0.07575790552 | CW9: 1.110223025e-16 | CZ9: 0.8992544069 | DC9: 0.1007455931 | DT9: 0
A10: C-5 | B10: Augex | C10: Reliability | D10: 0.46 | E10: 0.06 | F10: 0.1 | G10: 0.08 | H10: 0.3 | I10: 0 | J10: 0 | K10: 0.637037037 | L10: 0.2296296296 | AA10: 0.1185185185 | AC10: 0.01481481481 | AF10: 0 | AH10: 0.637037037 | AI10: 0.2296296296 | AX10: 0.1185185185 | AZ10: 0.01481481481 | BC10: 0 | BE10: 0.637037037 | BF10: 0.2296296296 | BU10: 0.1185185185 | BW10: 0.01481481481 | BZ10: 0 | CB10: 0.637037037 | CC10: 0.2296296296 | CR10: 0.1185185185 | CT10: 0.01481481481 | CW10: 0 | CY10: 0.637037037 | CZ10: 0.2296296296 | DO10: 0.1185185185 | DQ10: 0.01481481481 | DT10: 0
A11: C-6 | B11: Augex | C11: Environmental | D11: 0.33 | E11: 0.1 | F11: 0 | G11: 0.52 | H11: 0.05 | I11: 0 | J11: 0 | M11: 1 | AF11: 0 | AJ11: 1 | BC11: 0 | BG11: 1 | BZ11: 0 | CD11: 1 | CW11: 0 | DA11: 1 | DT11: 0
A12: C-7 | B12: Augex | C12: Safety Augex | D12: 0.53 | E12: 0.3 | F12: 0.05 | G12: 0.05 | H12: 0.07 | I12: 0 | J12: 2.220446049e-16 | M12: ='Lives for Lines & Subs'!J41 -> 0.9715882186 | AB12: ='Lives for Lines & Subs'!J42 -> 0.02841178142 | AF12: 0 | AJ12: ='Lives for Lines & Subs'!K41 -> 0.9716151008 | AY12: ='Lives for Lines & Subs'!K42 -> 0.02838489923 | BC12: 0 | BG12: ='Lives for Lines & Subs'!L41 -> 0.9669567133 | BV12: ='Lives for Lines & Subs'!L42 -> 0.03304328671 | BZ12: 0 | CD12: ='Lives for Lines & Subs'!M41 -> 0.9669567133 | CS12: ='Lives for Lines & Subs'!M42 -> 0.03304328671 | CW12: 0 | DA12: ='Lives for Lines & Subs'!N41 -> 0.96694397 | DP12: ='Lives for Lines & Subs'!N42 -> 0.03305602997 | DT12: 0
A13: C-8 | B13: Repex | C13: Safety Repex | D13: 0.53 | E13: 0.3 | F13: 0.05 | G13: 0.05 | H13: 0.07 | I13: 0 | J13: 2.220446049e-16 | L13: ='Lives for Lines & Subs'!J55 -> 0.5578694741 | M13: 0.2737913703 | N13: 0.03269669588 | P13: 0.1296694713 | AA13: ='Lives for Lines & Subs'!J56 -> 0.005972988444 | AF13: 0 | AI13: ='Lives for Lines & Subs'!K55 -> 0.5843627565 | AJ13: 0.2905462198 | AK13: 0.03426656679 | AM13: 0.08258242595 | AX13: ='Lives for Lines & Subs'!K56 -> 0.008242030962 | BC13: 0 | BF13: ='Lives for Lines & Subs'!L55 -> 0.6074250808 | BG13: 0.2981660054 | BH13: 0.03561892312 | BJ13: 0.0502226816 | BU13: ='Lives for Lines & Subs'!L56 -> 0.008567309034 | BZ13: 1.110223025e-16 | CC13: ='Lives for Lines & Subs'!M55 -> 0.5897177714 | CD13: 0.2753997439 | CE13: 0.0345805806 | CG13: 0.09198434438 | CR13: ='Lives for Lines & Subs'!M56 -> 0.00831755973 | CW13: 0 | CZ13: ='Lives for Lines & Subs'!N55 -> 0.5870785741 | DA13: 0.2452495429 | DB13: 0.03442582017 | DD13: 0.1249657272 | DO13: ='Lives for Lines & Subs'!N56 -> 0.008280335684 | DT13: 0
A14: C-10 | B14: Augex | C14: PLEC (Undergrounding) | D14: 0.11 | E14: 0.07 | F14: 0.74 | G14: 0.03 | H14: 0.05 | I14: 0 | J14: 0 | M14: 1 | AF14: 0 | AJ14: 1 | BC14: 0 | BG14: 1 | BZ14: 0 | CD14: 1 | CW14: 0 | DA14: 1 | DT14: 0
A15: C-15 | B15: Augex | C15: Strategic - Network Security | D15: 0.48 | E15: 0.12 | F15: 0.29 | G15: 0.07 | H15: 0.04 | I15: 0 | J15: 0 | P15: 0.3387644263 | Y15: 0.134721711 | AD15: 0.5265138627 | AF15: 0 | AM15: 0.2705243287 | AV15: 0.2448855556 | BA15: 0.4845901157 | BC15: 2.220446049e-16 | BJ15: 0.327068575 | BS15: 0.1772897954 | BX15: 0.4956416296 | BZ15: 4.440892099e-16 | CG15: 0.3290353139 | CP15: 0.1673325326 | CU15: 0.5036321534 | CW15: 2.220446049e-16 | DD15: 0.4300749811 | DM15: 0.1155507498 | DR15: 0.4543742691 | DT15: 4.440892099e-16
A16: C-18 | B16: Augex | C16: Safety (Bushfire) | D16: 0.53 | E16: 0.3 | F16: 0.05 | G16: 0.05 | H16: 0.07 | I16: 0 | J16: 2.220446049e-16 | AA16: 1 | AF16: 0 | AX16: 1 | BC16: 0 | BU16: 1 | BZ16: 0 | CR16: 1 | CW16: 0 | DO16: 1 | DT16: 0
A17: C-19 | B17: Non-network | C17: Heavy Vehicle Fleet - 15yrs | D17: 0 | E17: 1 | F17: 0 | G17: 0 | H17: 0 | I17: 0 | J17: 0 | V17: 1 | AF17: 0 | AS17: 1 | BC17: 0 | BP17: 1 | BZ17: 0 | CM17: 1 | CW17: 0 | DJ17: 1 | DT17: 0
A18: C-20 | B18: Non-network | C18: Heavy Vehicle Fleet - 10yrs | D18: 0 | E18: 1 | F18: 0 | G18: 0 | H18: 0 | I18: 0 | J18: 0 | W18: 1 | AF18: 0 | AT18: 1 | BC18: 0 | BQ18: 1 | BZ18: 0 | CN18: 1 | CW18: 0 | DK18: 1 | DT18: 0
A19: C-21 | B19: Non-network | C19: Light Vehicle Fleet | D19: 0 | E19: 1 | F19: 0 | G19: 0 | H19: 0 | I19: 0 | J19: 0 | X19: 1 | AF19: 0 | AU19: 1 | BC19: 0 | BR19: 1 | BZ19: 0 | CO19: 1 | CW19: 0 | DL19: 1 | DT19: 0
A20: C-22 | B20: Non-network | C20: Plant and Tools | D20: 0 | E20: 1 | F20: 0 | G20: 0 | H20: 0 | I20: 0 | J20: 0 | Z20: 1 | AF20: 0 | AW20: 1 | BC20: 0 | BT20: 1 | BZ20: 0 | CQ20: 1 | CW20: 0 | DN20: 1 | DT20: 0
A21: C-24 | B21: Non-network | C21: Property | D21: 0 | E21: 0 | F21: 0 | G21: 1 | H21: 0 | I21: 0 | J21: 0 | Z21: 0.1 | AE21: 0.9 | AF21: 0 | AW21: 0.1 | BB21: 0.9 | BC21: 0 | BT21: 0.1 | BY21: 0.9 | BZ21: 0 | CQ21: 0.1 | CV21: 0.9 | CW21: 0 | DN21: 0.1 | DS21: 0.9 | DT21: 0
A22: C-25 | B22: Non-network | C22: Information Technology | D22: 0.169 | E22: 0.07 | F22: 0.649 | G22: 0 | H22: 0.112 | I22: 0 | J22: 2.220446049e-16 | Y22: 0.2037423822 | AD22: 0.7962576178 | AF22: 0 | AV22: 0.3357007852 | BA22: 0.6642992148 | BC22: 0 | BS22: 0.2634589333 | BX22: 0.7365410667 | BZ22: 0 | CP22: 0.2493909681 | CU22: 0.7506090319 | CW22: 0 | DM22: 0.2027472843 | DR22: 0.7972527157 | DT22: 0
A23: C-28 | B23: Non-network | C23: Superannuation | D23: 1 | E23: 0 | F23: 0 | G23: 0 | H23: 0 | I23: 0 | J23: 0 | K23: 0.004087548568 | L23: 0.08962876097 | M23: 0.1747954997 | N23: 0.01565508064 | O23: 0.4264891882 | P23: 0.09807088226 | V23: 0.00671926512 | W23: 0.0190281823 | Y23: 0.03372457846 | AD23: 0.1318010137 | AF23: 0 | AH23: 0.004087548568 | AI23: 0.08962876097 | AJ23: 0.1747954997 | AK23: 0.01565508064 | AL23: 0.4264891882 | AM23: 0.09807088226 | AS23: 0.00671926512 | AT23: 0.0190281823 | AV23: 0.05556707126 | BA23: 0.1099585209 | BC23: 0 | BE23: 0.004087548568 | BF23: 0.08962876097 | BG23: 0.1747954997 | BH23: 0.01565508064 | BI23: 0.4264891882 | BJ23: 0.09807088226 | BP23: 0.00671926512 | BQ23: 0.0190281823 | BS23: 0.04360919594 | BX23: 0.1219163962 | BZ23: 0 | CB23: 0.004087548568 | CC23: 0.08962876097 | CD23: 0.1747954997 | CE23: 0.01565508064 | CF23: 0.4264891882 | CG23: 0.09807088226 | CM23: 0.00671926512 | CN23: 0.0190281823 | CP23: 0.04128058768 | CU23: 0.1242450045 | CW23: 0 | CY23: 0.004087548568 | CZ23: 0.08962876097 | DA23: 0.1747954997 | DB23: 0.01565508064 | DC23: 0.4264891882 | DD23: 0.09807088226 | DJ23: 0.00671926512 | DK23: 0.0190281823 | DM23: 0.03355986429 | DR23: 0.1319657279 | DT23: 0
A24: C-29 | B24: Non-network | C24: Operational Information Technology | D24: 0.2860111839 | E24: 0.1724767712 | F24: 0.0295138293 | G24: 0.4238561208 | H24: 0.08814209473 | I24: 0 | J24: 2.220446049e-16 | P24: 1 | AF24: 0 | AM24: 1 | BC24: 0 | BJ24: 1 | BZ24: 0 | CG24: 1 | CW24: 0 | DD24: 1 | DT24: 0
AF28: =AH29 -> Immediate Expensing of Capex
K29: Immediate Expensing of Capex | AH29: =$K$29 -> Immediate Expensing of Capex | BE29: =$K$29 -> Immediate Expensing of Capex | CB29: =$K$29 -> Immediate Expensing of Capex | CY29: =$K$29 -> Immediate Expensing of Capex
K30: 2020/21 | L30: =K30 -> 2020/21 | M30: =L30 -> 2020/21 | N30: =M30 -> 2020/21 | O30: =N30 -> 2020/21 | P30: =O30 -> 2020/21 | Q30: =P30 -> 2020/21 | R30: =Q30 -> 2020/21 | S30: =R30 -> 2020/21 | T30: =S30 -> 2020/21 | U30: =T30 -> 2020/21 | V30: =U30 -> 2020/21 | W30: =V30 -> 2020/21 | X30: =W30 -> 2020/21 | Y30: =X30 -> 2020/21 | Z30: =Y30 -> 2020/21 | AA30: =Z30 -> 2020/21 | AB30: =AA30 -> 2020/21 | AC30: =AB30 -> 2020/21 | AD30: =AC30 -> 2020/21 | AE30: =AD30 -> 2020/21 | AF30: =AE30 -> 2020/21 | AH30: 2021/22 | AI30: =AH30 -> 2021/22 | AJ30: =AI30 -> 2021/22 | AK30: =AJ30 -> 2021/22 | AL30: =AK30 -> 2021/22 | AM30: =AL30 -> 2021/22 | AN30: =AM30 -> 2021/22 | AO30: =AN30 -> 2021/22 | AP30: =AO30 -> 2021/22 | AQ30: =AP30 -> 2021/22 | AR30: =AQ30 -> 2021/22 | AS30: =AR30 -> 2021/22 | AT30: =AS30 -> 2021/22 | AU30: =AT30 -> 2021/22 | AV30: =AU30 -> 2021/22 | AW30: =AV30 -> 2021/22 | AX30: =AW30 -> 2021/22 | AY30: =AX30 -> 2021/22 | AZ30: =AY30 -> 2021/22 | BA30: =AZ30 -> 2021/22 | BB30: =BA30 -> 2021/22 | BC30: =BB30 -> 2021/22 | BE30: 2022/23 | BF30: =BE30 -> 2022/23 | BG30: =BF30 -> 2022/23 | BH30: =BG30 -> 2022/23 | BI30: =BH30 -> 2022/23 | BJ30: =BI30 -> 2022/23 | BK30: =BJ30 -> 2022/23 | BL30: =BK30 -> 2022/23 | BM30: =BL30 -> 2022/23 | BN30: =BM30 -> 2022/23 | BO30: =BN30 -> 2022/23 | BP30: =BO30 -> 2022/23 | BQ30: =BP30 -> 2022/23 | BR30: =BQ30 -> 2022/23 | BS30: =BR30 -> 2022/23 | BT30: =BS30 -> 2022/23 | BU30: =BT30 -> 2022/23 | BV30: =BU30 -> 2022/23 | BW30: =BV30 -> 2022/23 | BX30: =BW30 -> 2022/23 | BY30: =BX30 -> 2022/23 | BZ30: =BY30 -> 2022/23 | CB30: 2023/24 | CC30: =CB30 -> 2023/24 | CD30: =CC30 -> 2023/24 | CE30: =CD30 -> 2023/24 | CF30: =CE30 -> 2023/24 | CG30: =CF30 -> 2023/24 | CH30: =CG30 -> 2023/24 | CI30: =CH30 -> 2023/24 | CJ30: =CI30 -> 2023/24 | CK30: =CJ30 -> 2023/24 | CL30: =CK30 -> 2023/24 | CM30: =CL30 -> 2023/24 | CN30: =CM30 -> 2023/24 | CO30: =CN30 -> 2023/24 | CP30: =CO30 -> 2023/24 | CQ30: =CP30 -> 2023/24 | CR30: =CQ30 -> 2023/24 | CS30: =CR30 -> 2023/24 | CT30: =CS30 -> 2023/24 | CU30: =CT30 -> 2023/24 | CV30: =CU30 -> 2023/24 | CW30: =CV30 -> 2023/24 | CY30: 2024/25 | CZ30: =CY30 -> 2024/25 | DA30: =CZ30 -> 2024/25 | DB30: =DA30 -> 2024/25 | DC30: =DB30 -> 2024/25 | DD30: =DC30 -> 2024/25 | DE30: =DD30 -> 2024/25 | DF30: =DE30 -> 2024/25 | DG30: =DF30 -> 2024/25 | DH30: =DG30 -> 2024/25 | DI30: =DH30 -> 2024/25 | DJ30: =DI30 -> 2024/25 | DK30: =DJ30 -> 2024/25 | DL30: =DK30 -> 2024/25 | DM30: =DL30 -> 2024/25 | DN30: =DM30 -> 2024/25 | DO30: =DN30 -> 2024/25 | DP30: =DO30 -> 2024/25 | DQ30: =DP30 -> 2024/25 | DR30: =DQ30 -> 2024/25 | DS30: =DR30 -> 2024/25 | DT30: =DS30 -> 2024/25
K31: Sub-transmission lines | L31: Distribution Lines | M31: Substations | N31: Distribution Transformers | O31: LVS | P31: Communications | Q31: Contributions | R31: Land | S31: Substation Land | T31: Easements | U31: Buildings | V31: Heavy Vehicles - 15 year | W31: Heavy Vehicles - 10 year | X31: Light Vehicles | Y31: IT Assets | Z31: Plant & Tools/Office Furniture | AA31: Distribution Lines-Refurbish and Shorter Life | AB31: Substations-Refurbish and Shorter Life | AC31: Network Electronics | AD31: in-house software | AE31: Buildings | AF31: Check | AH31: =$K$4 -> Sub-transmission lines | AI31: =$L$4 -> Distribution Lines | AJ31: =$M$4 -> Substations | AK31: =$N$4 -> Distribution Transformers | AL31: =$O$4 -> LVS | AM31: =$P$4 -> Communications | AN31: =$Q$4 -> Contributions | AO31: =$R$4 -> Land | AP31: =$S$4 -> Substation Land | AQ31: =$T$4 -> Easements | AR31: =$U$4 -> Buildings | AS31: =$V$4 -> Heavy Vehicles - 15 year | AT31: =$W$4 -> Heavy Vehicles - 10 year | AU31: =$X$4 -> Light Vehicles | AV31: =$Y$4 -> IT Assets | AW31: =$Z$4 -> Plant & Tools/Office Furniture | AX31: =$AA$4 -> Distribution Lines-Refurbish and Shorter Life | AY31: =$AB$4 -> Substations-Refurbish and Shorter Life | AZ31: =$AC$4 -> Network Electronics | BA31: =$AD$4 -> in-house software | BB31: =$AE$4 -> Buildings | BC31: Check | BE31: =$K$4 -> Sub-transmission lines | BF31: =$L$4 -> Distribution Lines | BG31: =$M$4 -> Substations | BH31: =$N$4 -> Distribution Transformers | BI31: =$O$4 -> LVS | BJ31: =$P$4 -> Communications | BK31: =$Q$4 -> Contributions | BL31: =$R$4 -> Land | BM31: =$S$4 -> Substation Land | BN31: =$T$4 -> Easements | BO31: =$U$4 -> Buildings | BP31: =$V$4 -> Heavy Vehicles - 15 year | BQ31: =$W$4 -> Heavy Vehicles - 10 year | BR31: =$X$4 -> Light Vehicles | BS31: =$Y$4 -> IT Assets | BT31: =$Z$4 -> Plant & Tools/Office Furniture | BU31: =$AA$4 -> Distribution Lines-Refurbish and Shorter Life | BV31: =$AB$4 -> Substations-Refurbish and Shorter Life | BW31: =$AC$4 -> Network Electronics | BX31: =$AD$4 -> in-house software | BY31: =$AE$4 -> Buildings | BZ31: Check | CB31: =$K$4 -> Sub-transmission lines | CC31: =$L$4 -> Distribution Lines | CD31: =$M$4 -> Substations | CE31: =$N$4 -> Distribution Transformers | CF31: =$O$4 -> LVS | CG31: =$P$4 -> Communications | CH31: =$Q$4 -> Contributions | CI31: =$R$4 -> Land | CJ31: =$S$4 -> Substation Land | CK31: =$T$4 -> Easements | CL31: =$U$4 -> Buildings | CM31: =$V$4 -> Heavy Vehicles - 15 year | CN31: =$W$4 -> Heavy Vehicles - 10 year | CO31: =$X$4 -> Light Vehicles | CP31: =$Y$4 -> IT Assets | CQ31: =$Z$4 -> Plant & Tools/Office Furniture | CR31: =$AA$4 -> Distribution Lines-Refurbish and Shorter Life | CS31: =$AB$4 -> Substations-Refurbish and Shorter Life | CT31: =$AC$4 -> Network Electronics | CU31: =$AD$4 -> in-house software | CV31: =$AE$4 -> Buildings | CW31: Check | CY31: =$K$4 -> Sub-transmission lines | CZ31: =$L$4 -> Distribution Lines | DA31: =$M$4 -> Substations | DB31: =$N$4 -> Distribution Transformers | DC31: =$O$4 -> LVS | DD31: =$P$4 -> Communications | DE31: =$Q$4 -> Contributions | DF31: =$R$4 -> Land | DG31: =$S$4 -> Substation Land | DH31: =$T$4 -> Easements | DI31: =$U$4 -> Buildings | DJ31: =$V$4 -> Heavy Vehicles - 15 year | DK31: =$W$4 -> Heavy Vehicles - 10 year | DL31: =$X$4 -> Light Vehicles | DM31: =$Y$4 -> IT Assets | DN31: =$Z$4 -> Plant & Tools/Office Furniture | DO31: =$AA$4 -> Distribution Lines-Refurbish and Shorter Life | DP31: =$AB$4 -> Substations-Refurbish and Shorter Life | DQ31: =$AC$4 -> Network Electronics | DR31: =$AD$4 -> in-house software | DS31: =$AE$4 -> Buildings | DT31: Check
AF32: =IF(SUM(AF33:AF51)>0.00001,"Error","Ok") -> Ok | BC32: =IF(SUM(BC33:BC51)>0.00001,"Error","Ok") -> Ok | BZ32: =IF(SUM(BZ33:BZ51)>0.00001,"Error","Ok") -> Ok | CW32: =IF(SUM(CW33:CW51)>0.00001,"Error","Ok") -> Ok | DT32: =IF(SUM(DT33:DT51)>0.00001,"Error","Ok") -> Ok
A33: =A6 -> C-1 | B33: =B6 -> Repex | C33: Asset Replacement and Refurbishment | L33: =L6 -> 0.6426247974 | M33: 0.1775376273 | P33: 0.04488765933 | AA33: =AA6 -> 0.07166040826 | AB33: 0.03516964545 | AC33: 0.02811986236 | AF33: =ABS(1-SUM(K33:AE33)) -> 1.110223025e-16 | AI33: =AI6 -> 0.6413763796 | AJ33: 0.185556058 | AM33: 0.04189351723 | AX33: =AX6 -> 0.0735373214 | AY33: 0.03062382719 | AZ33: 0.02701289664 | BC33: =ABS(1-SUM(AH33:BB33)) -> 0 | BF33: =BF6 -> 0.6334140249 | BG33: 0.201909293 | BJ33: 0.03803455963 | BU33: =BU6 -> 0.07279520661 | BV33: 0.02869580501 | BW33: 0.02515111084 | BZ33: =ABS(1-SUM(BE33:BY33)) -> 2.220446049e-16 | CC33: =CC6 -> 0.6550581589 | CD33: 0.1762696458 | CG33: 0.03916014263 | CR33: =CR6 -> 0.07553821963 | CS33: 0.02954184963 | CT33: 0.0244319834 | CW33: =ABS(1-SUM(CB33:CV33)) -> 2.220446049e-16 | CZ33: =CZ6 -> 0.6788321969 | DA33: 0.1499067302 | DD33: 0.04072808874 | DO33: =DO6 -> 0.07836056175 | DP33: 0.0287516247 | DQ33: 0.02342079762 | DT33: =ABS(1-SUM(CY33:DS33)) -> 2.220446049e-16
A34: =A7 -> C-2 | B34: Augex | C34: Augmentation/Capacity | K34: 0.2145405339 | L34: 0.1857547054 | M34: =8.7956698240866%+12.16631812031%+'Lives for Lines & Subs'!J32 -> 0.2798622217 | N34: =12.16631812031%*0+22.1429450116866% -> 0.2214294501 | O34: =22.1429450116866%*0 -> 0 | AB34: ='Lives for Lines & Subs'!J28 -> 0 | AC34: 0.09841308894 | AF34: =ABS(1-SUM(K34:AE34)) -> 2.220446049e-16 | AH34: 0.1367385328 | AI34: 0.1484589784 | AJ34: =7.06120677181305%+17.3780928953842%+'Lives for Lines & Subs'!K32 -> 0.3270149038 | AK34: =17.3780928953842%*0+27.2030096946896% -> 0.2720300969 | AL34: =27.2030096946896%*0 -> 0 | AP34: 0 | AY34: =AY7 -> 0 | AZ34: 0.1157574881 | BC34: =ABS(1-SUM(AH34:BB34)) -> 0 | BE34: 0.04105888709 | BF34: 0.1759409328 | BG34: =11.9575004502071%+6.35692418512516%+'Lives for Lines & Subs'!L32 -> 0.2859715469 | BH34: =6.35692418512516%*0+35.2962362686836% -> 0.3529623627 | BI34: =35.2962362686836%*0 -> 0 | BM34: 0 | BV34: =BV7 -> 0 | BW34: 0.1440662705 | BZ34: =ABS(1-SUM(BE34:BY34)) -> 0 | CB34: =5.53147216923877%/(1-5.37541182590602%) -> 0.05845702767 | CC34: =18.8139413906711%/(1-5.37541182590602%) -> 0.1988271944 | CD34: =8.34055834922837%/(1-5.37541182590602%)+'Lives for Lines & Subs'!M32 -> 0.2150727479 | CE34: =0+(35.3736778220912%/(1-5.37541182590602%)) -> 0.3738317757 | CF34: =(35.3736778220912%/(1-5.37541182590602%))*0 -> 0 | CJ34: =5.37541182590602%*0 -> 0 | CS34: =12.6929079243974%/(1-5.37541182590602%)-'Lives for Lines & Subs'!M32 -> 0.007210557919 | CT34: =13.8720305184671%/(1-5.37541182590602%) -> 0.1466006964 | CW34: =ABS(1-SUM(CB34:CV34)) -> 4.440892099e-16 | CY34: =17.4690293241336%/(1-4.86122000940881%) -> 0.1836162848 | CZ34: =17.8924259055982%/(1-4.86122000940881%) -> 0.1880665897 | DA34: =2.50901677904971%/(1-4.86122000940881%)+'Lives for Lines & Subs'!N32 -> 0.141159695 | DB34: =0+(33.2444723224087%/(1-4.86122000940881%)) -> 0.3494313499 | DC34: =(33.2444723224087%/(1-4.86122000940881%))*0 -> 0 | DG34: =4.86122000940881%*0 -> 0 | DP34: =11.4787517641524%/(1-4.86122000940881%)-'Lives for Lines & Subs'!N32 -> 0.005865193748 | DQ34: =12.5450838952485%/(1-4.86122000940881%) -> 0.1318608868 | DT34: =ABS(1-SUM(CY34:DS34)) -> 9.992007222e-16
A35: =A8 -> C-3 | B35: Connections | C35: Connections | L35: 0.85230737 | O35: 0.14769263 | AF35: 0 | AI35: 0.850039993 | AL35: 0.149960007 | BC35: 1.110223025e-16 | BF35: 0.8509405665 | BI35: 0.1490594335 | BZ35: 0 | CC35: 0.8537331199 | CF35: 0.1462668801 | CW35: 2.220446049e-16 | CZ35: 0.8070285697 | DC35: 0.1929714303 | DT35: 1.110223025e-16
A36: =A9 -> C-4 | B36: Connections | C36: Contributions | L36: 0.9235985367 | O36: 0.07640146333 | AF36: 0 | AI36: 0.9224103364 | AL36: 0.07758966358 | BC36: 0 | BF36: 0.9226531653 | BI36: 0.0773468347 | BZ36: 0 | CC36: 0.9242420945 | CF36: 0.07575790552 | CW36: 1.110223025e-16 | CZ36: 0.8992544069 | DC36: 0.1007455931 | DT36: 0
A37: =A10 -> C-5 | B37: Augex | C37: Reliability | K37: 0.637037037 | L37: 0.2296296296 | AA37: 0.1185185185 | AC37: 0.01481481481 | AF37: 0 | AH37: 0.637037037 | AI37: 0.2296296296 | AX37: 0.1185185185 | AZ37: 0.01481481481 | BC37: 0 | BE37: 0.637037037 | BF37: 0.2296296296 | BU37: 0.1185185185 | BW37: 0.01481481481 | BZ37: 0 | CB37: 0.637037037 | CC37: 0.2296296296 | CR37: 0.1185185185 | CT37: 0.01481481481 | CW37: 0 | CY37: 0.637037037 | CZ37: 0.2296296296 | DO37: 0.1185185185 | DQ37: 0.01481481481 | DT37: 0
A38: =A11 -> C-6 | B38: Augex | C38: Environmental | M38: 1 | AF38: 0 | AJ38: 1 | BC38: 0 | BG38: 1 | BZ38: 0 | CD38: 1 | CW38: 0 | DA38: 1 | DT38: 0
A39: =A12 -> C-7 | B39: Augex | C39: Safety Augex | M39: =M12 -> 0.9715882186 | AB39: =AB12 -> 0.02841178142 | AF39: 0 | AJ39: =AJ12 -> 0.9716151008 | AY39: =AY12 -> 0.02838489923 | BC39: 0 | BG39: =BG12 -> 0.9669567133 | BV39: =BV12 -> 0.03304328671 | BZ39: 0 | CD39: =CD12 -> 0.9669567133 | CS39: =CS12 -> 0.03304328671 | CW39: 0 | DA39: =DA12 -> 0.96694397 | DP39: =DP12 -> 0.03305602997 | DT39: 0
A40: =A13 -> C-8 | B40: Repex | C40: Safety Repex | L40: =L13 -> 0.5578694741 | M40: 0.2737913703 | N40: 0.03269669588 | P40: 0.1296694713 | AA40: =AA13 -> 0.005972988444 | AF40: 0 | AI40: =AI13 -> 0.5843627565 | AJ40: 0.2905462198 | AK40: 0.03426656679 | AM40: 0.08258242595 | AX40: =AX13 -> 0.008242030962 | BC40: 0 | BF40: =BF13 -> 0.6074250808 | BG40: 0.2981660054 | BH40: 0.03561892312 | BJ40: 0.0502226816 | BU40: =BU13 -> 0.008567309034 | BZ40: 1.110223025e-16 | CC40: =CC13 -> 0.5897177714 | CD40: 0.2753997439 | CE40: 0.0345805806 | CG40: 0.09198434438 | CR40: =CR13 -> 0.00831755973 | CW40: 0 | CZ40: =CZ13 -> 0.5870785741 | DA40: 0.2452495429 | DB40: 0.03442582017 | DD40: 0.1249657272 | DO40: =DO13 -> 0.008280335684 | DT40: 0
A41: =A14 -> C-10 | B41: Augex | C41: PLEC (Undergrounding) | L41: =0+100% -> 1 | M41: =100%*0 -> 0 | AF41: 0 | AI41: =0+100% -> 1 | AJ41: =100%*0 -> 0 | BC41: 0 | BF41: =0+100% -> 1 | BG41: =100%*0 -> 0 | BZ41: 0 | CC41: =0+100% -> 1 | CD41: =100%*0 -> 0 | CW41: 0 | CZ41: =0+100% -> 1 | DA41: =100%*0 -> 0 | DT41: 0
A42: =A15 -> C-15 | B42: Augex | C42: Strategic - Network Security | P42: 0.3387644263 | Y42: =13.472171096525%+52.6513862693949% -> 0.6612355737 | AD42: =52.6513862693949%*0 -> 0 | AF42: 0 | AM42: 0.2705243287 | AV42: =24.4885555645865%+48.4590115656674% -> 0.7294756713 | BA42: =48.4590115656674%*0 -> 0 | BC42: 2.220446049e-16 | BJ42: 0.327068575 | BS42: =17.7289795416196%+49.5641629575371% -> 0.672931425 | BX42: =49.5641629575371%*0 -> 0 | BZ42: 4.440892099e-16 | CG42: 0.3290353139 | CP42: =16.7332532646931%+50.3632153422223% -> 0.6709646861 | CU42: =50.3632153422223%*0 -> 0 | CW42: 2.220446049e-16 | DD42: 0.4300749811 | DM42: =11.5550749834446%+45.43742690828% -> 0.5699250189 | DR42: =45.43742690828%*0 -> 0 | DT42: 4.440892099e-16
A43: =A16 -> C-18 | B43: Augex | C43: Safety (Bushfire) | AA43: 1 | AF43: 0 | AX43: 1 | BC43: 0 | BU43: 1 | BZ43: 0 | CR43: 1 | CW43: 0 | DO43: 1 | DT43: 0
A44: =A17 -> C-19 | B44: Non-network | C44: Heavy Vehicle Fleet - 15yrs | V44: 1 | AF44: 0 | AS44: 1 | BC44: 0 | BP44: 1 | BZ44: 0 | CM44: 1 | CW44: 0 | DJ44: 1 | DT44: 0
A45: =A18 -> C-20 | B45: Non-network | C45: Heavy Vehicle Fleet - 10yrs | W45: 1 | AF45: 0 | AT45: 1 | BC45: 0 | BQ45: 1 | BZ45: 0 | CN45: 1 | CW45: 0 | DK45: 1 | DT45: 0
A46: =A19 -> C-21 | B46: Non-network | C46: Light Vehicle Fleet | X46: 1 | AF46: 0 | AU46: 1 | BC46: 0 | BR46: 1 | BZ46: 0 | CO46: 1 | CW46: 0 | DL46: 1 | DT46: 0
A47: =A20 -> C-22 | B47: Non-network | C47: Plant and Tools | Z47: 1 | AF47: 0 | AW47: 1 | BC47: 0 | BT47: 1 | BZ47: 0 | CQ47: 1 | CW47: 0 | DN47: 1 | DT47: 0
A48: =A21 -> C-24 | B48: Non-network | C48: Property | Z48: 0.1 | AE48: 0.9 | AF48: 0 | AW48: 0.1 | BB48: 0.9 | BC48: 0 | BT48: 0.1 | BY48: 0.9 | BZ48: 0 | CQ48: 0.1 | CV48: 0.9 | CW48: 0 | DN48: 0.1 | DS48: 0.9 | DT48: 0
A49: =A22 -> C-25 | B49: Non-network | C49: Information Technology | Y49: =20.374238218872%*0+14.99676698641% -> 0.1499676699 | AD49: =79.625761781128%*0+85.00323301359% -> 0.8500323301 | AF49: 0 | AV49: =33.5700785207273%*0+26.3396928596167% -> 0.2633969286 | BA49: =66.4299214792727%*0+73.6603071403833% -> 0.7366030714 | BC49: 0 | BS49: =26.3458933305749%*0+17.8009869871423% -> 0.1780098699 | BX49: =73.6541066694251%*0+82.1990130128577% -> 0.8219901301 | BZ49: 0 | CP49: =24.9390968140586%*0+16.549271275763% -> 0.1654927128 | CU49: =75.0609031859414%*0+83.450728724237% -> 0.8345072872 | CW49: 0 | DM49: =20.2747284290083%*0+15.140608282869% -> 0.1514060828 | DR49: =79.7252715709917%*0+84.859391717131% -> 0.8485939172 | DT49: 0
A50: =A23 -> C-28 | B50: Non-network | C50: Superannuation | K50: 0.004087548568 | L50: 0.08962876097 | M50: 0.1747954997 | N50: 0.01565508064 | O50: 0.4264891882 | P50: 0.09807088226 | V50: 0.00671926512 | W50: 0.0190281823 | Y50: 0.03372457846 | AD50: 0.1318010137 | AF50: 0 | AH50: 0.004087548568 | AI50: 0.08962876097 | AJ50: 0.1747954997 | AK50: 0.01565508064 | AL50: 0.4264891882 | AM50: 0.09807088226 | AS50: 0.00671926512 | AT50: 0.0190281823 | AV50: 0.05556707126 | BA50: 0.1099585209 | BC50: 0 | BE50: 0.004087548568 | BF50: 0.08962876097 | BG50: 0.1747954997 | BH50: 0.01565508064 | BI50: 0.4264891882 | BJ50: 0.09807088226 | BP50: 0.00671926512 | BQ50: 0.0190281823 | BS50: 0.04360919594 | BX50: 0.1219163962 | BZ50: 0 | CB50: 0.004087548568 | CC50: 0.08962876097 | CD50: 0.1747954997 | CE50: 0.01565508064 | CF50: 0.4264891882 | CG50: 0.09807088226 | CM50: 0.00671926512 | CN50: 0.0190281823 | CP50: 0.04128058768 | CU50: 0.1242450045 | CW50: 0 | CY50: 0.004087548568 | CZ50: 0.08962876097 | DA50: 0.1747954997 | DB50: 0.01565508064 | DC50: 0.4264891882 | DD50: 0.09807088226 | DJ50: 0.00671926512 | DK50: 0.0190281823 | DM50: 0.03355986429 | DR50: 0.1319657279 | DT50: 0
A51: =A24 -> C-29 | B51: Non-network | C51: Operational Information Technology | P51: 1 | AF51: 0 | AM51: 1 | BC51: 0 | BJ51: 1 | BZ51: 0 | CG51: 1 | CW51: 0 | DD51: 1 | DT51: 0
CE54: =CH54+CF54 -> 63.15789474 | CF54: =5*CG54 -> 3.157894737 | CG54: =CH54/CH$57 -> 0.6315789474 | CH54: 60 | CI54: 5 | CJ54: =60+60/100*5 -> 63
CE55: =CH55+CF55 -> 15.78947368 | CF55: =5*CG55 -> 0.7894736842 | CG55: =CH55/CH$57 -> 0.1578947368 | CH55: 15 | CI55: 5 | CJ55: =15+15/100*5 -> 15.75 | CM55: =100%-5% -> 0.95 | CN55: =CH54/CM55 -> 63.15789474
CE56: 21.05263158 | CF56: 1.052631579 | CG56: 0.2105263158 | CH56: 20 | CI56: 5 | CJ56: =20+20/100*5 -> 21
CE57: =SUM(CE54:CE56) -> 100 | CF57: =SUM(CF54:CF56) -> 5 | CG57: =SUM(CG54:CG56) -> 1 | CH57: =SUM(CH54:CH56) -> 95 | CI57: =SUMPRODUCT(CH54:CH56,CI54:CI56)/CH57 -> 5 | CJ57: =SUM(CJ54:CJ56) -> 99.75

Sheet Lives for Lines & Subs
D2: Proposal | J2: AER
C3: ='Direct Capex Plus Ohds'!AF$2 -> Base Capex Including Overheads | D3: 2020/21 | E3: 2021/22 | F3: 2022/23 | G3: 2023/24 | H3: 2024/25 | J3: 2020/21 | K3: 2021/22 | L3: 2022/23 | M3: 2023/24 | N3: 2024/25
A5: C-1 | B5: Repex | C5: Asset Replacement and Refurbishment | D5: 107424.5202 | E5: 113449.1971 | F5: 114876.6984 | G5: 111082.3329 | H5: 107193.3025 | J5: ='Direct Capex Plus Ohds'!AF7 -> 89024.93982 | K5: ='Direct Capex Plus Ohds'!AG7 -> 91478.81195 | L5: ='Direct Capex Plus Ohds'!AH7 -> 91848.12093 | M5: ='Direct Capex Plus Ohds'!AI7 -> 91065.99882 | N5: ='Direct Capex Plus Ohds'!AJ7 -> 89485.88583
C7: ='PTRM Inputs'!A$7 -> Distribution Lines | D7: 0.5470755999 | E7: 0.5510862322 | F7: 0.5442382264 | G7: 0.5628283901 | H7: 0.5832481052 | J7: =D7+J18 -> 0.6426247974 | K7: =E7+K18 -> 0.6413763796 | L7: =F7+L18 -> 0.6334140249 | M7: =G7+M18 -> 0.6550581589 | N7: =H7+N18 -> 0.6788321969
C8: ='PTRM Inputs'!A$22 -> Distribution Lines-Refurbish and Shorter Life | D8: 0.1672096057 | E8: 0.1638274688 | F8: 0.1619710051 | G8: 0.1677679885 | H8: 0.1739446535 | J8: =D8-J18 -> 0.07166040826 | K8: =E8-K18 -> 0.0735373214 | L8: =F8-L18 -> 0.07279520661 | M8: =G8-M18 -> 0.07553821963 | N8: =H8-N18 -> 0.07836056175
B10: Project | C10: ='Proposed NW Projects (Reg Yr)'!B36 -> Cable replacement planned | D10: ='Proposed NW Projects (Reg Yr)'!E36 -> 1251.615953 | E10: ='Proposed NW Projects (Reg Yr)'!F36 -> 1180.27719 | F10: ='Proposed NW Projects (Reg Yr)'!G36 -> 1180.27719 | G10: ='Proposed NW Projects (Reg Yr)'!H36 -> 1180.27719 | H10: ='Proposed NW Projects (Reg Yr)'!I36 -> 1180.27719
B11: Project | C11: ='Proposed NW Projects (Reg Yr)'!B37 -> Conductor Replacement - Planned | D11: ='Proposed NW Projects (Reg Yr)'!E37 -> 2779.569634 | E11: ='Proposed NW Projects (Reg Yr)'!F37 -> 2522.483777 | F11: ='Proposed NW Projects (Reg Yr)'!G37 -> 2522.483777 | G11: ='Proposed NW Projects (Reg Yr)'!H37 -> 2522.483777 | H11: ='Proposed NW Projects (Reg Yr)'!I37 -> 2522.483777
B12: Project | C12: ='Proposed NW Projects (Reg Yr)'!B38 -> Line Ancillary Equipment - Planned (incl LFIs, fences, gates, signs etc) | D12: ='Proposed NW Projects (Reg Yr)'!E38 -> 375.411379 | E12: ='Proposed NW Projects (Reg Yr)'!F38 -> 500.5485053 | F12: ='Proposed NW Projects (Reg Yr)'!G38 -> 500.5485053 | G12: ='Proposed NW Projects (Reg Yr)'!H38 -> 500.5485053 | H12: ='Proposed NW Projects (Reg Yr)'!I38 -> 500.5485053
B13: Project | C13: ='Proposed NW Projects (Reg Yr)'!B43 -> Recloser Replacement - Planned | D13: ='Proposed NW Projects (Reg Yr)'!E43 -> 1875.869018 | E13: ='Proposed NW Projects (Reg Yr)'!F43 -> 1885.073048 | F13: ='Proposed NW Projects (Reg Yr)'!G43 -> 1885.949622 | G13: ='Proposed NW Projects (Reg Yr)'!H43 -> 1886.826196 | H13: ='Proposed NW Projects (Reg Yr)'!I43 -> 1887.702771
B14: Project | C14: ='Proposed NW Projects (Reg Yr)'!B48 -> CBD ducts & manholes | D14: ='Proposed NW Projects (Reg Yr)'!E48 -> 2375.516373 | E14: ='Proposed NW Projects (Reg Yr)'!F48 -> 2612.191436 | F14: ='Proposed NW Projects (Reg Yr)'!G48 -> 2612.191436 | G14: ='Proposed NW Projects (Reg Yr)'!H48 -> 2612.191436 | H14: ='Proposed NW Projects (Reg Yr)'!I48 -> 2612.191436
B15: Project | C15: ='Proposed NW Projects (Reg Yr)'!B53 -> (Distribution) Cable Replacement - Unplanned | D15: ='Proposed NW Projects (Reg Yr)'!E53 -> 547.3329975 | E15: ='Proposed NW Projects (Reg Yr)'!F53 -> 561.0075567 | F15: ='Proposed NW Projects (Reg Yr)'!G53 -> 561.0075567 | G15: ='Proposed NW Projects (Reg Yr)'!H53 -> 561.0075567 | H15: ='Proposed NW Projects (Reg Yr)'!I53 -> 561.0075567
B16: Project | C16: ='Proposed NW Projects (Reg Yr)'!B57 -> Recloser Replacement - Unplanned | D16: ='Proposed NW Projects (Reg Yr)'!E57 -> 1059.011335 | E16: ='Proposed NW Projects (Reg Yr)'!F57 -> 981.7632242 | F16: ='Proposed NW Projects (Reg Yr)'!G57 -> 981.7632242 | G16: ='Proposed NW Projects (Reg Yr)'!H57 -> 981.7632242 | H16: ='Proposed NW Projects (Reg Yr)'!I57 -> 981.7632242
B17: Proposed | C17: =C8 -> Distribution Lines-Refurbish and Shorter Life | D17: =SUM(D10:D16) -> 10264.32669 | E17: =SUM(E10:E16) -> 10243.34474 | F17: =SUM(F10:F16) -> 10244.22131 | G17: =SUM(G10:G16) -> 10245.09789 | H17: =SUM(H10:H16) -> 10245.97446
B18: AER | C18: =C7 -> Distribution Lines | D18: =D17/D5 -> 0.09554919746 | E18: =E17/E5 -> 0.09029014745 | F18: =F17/F5 -> 0.08917579853 | G18: =G17/G5 -> 0.09222976885 | H18: =H17/H5 -> 0.09558409172 | J18: =D18 -> 0.09554919746 | K18: =E18 -> 0.09029014745 | L18: 0.08917579853 | M18: 0.09222976885 | N18: 0.09558409172
D22: Proposal | J22: AER
C23: ='Direct Capex Plus Ohds'!AF$2 -> Base Capex Including Overheads | D23: 2020/21 | E23: 2021/22 | F23: 2022/23 | G23: 2023/24 | H23: 2024/25 | J23: 2020/21 | K23: 2021/22 | L23: 2022/23 | M23: 2023/24 | N23: 2024/25
A25: C-2 | B25: Augex | C25: Augmentation/Capacity | D25: 35628.36272 | E25: 30290.02519 | F25: 24338.08564 | G25: 25276.02015 | H25: 27949.57179
C27: ='PTRM Inputs'!A$8 -> Substations | D27: 0.08795669824 | E27: 0.07061206772 | F27: 0.1195750045 | G27: 0.08340558349 | H27: 0.02509016779 | J27: =D27+J32 -> 0.1581990405 | K27: =E27+K32 -> 0.1532339748 | L27: =F27+L32 -> 0.2224023051 | M27: =G27+M32 -> 0.2103346627 | N27: =H27+N32 -> 0.1398776854
C28: ='PTRM Inputs'!A$23 -> Substations-Refurbish and Shorter Life | D28: 0.07024234223 | E28: 0.0826219071 | F28: 0.1028273006 | G28: 0.1269290792 | H28: 0.1147875176 | J28: =D28-J32 -> 0 | K28: =E28-K32 -> 0 | L28: =F28-L32 -> 0 | M28: =G28-M32 -> 0 | N28: =H28-N32 -> 0
B30: Project | C30: ='Proposed NW Projects (Reg Yr)'!B13 -> Voltage Regulation | D30: ='Proposed NW Projects (Reg Yr)'!E13 -> 2502.619647 | E30: ='Proposed NW Projects (Reg Yr)'!F13 -> 2502.619647 | F30: ='Proposed NW Projects (Reg Yr)'!G13 -> 2502.619647 | G30: ='Proposed NW Projects (Reg Yr)'!H13 -> 3208.261965 | H30: ='Proposed NW Projects (Reg Yr)'!I13 -> 3208.261965
B31: Proposed | C31: =C28 -> Substations-Refurbish and Shorter Life | D31: =SUM(D30) -> 2502.619647 | E31: =SUM(E30) -> 2502.619647 | F31: 2502.619647 | G31: 3208.261965 | H31: 3208.261965
B32: AER | C32: =C27 -> Substations | D32: =D31/D25 -> 0.07024234223 | E32: =E31/E25 -> 0.0826219071 | F32: =F31/F25 -> 0.1028273006 | G32: =G31/G25 -> 0.1269290792 | H32: =H31/H25 -> 0.1147875176 | J32: =D32 -> 0.07024234223 | K32: =E32 -> 0.0826219071 | L32: =F32 -> 0.1028273006 | M32: =G32 -> 0.1269290792 | N32: =H32 -> 0.1147875176
D36: Proposal | J36: AER
C37: ='Direct Capex Plus Ohds'!AF$2 -> Base Capex Including Overheads | D37: 2020/21 | E37: 2021/22 | F37: 2022/23 | G37: 2023/24 | H37: 2024/25 | J37: 2020/21 | K37: 2021/22 | L37: 2022/23 | M37: 2023/24 | N37: 2024/25
A39: C-7 | B39: Augex | C39: Safety Augex | D39: 9255.748111 | E39: 9264.513854 | F39: 7958.418136 | G39: 7958.418136 | H39: 7955.350126
C41: ='PTRM Inputs'!A$8 -> Substations | D41: 0.7058433564 | E41: 0.7061216766 | F41: 0.6578918383 | G41: 0.6578918383 | H41: 0.657759903 | J41: =D41+J46 -> 0.9715882186 | K41: =E41+K46 -> 0.9716151008 | L41: =F41+L46 -> 0.9669567133 | M41: =G41+M46 -> 0.9669567133 | N41: =H41+N46 -> 0.96694397
C42: ='PTRM Inputs'!A$23 -> Substations-Refurbish and Shorter Life | D42: 0.2941566436 | E42: 0.2938783234 | F42: 0.3421081617 | G42: 0.3421081617 | H42: 0.342240097 | J42: =D42-J46 -> 0.02841178142 | K42: =E42-K46 -> 0.02838489923 | L42: =F42-L46 -> 0.03304328671 | M42: =G42-M46 -> 0.03304328671 | N42: =H42-N46 -> 0.03305602997
B44: Project | C44: ='Proposed NW Projects (Reg Yr)'!B117 -> Protection Compliance (Primary&Backup) | D44: ='Proposed NW Projects (Reg Yr)'!E117 -> 2459.667506 | E44: ='Proposed NW Projects (Reg Yr)'!F117 -> 2459.667506 | F44: ='Proposed NW Projects (Reg Yr)'!G117 -> 2459.667506 | G44: ='Proposed NW Projects (Reg Yr)'!H117 -> 2459.667506 | H44: ='Proposed NW Projects (Reg Yr)'!I117 -> 2459.667506
B45: Proposed | C45: =C42 -> Substations-Refurbish and Shorter Life | D45: =SUM(D44) -> 2459.667506 | E45: =SUM(E44) -> 2459.667506 | F45: 2459.667506 | G45: 2459.667506 | H45: 2459.667506
B46: AER | C46: =C41 -> Substations | D46: =D45/D39 -> 0.2657448622 | E46: =E45/E39 -> 0.2654934242 | F46: 0.309064875 | G46: 0.309064875 | H46: 0.309184067 | J46: =D46 -> 0.2657448622 | K46: =E46 -> 0.2654934242 | L46: =F46 -> 0.309064875 | M46: =G46 -> 0.309064875 | N46: =H46 -> 0.309184067
D50: Proposal | J50: AER
C51: ='Direct Capex Plus Ohds'!AF$2 -> Base Capex Including Overheads | D51: 2020/21 | E51: 2021/22 | F51: 2022/23 | G51: 2023/24 | H51: 2024/25 | J51: 2020/21 | K51: 2021/22 | L51: 2022/23 | M51: 2023/24 | N51: 2024/25
A53: C-8 | B53: Augex | C53: Safety Augex | D53: 13237.07343 | E53: 12790.51842 | F53: 12304.89625 | G53: 12674.37232 | H53: 12731.34965
C55: ='PTRM Inputs'!A$7 -> Distribution Lines | D55: 0.2824921071 | E55: 0.2812955332 | F55: 0.2923970772 | G55: 0.2838732844 | H55: 0.2826028502 | J55: =D55+J61 -> 0.5578694741 | K55: =E55+K61 -> 0.5843627565 | L55: =F55+L61 -> 0.6074250808 | M55: =G55+M61 -> 0.5897177714 | N55: =H55+N61 -> 0.5870785741
C56: ='PTRM Inputs'!A$22 -> Distribution Lines-Refurbish and Shorter Life | D56: 0.2813503555 | E56: 0.3113092542 | F56: 0.3235953127 | G56: 0.3141620467 | H56: 0.3127560596 | J56: =D56-J61 -> 0.005972988444 | K56: =E56-K61 -> 0.008242030962 | L56: =F56-L61 -> 0.008567309034 | M56: =G56-M61 -> 0.00831755973 | N56: =H56-N61 -> 0.008280335684
B58: Project | C58: ='Proposed NW Projects (Reg Yr)'!B107 -> Line Clearance Rectification - Distribution | D58: ='Proposed NW Projects (Reg Yr)'!E107 -> 3275.100756 | E58: ='Proposed NW Projects (Reg Yr)'!F107 -> 3506.297229 | F58: ='Proposed NW Projects (Reg Yr)'!G107 -> 3506.297229 | G58: ='Proposed NW Projects (Reg Yr)'!H107 -> 3506.297229 | H58: ='Proposed NW Projects (Reg Yr)'!I107 -> 3506.297229
B59: Project | C59: ='Proposed NW Projects (Reg Yr)'!B110 -> CBD Maintenance Projects (CBD Safety) | D59: ='Proposed NW Projects (Reg Yr)'!E110 -> 370.0896725 | E59: ='Proposed NW Projects (Reg Yr)'!F110 -> 370.0896725 | F59: ='Proposed NW Projects (Reg Yr)'!G110 -> 370.0896725 | G59: ='Proposed NW Projects (Reg Yr)'!H110 -> 370.0896725 | H59: ='Proposed NW Projects (Reg Yr)'!I110 -> 370.0896725
B60: Proposed | C60: =C56 -> Distribution Lines-Refurbish and Shorter Life | D60: =SUM(D58:D59) -> 3645.190428 | E60: =SUM(E58:E59) -> 3876.386902 | F60: 3876.386902 | G60: 3876.386902 | H60: 3876.386902
B61: AER | C61: =C55 -> Distribution Lines | D61: =D60/D53 -> 0.275377367 | E61: =E60/E53 -> 0.3030672233 | F61: 0.3150280036 | G61: 0.305844487 | H61: 0.3044757239 | J61: =D61 -> 0.275377367 | K61: =E61 -> 0.3030672233 | L61: =F61 -> 0.3150280036 | M61: =G61 -> 0.305844487 | N61: =H61 -> 0.3044757239
D65: Proposal | J65: AER
C66: ='Direct Capex Plus Ohds'!AF$2 -> Base Capex Including Overheads | D66: 2020/21 | E66: 2021/22 | F66: 2022/23 | G66: 2023/24 | H66: 2024/25 | J66: 2020/21 | K66: 2021/22 | L66: 2022/23 | M66: 2023/24 | N66: 2024/25
A68: C-18 | B68: Augex | C68: Bushfire | D68: 2134.458438 | E68: 2101.586902 | F68: 2121.309824 | G68: 2095.012594 | H68: 2081.86398
C70: ='PTRM Inputs'!A$7 -> Distribution Lines | D70: 0 | E70: 0 | F70: 0 | G70: 0 | H70: 0 | J70: =D70+J75 -> 1 | K70: =E70+K75 -> 1 | L70: =F70+L75 -> 1 | M70: =G70+M75 -> 1 | N70: =H70+N75 -> 1
C71: ='PTRM Inputs'!A$22 -> Distribution Lines-Refurbish and Shorter Life | D71: 1 | E71: 1 | F71: 1 | G71: 1 | H71: 1 | J71: =D71-J75 -> 0 | K71: =E71-K75 -> 0 | L71: =F71-L75 -> 0 | M71: =G71-M75 -> 0 | N71: =H71-N75 -> 0
B73: Project | C73: ='Proposed NW Projects (Reg Yr)'!B125 -> Bushfire Risk Reduction | D73: ='Proposed NW Projects (Reg Yr)'!E125 -> 2134.458438 | E73: ='Proposed NW Projects (Reg Yr)'!F125 -> 2101.586902 | F73: ='Proposed NW Projects (Reg Yr)'!G125 -> 2121.309824 | G73: ='Proposed NW Projects (Reg Yr)'!H125 -> 2095.012594 | H73: ='Proposed NW Projects (Reg Yr)'!I125 -> 2081.86398
B74: Proposed | C74: =C71 -> Distribution Lines-Refurbish and Shorter Life | D74: =SUM(D73:D73) -> 2134.458438 | E74: =SUM(E73:E73) -> 2101.586902 | F74: =SUM(F73:F73) -> 2121.309824 | G74: =SUM(G73:G73) -> 2095.012594 | H74: =SUM(H73:H73) -> 2081.86398
B75: AER | C75: =C70 -> Distribution Lines | D75: =D74/D68 -> 1 | E75: =E74/E68 -> 1 | F75: =F74/F68 -> 1 | G75: =G74/G68 -> 1 | H75: =H74/H68 -> 1 | J75: =D75 -> 1 | K75: =E75 -> 1 | L75: =F75 -> 1 | M75: =G75 -> 1 | N75: =H75 -> 1

Sheet General Inputs
A2: CPI
A3: CPI Index June 2017 | B3: Actual | C3: 110.7 | I3: =A7 -> CPI Index Dec 2018
I4: Actual | J4: 114.1 | K4: AER
A5: CPI Index Dec 2017 | B5: Actual | C5: 112.1 | I5: Forecast | J5: =C5*1.02 -> 114.342 | K5: SAPN Proposal
A7: CPI Index Dec 2018 | B7: Actual | C7: 114.1 | D7: AER | E7: =C7/C5-1 -> 0.0178412132 | I7: CPI Forecast 2019-20
I8: Actual | J8: 0.02 | K8: AER
A9: CPI Index Dec 2019 | B9: Forecast | C9: =C7*(1+E9) -> 116.382 | D9: AER | E9: 0.02 | I9: Forecast | J9: 0.0225 | K9: SAPN Proposal
A11: Escalation Factor from Dec 2017 to June 2020 | C11: =C9/C3 -> 1.051327913
A14: Overheads
B15: AER | H15: Proposal
A16: Fixed Overheads ($000 2017-18) | B16: 2020/21 | C16: 2021/22 | D16: 2022/23 | E16: 2023/24 | F16: 2024/25 | H16: 2020/21 | I16: 2021/22 | J16: 2022/23 | K16: 2023/24 | L16: 2024/25
A17: Network Capex | B17: =B19-B18 -> 6751.250655 | C17: =C19-C18 -> 6813.06529 | D17: =D19-D18 -> 6805.63762 | E17: =E19-E18 -> 6746.857221 | F17: =F19-F18 -> 6707.587408 | H17: =H19-H18 -> 6751.250655 | I17: =I19-I18 -> 6813.06529 | J17: 6805.63762 | K17: 6746.857221 | L17: 6707.587408
A18: Non-network - Operational Information Technology | B18: =IF('Non Network Base Capex'!D55>0,B19*H18/H19,0) -> 117.7062884 | C18: =IF('Non Network Base Capex'!E55>0,C19*I18/I19,0) -> 55.89165298 | D18: =IF('Non Network Base Capex'!F55>0,D19*J18/J19,0) -> 63.31932343 | E18: =IF('Non Network Base Capex'!G55>0,E19*K18/K19,0) -> 122.0997227 | F18: =IF('Non Network Base Capex'!H55>0,F19*L18/L19,0) -> 161.3695351 | H18: 117.7062884 | I18: 55.89165298 | J18: 63.31932343 | K18: 122.0997227 | L18: 161.3695351
A19: Total Fixed Overheads | B19: 6868.956943 | C19: 6868.956943 | D19: 6868.956943 | E19: 6868.956943 | F19: 6868.956943 | H19: 6868.956943 | I19: 6868.956943 | J19: 6868.956943 | K19: 6868.956943 | L19: 6868.956943
A21: Total Fixed Overheads ($000 2019-20) | B21: =B19*$C$11 -> 7221.52617 | C21: =C19*$C$11 -> 7221.52617 | D21: 7221.52617 | E21: 7221.52617 | F21: 7221.52617 | H21: 7254.58 | I21: 7254.58 | J21: 7254.58 | K21: 7254.58 | L21: 7254.58
B24: AER | H24: Proposal
A25: Variable Overheads Rate | B25: 2020/21 | C25: 2021/22 | D25: 2022/23 | E25: 2023/24 | F25: 2024/25 | H25: 2020/21 | I25: 2021/22 | J25: 2022/23 | K25: 2023/24 | L25: 2024/25
A26: Network Capex | B26: 0.02093543062 | C26: 0.02128910141 | D26: 0.02029011569 | E26: 0.02005757647 | F26: 0.01967787447 | H26: 0.02093543062 | I26: 0.02128910141 | J26: 0.02029011569 | K26: 0.02005757647 | L26: 0.01967787447
A27: Non-network - Operational Information Technology | B27: 0.01812205258 | C27: 0.01842819583 | D27: 0.01756345738 | E27: 0.01736216761 | F27: 0.01703349132 | H27: 0.01812205258 | I27: 0.01842819583 | J27: 0.01756345738 | K27: 0.01736216761 | L27: 0.01703349132
A31: Real Price Escalators
A32: Annual Escalators | D32: AER | L32: Cumulative Escalators
A33: Real Price Escalation | B33: Cost allocators | D33: 2018/19 | E33: 2019/20 | F33: 2020/21 | G33: 2021/22 | H33: 2022/23 | I33: 2023/24 | J33: 2024/25 | L33: =D33 -> 2018/19 | M33: 2019/20 | N33: 2020/21 | O33: 2021/22 | P33: 2022/23 | Q33: 2023/24 | R33: 2024/25
A34: Labour | B34: ='Misc Data'!D4 -> Labour | D34: 0.005912191601 | E34: 0.006065312974 | F34: 0.004111026271 | G34: 0.003735613692 | H34: 0.003420324504 | I34: 0.00452776989 | J34: 0.004410518495 | L34: =D34 -> 0.005912191601 | M34: =(1+L34)*(1+E34)-1 -> 0.01201336387 | N34: 0.01617377739 | O34: 0.01996981007 | P34: 0.0234584378 | Q34: 0.0280924221 | R34: 0.03262684274
A35: Materials | B35: ='Misc Data'!E4 -> Materials | D35: 0 | E35: 0 | F35: 0 | G35: 0 | H35: 0 | I35: 0 | J35: 0 | L35: 0 | M35: 0 | N35: 0 | O35: 0 | P35: 0 | Q35: 0 | R35: 0
A36: Services-construction | B36: ='Misc Data'!F4 -> Contracts | L36: 0 | M36: 0 | N36: 0 | O36: 0 | P36: 0 | Q36: 0 | R36: 0
A37: Services-general | B37: ='Misc Data'!G4 -> Services Other | D37: 0 | E37: 0 | F37: 0 | G37: 0 | H37: 0 | I37: 0 | J37: 0 | L37: 0 | M37: 0 | N37: 0 | O37: 0 | P37: 0 | Q37: 0 | R37: 0
A38: Materials - Land | B38: ='Misc Data'!I4 -> Other | D38: 0 | E38: 0 | F38: 0 | G38: 0 | H38: 0 | I38: 0 | J38: 0 | L38: 0 | M38: 0 | N38: 0 | O38: 0 | P38: 0 | Q38: 0 | R38: 0
A39: =A34 -> Labour | B39: ='Misc Data'!H4 -> Business Overheads | D39: =D34 -> 0.005912191601 | E39: 0.006065312974 | F39: 0.004111026271 | G39: 0.003735613692 | H39: 0.003420324504 | I39: 0.00452776989 | J39: 0.004410518495 | L39: 0.005912191601 | M39: 0.01201336387 | N39: 0.01617377739 | O39: 0.01996981007 | P39: 0.0234584378 | Q39: 0.0280924221 | R39: 0.03262684274
A42: Annual Escalators | D42: Proposal
A43: Real Price Escalation | B43: Cost allocators | D43: 2018/19 | E43: 2019/20 | F43: 2020/21 | G43: 2021/22 | H43: 2022/23 | I43: 2023/24 | J43: 2024/25
A44: Labour | B44: =B34 -> Labour | D44: 0.007393260348 | E44: 0.007659568665 | F44: 0.007804958506 | G44: 0.01067120366 | H44: 0.01211918557 | I44: 0.01091149812 | J44: 0.009634874084
A45: Materials | B45: Materials | D45: 0 | E45: 0 | F45: 0 | G45: 0 | H45: 0 | I45: 0 | J45: 0
A46: Services-construction | B46: Contracts | D46: 0.001472951457 | E46: 0.002063690653 | F46: 0.00690974797 | G46: 0.01380951517 | H46: 0.01653398857 | I46: 0.01289869587 | J46: 0.008871114738
A47: Services-general | B47: Services Other | D47: 0 | E47: 0 | F47: 0 | G47: 0 | H47: 0 | I47: 0 | J47: 0
A48: Materials - Land | B48: Other | D48: 0 | E48: 0 | F48: 0 | G48: 0 | H48: 0 | I48: 0 | J48: 0
A49: =A44 -> Labour | B49: Business Overheads | D49: =D44 -> 0.007393260348 | E49: 0.007659568665 | F49: 0.007804958506 | G49: 0.01067120366 | H49: 0.01211918557 | I49: 0.01091149812 | J49: 0.009634874084
B53: AER | I53: Proposal
A54: Asset Disposals ($m 2019-20) | B54: 2020/21 | C54: 2021/22 | D54: 2022/23 | E54: 2023/24 | F54: 2024/25 | G54: TOTAL | I54: 2020/21 | J54: 2021/22 | K54: 2022/23 | L54: 2023/24 | M54: 2024/25 | N54: TOTAL
A55: Heavy Vehicles - 15 year | B55: 0.441755102 | C55: 0.8437959184 | D55: 0.6317142857 | E55: 0.6513877551 | F55: 0.4816326531 | G55: =SUM(B55:F55) -> 3.050285714 | I55: 0.334 | J55: 0.754 | K55: 0.356 | L55: 0.282 | M55: 0.27 | N55: =SUM(I55:M55) -> 1.996
A56: Heavy Vehicles - 10 year | B56: 0.132244898 | C56: 0.1102040816 | D56: 0.1542857143 | E56: 0.3306122449 | F56: 0.1983673469 | G56: 0.9257142857 | I56: 0.44 | J56: 0.36 | K56: 0.48 | L56: 1.12 | M56: 0.64 | N56: 3.04
A57: Light Vehicles | B57: 1.8375 | C57: 2.1816 | D57: 3.5395 | E57: 2.7204 | F57: 1.4063 | G57: 11.6853 | I57: 2.8275 | J57: 3.528 | K57: 3.9025 | L57: 3.587 | M57: 2.5175 | N57: 16.3625
A58: Total | B58: =SUM(B55:B57) -> 2.4115 | C58: =SUM(C55:C57) -> 3.1356 | D58: 4.3255 | E58: 3.7024 | F58: 2.0863 | G58: 15.6613 | I58: =SUM(I55:I57) -> 3.6015 | J58: =SUM(J55:J57) -> 4.642 | K58: =SUM(K55:K57) -> 4.7385 | L58: =SUM(L55:L57) -> 4.989 | M58: =SUM(M55:M57) -> 3.4275 | N58: =SUM(N55:N57) -> 21.3985

Sheet Network Projects Direct Costs
A1: Network Projects | C1: Direct Costs | D1: $2017-18 ($'000)
C3: AER RIN ref | D3: Doc/Plan ref | E3: 2020/21 | F3: 2021/22 | G3: 2022/23 | H3: 2023/24 | I3: 2024/25 | J3: Total
A4: Category / Description | C4: (Repex,Augex etc) | D4: (eg AP) | E4: Jul-Jun | F4: =E4 -> Jul-Jun | G4: Jul-Jun | H4: Jul-Jun | I4: Jul-Jun | K4: SEM Reference
A5: Capacity Upgrade
B6: Connection Point Capacity (ETC/NER Code) | C6: Augex | D6: AP.1.1.01 | E6: 4125.386902 | F6: 5009.696329 | G6: 1472.458621 | H6: 0 | I6: 0 | J6: =SUM(E6:I6) -> 10607.54185 | K6: C-2
B7: LV & Distribution Transformers (QoS BAU) | C7: Augex | D7: AP.1.1.01 | E7: 7174.585916 | F7: 7174.585916 | G7: 7174.585916 | H7: 7174.585916 | I7: 7174.585916 | J7: 35872.92958 | K7: C-2
B8: Distribution Feeders (11 & 7.6kV) | C8: Augex | D8: AP.1.1.01 | E8: 2294.198985 | F8: 275.3038782 | G8: 70.91160499 | H8: 521.4088602 | I8: 755.0000296 | J8: 3916.823358 | K8: C-2
B9: Strategic Network Capacity (Other) | C9: Augex | D9: AP.1.1.01 | E9: 3420.442123 | F9: 3420.442123 | G9: 3420.442123 | H9: 3420.442123 | I9: 3420.442123 | J9: 17102.21061 | K9: C-2
B10: Substation Capacity | C10: Augex | D10: AP.1.1.01 | E10: 2982.45868 | F10: 2035.58019 | G10: 2769.723865 | H10: 2006.381294 | I10: 667.4033411 | J10: 10461.54737 | K10: C-2
B11: Subtransmission Network | C11: Augex | D11: AP.1.1.01 | E11: 0 | F11: 475.5248805 | G11: 951.049761 | H11: 475.5248805 | I11: 0 | J11: 1902.099522 | K11: C-2
B12: Distribution Line - SWER Replacements | C12: Augex | D12: AP.1.1.01 | E12: 583.9779234 | F12: 583.9779234 | G12: 583.9779234 | H12: 583.9779234 | I12: 583.9779234 | J12: 2919.889617 | K12: C-2
B13: Voltage Regulation | C13: Augex | D13: AP.1.1.01 | E13: 1318.44242 | F13: 1318.44242 | G13: 1318.44242 | H13: 1318.44242 | I13: 1318.44242 | J13: 6592.212102 | K13: C-2
B14: Land | C14: Augex | D14: AP.1.1.01 | E14: 0 | F14: 0 | G14: 0 | H14: 1293.093973 | I14: 1293.093973 | J14: =SUM(E14:I14) -> 2586.187947 | K14: C-2
B15: LV Two Way Network (QoS) | C15: Augex | D15: AP.1.1.01 | J15: 0 | K15: C-2
B17: Capacity Augmentation (Total) | D17: Total | E17: =SUM(E6:E16) -> 21899.49295 | F17: =SUM(F6:F16) -> 20293.55366 | G17: =SUM(G6:G16) -> 17761.59224 | H17: =SUM(H6:H16) -> 16793.85739 | I17: =SUM(I6:I16) -> 15212.94573 | J17: =SUM(E17:I17) -> 91961.44197 | K17: =K15 -> C-2
A18: Customer Connect (gross)
B19: Customer Connect < $30k | C19: Connections | D19: AP.7.1.01 | E19: 13422.6036 | F19: 13776.82699 | G19: 13746.10043 | H19: 13356.15473 | I19: 16947.59309 | J19: =E19+F19+G19+H19+I19 -> 71249.27884 | K19: C-3
B20: Customer Connect > $30k<$100k | C20: Connections | D20: AP.7.1.01 | E20: 20360.43478 | F20: 21124.91409 | G20: 21305.19686 | H20: 20802.32359 | I20: 19766.96865 | J20: =E20+F20+G20+H20+I20 -> 103359.838 | K20: C-3
B21: Customer Connect > $100k | C21: Connections | D21: AP.7.1.01 | E21: 29598.94591 | F21: 29344.3423 | G21: 29647.87556 | H21: 29839.37695 | I21: 24220.98514 | J21: =E21+F21+G21+H21+I21 -> 142651.5259 | K21: C-3
B22: Gifting | C22: Connections | D22: NA | E22: 24738.08395 | F22: 24738.08395 | G22: 24738.08395 | H22: 24738.08395 | I22: 24738.08395 | J22: =E22+F22+G22+H22+I22 -> 123690.4198 | K22: C-3
B23: URDs | C23: Connections | D23: AP.7.1.01 | E23: 4814.945434 | F23: 4938.840445 | G23: 4834.666331 | H23: 4630.656411 | I23: 4203.733017 | J23: =E23+F23+G23+H23+I23 -> 23422.84164 | K23: C-3
B25: Gross Customer Connect (total, incl gifting) | D25: Total | E25: =SUM(E19:E24) -> 92935.01368 | F25: 93923.00778 | G25: 94271.92313 | H25: 93366.59564 | I25: 89877.36385 | J25: =SUM(J19:J24) -> 464373.9041 | K25: =K23 -> C-3
A26: Reliability & Resilience
B27: Existing Network Protection Mgt - Planned | C27: Augex | D27: Historical | E27: 1279.189737 | F27: 1279.189737 | G27: 1279.189737 | H27: 1279.189737 | I27: 1279.189737 | J27: =SUM(E27:I27) -> 6395.948685 | K27: C-5
B28: Maintain Underlying Reliability Performance | C28: Augex | D28: AP.2.1.01 | E28: 4317.265363 | F28: 4317.265363 | G28: 4317.265363 | H28: 4317.265363 | I28: 4317.265363 | J28: =SUM(E28:I28) -> 21586.32681 | K28: C-5
B29: Air Conditioning Relay Rooms | C29: Augex | D29: AP.3.2.14 | E29: 159.8987171 | F29: 159.8987171 | G29: 159.8987171 | H29: 159.8987171 | I29: 159.8987171 | J29: =SUM(E29:I29) -> 799.4935857 | K29: C-5
B30: Network Hardening | C30: Augex | D30: AP.2.1.05 | J30: =SUM(E30:I30) -> 0 | K30: C-5
B31: Low Reliability Feeders | C31: Augex | D31: AP.2.1.06 | J31: =SUM(E31:I31) -> 0 | K31: C-5
B33: Reliability (total) | D33: total | E33: =SUM(E27:E32) -> 5756.353817 | F33: 5756.353817 | G33: 5756.353817 | H33: 5756.353817 | I33: 5756.353817 | J33: 28781.76908 | K33: =K31 -> C-5
A34: Asset Replace/Refurbish
B35: Line Repex/Refurb - Planned
B36: Cable replacement planned | C36: Repex | D36: AP.3.1.09 | E36: 1191.189186 | F36: 1123.294587 | G36: 1123.294587 | H36: 1123.294587 | I36: 1123.294587 | J36: =SUM(E36:I36) -> 5684.367536 | K36: C-1
B37: Conductor Replacement - Planned | C37: Repex | D37: AP.3.1.10 | E37: 2645.374792 | F37: 2400.700783 | G37: 2400.700783 | H37: 2400.700783 | I37: 2400.700783 | J37: 12248.17792 | K37: C-1
B38: Line Ancillary Equipment - Planned (incl LFIs, fences, gates, signs etc) | C38: Repex | D38: AP.3.1.20 | E38: 357.286893 | F38: 476.382524 | G38: 476.382524 | H38: 476.382524 | I38: 476.382524 | J38: 2262.816989 | K38: C-1
B39: Line Regulation - Planned (incl regulators, capacitors) | C39: Repex | D39: AP.3.1.19 | E39: 723.5486471 | F39: 964.7315295 | G39: 964.7315295 | H39: 973.0740713 | I39: 981.416613 | J39: 4607.50239 | K39: C-1
B40: Overhead Line Components - Planned (incl insulators, crossarms, taps, pole earths) | C40: Repex | D40: AP.3.1.06 | E40: 10997.01856 | F40: 11228.34506 | G40: 11228.34506 | H40: 11228.34506 | I40: 11228.34506 | J40: 55910.3988 | K40: C-1
B41: Pole Replacement Maint. Tasks - Planned | C41: Repex | D41: AP.3.1.05 | E41: 12111.15413 | F41: 13040.76418 | G41: 13040.76418 | H41: 13040.76418 | I41: 13040.76418 | J41: 64274.21084 | K41: C-1
B42: Recloser Refurbishment - Planned | C42: Repex | D42: AP.3.1.13 | E42: 627.0671516 | F42: 630.1121794 | G42: 630.1121794 | H42: 630.1121794 | I42: 630.1121794 | J42: 3147.515869 | K42: C-1
B43: Recloser Replacement - Planned | C43: Repex | D43: AP.3.1.13 | E43: 1785.303937 | F43: 1794.063606 | G43: 1794.89786 | H43: 1795.732115 | I43: 1796.566369 | J43: 8966.563887 | K43: C-1
B44: Services Maintenance Tasks - Planned | C44: Repex | D44: AP.3.1.08 | E44: 2827.431551 | F44: 2977.367267 | G44: 2977.367267 | H44: 2977.367267 | I44: 2977.367267 | J44: 14736.90062 | K44: C-1
B45: Switchgear - Overhead - Planned | C45: Repex | D45: AP.3.1.07 | E45: 1678.974005 | F45: 1700.226841 | G45: 1700.226841 | H45: 1700.226841 | I45: 1700.226841 | J45: 8479.881367 | K45: C-1
B46: Transformers - Planned | C46: Repex | D46: AP.3.1.01 | E46: 2397.490101 | F46: 2668.29249 | G46: 2668.29249 | H46: 2668.29249 | I46: 2668.29249 | J46: 13070.66006 | K46: C-1
B47: Poles - Planned plating | C47: Repex | D47: AP.3.1.05 | E47: 4310.38546 | F47: 4581.890117 | G47: 4581.890117 | H47: 4581.890117 | I47: 4581.890117 | J47: 22637.94593 | K47: C-1
B48: CBD ducts & manholes | C48: Repex | D48: AP.2.1.07 | E48: 260.8288179 | F48: 486.0774455 | G48: 486.0774455 | H48: 486.0774455 | I48: 486.0774455 | J48: =SUM(E48:I48) -> 2205.1386 | K48: C-1
B49: Cables - CBD 11kV PILC cable replacements | C49: Repex | D49: AP.2.1.07 | E49: 652.3093085 | F49: 869.7457446 | G49: 869.7457446 | H49: 869.7457446 | I49: 869.7457446 | J49: =SUM(E49:I49) -> 4131.292287 | K49: C-1
B50: Services - Aluminium neutral screen service line replacements | C50: Repex | D50: AP.3.1.08 | E50: 526.5431287 | F50: 702.057505 | G50: 702.057505 | H50: 702.057505 | I50: 702.057505 | J50: 3334.773149 | K50: C-1
B52: Line Repex/Refurb - Unplanned
B53: (Distribution) Cable Replacement - Unplanned | C53: Repex | D53: AP.3.1.09 | E53: 520.9083077 | F53: 533.9226729 | G53: 533.9226729 | H53: 533.9226729 | I53: 533.9226729 | J53: =SUM(E53:I53) -> 2656.598999 | K53: C-1
B54: Line Regulation - Unplanned (incl regulators, capacitors) | C54: Repex | D54: AP.3.1.19 | E54: 112.6243138 | F54: 112.6243138 | G54: 131.3950328 | H54: 150.1657517 | I54: 150.1657517 | J54: 656.9751639 | K54: C-1
B55: Overhead Line Components - Unplanned (incl insulators, X-arms, pole earths) | C55: Repex | D55: AP.3.1.06 | E55: 5302.892465 | F55: 5485.440352 | G55: 5485.440352 | H55: 5485.440352 | I55: 5485.440352 | J55: 27244.65387 | K55: C-1
B56: Poles - Unplanned | C56: Repex | D56: AP.3.1.05 | E56: 1528.677138 | F56: 1533.276969 | G56: 1533.276969 | H56: 1533.276969 | I56: 1533.276969 | J56: 7661.785012 | K56: C-1
B57: Recloser Replacement - Unplanned | C57: Repex | D57: AP.3.1.13 | E57: 1007.883327 | F57: 934.3646775 | G57: 934.3646775 | H57: 934.3646775 | I57: 934.3646775 | J57: 4745.342037 | K57: C-1
B58: Services Replacement - Unplanned | C58: Repex | D58: AP.3.1.08 | E58: 3501.781905 | F58: 3770.828877 | G58: 3770.828877 | H58: 3770.828877 | I58: 3770.828877 | J58: 18585.09741 | K58: C-1
B59: Switchgear - Ground Level - Unplanned | C59: Repex | D59: AP.3.1.03 | E59: 361.2320584 | F59: 333.7016705 | G59: 333.7016705 | H59: 333.7016705 | I59: 333.7016705 | J59: 1696.03874 | K59: C-1
B60: Switchgear - Overhead - Unplanned | C60: Repex | D60: AP.3.1.07 | E60: 1756.901069 | F60: 1983.597981 | G60: 1983.597981 | H60: 1983.597981 | I60: 1983.597981 | J60: 9691.292991 | K60: C-1
B61: Transformers - Unplanned | C61: Repex | D61: AP.3.1.01 | E61: 4405.904869 | F61: 4421.547135 | G61: 4421.547135 | H61: 4421.547135 | I61: 4421.547135 | J61: 22092.09341 | K61: C-1
B63: Repex/Refurb - Lines (subtotal) | D63: subtotal | E63: =SUM(E36:E62) -> 61590.71112 | F63: 64753.35651 | G63: 64772.96148 | H63: 64800.90899 | I63: 64810.08579 | J63: 320728.0239 | K63: =K61 -> C-1
B64: Substations Repex/Refurb
B65: Auxillary DC Supplies excl AC - Battery Banks & Chargers | C65: Repex | D65: AP.3.2.08 | E65: 539.0116233 | F65: 539.0116233 | G65: 539.0116233 | H65: 539.0116233 | I65: 303.7102329 | J65: =SUM(E65:I65) -> 2459.756726 | K65: C-1
B66: Circuit Breakers Planned Replacement | C66: Repex | D66: AP.3.2.05 | E66: 6785.404158 | F66: 6664.6971 | G66: 7207.505467 | H66: 7112.569847 | I66: 6525.085894 | J66: 34295.26247 | K66: C-1
B67: Circuit Breakers Planned Refurb | C67: Repex | D67: AP.3.2.02 | E67: 753.9337953 | F67: 740.5219 | G67: 800.8339408 | H67: 790.2855386 | I67: 725.0095438 | J67: 3810.584719 | K67: C-1
B68: Mobile Substations | C68: Repex | D68: AP.3.2.13 | E68: 250.2762529 | F68: 250.2762529 | G68: 250.2762529 | H68: 250.2762529 | I68: 250.2762529 | J68: 1251.381264 | K68: C-1
B69: Substation Insurance Spares & Asset Mgt | C69: Repex | D69: Historical | E69: 1334.806682 | F69: 1334.806682 | G69: 1334.806682 | H69: 1334.806682 | I69: 1334.806682 | J69: 6674.033411 | K69: C-1
B70: Substation Infrastructure - Civil (incl buildings, structures) | C70: Repex | D70: AP3.2.16 | E70: 1251.381264 | F70: 1251.381264 | G70: 1251.381264 | H70: 1251.381264 | I70: 1251.381264 | J70: 6256.906322 | K70: C-1
B71: Substation Transformer Repl. | C71: Repex | D71: AP.3.2.01 | E71: 2465.646746 | F71: 2430.066527 | G71: 2830.673436 | H71: 2323.325871 | I71: 1851.558524 | J71: 11901.27111 | K71: C-1
B72: TF Refurb (18665 & 18977) | C72: Repex | D72: AP.3.2.01 | E72: 1313.950328 | F72: 1042.81772 | G72: 792.5414675 | H72: 792.5414675 | I72: 792.5414675 | J72: 4734.392451 | K72: C-1
B73: Surge Arrester | C73: Repex | D73: AP.3.2.03 | E73: 260.966321 | F73: 286.4264499 | G73: 286.4264499 | H73: 280.0614177 | I73: 178.2209022 | J73: 1292.101541 | K73: C-1
B74: AC Panels + auxilary supply | C74: Repex | D74: AP 3.2.22 | E74: 600.663007 | F74: 600.663007 | G74: 600.663007 | H74: 600.663007 | I74: 498.4668704 | J74: 2901.118898 | K74: C-1
B75: Protection Asset Replacement | C75: Repex | D75: AP.3.2.14 | E75: 1854.301346 | F75: 1887.41387 | G75: 1754.963773 | H75: 1622.513677 | I75: 1655.626201 | J75: 8774.818867 | K75: C-1
B76: Unplanned CB Replacement | C76: Repex | D76: Historical | E76: 289.7708134 | F76: 289.7708134 | G76: 289.7708134 | H76: 289.7708134 | I76: 289.7708134 | J76: 1448.854067 | K76: C-1
B77: Unplanned Substation Asset Repl - PROTECTION | C77: Repex | D77: Historical | E77: 529.8003844 | F77: 529.8003844 | G77: 529.8003844 | H77: 529.8003844 | I77: 529.8003844 | J77: 2649.001922 | K77: C-1
B78: Other (sub cables) | C78: Repex | D78: AP 3.02.09 | E78: 595.9716204 | F78: 211.7975722 | G78: 220.5572411 | H78: 220.5572411 | I78: 185.5185657 | J78: 1434.402241 | K78: C-1
B79: Northfield 66kV GIS Switchboard replacement (1/3rd) | C79: Repex | D79: AP 3.02.06 | J79: 0 | K79: C-1
B81: Repex/Refurb - Substations (subtotal) | D81: subtotal | E81: =SUM(E65:E80) -> 18825.88434 | F81: 18059.45117 | G81: 18689.2118 | H81: 17937.56509 | I81: 16371.7736 | J81: 89883.886 | K81: =K79 -> C-1
B82: Telecom'n Repex/Refurb | K82: C-1
B83: 48V DC Systems | C83: Repex | D83: AP.3.3.02 | E83: 222.1850362 | F83: 206.6221499 | G83: 206.6221499 | H83: 206.6221499 | I83: 218.5426586 | J83: =SUM(E83:I83) -> 1060.594145 | K83: C-1
B84: UPAX/Business Telephone Network | C84: Non-network | D84: AP.3.3.07 | J84: 0 | K84: C-1
B85: Data Network | C85: Repex | D85: AP.3.3.12 | E85: 1110.262931 | F85: 1110.262931 | G85: 777.4820642 | H85: 939.4023067 | I85: 939.4023067 | J85: 4876.812539 | K85: C-1
B86: Microwave Radio | C86: Repex | D86: AP.3.3.01 | E86: 96.02631968 | F86: 201.9863966 | G86: 211.9201538 | H86: 211.9201538 | I86: 211.9201538 | J86: 933.7731776 | K86: C-1
B87: Minor Works - Unplanned | C87: Repex | D87: Historic | E87: 596.0254325 | F87: 596.0254325 | G87: 629.1379565 | H87: 662.2504806 | I87: 662.2504806 | J87: 3145.689783 | K87: C-1
B88: Misc Radio Systems | C88: Repex | D88: AP.3.3.05 | E88: 481.4560994 | F88: 129.1388437 | G88: 129.1388437 | H88: 129.1388437 | I88: 129.1388437 | J88: 998.0114742 | K88: C-1
B89: Network Tel Planning Labour Capitalisation | C89: Repex | D89: Historic | E89: 463.5753364 | F89: 463.5753364 | G89: 463.5753364 | H89: 463.5753364 | I89: 463.5753364 | J89: 2317.876682 | K89: C-1
B90: Optical Fibre Network | C90: Repex | D90: AP.3.3.04 | E90: 331.1252403 | F90: 331.1252403 | G90: 331.1252403 | H90: 331.1252403 | I90: 331.1252403 | J90: 1655.626201 | K90: C-1
B91: Pilot Cable Network (incl CBD) stage 2 | C91: Repex | D91: AP.3.3.03 | E91: 33.11252403 | F91: 33.11252403 | G91: 33.11252403 | H91: 33.11252403 | I91: 33.11252403 | J91: 165.5626201 | K91: C-1
B92: SDH Network | C92: Repex | D92: AP.3.3.10 | E92: 44.3707822 | F92: 253.9730593 | G92: 253.9730593 | H92: 44.3707822 | I92: 44.3707822 | J92: 641.0584652 | K92: C-1
B93: TNOC Management Systems | C93: Non-network | D93: AP.3.3.08 | J93: 0 | K93: C-1
B94: OT Cyber Security | C94: Non-network | D94: New | J94: 0 | K94: C-1
B95: Other | C95: Repex | E95: 264.9001922 | F95: 264.9001922 | G95: 264.9001922 | H95: 264.9001922 | I95: 264.9001922 | J95: 1324.500961 | K95: C-1
C96: Non-network | D96: Non-network | E96: =-(E94+E93+E84) -> 0 | F96: =-(F94+F93+F84) -> 0 | G96: =-(G94+G93+G84) -> 0 | H96: =-(H94+H93+H84) -> 0 | I96: =-(I94+I93+I84) -> 0 | J96: =SUM(E96:I96) -> 0
B97: Repex / Refurb - Telecom'n (subtotal) | D97: subtotal | E97: =SUM(E83:E96) -> 3643.039894 | F97: 3590.722106 | G97: 3300.98752 | H97: 3286.41801 | I97: 3298.338518 | J97: 17119.50605
B98: Replacement & Refurbishment (Total) | D98: Total | E98: =SUM(E63,E81,E97,) -> 84059.63536 | F98: 86403.52978 | G98: 86763.1608 | H98: 86024.89209 | I98: 84480.19791 | J98: 427731.4159 | K98: =K96 -> 0
A99: Environment
B100: Environmental Management - Lines (incl oil containment, EMF) | C100: Augex | D100: AP.4.1.03 | E100: 166.8508353 | F100: 166.8508353 | G100: 166.8508353 | H100: 166.8508353 | I100: 166.8508353 | J100: =SUM(E100:I100) -> 834.2541763 | K100: C-6
B101: Oil Containment - Substation | C101: Augex | D101: AP.4.1.01 | E101: 1418.2321 | F101: 1418.2321 | G101: 1418.2321 | H101: 1418.2321 | I101: 1418.2321 | J101: =SUM(E101:I101) -> 7091.160499 | K101: C-6
B102: Environmental Management - Subs (eg noise abatement) | C102: Augex | D102: AP.4.1.05 | E102: 142.6574642 | F102: 142.6574642 | G102: 142.6574642 | H102: 142.6574642 | I102: 142.6574642 | J102: =SUM(E102:I102) -> 713.2873208 | K102: C-6
B104: Environment (Total) | D104: Total | E104: =SUM(E100:E103) -> 1727.740399 | F104: 1727.740399 | G104: 1727.740399 | H104: 1727.740399 | I104: 1727.740399 | J104: 8638.701996 | K104: =K102 -> C-6
A105: Safety
B106: Elizabeth Transformer Stations | C106: Repex | D106: AP.5.1.02 | E106: 411.9129996 | F106: 417.1270882 | G106: 417.1270882 | H106: 417.1270882 | I106: 417.1270882 | J106: =SUM(E106:I106) -> 2080.421352 | K106: C-8
B107: Line Clearance Rectification - Distribution | C107: Repex | D107: AP.5.1.06 | E107: 2291.48243 | F107: 2453.24315 | G107: 2453.24315 | H107: 2453.24315 | I107: 2453.24315 | J107: 12104.45503 | K107: C-8
B108: Substation Lighting | C108: Augex | D108: AP.5.1.05 | E108: 100.1105012 | F108: 100.1105012 | G108: 100.1105012 | H108: 100.1105012 | I108: 100.1105012 | J108: 500.5525058 | K108: C-7
B109: Substation Security & Fencing | C109: Augex | D109: AP.5.1.03 | E109: 2002.210023 | F109: 2002.210023 | G109: 2002.210023 | H109: 2002.210023 | I109: 2002.210023 | J109: 10011.05012 | K109: C-7
B110: CBD Maintenance Projects (CBD Safety) | C110: Repex | D110: AP.2.1.07 | E110: 352.2221132 | F110: 352.2221132 | G110: 352.2221132 | H110: 352.2221132 | I110: 352.2221132 | J110: 1761.110566 | K110: C-8
B111: Emergency Switching Communication (Mobile Radio) | C111: Repex | D111: AP.3.3.06 | E111: 579.4691705 | F111: 579.4691705 | G111: 248.3439302 | H111: 662.2504806 | I111: 596.0254325 | J111: 2665.558184 | K111: C-8
B112: Substation Infrastructure - Earth systems (Earth Grid Upgrades) | C112: Augex | D112: AP.3.2.10 | E112: 1026.132637 | F112: 1026.132637 | G112: 1026.132637 | H112: 1026.132637 | I112: 1026.132637 | J112: 5130.663184 | K112: C-7
B113: Distribution Earthing | C113: Repex | D113: AP.3.1.18 | E113: 75.24771297 | F113: 100.330284 | G113: 100.330284 | H113: 100.330284 | I113: 100.330284 | J113: 476.5688488 | K113: C-8
B114: Telco Structures | C114: Repex | D114: AP.3.3.13 | E114: 218.5426586 | F114: 218.5426586 | G114: 218.5426586 | H114: 218.5426586 | I114: 605.9591897 | J114: 1480.129824 | K114: C-8
B115: Switchgear - Ground Level - Planned | C115: Repex | D115: AP.3.1.03 | E115: 3558.83578 | F115: 3424.211927 | G115: 3424.211927 | H115: 3424.211927 | I115: 3424.211927 | J115: 17255.68349 | K115: C-8
B116: Instrument Transformers (CTs & VTs) | C116: Repex | D116: AP.3.2.02 | E116: 487.6215661 | F116: 575.2182546 | G116: 541.4309604 | H116: 541.4309604 | I116: 541.4309604 | J116: 2687.132702 | K116: C-8
B117: Protection Compliance (Primary&Backup) | C117: Augex | D117: AP.3.2.14 | J117: 0 | K117: C-7
B118: Network Protection Substation Audits | C118: Augex | D118: Historic | E118: 250.2762529 | F118: 250.2762529 | G118: 250.2762529 | H118: 250.2762529 | I118: 250.2762529 | J118: 1251.381264 | K118: C-7
B119: CBD 33kV Substation Migration to 11kV | C119: Augex | D119: AP.2.1.07 | E119: 1341.799714 | F119: 1341.799714 | G119: 1341.799714 | H119: 1341.799714 | I119: 1341.799714 | J119: 6708.998569 | K119: C-7
B120: Planned & Unplanned Disconnector Repl | C120: Repex | D120: AP.3.2.17 | E120: 383.7569211 | F120: 383.7569211 | G120: 372.4944897 | H120: 361.2320584 | I120: 361.2320584 | J120: 1862.472449 | K120: C-8
B121: Substations rebuilds at BHP Ardrossan, Quorn & Burra substations. Kleins Point & Walkers Flat substation rebuilds + Wilmington (19672) | C121: Repex | D121: AP.3.2.12 | E121: 1610.14077 | F121: 1610.14077 | G121: 1610.14077 | H121: 1511.135351 | I121: 1292.281265 | J121: 7633.838926 | K121: C-8
B122: CBD Pilot Cable replacement program | E122: 498.7590909 | F122: 0 | G122: 0 | H122: 0 | I122: 0 | J122: 498.7590909 | K122: C-8
B124: Bushfire
B125: Bushfire Risk Reduction | C125: Augex | D125: B Case | E125: 2031.408919 | F125: 2000.124388 | G125: 2018.895107 | H125: 1993.867481 | I125: 1981.353669 | J125: =SUM(E125:I125) -> 10025.64956 | K125: C-18
B127: Repex Sub-total | C127: Repex | E127: =SUM(E106:E107,E110:E111,E113:E116,E120:E122) -> 10467.99121 | F127: =SUM(F106:F107,F110:F111,F113:F116,F120:F122) -> 10114.26234 | G127: 9738.087372 | H127: 10041.72607 | I127: 10144.06347 | J127: 50506.13046 | K127: =K122 -> C-8
B128: Augex Sub-total | C128: Augex | E128: =SUM(E108:E109,E112,E117:E119,) -> 4720.529128 | F128: =SUM(F108:F109,F112,F117:F119,) -> 4720.529128 | G128: 4720.529128 | H128: 4720.529128 | I128: 4720.529128 | J128: 23602.64564 | K128: =K119 -> C-7
B130: Safety (Total) | D130: Total | E130: =E125+E127+E128+E129 -> 17219.92926 | F130: 16834.91585 | G130: 16477.51161 | H130: 16756.12268 | I130: 16845.94627 | J130: 84134.42567
A131: Network ("Strategic" category)
B132: Substations CM equip | C132: Augex | D132: AMP 3.0.01 | E132: 250.2762529 | F132: 250.2762529 | G132: 250.2762529 | H132: 250.2762529 | I132: 250.2762529 | J132: =SUM(E132:I132) -> 1251.381264 | K132: C-15
B134: Network - Strategic (Total) | D134: Total | E134: =SUM(E132:E133) -> 250.2762529 | F134: 250.2762529 | G134: 250.2762529 | H134: 250.2762529 | I134: 250.2762529 | J134: 1251.381264 | K134: =K132 -> C-15
A135: Network Control
B136: SCADA to remaining substations | C136: Augex | D136: AP.2.1.02 | J136: =SUM(E136:I136) -> 0 | K136: C-15
B137: Network Data Capture | C137: Augex | D137: Historic | E137: 500.5525058 | F137: 500.5525058 | G137: 500.5525058 | H137: 500.5525058 | I137: 500.5525058 | J137: 2502.762529 | K137: C-15
B138: SCADA Improvement Project (inc TDU & RTU) | C138: Augex | D138: AP.2.1.02 | E138: 724.1326251 | F138: 724.1326251 | G138: 724.1326251 | H138: 724.1326251 | I138: 724.1326251 | J138: 3620.663125 | K138: C-15
B139: SCADA Data Concentrator | C139: Augex | D139: AP.2.1.02 | E139: 0 | F139: 223.1629922 | G139: 223.1629922 | H139: 0 | I139: 0 | J139: 446.3259843 | K139: C-15
B140: Low Voltage Management | C140: Augex | D140: B Case | E140: 5281.66319 | F140: 7898.301414 | G140: 5824.762659 | H140: 5317.953247 | I140: 3455.897925 | J140: 27778.57844 | K140: C-15
B141: OMS Replacement Project | C141: Non-network | D141: AP.2.1.02 | J141: 0 | K141: C-15
B142: ADMS/OMS Hardware Upgrade | C142: Non-network | D142: AP.2.1.02 | J142: 0 | K142: C-15
B143: ADMS/OMS Software Upgrade | C143: Non-network | D143: AP.2.1.02 | J143: 0 | K143: C-15
C144: Non-network | E144: =-SUM(E141:E143) -> 0 | F144: =-SUM(F141:F143) -> 0 | G144: 0 | H144: 0 | I144: 0 | J144: 0 | K144: C-15
B146: Network Control (Total) | D146: Total | E146: =SUM(E136:E145) -> 6506.348321 | F146: 9346.149537 | G146: 7272.610782 | H146: 6542.638378 | I146: 4680.583056 | J146: 34348.33007 | K146: =K140 -> C-15
A147: PLEC
B148: PLEC - Non-Specific (gross) | C148: Augex | E148: 9593.923028 | F148: 9593.923028 | G148: 9593.923028 | H148: 9593.923028 | I148: 9593.923028 | J148: =SUM(E148:I148) -> 47969.61514 | K148: C-10
B150: PLEC (Total) | D150: Total | E150: =SUM(E148:E149) -> 9593.923028 | F150: 9593.923028 | G150: 9593.923028 | H150: 9593.923028 | I150: 9593.923028 | J150: =SUM(J148:J149) -> 47969.61514 | K150: =K148 -> C-10
A151: Customer Contributions
B152: Customer Connect <$30k | C152: Connections | D152: AP.7.1.01 | E152: 4806.090715 | F152: 4826.548008 | G152: 4815.78332 | H152: 4679.170468 | I152: 5937.388319 | J152: =SUM(E152:I152) -> 25064.98083 | K152: C-4
B153: Customer Connect >$30k<$100k | C153: Connections | D153: AP.7.1.01 | E153: 6505.037445 | F153: 6621.2629 | G153: 6677.769622 | H153: 6520.152122 | I153: 6195.63685 | J153: 32519.85894 | K153: C-4
B154: Customer Projects >$100k | C154: Connections | D154: AP.7.1.01 | E154: 17161.64721 | F154: 16277.36719 | G154: 16445.73772 | H154: 16551.96394 | I154: 13435.43041 | J154: 79872.14647 | K154: C-4
B155: URDs | C155: Connections | D155: AP.7.1.01 | E155: 7442.396064 | F155: 7490.321206 | G155: 7332.329146 | H155: 7022.92457 | I155: 6375.445999 | J155: 35663.41699 | K155: C-4
B156: PLEC | C156: Connections | D156: AP.7.1.01 | E156: 2252.486276 | F156: 2252.486276 | G156: 2252.486276 | H156: 2252.486276 | I156: 2252.486276 | J156: 11262.43138 | K156: C-4
B157: Gifting | C157: Connections | D157: NA | E157: =E22 -> 24738.08395 | F157: =F22 -> 24738.08395 | G157: 24738.08395 | H157: 24738.08395 | I157: 24738.08395 | J157: 123690.4198 | K157: C-4
B160: Customer Contributions (Total) | D160: Total | E160: =SUM(E152:E159) -> 62905.74166 | F160: 62206.06954 | G160: 62262.19003 | H160: 61764.78133 | I160: 58934.47181 | J160: 308073.2544 | K160: =K157 -> C-4
A161: Network
B162: Total (gross) - incl Gifting | E162: =SUM(E150,E146,E134,E130,E104,E98,E33,E25,E17) -> 239948.7131 | F162: 244129.4501 | G162: 239875.0921 | H162: 236812.3997 | I162: 228425.3303 | J162: 1189190.985
B163: Total (net) | E163: =E162-E160 -> 177042.9714 | F163: 181923.3806 | G163: =G162-G160 -> 177612.902 | H163: 175047.6183 | I163: =I162-I160 -> 169490.8585 | J163: =SUM(E163:I163) -> 881117.7308

Sheet Non Network Base Capex
B2: Direct Costs (IT cost do not attract Overheads) | C2: $2017-18 ($'000) | D2: AER | K2: Proposal
B3: SAPN Business Case | C3: CA RIN Capex By Purpose | D3: 2020/21 | E3: 2021/22 | F3: 2022/23 | G3: 2023/24 | H3: 2024/25 | I3: Total | K3: 2020/21 | L3: 2021/22 | M3: 2022/23 | N3: 2023/24 | O3: 2024/25 | P3: Total
B4: IT Recurrent
B5: Maintain current levels of service and risk: maintain service | D5: =SUM(D6:D12) -> 27299.00723 | E5: =SUM(E6:E12) -> 35266.68132 | F5: 25426.73032 | G5: 23150.17742 | H5: 25014.42571 | I5: 136157.022 | K5: =SUM(K6:K12) -> 27299.00723 | L5: =SUM(L6:L12) -> 35266.68132 | M5: 25426.73032 | N5: 23150.17742 | O5: 25014.42571 | P5: 136157.022
B6: IT Applications Refresh | C6: Asset Replacement | D6: 13522.20568 | E6: 14053.22608 | F6: 12074.54228 | G6: 10880.22003 | H6: 12837.65181 | I6: =SUM(D6:H6) -> 63367.84589 | K6: 13522.20568 | L6: 14053.22608 | M6: 12074.54228 | N6: 10880.22003 | O6: 12837.65181 | P6: =SUM(K6:O6) -> 63367.84589
B7: IT Applications Refresh | C7: Asset Remediation | D7: 786.8352223 | E7: 751.9616391 | F7: 479.5117698 | G7: 479.5117698 | H7: 479.5117698 | I7: 2977.332171 | K7: 786.8352223 | L7: 751.9616391 | M7: 479.5117698 | N7: 479.5117698 | O7: 479.5117698 | P7: 2977.332171
B8: IT Applications Refresh | C8: Asset Extension | D8: 697.4716652 | E8: 697.4716652 | F8: 697.4716652 | G8: 697.4716652 | H8: 697.4716652 | I8: 3487.358326 | K8: 697.4716652 | L8: 697.4716652 | M8: 697.4716652 | N8: 697.4716652 | O8: 697.4716652 | P8: 3487.358326
B9: Client Device Refresh | C9: Asset Replacement | D9: 4423.597129 | E9: 5512.249058 | F9: 5108.637838 | G9: 4102.917342 | H9: 4098.022798 | I9: 23245.42416 | K9: 4423.597129 | L9: 5512.249058 | M9: 5108.637838 | N9: 4102.917342 | O9: 4098.022798 | P9: 23245.42416
B10: Cyber Security | C10: Asset Extension | D10: 2089.155283 | E10: 2193.613047 | F10: 2303.293699 | G10: 2418.458384 | H10: 2539.381304 | I10: 11543.90172 | K10: 2089.155283 | L10: 2193.613047 | M10: 2303.293699 | N10: 2418.458384 | O10: 2539.381304 | P10: 11543.90172
B11: IT Infrastructure Refresh | C11: Asset Replacement | D11: 5179.266725 | E11: 11370.86044 | F11: 4153.258226 | G11: 4018.168313 | H11: 3745.635843 | I11: 28467.18955 | K11: 5179.266725 | L11: 11370.86044 | M11: 4153.258226 | N11: 4018.168313 | O11: 3745.635843 | P11: 28467.18955
B12: IT Management, Risk and Governance | C12: Asset Replacement | D12: 600.4755189 | E12: 687.2993889 | F12: 610.0148389 | G12: 553.4299189 | H12: 616.7505189 | I12: 3067.970184 | K12: 600.4755189 | L12: 687.2993889 | M12: 610.0148389 | N12: 553.4299189 | O12: 616.7505189 | P12: 3067.970184
B13: IT Recurrent Total | D13: =D5 -> 27299.00723 | E13: =E5 -> 35266.68132 | F13: 25426.73032 | G13: 23150.17742 | H13: 25014.42571 | I13: =I5 -> 136157.022 | K13: =K5 -> 27299.00723 | L13: =L5 -> 35266.68132 | M13: 25426.73032 | N13: 23150.17742 | O13: 25014.42571 | P13: =P5 -> 136157.022
B14: IT Non-recurrent
B15: Maintain current levels of service and manage risk: Major upgrades and replacements | D15: =SUM(D16:D18) -> 19532.51097 | E15: =SUM(E16:E18) -> 5960.470068 | F15: 2591.453277 | G15: 255.948462 | H15: 0 | I15: 28340.38278 | K15: =SUM(K16:K18) -> 24216.1705 | L15: =SUM(L16:L18) -> 9584.820126 | M15: 13176.17132 | N15: 4397.641384 | O15: 1593.454219 | P15: 52968.25755
B16: CRM & Billing Completion | C16: Asset Replacement | D16: 19532.51097 | E16: 5960.470068 | F16: 0 | G16: 0 | H16: 0 | I16: =SUM(D16:H16) -> 25492.98104 | K16: 19532.51097 | L16: 5960.470068 | M16: 0 | N16: 0 | O16: 0 | P16: =SUM(K16:O16) -> 25492.98104
B17: Network Protection Settings System Replacement | C17: Asset Replacement | D17: 0 | E17: 0 | F17: 2591.453277 | G17: 255.948462 | H17: 0 | I17: 2847.401739 | K17: 0 | L17: 0 | M17: 2591.453277 | N17: 255.948462 | O17: 0 | P17: 2847.401739
B18: SAP Upgrade | C18: Asset Replacement | D18: 0 | E18: 0 | F18: 0 | G18: 0 | H18: 0 | I18: 0 | K18: 4683.659537 | L18: 3624.350058 | M18: 10584.71804 | N18: 4141.692922 | O18: 1593.454219 | P18: 24627.87478
B19: Maintain compliance | D19: =SUM(D20:D21) -> 4756.508 | E19: =SUM(E20:E21) -> 2955.9686 | F19: 0 | G19: 0 | H19: 0 | I19: 7712.4766 | K19: =SUM(K20:K21) -> 7243.695164 | L19: =SUM(L20:L21) -> 4223.892656 | M19: 0 | N19: 0 | O19: 0 | P19: 11467.58782
B20: Five Minute Settlement Rule | C20: Asset Extension | D20: 4756.508 | E20: 2955.9686 | F20: 0 | G20: 0 | H20: 0 | I20: =SUM(D20:H20) -> 7712.4766 | K20: 4756.508 | L20: 2955.9686 | M20: 0 | N20: 0 | O20: 0 | P20: =SUM(K20:O20) -> 7712.4766
B21: Ring-fencing Compliance: IT Solution | C21: Asset Extension | D21: 0 | E21: 0 | F21: 0 | G21: 0 | H21: 0 | I21: 0 | K21: 2487.187164 | L21: 1267.924056 | M21: 0 | N21: 0 | O21: 0 | P21: 3755.11122
B22: Manage business and network costs through efficient use of data and digital technology | D22: =SUM(D23:D26) -> 2325.6107 | E22: =SUM(E23:E26) -> 6277.9402 | F22: 4282.5167 | G22: 856.27549 | H22: 94.59459459 | I22: 13836.93768 | K22: =SUM(K23:K26) -> 8962.525754 | L22: =SUM(L23:L26) -> 18242.52316 | M22: 5517.1165 | N22: 13399.44511 | O22: 13771.23708 | P22: 59892.84761
B23: Assets and Work Program | C23: Asset Extension | D23: 0 | E23: 0 | F23: 0 | G23: 0 | H23: 0 | I23: =SUM(D23:H23) -> 0 | K23: 6636.915054 | L23: 9546.298069 | M23: 0 | N23: 10643.99995 | O23: 12010.34088 | P23: =SUM(K23:O23) -> 38837.55395
B24: Assets and Work Program | C24: Capability Growth | D24: 0 | E24: 0 | F24: 0 | G24: 0 | H24: 0 | I24: 0 | K24: 0 | L24: 0 | M24: 0 | N24: 1157.919378 | O24: 754.4242069 | P24: 1912.343585
B25: GIS Consolidation | C25: Asset Replacement | D25: 2325.6107 | E25: 6277.9402 | F25: 4282.5167 | G25: 856.27549 | H25: 94.59459459 | I25: 13836.93768 | K25: 2325.6107 | L25: 6277.9402 | M25: 4282.5167 | N25: 856.27549 | O25: 94.59459459 | P25: 13836.93768
B26: Worker safety: Fatigue Risk Management | C26: Capability Growth | D26: 0 | E26: 0 | F26: 0 | G26: 0 | H26: 0 | I26: 0 | K26: 0 | L26: 2418.28489 | M26: 1234.5998 | N26: 741.2503 | O26: 911.8774 | P26: 5306.01239
B27: IT Non-recurrent Total | D27: =SUM(D15,D19,D22) -> 26614.62967 | E27: =SUM(E15,E19,E22) -> 15194.37887 | F27: 6873.969977 | G27: 1112.223952 | H27: 94.59459459 | I27: 49889.79706 | K27: =SUM(K15,K19,K22) -> 40422.39142 | L27: =SUM(L15,L19,L22) -> 32051.23594 | M27: 18693.28782 | N27: 17797.0865 | O27: 15364.6913 | P27: 124328.693
B28: Grand Total | D28: =SUM(D13,D27) -> 53913.6369 | E28: =SUM(E13,E27) -> 50461.06019 | F28: 32300.7003 | G28: 24262.40137 | H28: 25109.0203 | I28: 186046.8191 | K28: =SUM(K13,K27) -> 67721.39865 | L28: =SUM(L13,L27) -> 67317.91726 | M28: 44120.01814 | N28: 40947.26392 | O28: 40379.11701 | P28: 260485.715
C31: Consolidated (As Per RIN Workbook 1)
C32: Asset Replacement | D32: =SUMIFS(D$6:D$26,$C$6:$C$26,$C32) -> 45583.66673 | E32: =SUMIFS(E$6:E$26,$C$6:$C$26,$C32) -> 43862.04524 | F32: 28820.42316 | G32: 20666.95956 | H32: 21392.65556 | I32: 160325.7502 | K32: =SUMIFS(K$6:K$26,$C$6:$C$26,$C32) -> 50267.32626 | L32: =SUMIFS(L$6:L$26,$C$6:$C$26,$C32) -> 47486.3953 | M32: 39405.14121 | N32: 24808.65248 | O32: 22986.10978 | P32: 184953.625
C33: Asset Remediation | D33: =SUMIFS(D$6:D$26,$C$6:$C$26,$C33) -> 786.8352223 | E33: 751.9616391 | F33: 479.5117698 | G33: 479.5117698 | H33: 479.5117698 | I33: 2977.332171 | K33: =SUMIFS(K$6:K$26,$C$6:$C$26,$C33) -> 786.8352223 | L33: 751.9616391 | M33: 479.5117698 | N33: 479.5117698 | O33: 479.5117698 | P33: 2977.332171
C34: Asset Extension | D34: 7543.134948 | E34: 5847.053312 | F34: 3000.765365 | G34: 3115.93005 | H34: 3236.852969 | I34: 22743.73664 | K34: 16667.23717 | L34: 16661.27544 | M34: 3000.765365 | N34: 13759.93 | O34: 15247.19385 | P34: 65336.40181
C35: Capability Growth | D35: 0 | E35: 0 | F35: 0 | G35: 0 | H35: 0 | I35: 0 | K35: 0 | L35: 2418.28489 | M35: 1234.5998 | N35: 1899.169678 | O35: 1666.301607 | P35: 7218.355975
D36: =SUM(D32:D35) -> 53913.6369 | E36: =SUM(E32:E35) -> 50461.06019 | F36: 32300.7003 | G36: 24262.40137 | H36: 25109.0203 | I36: 186046.8191 | K36: =SUM(K32:K35) -> 67721.39865 | L36: =SUM(L32:L35) -> 67317.91726 | M36: 44120.01814 | N36: 40947.26392 | O36: 40379.11701 | P36: 260485.715
B38: Direct Costs (Non-network cost do not attract Overheads) | C38: $2017-18 ($'000) | D38: AER | K38: Proposal
B39: Baseline Direct Expenditure : $2017-18 ($'000) | D39: 2020/21 | E39: 2021/22 | F39: 2022/23 | G39: 2023/24 | H39: 2024/25 | I39: Total | K39: 2020/21 | L39: 2021/22 | M39: 2022/23 | N39: 2023/24 | O39: 2024/25 | P39: Total
B40: Heavy Vehicle Fleet - 15yrs | C40: C-19 | D40: 4818.998257 | E40: 8900.721913 | F40: 7074.771475 | G40: 7772.883119 | H40: 5621.661631 | I40: =SUM(D40:H40) -> 34189.0364 | K40: 3355 | L40: 7690 | M40: 5840 | N40: 4675 | O40: 5445 | P40: =SUM(K40:O40) -> 27005
B41: Heavy Vehicle Fleet - 10yrs | C41: C-20 | D41: 1633.766855 | E41: 1336.718336 | F41: 1782.291115 | G41: 4158.679268 | H41: 2376.388153 | I41: 11287.84373 | K41: 4945 | L41: 3945 | M41: 5420 | N41: 12150 | O41: 9225 | P41: =SUM(K41:O41) -> 35685
B42: Light Vehicle Fleet | C42: C-21 | D42: 4872.130697 | E42: 5689.262349 | F42: 9201.959549 | G42: 7156.861682 | H42: 3632.513759 | I42: 30552.72804 | K42: 7960 | L42: 9740 | M42: 13010 | N42: 10540 | O42: 6500 | P42: 47750
B43: Plant and Tools | C43: C-22 | D43: 5096.733333 | E43: 4245.733333 | F43: 3485.233333 | G43: 3220.4 | H43: 3712.4 | I43: 19760.5 | K43: 5096.733333 | L43: 4245.733333 | M43: 3485.233333 | N43: 3220.4 | O43: 3712.4 | P43: 19760.5
B44: Property | C44: C-24 | I44: 0 | K44: 13058.763 | L44: 16945.34 | M44: 10526.279 | N44: 8949.472 | O44: 8748.099 | P44: 58227.953
B45: Superannuation | C45: C-28 | D45: -6939.995 | E45: -6939.995 | F45: -6939.995 | G45: -6939.995 | H45: -6939.995 | I45: -34699.975 | K45: -6939.995 | L45: -6939.995 | M45: -6939.995 | N45: -6939.995 | O45: -6939.995 | P45: -34699.975
B46: Operational Information Technology | C46: C-29 | D46: =D55 -> 1490.469652 | E46: =E55 -> 2183.223919 | F46: 2393.150118 | G46: 1490.469962 | H46: 1343.521257 | I46: 8900.834907 | K46: =K55 -> 4564.200674 | L46: =L55 -> 2193.301842 | M46: 2403.227363 | N46: 4599.048311 | O46: 6003.869896 | P46: =SUM(K46:O46) -> 19763.64809
B49: =B46 -> Operational Information Technology | C49: =C46 -> C-29 | D49: AER | K49: Proposal
B50: Project ($2017-2018) | D50: 2020-21 | E50: 2021-22 | F50: 2022-23 | G50: 2023-24 | H50: 2024-25 | I50: Total | K50: 2020-21 | L50: 2021-22 | M50: 2022-23 | N50: 2023-24 | O50: 2024-25 | P50: Total
B51: TNC Management | D51: 293.8954622 | E51: 713.7464534 | F51: 776.7242001 | G51: 356.8729272 | H51: 356.8727787 | I51: =SUM(D51:H51) -> 2498.111822 | K51: =K74/(1+K$70)/(1+$L$58)/(1+$L$57)/10^3 -> 293.8954622 | L51: 713.7464534 | M51: 776.7242001 | N51: 356.8729272 | O51: 356.8727787 | P51: =SUM(K51:O51) -> 2498.111822
B52: UPAX/Business telephone network | D52: 692.7535254 | E52: 125.9545721 | F52: 230.917861 | G52: 503.8207074 | H52: 398.8577076 | I52: =SUM(D52:H52) -> 1952.304373 | K52: 692.7535254 | L52: 125.9545721 | M52: 230.917861 | N52: 503.8207074 | O52: 398.8577076 | P52: =SUM(K52:O52) -> 1952.304373
B53: OT security | D53: 503.820664 | E53: 1343.522894 | F53: 1385.508057 | G53: 629.7763274 | H53: 587.7907706 | I53: 4450.418712 | K53: 503.820664 | L53: 1343.522894 | M53: 1385.508057 | N53: 629.7763274 | O53: 587.7907706 | P53: 4450.418712
B54: ADMS/OMS upgrade | I54: 0 | K54: 3073.731023 | L54: 10.07792277 | M54: 10.07724494 | N54: 3108.578349 | O54: 4660.34864 | P54: 10862.81318
B55: Total | D55: =SUM(D51:D54) -> 1490.469652 | E55: =SUM(E51:E54) -> 2183.223919 | F55: 2393.150118 | G55: 1490.469962 | H55: 1343.521257 | I55: =SUM(I51:I54) -> 8900.834907 | K55: =SUM(K51:K54) -> 4564.200674 | L55: =SUM(L51:L54) -> 2193.301842 | M55: 2403.227363 | N55: 4599.048311 | O55: 6003.869896 | P55: =SUM(P51:P54) -> 19763.64809
K57: CPI | L57: 0.0561399729
K58: OHDs Rate | L58: 0.04391107826
J60: Dollar Impact of General Escalations (C29)
J61: Summary by Cost Category ($m 2017-18) (SEM capex model) | K61: 2020/21 | L61: 2021/22 | M61: 2022/23 | N61: 2023/24 | O61: 2024/25 | P61: Total
J62: Labour | K62: 0.03138697184 | L62: 0.02223187837 | M62: 0.03335086391 | N62: 0.07950285138 | O62: 0.1220589626 | P62: =SUM(K62:O62) -> 0.2885315281
J63: Materials | K63: 0 | L63: 0 | M63: 0 | N63: 0 | O63: 0 | P63: =SUM(K63:O63) -> 0
J64: Contracts | K64: 0.001472860884 | L64: 0.001650730362 | M64: 0.003062856564 | N64: 0.007764673975 | O64: 0.01186734881 | P64: 0.0258184706
J65: Services Other | K65: 0 | L65: 0 | M65: 0 | N65: 0 | O65: 0 | P65: 0
J66: Business Overheads | K66: 0.009672745684 | L66: 0.006851355609 | M66: 0.01027797223 | N66: 0.02450095748 | O66: 0.03761577605 | P66: 0.08891880705
J67: Other | K67: 0 | L67: 0 | M67: 0 | N67: 0 | O67: 0 | P67: 0
J68: Impact of General Escalations ($m 2017-18) (SEM capex model) | K68: =SUM(K62:K67) -> 0.04253257841 | L68: =SUM(L62:L67) -> 0.03073396434 | M68: 0.0466916927 | N68: 0.1117684828 | O68: 0.1715420874 | P68: 0.4032688057
J69: Dollar Impact of General Escalations ($m 2019-20) | K69: =K68*(1+$L$57) -> 0.0449203562 | L69: =L68*(1+$L$57) -> 0.03245936827 | M69: =M68*(1+$L$57) -> 0.04931296306 | N69: =N68*(1+$L$57) -> 0.1180431624 | O69: =O68*(1+$L$57) -> 0.1811724556 | P69: =SUM(K69:O69) -> 0.4259083055
J70: Average General Escalation % | K70: =K78/(K78-K69*10^6)-1 -> 0.008926752092 | L70: =L78/(L78-L69*10^6)-1 -> 0.01342321892 | M70: 0.01861149466 | N70: 0.02328026275 | O70: 0.02737007022
F72: Proposal Source: SAPN, Response to AER Information Request 012 - Question 2, 28 March 2019.
J73: Project ($2019-2020) | K73: 2020-21 | L73: 2021-22 | M73: 2022-23 | N73: 2023-24 | O73: 2024-25 | P73: Total
J74: TNC Management | K74: 326917 | L74: 797480 | M74: 872289 | N74: 402618 | O74: 404227 | P74: =SUM(K74:O74) -> 2803531
J75: UPAX/Business telephone network | K75: 770590 | L75: 140731 | M75: 259329 | N75: 568402 | O75: 451783 | P75: =SUM(K75:O75) -> 2190835
J76: OT security | K76: 560429 | L76: 1501139 | M76: 1555975 | N76: 710503 | O76: 665786 | P76: 4993832
J77: ADMS/OMS upgrade | K77: =3419087+K81 -> 3419089.621 | L77: =11258+L81 -> 11260.21967 | M77: =11316+M81 -> 11317.10575 | N77: =3507044+N81 -> 3507045.512 | O77: =5278739+O81 -> 5278740.386 | P77: 12227452.85
J78: Total | K78: =SUM(K74:K77) -> 5077025.621 | L78: =SUM(L74:L77) -> 2450610.22 | M78: 2698910.106 | N78: 5188568.512 | O78: =SUM(O74:O77) -> 6800536.386 | P78: 22215650.85
J80: SEM capex model reco | K80: =K78-K82 -> 0 | L80: 0 | M80: 0 | N80: 0 | O80: 0 | P80: 0
J81: SEM capex model reco amount | K81: 2.621439273 | L81: 2.219667299 | M81: 1.105754306 | N81: 1.512022089 | O81: 1.386478218 | P81: =SUM(K81:O81) -> 8.845361186
J82: SEM capex model $ 2019-20 | K82: =K83*(1+$L$57)*10^6 -> 5077025.621 | L82: =L83*(1+$L$57)*10^6 -> 2450610.22 | M82: =M83*(1+$L$57)*10^6 -> 2698910.106 | N82: =N83*(1+$L$57)*10^6 -> 5188568.512 | O82: =O83*(1+$L$57)*10^6 -> 6800536.386 | P82: =SUM(K82:O82) -> 22215650.85
J83: SEM capex model $m 2017-18 | K83: 4.807152226 | L83: 2.320346055 | M83: 2.55544736 | N83: 4.912765964 | O83: 6.439048385 | P83: =SUM(K83:O83) -> 21.03475999

Sheet Direct Capex Plus Ohds
C2: $2017-18 ($'000) | D2: Baseline Direct Expenditure | K2: Network Business Overheads - Fixed | R2: Network Business Overheads - Variable | Y2: Network Business Overheads - Total | AF2: Base Capex Including Overheads | AR2: Base Capex Including Overheads
D6: 2020/21 | E6: 2021/22 | F6: 2022/23 | G6: 2023/24 | H6: 2024/25 | I6: TOTAL | K6: =D6 -> 2020/21 | L6: =E6 -> 2021/22 | M6: 2022/23 | N6: 2023/24 | O6: 2024/25 | P6: TOTAL | R6: =D6 -> 2020/21 | S6: 2021/22 | T6: 2022/23 | U6: 2023/24 | V6: 2024/25 | W6: TOTAL | Y6: 2020/21 | Z6: 2021/22 | AA6: 2022/23 | AB6: 2023/24 | AC6: 2024/25 | AD6: TOTAL | AF6: 2020/21 | AG6: 2021/22 | AH6: 2022/23 | AI6: 2023/24 | AJ6: 2024/25 | AK6: TOTAL | AR6: 2020/21 | AS6: 2021/22 | AT6: 2022/23 | AU6: 2023/24 | AV6: 2024/25
A7: C-1 | B7: Repex | C7: Asset Replacement and Refurbishment | D7: ='Network Projects Direct Costs'!E98 -> 84059.63536 | E7: ='Network Projects Direct Costs'!F98 -> 86403.52978 | F7: ='Network Projects Direct Costs'!G98 -> 86763.1608 | G7: ='Network Projects Direct Costs'!H98 -> 86024.89209 | H7: ='Network Projects Direct Costs'!I98 -> 84480.19791 | I7: =SUM(D7:H7) -> 427731.4159 | K7: =K$35*D7/D$30 -> 3205.479798 | L7: =L$35*E7/E$30 -> 3235.828665 | M7: =M$35*F7/F$30 -> 3324.525552 | N7: =N$35*G7/G$30 -> 3315.655876 | O7: =O$35*H7/H$30 -> 3343.297195 | P7: =SUM(K7:O7) -> 16424.78709 | R7: =D7*R$35 -> 1759.824664 | S7: =E7*S$35 -> 1839.453507 | T7: =F7*T$35 -> 1760.434571 | U7: =G7*U$35 -> 1725.450851 | V7: =H7*V$35 -> 1662.390729 | W7: =SUM(R7:V7) -> 8747.554322 | Y7: =SUM(K7,R7) -> 4965.304462 | Z7: =SUM(L7,S7) -> 5075.282173 | AA7: =SUM(M7,T7) -> 5084.960123 | AB7: =SUM(N7,U7) -> 5041.106727 | AC7: =SUM(O7,V7) -> 5005.687924 | AD7: =SUM(Y7:AC7) -> 25172.34141 | AF7: =SUM(D7,Y7) -> 89024.93982 | AG7: =SUM(E7,Z7) -> 91478.81195 | AH7: =SUM(F7,AA7) -> 91848.12093 | AI7: =SUM(G7,AB7) -> 91065.99882 | AJ7: =SUM(H7,AC7) -> 89485.88583 | AK7: =SUM(AF7:AJ7) -> 452903.7573 | AQ7: =A7 -> C-1 | AR7: =AF7 -> 89024.93982 | AS7: =AG7 -> 91478.81195 | AT7: =AH7 -> 91848.12093 | AU7: =AI7 -> 91065.99882 | AV7: =AJ7 -> 89485.88583
A8: C-2 | B8: Augex | C8: Augmentation/Capacity | D8: ='Network Projects Direct Costs'!E17 -> 21899.49295 | E8: ='Network Projects Direct Costs'!F17 -> 20293.55366 | F8: ='Network Projects Direct Costs'!G17 -> 17761.59224 | G8: ='Network Projects Direct Costs'!H17 -> 16793.85739 | H8: ='Network Projects Direct Costs'!I17 -> 15212.94573 | I8: =SUM(D8:H8) -> 91961.44197 | K8: =K$35*D8/D$30 -> 835.1021504 | L8: 759.9974541 | M8: 680.5753351 | N8: 647.2853448 | O8: 602.0511319 | P8: =SUM(K8:O8) -> 3525.011416 | R8: =D8*R$35 -> 458.4753152 | S8: 432.0315218 | T8: 360.3847614 | U8: 336.8440788 | V8: 299.3584363 | W8: =SUM(R8:V8) -> 1887.094113 | Y8: =SUM(K8,R8) -> 1293.577466 | Z8: 1192.028976 | AA8: 1040.960096 | AB8: 984.1294236 | AC8: 901.4095682 | AD8: =SUM(Y8:AC8) -> 5412.10553 | AF8: =SUM(D8,Y8) -> 23193.07042 | AG8: 21485.58264 | AH8: 18802.55233 | AI8: 17777.98681 | AJ8: 16114.3553 | AK8: =SUM(AF8:AJ8) -> 97373.5475 | AQ8: =A8 -> C-2 | AR8: =AF8 -> 23193.07042 | AS8: 21485.58264 | AT8: 18802.55233 | AU8: 17777.98681 | AV8: 16114.3553
A9: C-3 | B9: Connections | C9: Connections | D9: ='Network Projects Direct Costs'!E25 -> 92935.01368 | E9: ='Network Projects Direct Costs'!F25 -> 93923.00778 | F9: ='Network Projects Direct Costs'!G25 -> 94271.92313 | G9: ='Network Projects Direct Costs'!H25 -> 93366.59564 | H9: ='Network Projects Direct Costs'!I25 -> 89877.36385 | I9: 464373.9041 | K9: 3543.92816 | L9: 3517.43455 | M9: 3612.240661 | N9: 3598.627024 | O9: 3556.889613 | P9: 17829.12001 | R9: 1945.634531 | S9: 1999.536437 | T9: 1912.788227 | U9: 1872.707631 | V9: 1768.595483 | W9: 9499.262309 | Y9: 5489.562691 | Z9: 5516.970987 | AA9: 5525.028888 | AB9: 5471.334656 | AC9: 5325.485096 | AD9: 27328.38232 | AF9: 98424.57637 | AG9: 99439.97876 | AH9: 99796.95202 | AI9: 98837.93029 | AJ9: 95202.84894 | AK9: 491702.2864 | AQ9: C-3 | AR9: 98424.57637 | AS9: 99439.97876 | AT9: 99796.95202 | AU9: 98837.93029 | AV9: 95202.84894
A10: C-4 | B10: Connections | C10: Contributions | D10: =-'Network Projects Direct Costs'!E160 -> -62905.74166 | E10: =-'Network Projects Direct Costs'!F160 -> -62206.06954 | F10: =-'Network Projects Direct Costs'!G160 -> -62262.19003 | G10: =-'Network Projects Direct Costs'!H160 -> -61764.78133 | H10: =-'Network Projects Direct Costs'!I160 -> -58934.47181 | I10: -308073.2544 | K10: -2398.809883 | L10: -2329.629165 | M10: -2385.715778 | N10: -2380.598861 | O10: -2332.327091 | P10: -11827.08078 | R10: -1316.95879 | S10: -1324.311323 | T10: -1263.307039 | U10: -1238.851824 | V10: -1159.705138 | W10: -6303.134114 | Y10: -3715.768673 | Z10: -3653.940488 | AA10: -3649.022818 | AB10: -3619.450685 | AC10: -3492.032229 | AD10: -18130.21489 | AF10: -66621.51033 | AG10: -65860.01002 | AH10: -65911.21285 | AI10: -65384.23201 | AJ10: -62426.50404 | AK10: -326203.4693 | AQ10: C-4
A11: C-5 | B11: Augex | C11: Reliability | D11: ='Network Projects Direct Costs'!E33 -> 5756.353817 | E11: ='Network Projects Direct Costs'!F33 -> 5756.353817 | F11: ='Network Projects Direct Costs'!G33 -> 5756.353817 | G11: ='Network Projects Direct Costs'!H33 -> 5756.353817 | H11: ='Network Projects Direct Costs'!I33 -> 5756.353817 | I11: 28781.76908 | K11: 219.5093494 | L11: 215.576548 | M11: 220.5676369 | N11: 221.8670421 | O11: 227.80725 | P11: 1105.327827 | R11: 120.5117459 | S11: 122.5476001 | T11: 116.7970849 | U11: 115.4585068 | V11: 113.2728078 | W11: 588.5877456 | Y11: 340.0210954 | Z11: 338.1241482 | AA11: 337.3647219 | AB11: 337.325549 | AC11: 341.0800578 | AD11: 1693.915572 | AF11: 6096.374912 | AG11: 6094.477965 | AH11: 6093.718539 | AI11: 6093.679366 | AJ11: 6097.433875 | AK11: 30475.68466 | AQ11: C-5 | AR11: 6096.374912 | AS11: 6094.477965 | AT11: 6093.718539 | AU11: 6093.679366 | AV11: 6097.433875
A12: C-6 | B12: Augex | C12: Environmental | D12: ='Network Projects Direct Costs'!E104 -> 1727.740399 | E12: ='Network Projects Direct Costs'!F104 -> 1727.740399 | F12: ='Network Projects Direct Costs'!G104 -> 1727.740399 | G12: ='Network Projects Direct Costs'!H104 -> 1727.740399 | H12: ='Network Projects Direct Costs'!I104 -> 1727.740399 | I12: 8638.701996 | K12: 65.88461778 | L12: 64.70420738 | M12: 66.20225741 | N12: 66.59226728 | O12: 68.37519055 | P12: 331.7585404 | R12: 36.17098925 | S12: 36.78204056 | T12: 35.05605259 | U12: 34.65428517 | V12: 33.99825869 | W12: 176.6616263 | Y12: 102.055607 | Z12: 101.4862479 | AA12: 101.25831 | AB12: 101.2465524 | AC12: 102.3734492 | AD12: 508.4201667 | AF12: 1829.796006 | AG12: 1829.226647 | AH12: 1828.998709 | AI12: 1828.986952 | AJ12: 1830.113848 | AK12: 9147.122163 | AQ12: C-6 | AR12: 1829.796006 | AS12: 1829.226647 | AT12: 1828.998709 | AU12: 1828.986952 | AV12: 1830.113848
A13: C-7 | B13: Augex | C13: Safety Augex | D13: ='Network Projects Direct Costs'!E128 -> 4720.529128 | E13: ='Network Projects Direct Costs'!F128 -> 4720.529128 | F13: ='Network Projects Direct Costs'!G128 -> 4720.529128 | G13: ='Network Projects Direct Costs'!H128 -> 4720.529128 | H13: ='Network Projects Direct Costs'!I128 -> 4720.529128 | I13: 23602.64564 | K13: 180.009831 | L13: 176.7847159 | M13: 180.8776854 | N13: 181.9432697 | O13: 186.8145694 | P13: 906.4300714 | R13: 98.82631004 | S13: 100.4958233 | T13: 95.78008214 | U13: 94.68237395 | V13: 92.8899796 | W13: 482.674569 | Y13: 278.8361411 | Z13: 277.2805392 | AA13: 276.6577676 | AB13: 276.6256436 | AC13: 279.704549 | AD13: 1389.10464 | AF13: 4999.365269 | AG13: 4997.809667 | AH13: 4997.186896 | AI13: 4997.154772 | AJ13: 5000.233677 | AK13: 24991.75028 | AQ13: C-7 | AR13: 4999.365269 | AS13: 4997.809667 | AT13: 4997.186896 | AU13: 4997.154772 | AV13: 5000.233677
A14: C-8 | B14: Repex | C14: Safety Repex | D14: ='Network Projects Direct Costs'!E127 -> 10467.99121 | E14: ='Network Projects Direct Costs'!F127 -> 10114.26234 | F14: ='Network Projects Direct Costs'!G127 -> 9738.087372 | G14: ='Network Projects Direct Costs'!H127 -> 10041.72607 | H14: ='Network Projects Direct Costs'!I127 -> 10144.06347 | I14: 50506.13046 | K14: 399.1801085 | L14: 378.7810531 | M14: 373.1367091 | N14: 387.0380682 | O14: 401.4505148 | P14: 1939.586454 | R14: 219.1519037 | S14: 215.3235566 | T14: 197.5869194 | U14: 201.4126885 | V14: 199.6136075 | W14: 1033.088676 | Y14: 618.3320122 | Z14: 594.1046096 | AA14: 570.7236285 | AB14: 588.4507567 | AC14: 601.0641223 | AD14: 2972.675129 | AF14: 11086.32322 | AG14: 10708.36695 | AH14: 10308.811 | AI14: 10630.17683 | AJ14: 10745.12759 | AK14: 53478.80559 | AQ14: C-8 | AR14: 11086.32322 | AS14: 10708.36695 | AT14: 10308.811 | AU14: 10630.17683 | AV14: 10745.12759
A15: C-10 | B15: Augex | C15: PLEC (Undergrounding) | D15: ='Network Projects Direct Costs'!E150 -> 9593.923028 | E15: ='Network Projects Direct Costs'!F150 -> 9593.923028 | F15: ='Network Projects Direct Costs'!G150 -> 9593.923028 | G15: ='Network Projects Direct Costs'!H150 -> 9593.923028 | H15: ='Network Projects Direct Costs'!I150 -> 9593.923028 | I15: 47969.61514 | K15: 365.8489157 | L15: 359.2942467 | M15: 367.6127282 | N15: 369.7784035 | O15: 379.67875 | P15: 1842.213044 | R15: 200.8529099 | S15: 204.2460002 | T15: 194.6618082 | U15: 192.4308447 | V15: 188.788013 | W15: 980.979576 | Y15: 566.7018256 | Z15: 563.5402469 | AA15: 562.2745364 | AB15: 562.2092483 | AC15: 568.466763 | AD15: 2823.19262 | AF15: 10160.62485 | AG15: 10157.46327 | AH15: 10156.19756 | AI15: 10156.13228 | AJ15: 10162.38979 | AK15: 50792.80776 | AQ15: C-10 | AR15: 10160.62485 | AS15: 10157.46327 | AT15: 10156.19756 | AU15: 10156.13228 | AV15: 10162.38979
A16: C-15 | B16: Augex | C16: Strategic - Network Security | D16: ='Network Projects Direct Costs'!E134+'Network Projects Direct Costs'!E146 -> 6756.624574 | E16: ='Network Projects Direct Costs'!F134+'Network Projects Direct Costs'!F146 -> 9596.42579 | F16: ='Network Projects Direct Costs'!G134+'Network Projects Direct Costs'!G146 -> 7522.887035 | G16: ='Network Projects Direct Costs'!H134+'Network Projects Direct Costs'!H146 -> 6792.914631 | H16: ='Network Projects Direct Costs'!I134+'Network Projects Direct Costs'!I146 -> 4930.859309 | I16: 35599.71134 | K16: 257.6530755 | L16: 359.3879756 | M16: 288.2563284 | N16: 261.819187 | O16: 195.1383698 | P16: 1362.254936 | R16: 141.452845 | S16: 204.2992818 | T16: 152.6402483 | U16: 136.2494046 | V16: 97.0288305 | W16: 731.6706102 | Y16: 399.1059205 | Z16: 563.6872574 | AA16: 440.8965767 | AB16: 398.0685917 | AC16: 292.1672003 | AD16: 2093.925547 | AF16: 7155.730495 | AG16: 10160.11305 | AH16: 7963.783612 | AI16: 7190.983222 | AJ16: 5223.026509 | AK16: 37693.63689 | AQ16: C-15 | AR16: 7155.730495 | AS16: 10160.11305 | AT16: 7963.783612 | AU16: 7190.983222 | AV16: 5223.026509
A17: C-18 | B17: Augex | C17: Safety (Bushfire) | D17: ='Network Projects Direct Costs'!E125 -> 2031.408919 | E17: ='Network Projects Direct Costs'!F125 -> 2000.124388 | F17: ='Network Projects Direct Costs'!G125 -> 2018.895107 | G17: ='Network Projects Direct Costs'!H125 -> 1993.867481 | H17: ='Network Projects Direct Costs'!I125 -> 1981.353669 | I17: 10025.64956 | K17: 77.46453129 | L17: 74.90503969 | M17: 77.35850455 | N17: 76.84959865 | O17: 78.41191577 | P17: 384.9895899 | R17: 42.52842049 | S17: 42.58085092 | T17: 40.96361529 | U17: 39.99214947 | V17: 38.98882877 | W17: 205.0538649 | Y17: 119.9929518 | Z17: 117.4858906 | AA17: 118.3221198 | AB17: 116.8417481 | AC17: 117.4007445 | AD17: 590.0434549 | AF17: 2151.401871 | AG17: 2117.610278 | AH17: 2137.217227 | AI17: 2110.70923 | AJ17: 2098.754413 | AK17: 10615.69302 | AQ17: C-18 | AR17: 2151.401871 | AS17: 2117.610278 | AT17: 2137.217227 | AU17: 2110.70923 | AV17: 2098.754413
A18: C-19 | B18: Non-network | C18: Heavy Vehicle Fleet - 15yrs | D18: ='Non Network Base Capex'!D40 -> 4818.998257 | E18: ='Non Network Base Capex'!E40 -> 8900.721913 | F18: ='Non Network Base Capex'!F40 -> 7074.771475 | G18: ='Non Network Base Capex'!G40 -> 7772.883119 | H18: ='Non Network Base Capex'!H40 -> 5621.661631 | I18: 34189.0364 | P18: 0 | W18: 0 | Y18: 0 | Z18: 0 | AA18: 0 | AB18: 0 | AC18: 0 | AD18: 0 | AF18: 4818.998257 | AG18: 8900.721913 | AH18: 7074.771475 | AI18: 7772.883119 | AJ18: 5621.661631 | AK18: 34189.0364 | AQ18: C-19 | AR18: 4818.998257 | AS18: 8900.721913 | AT18: 7074.771475 | AU18: 7772.883119 | AV18: 5621.661631
A19: C-20 | B19: Non-network | C19: Heavy Vehicle Fleet - 10yrs | D19: ='Non Network Base Capex'!D41 -> 1633.766855 | E19: ='Non Network Base Capex'!E41 -> 1336.718336 | F19: ='Non Network Base Capex'!F41 -> 1782.291115 | G19: ='Non Network Base Capex'!G41 -> 4158.679268 | H19: ='Non Network Base Capex'!H41 -> 2376.388153 | I19: 11287.84373 | P19: 0 | W19: 0 | Y19: 0 | Z19: 0 | AA19: 0 | AB19: 0 | AC19: 0 | AD19: 0 | AF19: 1633.766855 | AG19: 1336.718336 | AH19: 1782.291115 | AI19: 4158.679268 | AJ19: 2376.388153 | AK19: 11287.84373 | AQ19: C-20 | AR19: 1633.766855 | AS19: 1336.718336 | AT19: 1782.291115 | AU19: 4158.679268 | AV19: 2376.388153
A20: C-21 | B20: Non-network | C20: Light Vehicle Fleet | D20: ='Non Network Base Capex'!D42 -> 4872.130697 | E20: ='Non Network Base Capex'!E42 -> 5689.262349 | F20: ='Non Network Base Capex'!F42 -> 9201.959549 | G20: ='Non Network Base Capex'!G42 -> 7156.861682 | H20: ='Non Network Base Capex'!H42 -> 3632.513759 | I20: 30552.72804 | P20: 0 | W20: 0 | Y20: 0 | Z20: 0 | AA20: 0 | AB20: 0 | AC20: 0 | AD20: 0 | AF20: 4872.130697 | AG20: 5689.262349 | AH20: 9201.959549 | AI20: 7156.861682 | AJ20: 3632.513759 | AK20: 30552.72804 | AQ20: C-21 | AR20: 4872.130697 | AS20: 5689.262349 | AT20: 9201.959549 | AU20: 7156.861682 | AV20: 3632.513759
A21: C-22 | B21: Non-network | C21: Plant and Tools | D21: ='Non Network Base Capex'!D43 -> 5096.733333 | E21: ='Non Network Base Capex'!E43 -> 4245.733333 | F21: ='Non Network Base Capex'!F43 -> 3485.233333 | G21: ='Non Network Base Capex'!G43 -> 3220.4 | H21: ='Non Network Base Capex'!H43 -> 3712.4 | I21: 19760.5 | P21: 0 | W21: 0 | Y21: 0 | Z21: 0 | AA21: 0 | AB21: 0 | AC21: 0 | AD21: 0 | AF21: 5096.733333 | AG21: 4245.733333 | AH21: 3485.233333 | AI21: 3220.4 | AJ21: 3712.4 | AK21: 19760.5 | AQ21: C-22 | AR21: 5096.733333 | AS21: 4245.733333 | AT21: 3485.233333 | AU21: 3220.4 | AV21: 3712.4
A22: C-24 | B22: Non-network | C22: Property | D22: ='Non Network Base Capex'!D44 -> 0 | E22: ='Non Network Base Capex'!E44 -> 0 | F22: ='Non Network Base Capex'!F44 -> 0 | G22: ='Non Network Base Capex'!G44 -> 0 | H22: ='Non Network Base Capex'!H44 -> 0 | I22: 0 | P22: 0 | W22: 0 | Y22: 0 | Z22: 0 | AA22: 0 | AB22: 0 | AC22: 0 | AD22: 0 | AF22: 0 | AG22: 0 | AH22: 0 | AI22: 0 | AJ22: 0 | AK22: 0 | AQ22: C-24 | AR22: 0 | AS22: 0 | AT22: 0 | AU22: 0 | AV22: 0
A23: C-25 | B23: Non-network | C23: Information Technology | D23: ='Non Network Base Capex'!D28 -> 53913.6369 | E23: ='Non Network Base Capex'!E28 -> 50461.06019 | F23: ='Non Network Base Capex'!F28 -> 32300.7003 | G23: ='Non Network Base Capex'!G28 -> 24262.40137 | H23: ='Non Network Base Capex'!H28 -> 25109.0203 | I23: 186046.8191 | P23: 0 | W23: 0 | Y23: 0 | Z23: 0 | AA23: 0 | AB23: 0 | AC23: 0 | AD23: 0 | AF23: 53913.6369 | AG23: 50461.06019 | AH23: 32300.7003 | AI23: 24262.40137 | AJ23: 25109.0203 | AK23: 186046.8191 | AQ23: C-25 | AR23: 53913.6369 | AS23: 50461.06019 | AT23: 32300.7003 | AU23: 24262.40137 | AV23: 25109.0203
A24: C-28 | B24: Non-network | C24: Superannuation | D24: ='Non Network Base Capex'!D45 -> -6939.995 | E24: ='Non Network Base Capex'!E45 -> -6939.995 | F24: ='Non Network Base Capex'!F45 -> -6939.995 | G24: ='Non Network Base Capex'!G45 -> -6939.995 | H24: ='Non Network Base Capex'!H45 -> -6939.995 | I24: -34699.975 | P24: 0 | W24: 0 | Y24: 0 | Z24: 0 | AA24: 0 | AB24: 0 | AC24: 0 | AD24: 0 | AF24: -6939.995 | AG24: -6939.995 | AH24: -6939.995 | AI24: -6939.995 | AJ24: -6939.995 | AK24: -34699.975 | AQ24: C-28 | AR24: -6939.995 | AS24: -6939.995 | AT24: -6939.995 | AU24: -6939.995 | AV24: -6939.995
A25: C-29 | B25: Non-network | C25: Operational Information Technology | D25: ='Non Network Base Capex'!D46 -> 1490.469652 | E25: ='Non Network Base Capex'!E46 -> 2183.223919 | F25: ='Non Network Base Capex'!F46 -> 2393.150118 | G25: ='Non Network Base Capex'!G46 -> 1490.469962 | H25: ='Non Network Base Capex'!H46 -> 1343.521257 | I25: 8900.834907 | K25: =K36 -> 117.7062884 | L25: =L36 -> 55.89165298 | M25: 63.31932343 | N25: 122.0997227 | O25: 161.3695351 | P25: 520.3865226 | R25: =D25*R$36 -> 27.0103694 | S25: =E25*S$36 -> 40.23287791 | T25: 42.03199011 | U25: 25.8777893 | V25: 22.88485767 | W25: 158.0378844 | Y25: 144.7166578 | Z25: 96.12453089 | AA25: 105.3513135 | AB25: 147.977512 | AC25: 184.2543928 | AD25: 678.424407 | AF25: 1635.186309 | AG25: 2279.34845 | AH25: 2498.501431 | AI25: 1638.447474 | AJ25: 1527.77565 | AK25: 9579.259314 | AQ25: C-29 | AR25: 1635.186309 | AS25: 2279.34845 | AT25: 2498.501431 | AU25: 1638.447474 | AV25: 1527.77565
A26: Total Gross Capex | D26: =SUM(D7:D9,D11:D25) -> 304834.4538 | E26: =SUM(E7:E9,E11:E25) -> 310006.1751 | F26: 289173.2029 | G26: 277934.1001 | H26: 263280.8404 | I26: 1445228.772 | K26: =SUM(K7:K9,K11:K25) -> 9267.766827 | L26: =SUM(L7:L9,L11:L25) -> 9198.586109 | M26: 9254.672722 | N26: 9249.555804 | O26: 9201.284035 | P26: 46171.8655 | R26: =SUM(R7:R9,R11:R25) -> 5050.440003 | S26: =SUM(S7:S9,S11:S25) -> 5237.529498 | T26: 4909.12536 | U26: 4775.760604 | V26: 4517.809832 | W26: 24490.6653 | Y26: 14318.20683 | Z26: 14436.11561 | AA26: 14163.79808 | AB26: 14025.31641 | AC26: 13719.09387 | AD26: =SUM(AD7:AD9,AD11:AD25) -> 70662.53079 | AF26: =SUM(AF7:AF9,AF11:AF25) -> 319152.6606 | AG26: =SUM(AG7:AG9,AG11:AG25) -> 324442.2907 | AH26: 303337.001 | AI26: 291959.4165 | AJ26: 276999.9343 | AK26: 1515891.303 | AQ26: Total Gross Capex | AR26: =SUM(AR7:AR9,AR11:AR25) -> 319152.6606 | AS26: =SUM(AS7:AS9,AS11:AS25) -> 324442.2907 | AT26: 303337.001 | AU26: 291959.4165 | AV26: 276999.9343
A27: Total Net Capex | D27: =SUM(D26,D10) -> 241928.7121 | E27: 247800.1056 | F27: 226911.0129 | G27: 216169.3188 | H27: 204346.3686 | I27: 1137155.518 | K27: =SUM(K26,K10) -> 6868.956943 | L27: 6868.956943 | M27: 6868.956943 | N27: 6868.956943 | O27: 6868.956943 | P27: 34344.78472 | R27: =SUM(R26,R10) -> 3733.481213 | S27: 3913.218175 | T27: 3645.818321 | U27: 3536.90878 | V27: 3358.104694 | W27: 18187.53118 | Y27: =SUM(Y26,Y10) -> 10602.43816 | Z27: 10782.17512 | AA27: 10514.77526 | AB27: 10405.86572 | AC27: 10227.06164 | AD27: 52532.3159 | AF27: =SUM(AF26,AF10) -> 252531.1503 | AG27: 258582.2807 | AH27: 237425.7882 | AI27: 226575.1845 | AJ27: 214573.4302 | AK27: 1189687.834
A29: Gross Network Capex | D29: =SUM(D7:D9,D11:D17) -> 239948.7131 | E29: =SUM(E7:E9,E11:E17) -> 244129.4501 | F29: 239875.0921 | G29: 236812.3997 | H29: 228425.3303 | I29: =SUM(I7:I9,I11:I17) -> 1189190.985 | K29: =SUM(K7:K9,K11:K17) -> 9150.060538 | L29: 9142.694456 | M29: 9191.353398 | N29: 9127.456082 | O29: 9039.9145 | P29: 45651.47897 | R29: =SUM(R7:R9,R11:R17) -> 5023.429634 | S29: 5197.29662 | T29: 4867.09337 | U29: 4749.882815 | V29: 4494.924975 | W29: 24332.62741 | Y29: =SUM(Y7:Y9,Y11:Y17) -> 14173.49017 | Z29: 14339.99108 | AA29: 14058.44677 | AB29: 13877.3389 | AC29: 13534.83947 | AD29: 69984.10639 | AF29: =SUM(AF7:AF9,AF11:AF17) -> 254122.2032 | AG29: 258469.4412 | AH29: 253933.5388 | AI29: 250689.7386 | AJ29: 241960.1698 | AK29: 1259175.092
A30: Net Network Capex | D30: =D29+D10 -> 177042.9714 | E30: =E29+E10 -> 181923.3806 | F30: 177612.902 | G30: 175047.6183 | H30: 169490.8585 | I30: 881117.7308 | K30: =K29+K10 -> 6751.250655 | L30: 6813.06529 | M30: 6805.63762 | N30: 6746.857221 | O30: 6707.587408 | P30: 33824.39819 | R30: =R29+R10 -> 3706.470844 | S30: 3872.985297 | T30: 3603.786331 | U30: 3511.03099 | V30: 3335.219837 | W30: 18029.4933 | Y30: =Y29+Y10 -> 10457.7215 | Z30: 10686.05059 | AA30: 10409.42395 | AB30: 10257.88821 | AC30: 10042.80725 | AD30: 51853.89149 | AF30: =AF29+AF10 -> 187500.6929 | AG30: 192609.4312 | AH30: 188022.326 | AI30: 185305.5066 | AJ30: 179533.6657 | AK30: 932971.6223
A32: Gross Network Capex | C32: Check | D32: ='Network Projects Direct Costs'!E162-D29 -> 0 | E32: ='Network Projects Direct Costs'!F162-E29 -> 0 | F32: ='Network Projects Direct Costs'!G162-F29 -> 0 | G32: ='Network Projects Direct Costs'!H162-G29 -> 0 | H32: ='Network Projects Direct Costs'!I162-H29 -> 0 | I32: ='Network Projects Direct Costs'!J162-I29 -> 0
A33: Net Network Capex | C33: Check | D33: ='Network Projects Direct Costs'!E163-D30 -> 0 | E33: ='Network Projects Direct Costs'!F163-E30 -> 0 | F33: ='Network Projects Direct Costs'!G163-F30 -> 0 | G33: ='Network Projects Direct Costs'!H163-G30 -> 0 | H33: ='Network Projects Direct Costs'!I163-H30 -> 0 | I33: ='Network Projects Direct Costs'!J163-I30 -> 0
J35: ='General Inputs'!A17 -> Network Capex | K35: ='General Inputs'!B17 -> 6751.250655 | L35: ='General Inputs'!C17 -> 6813.06529 | M35: ='General Inputs'!D17 -> 6805.63762 | N35: ='General Inputs'!E17 -> 6746.857221 | O35: ='General Inputs'!F17 -> 6707.587408 | P35: =SUM(K35:O35) -> 33824.39819 | R35: ='General Inputs'!B26 -> 0.02093543062 | S35: ='General Inputs'!C26 -> 0.02128910141 | T35: ='General Inputs'!D26 -> 0.02029011569 | U35: ='General Inputs'!E26 -> 0.02005757647 | V35: ='General Inputs'!F26 -> 0.01967787447
J36: ='General Inputs'!A18 -> Non-network - Operational Information Technology | K36: ='General Inputs'!B18 -> 117.7062884 | L36: ='General Inputs'!C18 -> 55.89165298 | M36: ='General Inputs'!D18 -> 63.31932343 | N36: ='General Inputs'!E18 -> 122.0997227 | O36: ='General Inputs'!F18 -> 161.3695351 | P36: =SUM(K36:O36) -> 520.3865226 | R36: ='General Inputs'!B27 -> 0.01812205258 | S36: ='General Inputs'!C27 -> 0.01842819583 | T36: ='General Inputs'!D27 -> 0.01756345738 | U36: ='General Inputs'!E27 -> 0.01736216761 | V36: ='General Inputs'!F27 -> 0.01703349132
K37: =SUM(K35:K36) -> 6868.956943 | L37: =SUM(L35:L36) -> 6868.956943 | M37: 6868.956943 | N37: 6868.956943 | O37: 6868.956943 | P37: 34344.78472

Sheet Base Capex Incl Real Price Esc
C2: $2017-18 ($'000) | D2: ='Direct Capex Plus Ohds'!AF2 -> Base Capex Including Overheads | K2: Real Price Escalation | R2: Capex Including Overheads & Real Price Escalation
D6: 2020/21 | E6: 2021/22 | F6: 2022/23 | G6: 2023/24 | H6: 2024/25 | I6: TOTAL | K6: =D6 -> 2020/21 | L6: 2021/22 | M6: 2022/23 | N6: 2023/24 | O6: 2024/25 | P6: TOTAL | R6: =K6 -> 2020/21 | S6: 2021/22 | T6: 2022/23 | U6: 2023/24 | V6: 2024/25 | W6: TOTAL
A7: C-1 | B7: Repex | C7: Asset Replacement and Refurbishment | D7: ='Direct Capex Plus Ohds'!AF7 -> 89024.93982 | E7: ='Direct Capex Plus Ohds'!AG7 -> 91478.81195 | F7: ='Direct Capex Plus Ohds'!AH7 -> 91848.12093 | G7: ='Direct Capex Plus Ohds'!AI7 -> 91065.99882 | H7: ='Direct Capex Plus Ohds'!AJ7 -> 89485.88583 | I7: =SUM(D7:H7) -> 452903.7573 | K7: =D7*('Misc Data'!$D6*'General Inputs'!N$34+'Misc Data'!$E6*'General Inputs'!N$35+'Misc Data'!$F6*'General Inputs'!N$36+'Misc Data'!$G6*'General Inputs'!N$37+'Misc Data'!$I6*'General Inputs'!N$38+'Misc Data'!$H6*'General Inputs'!N$39) -> 662.3399971 | L7: =E7*('Misc Data'!$D6*'General Inputs'!O$34+'Misc Data'!$E6*'General Inputs'!O$35+'Misc Data'!$F6*'General Inputs'!O$36+'Misc Data'!$G6*'General Inputs'!O$37+'Misc Data'!$I6*'General Inputs'!O$38+'Misc Data'!$H6*'General Inputs'!O$39) -> 840.3346699 | M7: =F7*('Misc Data'!$D6*'General Inputs'!P$34+'Misc Data'!$E6*'General Inputs'!P$35+'Misc Data'!$F6*'General Inputs'!P$36+'Misc Data'!$G6*'General Inputs'!P$37+'Misc Data'!$I6*'General Inputs'!P$38+'Misc Data'!$H6*'General Inputs'!P$39) -> 991.1221787 | N7: =G7*('Misc Data'!$D6*'General Inputs'!Q$34+'Misc Data'!$E6*'General Inputs'!Q$35+'Misc Data'!$F6*'General Inputs'!Q$36+'Misc Data'!$G6*'General Inputs'!Q$37+'Misc Data'!$I6*'General Inputs'!Q$38+'Misc Data'!$H6*'General Inputs'!Q$39) -> 1176.80166 | O7: =H7*('Misc Data'!$D6*'General Inputs'!R$34+'Misc Data'!$E6*'General Inputs'!R$35+'Misc Data'!$F6*'General Inputs'!R$36+'Misc Data'!$G6*'General Inputs'!R$37+'Misc Data'!$I6*'General Inputs'!R$38+'Misc Data'!$H6*'General Inputs'!R$39) -> 1343.035285 | P7: =SUM(K7:O7) -> 5013.633791 | R7: =SUM(D7,K7) -> 89687.27982 | S7: =SUM(E7,L7) -> 92319.14662 | T7: =SUM(F7,M7) -> 92839.2431 | U7: =SUM(G7,N7) -> 92242.80048 | V7: =SUM(H7,O7) -> 90828.92112 | W7: =SUM(R7:V7) -> 457917.3911
A8: C-2 | B8: Augex | C8: Augmentation/Capacity | D8: ='Direct Capex Plus Ohds'!AF8 -> 23193.07042 | E8: ='Direct Capex Plus Ohds'!AG8 -> 21485.58264 | F8: ='Direct Capex Plus Ohds'!AH8 -> 18802.55233 | G8: ='Direct Capex Plus Ohds'!AI8 -> 17777.98681 | H8: ='Direct Capex Plus Ohds'!AJ8 -> 16114.3553 | I8: =SUM(D8:H8) -> 97373.5475 | K8: =D8*('Misc Data'!$D7*'General Inputs'!N$34+'Misc Data'!$E7*'General Inputs'!N$35+'Misc Data'!$F7*'General Inputs'!N$36+'Misc Data'!$G7*'General Inputs'!N$37+'Misc Data'!$I7*'General Inputs'!N$38+'Misc Data'!$H7*'General Inputs'!N$39) -> 161.3014099 | L8: =E8*('Misc Data'!$D7*'General Inputs'!O$34+'Misc Data'!$E7*'General Inputs'!O$35+'Misc Data'!$F7*'General Inputs'!O$36+'Misc Data'!$G7*'General Inputs'!O$37+'Misc Data'!$I7*'General Inputs'!O$38+'Misc Data'!$H7*'General Inputs'!O$39) -> 184.4970919 | M8: =F8*('Misc Data'!$D7*'General Inputs'!P$34+'Misc Data'!$E7*'General Inputs'!P$35+'Misc Data'!$F7*'General Inputs'!P$36+'Misc Data'!$G7*'General Inputs'!P$37+'Misc Data'!$I7*'General Inputs'!P$38+'Misc Data'!$H7*'General Inputs'!P$39) -> 189.6637569 | N8: =G8*('Misc Data'!$D7*'General Inputs'!Q$34+'Misc Data'!$E7*'General Inputs'!Q$35+'Misc Data'!$F7*'General Inputs'!Q$36+'Misc Data'!$G7*'General Inputs'!Q$37+'Misc Data'!$I7*'General Inputs'!Q$38+'Misc Data'!$H7*'General Inputs'!Q$39) -> 214.7534852 | O8: =H8*('Misc Data'!$D7*'General Inputs'!R$34+'Misc Data'!$E7*'General Inputs'!R$35+'Misc Data'!$F7*'General Inputs'!R$36+'Misc Data'!$G7*'General Inputs'!R$37+'Misc Data'!$I7*'General Inputs'!R$38+'Misc Data'!$H7*'General Inputs'!R$39) -> 226.0770305 | P8: =SUM(K8:O8) -> 976.2927744 | R8: =SUM(D8,K8) -> 23354.37183 | S8: 21670.07973 | T8: 18992.21609 | U8: 17992.7403 | V8: 16340.43233 | W8: =SUM(R8:V8) -> 98349.84027
A9: C-3 | B9: Connections | C9: Connections | D9: ='Direct Capex Plus Ohds'!AF9 -> 98424.57637 | E9: ='Direct Capex Plus Ohds'!AG9 -> 99439.97876 | F9: ='Direct Capex Plus Ohds'!AH9 -> 99796.95202 | G9: ='Direct Capex Plus Ohds'!AI9 -> 98837.93029 | H9: ='Direct Capex Plus Ohds'!AJ9 -> 95202.84894 | I9: 491702.2864 | K9: =D9*('Misc Data'!$D8*'General Inputs'!N$34+'Misc Data'!$E8*'General Inputs'!N$35+'Misc Data'!$F8*'General Inputs'!N$36+'Misc Data'!$G8*'General Inputs'!N$37+'Misc Data'!$I8*'General Inputs'!N$38+'Misc Data'!$H8*'General Inputs'!N$39) -> 827.7865378 | L9: =E9*('Misc Data'!$D8*'General Inputs'!O$34+'Misc Data'!$E8*'General Inputs'!O$35+'Misc Data'!$F8*'General Inputs'!O$36+'Misc Data'!$G8*'General Inputs'!O$37+'Misc Data'!$I8*'General Inputs'!O$38+'Misc Data'!$H8*'General Inputs'!O$39) -> 1032.614694 | M9: =F9*('Misc Data'!$D8*'General Inputs'!P$34+'Misc Data'!$E8*'General Inputs'!P$35+'Misc Data'!$F8*'General Inputs'!P$36+'Misc Data'!$G8*'General Inputs'!P$37+'Misc Data'!$I8*'General Inputs'!P$38+'Misc Data'!$H8*'General Inputs'!P$39) -> 1217.361908 | N9: =G9*('Misc Data'!$D8*'General Inputs'!Q$34+'Misc Data'!$E8*'General Inputs'!Q$35+'Misc Data'!$F8*'General Inputs'!Q$36+'Misc Data'!$G8*'General Inputs'!Q$37+'Misc Data'!$I8*'General Inputs'!Q$38+'Misc Data'!$H8*'General Inputs'!Q$39) -> 1443.830366 | O9: =H9*('Misc Data'!$D8*'General Inputs'!R$34+'Misc Data'!$E8*'General Inputs'!R$35+'Misc Data'!$F8*'General Inputs'!R$36+'Misc Data'!$G8*'General Inputs'!R$37+'Misc Data'!$I8*'General Inputs'!R$38+'Misc Data'!$H8*'General Inputs'!R$39) -> 1615.207558 | P9: 6136.801064 | R9: 99252.36291 | S9: 100472.5935 | T9: 101014.3139 | U9: 100281.7607 | V9: 96818.0565 | W9: 497839.0875
A10: C-4 | B10: Connections | C10: Contributions | D10: ='Direct Capex Plus Ohds'!AF10 -> -66621.51033 | E10: ='Direct Capex Plus Ohds'!AG10 -> -65860.01002 | F10: ='Direct Capex Plus Ohds'!AH10 -> -65911.21285 | G10: ='Direct Capex Plus Ohds'!AI10 -> -65384.23201 | H10: ='Direct Capex Plus Ohds'!AJ10 -> -62426.50404 | I10: -326203.4693 | K10: =D10*('Misc Data'!$D9*'General Inputs'!N$34+'Misc Data'!$E9*'General Inputs'!N$35+'Misc Data'!$F9*'General Inputs'!N$36+'Misc Data'!$G9*'General Inputs'!N$37+'Misc Data'!$I9*'General Inputs'!N$38+'Misc Data'!$H9*'General Inputs'!N$39) -> -538.7607388 | L10: =E10*('Misc Data'!$D9*'General Inputs'!O$34+'Misc Data'!$E9*'General Inputs'!O$35+'Misc Data'!$F9*'General Inputs'!O$36+'Misc Data'!$G9*'General Inputs'!O$37+'Misc Data'!$I9*'General Inputs'!O$38+'Misc Data'!$H9*'General Inputs'!O$39) -> -657.6059456 | M10: =F10*('Misc Data'!$D9*'General Inputs'!P$34+'Misc Data'!$E9*'General Inputs'!P$35+'Misc Data'!$F9*'General Inputs'!P$36+'Misc Data'!$G9*'General Inputs'!P$37+'Misc Data'!$I9*'General Inputs'!P$38+'Misc Data'!$H9*'General Inputs'!P$39) -> -773.0870436 | N10: =G10*('Misc Data'!$D9*'General Inputs'!Q$34+'Misc Data'!$E9*'General Inputs'!Q$35+'Misc Data'!$F9*'General Inputs'!Q$36+'Misc Data'!$G9*'General Inputs'!Q$37+'Misc Data'!$I9*'General Inputs'!Q$38+'Misc Data'!$H9*'General Inputs'!Q$39) -> -918.4007222 | O10: =H10*('Misc Data'!$D9*'General Inputs'!R$34+'Misc Data'!$E9*'General Inputs'!R$35+'Misc Data'!$F9*'General Inputs'!R$36+'Misc Data'!$G9*'General Inputs'!R$37+'Misc Data'!$I9*'General Inputs'!R$38+'Misc Data'!$H9*'General Inputs'!R$39) -> -1018.389865 | P10: -3906.244315 | R10: -67160.27107 | S10: -66517.61597 | T10: -66684.2999 | U10: -66302.63273 | V10: -63444.8939 | W10: -330109.7136
A11: C-5 | B11: Augex | C11: Reliability | D11: ='Direct Capex Plus Ohds'!AF11 -> 6096.374912 | E11: ='Direct Capex Plus Ohds'!AG11 -> 6094.477965 | F11: ='Direct Capex Plus Ohds'!AH11 -> 6093.718539 | G11: ='Direct Capex Plus Ohds'!AI11 -> 6093.679366 | H11: ='Direct Capex Plus Ohds'!AJ11 -> 6097.433875 | I11: 30475.68466 | K11: =D11*('Misc Data'!$D10*'General Inputs'!N$34+'Misc Data'!$E10*'General Inputs'!N$35+'Misc Data'!$F10*'General Inputs'!N$36+'Misc Data'!$G10*'General Inputs'!N$37+'Misc Data'!$I10*'General Inputs'!N$38+'Misc Data'!$H10*'General Inputs'!N$39) -> 74.93707215 | L11: =E11*('Misc Data'!$D10*'General Inputs'!O$34+'Misc Data'!$E10*'General Inputs'!O$35+'Misc Data'!$F10*'General Inputs'!O$36+'Misc Data'!$G10*'General Inputs'!O$37+'Misc Data'!$I10*'General Inputs'!O$38+'Misc Data'!$H10*'General Inputs'!O$39) -> 92.49623124 | M11: =F11*('Misc Data'!$D10*'General Inputs'!P$34+'Misc Data'!$E10*'General Inputs'!P$35+'Misc Data'!$F10*'General Inputs'!P$36+'Misc Data'!$G10*'General Inputs'!P$37+'Misc Data'!$I10*'General Inputs'!P$38+'Misc Data'!$H10*'General Inputs'!P$39) -> 108.6413292 | N11: =G11*('Misc Data'!$D10*'General Inputs'!Q$34+'Misc Data'!$E10*'General Inputs'!Q$35+'Misc Data'!$F10*'General Inputs'!Q$36+'Misc Data'!$G10*'General Inputs'!Q$37+'Misc Data'!$I10*'General Inputs'!Q$38+'Misc Data'!$H10*'General Inputs'!Q$39) -> 130.1015218 | O11: =H11*('Misc Data'!$D10*'General Inputs'!R$34+'Misc Data'!$E10*'General Inputs'!R$35+'Misc Data'!$F10*'General Inputs'!R$36+'Misc Data'!$G10*'General Inputs'!R$37+'Misc Data'!$I10*'General Inputs'!R$38+'Misc Data'!$H10*'General Inputs'!R$39) -> 151.1944123 | P11: 557.3705666 | R11: 6171.311984 | S11: 6186.974196 | T11: 6202.359868 | U11: 6223.780887 | V11: 6248.628287 | W11: 31033.05522
A12: C-6 | B12: Augex | C12: Environmental | D12: ='Direct Capex Plus Ohds'!AF12 -> 1829.796006 | E12: ='Direct Capex Plus Ohds'!AG12 -> 1829.226647 | F12: ='Direct Capex Plus Ohds'!AH12 -> 1828.998709 | G12: ='Direct Capex Plus Ohds'!AI12 -> 1828.986952 | H12: ='Direct Capex Plus Ohds'!AJ12 -> 1830.113848 | I12: 9147.122163 | K12: =D12*('Misc Data'!$D11*'General Inputs'!N$34+'Misc Data'!$E11*'General Inputs'!N$35+'Misc Data'!$F11*'General Inputs'!N$36+'Misc Data'!$G11*'General Inputs'!N$37+'Misc Data'!$I11*'General Inputs'!N$38+'Misc Data'!$H11*'General Inputs'!N$39) -> 11.24599105 | L12: =E12*('Misc Data'!$D11*'General Inputs'!O$34+'Misc Data'!$E11*'General Inputs'!O$35+'Misc Data'!$F11*'General Inputs'!O$36+'Misc Data'!$G11*'General Inputs'!O$37+'Misc Data'!$I11*'General Inputs'!O$38+'Misc Data'!$H11*'General Inputs'!O$39) -> 13.88113731 | M12: =F12*('Misc Data'!$D11*'General Inputs'!P$34+'Misc Data'!$E11*'General Inputs'!P$35+'Misc Data'!$F11*'General Inputs'!P$36+'Misc Data'!$G11*'General Inputs'!P$37+'Misc Data'!$I11*'General Inputs'!P$38+'Misc Data'!$H11*'General Inputs'!P$39) -> 16.30407193 | N12: =G12*('Misc Data'!$D11*'General Inputs'!Q$34+'Misc Data'!$E11*'General Inputs'!Q$35+'Misc Data'!$F11*'General Inputs'!Q$36+'Misc Data'!$G11*'General Inputs'!Q$37+'Misc Data'!$I11*'General Inputs'!Q$38+'Misc Data'!$H11*'General Inputs'!Q$39) -> 19.52465592 | O12: =H12*('Misc Data'!$D11*'General Inputs'!R$34+'Misc Data'!$E11*'General Inputs'!R$35+'Misc Data'!$F11*'General Inputs'!R$36+'Misc Data'!$G11*'General Inputs'!R$37+'Misc Data'!$I11*'General Inputs'!R$38+'Misc Data'!$H11*'General Inputs'!R$39) -> 22.69011796 | P12: 83.64597417 | R12: 1841.041997 | S12: 1843.107784 | T12: 1845.302781 | U12: 1848.511608 | V12: 1852.803966 | W12: 9230.768137
A13: C-7 | B13: Augex | C13: Safety Augex | D13: ='Direct Capex Plus Ohds'!AF13 -> 4999.365269 | E13: ='Direct Capex Plus Ohds'!AG13 -> 4997.809667 | F13: ='Direct Capex Plus Ohds'!AH13 -> 4997.186896 | G13: ='Direct Capex Plus Ohds'!AI13 -> 4997.154772 | H13: ='Direct Capex Plus Ohds'!AJ13 -> 5000.233677 | I13: 24991.75028 | K13: =D13*('Misc Data'!$D12*'General Inputs'!N$34+'Misc Data'!$E12*'General Inputs'!N$35+'Misc Data'!$F12*'General Inputs'!N$36+'Misc Data'!$G12*'General Inputs'!N$37+'Misc Data'!$I12*'General Inputs'!N$38+'Misc Data'!$H12*'General Inputs'!N$39) -> 48.51517258 | L13: =E13*('Misc Data'!$D12*'General Inputs'!O$34+'Misc Data'!$E12*'General Inputs'!O$35+'Misc Data'!$F12*'General Inputs'!O$36+'Misc Data'!$G12*'General Inputs'!O$37+'Misc Data'!$I12*'General Inputs'!O$38+'Misc Data'!$H12*'General Inputs'!O$39) -> 59.88318589 | M13: =F13*('Misc Data'!$D12*'General Inputs'!P$34+'Misc Data'!$E12*'General Inputs'!P$35+'Misc Data'!$F12*'General Inputs'!P$36+'Misc Data'!$G12*'General Inputs'!P$37+'Misc Data'!$I12*'General Inputs'!P$38+'Misc Data'!$H12*'General Inputs'!P$39) -> 70.33571879 | N13: =G13*('Misc Data'!$D12*'General Inputs'!Q$34+'Misc Data'!$E12*'General Inputs'!Q$35+'Misc Data'!$F12*'General Inputs'!Q$36+'Misc Data'!$G12*'General Inputs'!Q$37+'Misc Data'!$I12*'General Inputs'!Q$38+'Misc Data'!$H12*'General Inputs'!Q$39) -> 84.22930869 | O13: =H13*('Misc Data'!$D12*'General Inputs'!R$34+'Misc Data'!$E12*'General Inputs'!R$35+'Misc Data'!$F12*'General Inputs'!R$36+'Misc Data'!$G12*'General Inputs'!R$37+'Misc Data'!$I12*'General Inputs'!R$38+'Misc Data'!$H12*'General Inputs'!R$39) -> 97.88510272 | P13: 360.8484887 | R13: 5047.880442 | S13: 5057.692853 | T13: 5067.522614 | U13: 5081.38408 | V13: 5098.11878 | W13: 25352.59877
A14: C-8 | B14: Repex | C14: Safety Repex | D14: ='Direct Capex Plus Ohds'!AF14 -> 11086.32322 | E14: ='Direct Capex Plus Ohds'!AG14 -> 10708.36695 | F14: ='Direct Capex Plus Ohds'!AH14 -> 10308.811 | G14: ='Direct Capex Plus Ohds'!AI14 -> 10630.17683 | H14: ='Direct Capex Plus Ohds'!AJ14 -> 10745.12759 | I14: 53478.80559 | K14: =D14*('Misc Data'!$D13*'General Inputs'!N$34+'Misc Data'!$E13*'General Inputs'!N$35+'Misc Data'!$F13*'General Inputs'!N$36+'Misc Data'!$G13*'General Inputs'!N$37+'Misc Data'!$I13*'General Inputs'!N$38+'Misc Data'!$H13*'General Inputs'!N$39) -> 107.5846344 | L14: =E14*('Misc Data'!$D13*'General Inputs'!O$34+'Misc Data'!$E13*'General Inputs'!O$35+'Misc Data'!$F13*'General Inputs'!O$36+'Misc Data'!$G13*'General Inputs'!O$37+'Misc Data'!$I13*'General Inputs'!O$38+'Misc Data'!$H13*'General Inputs'!O$39) -> 128.3064324 | M14: =F14*('Misc Data'!$D13*'General Inputs'!P$34+'Misc Data'!$E13*'General Inputs'!P$35+'Misc Data'!$F13*'General Inputs'!P$36+'Misc Data'!$G13*'General Inputs'!P$37+'Misc Data'!$I13*'General Inputs'!P$38+'Misc Data'!$H13*'General Inputs'!P$39) -> 145.097161 | N14: =G14*('Misc Data'!$D13*'General Inputs'!Q$34+'Misc Data'!$E13*'General Inputs'!Q$35+'Misc Data'!$F13*'General Inputs'!Q$36+'Misc Data'!$G13*'General Inputs'!Q$37+'Misc Data'!$I13*'General Inputs'!Q$38+'Misc Data'!$H13*'General Inputs'!Q$39) -> 179.1764487 | O14: =H14*('Misc Data'!$D13*'General Inputs'!R$34+'Misc Data'!$E13*'General Inputs'!R$35+'Misc Data'!$F13*'General Inputs'!R$36+'Misc Data'!$G13*'General Inputs'!R$37+'Misc Data'!$I13*'General Inputs'!R$38+'Misc Data'!$H13*'General Inputs'!R$39) -> 210.3477529 | P14: 770.5124294 | R14: 11193.90786 | S14: 10836.67338 | T14: 10453.90816 | U14: 10809.35328 | V14: 10955.47534 | W14: 54249.31802
A15: C-10 | B15: Augex | C15: PLEC (Undergrounding) | D15: ='Direct Capex Plus Ohds'!AF15 -> 10160.62485 | E15: ='Direct Capex Plus Ohds'!AG15 -> 10157.46327 | F15: ='Direct Capex Plus Ohds'!AH15 -> 10156.19756 | G15: ='Direct Capex Plus Ohds'!AI15 -> 10156.13228 | H15: ='Direct Capex Plus Ohds'!AJ15 -> 10162.38979 | I15: 50792.80776 | K15: =D15*('Misc Data'!$D14*'General Inputs'!N$34+'Misc Data'!$E14*'General Inputs'!N$35+'Misc Data'!$F14*'General Inputs'!N$36+'Misc Data'!$G14*'General Inputs'!N$37+'Misc Data'!$I14*'General Inputs'!N$38+'Misc Data'!$H14*'General Inputs'!N$39) -> 26.29370953 | L15: =E15*('Misc Data'!$D14*'General Inputs'!O$34+'Misc Data'!$E14*'General Inputs'!O$35+'Misc Data'!$F14*'General Inputs'!O$36+'Misc Data'!$G14*'General Inputs'!O$37+'Misc Data'!$I14*'General Inputs'!O$38+'Misc Data'!$H14*'General Inputs'!O$39) -> 32.45481798 | M15: =F15*('Misc Data'!$D14*'General Inputs'!P$34+'Misc Data'!$E14*'General Inputs'!P$35+'Misc Data'!$F14*'General Inputs'!P$36+'Misc Data'!$G14*'General Inputs'!P$37+'Misc Data'!$I14*'General Inputs'!P$38+'Misc Data'!$H14*'General Inputs'!P$39) -> 38.11976462 | N15: =G15*('Misc Data'!$D14*'General Inputs'!Q$34+'Misc Data'!$E14*'General Inputs'!Q$35+'Misc Data'!$F14*'General Inputs'!Q$36+'Misc Data'!$G14*'General Inputs'!Q$37+'Misc Data'!$I14*'General Inputs'!Q$38+'Misc Data'!$H14*'General Inputs'!Q$39) -> 45.64965677 | O15: =H15*('Misc Data'!$D14*'General Inputs'!R$34+'Misc Data'!$E14*'General Inputs'!R$35+'Misc Data'!$F14*'General Inputs'!R$36+'Misc Data'!$G14*'General Inputs'!R$37+'Misc Data'!$I14*'General Inputs'!R$38+'Misc Data'!$H14*'General Inputs'!R$39) -> 53.05067098 | P15: 195.5686199 | R15: 10186.91856 | S15: 10189.91809 | T15: 10194.31733 | U15: 10201.78193 | V15: 10215.44046 | W15: 50988.37638
A16: C-15 | B16: Augex | C16: Strategic - Network Security | D16: ='Direct Capex Plus Ohds'!AF16 -> 7155.730495 | E16: ='Direct Capex Plus Ohds'!AG16 -> 10160.11305 | F16: ='Direct Capex Plus Ohds'!AH16 -> 7963.783612 | G16: ='Direct Capex Plus Ohds'!AI16 -> 7190.983222 | H16: ='Direct Capex Plus Ohds'!AJ16 -> 5223.026509 | I16: 37693.63689 | K16: =D16*('Misc Data'!$D15*'General Inputs'!N$34+'Misc Data'!$E15*'General Inputs'!N$35+'Misc Data'!$F15*'General Inputs'!N$36+'Misc Data'!$G15*'General Inputs'!N$37+'Misc Data'!$I15*'General Inputs'!N$38+'Misc Data'!$H15*'General Inputs'!N$39) -> 60.18229989 | L16: =E16*('Misc Data'!$D15*'General Inputs'!O$34+'Misc Data'!$E15*'General Inputs'!O$35+'Misc Data'!$F15*'General Inputs'!O$36+'Misc Data'!$G15*'General Inputs'!O$37+'Misc Data'!$I15*'General Inputs'!O$38+'Misc Data'!$H15*'General Inputs'!O$39) -> 105.5056745 | M16: =F16*('Misc Data'!$D15*'General Inputs'!P$34+'Misc Data'!$E15*'General Inputs'!P$35+'Misc Data'!$F15*'General Inputs'!P$36+'Misc Data'!$G15*'General Inputs'!P$37+'Misc Data'!$I15*'General Inputs'!P$38+'Misc Data'!$H15*'General Inputs'!P$39) -> 97.14531971 | N16: =G16*('Misc Data'!$D15*'General Inputs'!Q$34+'Misc Data'!$E15*'General Inputs'!Q$35+'Misc Data'!$F15*'General Inputs'!Q$36+'Misc Data'!$G15*'General Inputs'!Q$37+'Misc Data'!$I15*'General Inputs'!Q$38+'Misc Data'!$H15*'General Inputs'!Q$39) -> 105.0463107 | O16: =H16*('Misc Data'!$D15*'General Inputs'!R$34+'Misc Data'!$E15*'General Inputs'!R$35+'Misc Data'!$F15*'General Inputs'!R$36+'Misc Data'!$G15*'General Inputs'!R$37+'Misc Data'!$I15*'General Inputs'!R$38+'Misc Data'!$H15*'General Inputs'!R$39) -> 88.61364958 | P16: 456.4932544 | R16: 7215.912794 | S16: 10265.61872 | T16: 8060.928931 | U16: 7296.029533 | V16: 5311.640159 | W16: 38150.13014
A17: C-18 | B17: Augex | C17: Safety (Bushfire) | D17: ='Direct Capex Plus Ohds'!AF17 -> 2151.401871 | E17: ='Direct Capex Plus Ohds'!AG17 -> 2117.610278 | F17: ='Direct Capex Plus Ohds'!AH17 -> 2137.217227 | G17: ='Direct Capex Plus Ohds'!AI17 -> 2110.70923 | H17: ='Direct Capex Plus Ohds'!AJ17 -> 2098.754413 | I17: 10615.69302 | K17: =D17*('Misc Data'!$D16*'General Inputs'!N$34+'Misc Data'!$E16*'General Inputs'!N$35+'Misc Data'!$F16*'General Inputs'!N$36+'Misc Data'!$G16*'General Inputs'!N$37+'Misc Data'!$I16*'General Inputs'!N$38+'Misc Data'!$H16*'General Inputs'!N$39) -> 20.87777697 | L17: =E17*('Misc Data'!$D16*'General Inputs'!O$34+'Misc Data'!$E16*'General Inputs'!O$35+'Misc Data'!$F16*'General Inputs'!O$36+'Misc Data'!$G16*'General Inputs'!O$37+'Misc Data'!$I16*'General Inputs'!O$38+'Misc Data'!$H16*'General Inputs'!O$39) -> 25.37296503 | M17: =F17*('Misc Data'!$D16*'General Inputs'!P$34+'Misc Data'!$E16*'General Inputs'!P$35+'Misc Data'!$F16*'General Inputs'!P$36+'Misc Data'!$G16*'General Inputs'!P$37+'Misc Data'!$I16*'General Inputs'!P$38+'Misc Data'!$H16*'General Inputs'!P$39) -> 30.08146643 | N17: =G17*('Misc Data'!$D16*'General Inputs'!Q$34+'Misc Data'!$E16*'General Inputs'!Q$35+'Misc Data'!$F16*'General Inputs'!Q$36+'Misc Data'!$G16*'General Inputs'!Q$37+'Misc Data'!$I16*'General Inputs'!Q$38+'Misc Data'!$H16*'General Inputs'!Q$39) -> 35.57696077 | O17: =H17*('Misc Data'!$D16*'General Inputs'!R$34+'Misc Data'!$E16*'General Inputs'!R$35+'Misc Data'!$F16*'General Inputs'!R$36+'Misc Data'!$G16*'General Inputs'!R$37+'Misc Data'!$I16*'General Inputs'!R$38+'Misc Data'!$H16*'General Inputs'!R$39) -> 41.08543812 | P17: 152.9946073 | R17: 2172.279648 | S17: 2142.983243 | T17: 2167.298693 | U17: 2146.28619 | V17: 2139.839851 | W17: 10768.68763
A18: C-19 | B18: Non-network | C18: Heavy Vehicle Fleet - 15yrs | D18: ='Direct Capex Plus Ohds'!AF18 -> 4818.998257 | E18: ='Direct Capex Plus Ohds'!AG18 -> 8900.721913 | F18: ='Direct Capex Plus Ohds'!AH18 -> 7074.771475 | G18: ='Direct Capex Plus Ohds'!AI18 -> 7772.883119 | H18: ='Direct Capex Plus Ohds'!AJ18 -> 5621.661631 | I18: 34189.0364 | K18: =D18*('Misc Data'!$D17*'General Inputs'!N$34+'Misc Data'!$E17*'General Inputs'!N$35+'Misc Data'!$F17*'General Inputs'!N$36+'Misc Data'!$G17*'General Inputs'!N$37+'Misc Data'!$I17*'General Inputs'!N$38+'Misc Data'!$H17*'General Inputs'!N$39) -> 0 | L18: =E18*('Misc Data'!$D17*'General Inputs'!O$34+'Misc Data'!$E17*'General Inputs'!O$35+'Misc Data'!$F17*'General Inputs'!O$36+'Misc Data'!$G17*'General Inputs'!O$37+'Misc Data'!$I17*'General Inputs'!O$38+'Misc Data'!$H17*'General Inputs'!O$39) -> 0 | M18: =F18*('Misc Data'!$D17*'General Inputs'!P$34+'Misc Data'!$E17*'General Inputs'!P$35+'Misc Data'!$F17*'General Inputs'!P$36+'Misc Data'!$G17*'General Inputs'!P$37+'Misc Data'!$I17*'General Inputs'!P$38+'Misc Data'!$H17*'General Inputs'!P$39) -> 0 | N18: =G18*('Misc Data'!$D17*'General Inputs'!Q$34+'Misc Data'!$E17*'General Inputs'!Q$35+'Misc Data'!$F17*'General Inputs'!Q$36+'Misc Data'!$G17*'General Inputs'!Q$37+'Misc Data'!$I17*'General Inputs'!Q$38+'Misc Data'!$H17*'General Inputs'!Q$39) -> 0 | O18: =H18*('Misc Data'!$D17*'General Inputs'!R$34+'Misc Data'!$E17*'General Inputs'!R$35+'Misc Data'!$F17*'General Inputs'!R$36+'Misc Data'!$G17*'General Inputs'!R$37+'Misc Data'!$I17*'General Inputs'!R$38+'Misc Data'!$H17*'General Inputs'!R$39) -> 0 | P18: 0 | R18: 4818.998257 | S18: 8900.721913 | T18: 7074.771475 | U18: 7772.883119 | V18: 5621.661631 | W18: 34189.0364
A19: C-20 | B19: Non-network | C19: Heavy Vehicle Fleet - 10yrs | D19: ='Direct Capex Plus Ohds'!AF19 -> 1633.766855 | E19: ='Direct Capex Plus Ohds'!AG19 -> 1336.718336 | F19: ='Direct Capex Plus Ohds'!AH19 -> 1782.291115 | G19: ='Direct Capex Plus Ohds'!AI19 -> 4158.679268 | H19: ='Direct Capex Plus Ohds'!AJ19 -> 2376.388153 | I19: 11287.84373 | K19: =D19*('Misc Data'!$D18*'General Inputs'!N$34+'Misc Data'!$E18*'General Inputs'!N$35+'Misc Data'!$F18*'General Inputs'!N$36+'Misc Data'!$G18*'General Inputs'!N$37+'Misc Data'!$I18*'General Inputs'!N$38+'Misc Data'!$H18*'General Inputs'!N$39) -> 0 | L19: =E19*('Misc Data'!$D18*'General Inputs'!O$34+'Misc Data'!$E18*'General Inputs'!O$35+'Misc Data'!$F18*'General Inputs'!O$36+'Misc Data'!$G18*'General Inputs'!O$37+'Misc Data'!$I18*'General Inputs'!O$38+'Misc Data'!$H18*'General Inputs'!O$39) -> 0 | M19: =F19*('Misc Data'!$D18*'General Inputs'!P$34+'Misc Data'!$E18*'General Inputs'!P$35+'Misc Data'!$F18*'General Inputs'!P$36+'Misc Data'!$G18*'General Inputs'!P$37+'Misc Data'!$I18*'General Inputs'!P$38+'Misc Data'!$H18*'General Inputs'!P$39) -> 0 | N19: =G19*('Misc Data'!$D18*'General Inputs'!Q$34+'Misc Data'!$E18*'General Inputs'!Q$35+'Misc Data'!$F18*'General Inputs'!Q$36+'Misc Data'!$G18*'General Inputs'!Q$37+'Misc Data'!$I18*'General Inputs'!Q$38+'Misc Data'!$H18*'General Inputs'!Q$39) -> 0 | O19: =H19*('Misc Data'!$D18*'General Inputs'!R$34+'Misc Data'!$E18*'General Inputs'!R$35+'Misc Data'!$F18*'General Inputs'!R$36+'Misc Data'!$G18*'General Inputs'!R$37+'Misc Data'!$I18*'General Inputs'!R$38+'Misc Data'!$H18*'General Inputs'!R$39) -> 0 | P19: 0 | R19: 1633.766855 | S19: 1336.718336 | T19: 1782.291115 | U19: 4158.679268 | V19: 2376.388153 | W19: 11287.84373
A20: C-21 | B20: Non-network | C20: Light Vehicle Fleet | D20: ='Direct Capex Plus Ohds'!AF20 -> 4872.130697 | E20: ='Direct Capex Plus Ohds'!AG20 -> 5689.262349 | F20: ='Direct Capex Plus Ohds'!AH20 -> 9201.959549 | G20: ='Direct Capex Plus Ohds'!AI20 -> 7156.861682 | H20: ='Direct Capex Plus Ohds'!AJ20 -> 3632.513759 | I20: 30552.72804 | K20: =D20*('Misc Data'!$D19*'General Inputs'!N$34+'Misc Data'!$E19*'General Inputs'!N$35+'Misc Data'!$F19*'General Inputs'!N$36+'Misc Data'!$G19*'General Inputs'!N$37+'Misc Data'!$I19*'General Inputs'!N$38+'Misc Data'!$H19*'General Inputs'!N$39) -> 0 | L20: =E20*('Misc Data'!$D19*'General Inputs'!O$34+'Misc Data'!$E19*'General Inputs'!O$35+'Misc Data'!$F19*'General Inputs'!O$36+'Misc Data'!$G19*'General Inputs'!O$37+'Misc Data'!$I19*'General Inputs'!O$38+'Misc Data'!$H19*'General Inputs'!O$39) -> 0 | M20: =F20*('Misc Data'!$D19*'General Inputs'!P$34+'Misc Data'!$E19*'General Inputs'!P$35+'Misc Data'!$F19*'General Inputs'!P$36+'Misc Data'!$G19*'General Inputs'!P$37+'Misc Data'!$I19*'General Inputs'!P$38+'Misc Data'!$H19*'General Inputs'!P$39) -> 0 | N20: =G20*('Misc Data'!$D19*'General Inputs'!Q$34+'Misc Data'!$E19*'General Inputs'!Q$35+'Misc Data'!$F19*'General Inputs'!Q$36+'Misc Data'!$G19*'General Inputs'!Q$37+'Misc Data'!$I19*'General Inputs'!Q$38+'Misc Data'!$H19*'General Inputs'!Q$39) -> 0 | O20: =H20*('Misc Data'!$D19*'General Inputs'!R$34+'Misc Data'!$E19*'General Inputs'!R$35+'Misc Data'!$F19*'General Inputs'!R$36+'Misc Data'!$G19*'General Inputs'!R$37+'Misc Data'!$I19*'General Inputs'!R$38+'Misc Data'!$H19*'General Inputs'!R$39) -> 0 | P20: 0 | R20: 4872.130697 | S20: 5689.262349 | T20: 9201.959549 | U20: 7156.861682 | V20: 3632.513759 | W20: 30552.72804
A21: C-22 | B21: Non-network | C21: Plant and Tools | D21: ='Direct Capex Plus Ohds'!AF21 -> 5096.733333 | E21: ='Direct Capex Plus Ohds'!AG21 -> 4245.733333 | F21: ='Direct Capex Plus Ohds'!AH21 -> 3485.233333 | G21: ='Direct Capex Plus Ohds'!AI21 -> 3220.4 | H21: ='Direct Capex Plus Ohds'!AJ21 -> 3712.4 | I21: 19760.5 | K21: =D21*('Misc Data'!$D20*'General Inputs'!N$34+'Misc Data'!$E20*'General Inputs'!N$35+'Misc Data'!$F20*'General Inputs'!N$36+'Misc Data'!$G20*'General Inputs'!N$37+'Misc Data'!$I20*'General Inputs'!N$38+'Misc Data'!$H20*'General Inputs'!N$39) -> 0 | L21: =E21*('Misc Data'!$D20*'General Inputs'!O$34+'Misc Data'!$E20*'General Inputs'!O$35+'Misc Data'!$F20*'General Inputs'!O$36+'Misc Data'!$G20*'General Inputs'!O$37+'Misc Data'!$I20*'General Inputs'!O$38+'Misc Data'!$H20*'General Inputs'!O$39) -> 0 | M21: =F21*('Misc Data'!$D20*'General Inputs'!P$34+'Misc Data'!$E20*'General Inputs'!P$35+'Misc Data'!$F20*'General Inputs'!P$36+'Misc Data'!$G20*'General Inputs'!P$37+'Misc Data'!$I20*'General Inputs'!P$38+'Misc Data'!$H20*'General Inputs'!P$39) -> 0 | N21: =G21*('Misc Data'!$D20*'General Inputs'!Q$34+'Misc Data'!$E20*'General Inputs'!Q$35+'Misc Data'!$F20*'General Inputs'!Q$36+'Misc Data'!$G20*'General Inputs'!Q$37+'Misc Data'!$I20*'General Inputs'!Q$38+'Misc Data'!$H20*'General Inputs'!Q$39) -> 0 | O21: =H21*('Misc Data'!$D20*'General Inputs'!R$34+'Misc Data'!$E20*'General Inputs'!R$35+'Misc Data'!$F20*'General Inputs'!R$36+'Misc Data'!$G20*'General Inputs'!R$37+'Misc Data'!$I20*'General Inputs'!R$38+'Misc Data'!$H20*'General Inputs'!R$39) -> 0 | P21: 0 | R21: 5096.733333 | S21: 4245.733333 | T21: 3485.233333 | U21: 3220.4 | V21: 3712.4 | W21: 19760.5
A22: C-24 | B22: Non-network | C22: Property | D22: ='Direct Capex Plus Ohds'!AF22 -> 0 | E22: ='Direct Capex Plus Ohds'!AG22 -> 0 | F22: ='Direct Capex Plus Ohds'!AH22 -> 0 | G22: ='Direct Capex Plus Ohds'!AI22 -> 0 | H22: ='Direct Capex Plus Ohds'!AJ22 -> 0 | I22: 0 | K22: =D22*('Misc Data'!$D21*'General Inputs'!N$34+'Misc Data'!$E21*'General Inputs'!N$35+'Misc Data'!$F21*'General Inputs'!N$36+'Misc Data'!$G21*'General Inputs'!N$37+'Misc Data'!$I21*'General Inputs'!N$38+'Misc Data'!$H21*'General Inputs'!N$39) -> 0 | L22: =E22*('Misc Data'!$D21*'General Inputs'!O$34+'Misc Data'!$E21*'General Inputs'!O$35+'Misc Data'!$F21*'General Inputs'!O$36+'Misc Data'!$G21*'General Inputs'!O$37+'Misc Data'!$I21*'General Inputs'!O$38+'Misc Data'!$H21*'General Inputs'!O$39) -> 0 | M22: =F22*('Misc Data'!$D21*'General Inputs'!P$34+'Misc Data'!$E21*'General Inputs'!P$35+'Misc Data'!$F21*'General Inputs'!P$36+'Misc Data'!$G21*'General Inputs'!P$37+'Misc Data'!$I21*'General Inputs'!P$38+'Misc Data'!$H21*'General Inputs'!P$39) -> 0 | N22: =G22*('Misc Data'!$D21*'General Inputs'!Q$34+'Misc Data'!$E21*'General Inputs'!Q$35+'Misc Data'!$F21*'General Inputs'!Q$36+'Misc Data'!$G21*'General Inputs'!Q$37+'Misc Data'!$I21*'General Inputs'!Q$38+'Misc Data'!$H21*'General Inputs'!Q$39) -> 0 | O22: =H22*('Misc Data'!$D21*'General Inputs'!R$34+'Misc Data'!$E21*'General Inputs'!R$35+'Misc Data'!$F21*'General Inputs'!R$36+'Misc Data'!$G21*'General Inputs'!R$37+'Misc Data'!$I21*'General Inputs'!R$38+'Misc Data'!$H21*'General Inputs'!R$39) -> 0 | P22: 0 | R22: 0 | S22: 0 | T22: 0 | U22: 0 | V22: 0 | W22: 0
A23: C-25 | B23: Non-network | C23: Information Technology | D23: ='Direct Capex Plus Ohds'!AF23 -> 53913.6369 | E23: ='Direct Capex Plus Ohds'!AG23 -> 50461.06019 | F23: ='Direct Capex Plus Ohds'!AH23 -> 32300.7003 | G23: ='Direct Capex Plus Ohds'!AI23 -> 24262.40137 | H23: ='Direct Capex Plus Ohds'!AJ23 -> 25109.0203 | I23: 186046.8191 | K23: =D23*('Misc Data'!$D22*'General Inputs'!N$34+'Misc Data'!$E22*'General Inputs'!N$35+'Misc Data'!$F22*'General Inputs'!N$36+'Misc Data'!$G22*'General Inputs'!N$37+'Misc Data'!$I22*'General Inputs'!N$38+'Misc Data'!$H22*'General Inputs'!N$39) -> 245.0283924 | L23: =E23*('Misc Data'!$D22*'General Inputs'!O$34+'Misc Data'!$E22*'General Inputs'!O$35+'Misc Data'!$F22*'General Inputs'!O$36+'Misc Data'!$G22*'General Inputs'!O$37+'Misc Data'!$I22*'General Inputs'!O$38+'Misc Data'!$H22*'General Inputs'!O$39) -> 283.1630784 | M23: =F23*('Misc Data'!$D22*'General Inputs'!P$34+'Misc Data'!$E22*'General Inputs'!P$35+'Misc Data'!$F22*'General Inputs'!P$36+'Misc Data'!$G22*'General Inputs'!P$37+'Misc Data'!$I22*'General Inputs'!P$38+'Misc Data'!$H22*'General Inputs'!P$39) -> 212.9204353 | N23: =G23*('Misc Data'!$D22*'General Inputs'!Q$34+'Misc Data'!$E22*'General Inputs'!Q$35+'Misc Data'!$F22*'General Inputs'!Q$36+'Misc Data'!$G22*'General Inputs'!Q$37+'Misc Data'!$I22*'General Inputs'!Q$38+'Misc Data'!$H22*'General Inputs'!Q$39) -> 191.5266834 | O23: =H23*('Misc Data'!$D22*'General Inputs'!R$34+'Misc Data'!$E22*'General Inputs'!R$35+'Misc Data'!$F22*'General Inputs'!R$36+'Misc Data'!$G22*'General Inputs'!R$37+'Misc Data'!$I22*'General Inputs'!R$38+'Misc Data'!$H22*'General Inputs'!R$39) -> 230.203084 | P23: 1162.841673 | R23: 54158.66529 | S23: 50744.22327 | T23: 32513.62073 | U23: 24453.92806 | V23: 25339.22339 | W23: 187209.6607
A24: C-28 | B24: Non-network | C24: Superannuation | D24: ='Direct Capex Plus Ohds'!AF24 -> -6939.995 | E24: ='Direct Capex Plus Ohds'!AG24 -> -6939.995 | F24: ='Direct Capex Plus Ohds'!AH24 -> -6939.995 | G24: ='Direct Capex Plus Ohds'!AI24 -> -6939.995 | H24: ='Direct Capex Plus Ohds'!AJ24 -> -6939.995 | I24: -34699.975 | K24: =D24*('Misc Data'!$D23*'General Inputs'!N$34+'Misc Data'!$E23*'General Inputs'!N$35+'Misc Data'!$F23*'General Inputs'!N$36+'Misc Data'!$G23*'General Inputs'!N$37+'Misc Data'!$I23*'General Inputs'!N$38+'Misc Data'!$H23*'General Inputs'!N$39) -> -112.2459342 | L24: =E24*('Misc Data'!$D23*'General Inputs'!O$34+'Misc Data'!$E23*'General Inputs'!O$35+'Misc Data'!$F23*'General Inputs'!O$36+'Misc Data'!$G23*'General Inputs'!O$37+'Misc Data'!$I23*'General Inputs'!O$38+'Misc Data'!$H23*'General Inputs'!O$39) -> -138.590382 | M24: =F24*('Misc Data'!$D23*'General Inputs'!P$34+'Misc Data'!$E23*'General Inputs'!P$35+'Misc Data'!$F23*'General Inputs'!P$36+'Misc Data'!$G23*'General Inputs'!P$37+'Misc Data'!$I23*'General Inputs'!P$38+'Misc Data'!$H23*'General Inputs'!P$39) -> -162.8014411 | N24: =G24*('Misc Data'!$D23*'General Inputs'!Q$34+'Misc Data'!$E23*'General Inputs'!Q$35+'Misc Data'!$F23*'General Inputs'!Q$36+'Misc Data'!$G23*'General Inputs'!Q$37+'Misc Data'!$I23*'General Inputs'!Q$38+'Misc Data'!$H23*'General Inputs'!Q$39) -> -194.9612689 | O24: =H24*('Misc Data'!$D23*'General Inputs'!R$34+'Misc Data'!$E23*'General Inputs'!R$35+'Misc Data'!$F23*'General Inputs'!R$36+'Misc Data'!$G23*'General Inputs'!R$37+'Misc Data'!$I23*'General Inputs'!R$38+'Misc Data'!$H23*'General Inputs'!R$39) -> -226.4301255 | P24: -835.0291517 | R24: -7052.240934 | S24: -7078.585382 | T24: -7102.796441 | U24: -7134.956269 | V24: -7166.425126 | W24: -35535.00415
A25: C-29 | B25: Non-network | C25: Operational Information Technology | D25: ='Direct Capex Plus Ohds'!AF25 -> 1635.186309 | E25: ='Direct Capex Plus Ohds'!AG25 -> 2279.34845 | F25: ='Direct Capex Plus Ohds'!AH25 -> 2498.501431 | G25: ='Direct Capex Plus Ohds'!AI25 -> 1638.447474 | H25: ='Direct Capex Plus Ohds'!AJ25 -> 1527.77565 | I25: 9579.259314 | K25: =D25*('Misc Data'!$D24*'General Inputs'!N$34+'Misc Data'!$E24*'General Inputs'!N$35+'Misc Data'!$F24*'General Inputs'!N$36+'Misc Data'!$G24*'General Inputs'!N$37+'Misc Data'!$I24*'General Inputs'!N$38+'Misc Data'!$H24*'General Inputs'!N$39) -> 9.895283904 | L25: =E25*('Misc Data'!$D24*'General Inputs'!O$34+'Misc Data'!$E24*'General Inputs'!O$35+'Misc Data'!$F24*'General Inputs'!O$36+'Misc Data'!$G24*'General Inputs'!O$37+'Misc Data'!$I24*'General Inputs'!O$38+'Misc Data'!$H24*'General Inputs'!O$39) -> 17.03076717 | M25: =F25*('Misc Data'!$D24*'General Inputs'!P$34+'Misc Data'!$E24*'General Inputs'!P$35+'Misc Data'!$F24*'General Inputs'!P$36+'Misc Data'!$G24*'General Inputs'!P$37+'Misc Data'!$I24*'General Inputs'!P$38+'Misc Data'!$H24*'General Inputs'!P$39) -> 21.92947553 | N25: =G25*('Misc Data'!$D24*'General Inputs'!Q$34+'Misc Data'!$E24*'General Inputs'!Q$35+'Misc Data'!$F24*'General Inputs'!Q$36+'Misc Data'!$G24*'General Inputs'!Q$37+'Misc Data'!$I24*'General Inputs'!Q$38+'Misc Data'!$H24*'General Inputs'!Q$39) -> 17.22151141 | O25: =H25*('Misc Data'!$D24*'General Inputs'!R$34+'Misc Data'!$E24*'General Inputs'!R$35+'Misc Data'!$F24*'General Inputs'!R$36+'Misc Data'!$G24*'General Inputs'!R$37+'Misc Data'!$I24*'General Inputs'!R$38+'Misc Data'!$H24*'General Inputs'!R$39) -> 18.65022986 | P25: 84.72726786 | R25: 1645.081593 | S25: 2296.379217 | T25: 2520.430907 | U25: 1655.668985 | V25: 1546.425879 | W25: 9663.986582
A26: Total Gross Capex | D26: =SUM(D7:D9,D11:D25) -> 319152.6606 | E26: =SUM(E7:E9,E11:E25) -> 324442.2907 | F26: 303337.001 | G26: 291959.4165 | H26: 276999.9343 | I26: 1515891.303 | K26: =SUM(K7:K9,K11:K25) -> 2143.742343 | L26: =SUM(L7:L9,L11:L25) -> 2676.950364 | M26: 2975.921145 | N26: 3448.4773 | O26: 3871.610207 | P26: 15116.70136 | R26: =SUM(R7:R9,R11:R25) -> 321296.4029 | S26: =SUM(S7:S9,S11:S25) -> 327119.2411 | T26: 306312.9222 | U26: 295407.8938 | V26: 280871.5445 | W26: 1531008.004
A27: Total Net Capex | D27: =SUM(D26,D10) -> 252531.1503 | E27: 258582.2807 | F27: 237425.7882 | G27: 226575.1845 | H27: 214573.4302 | I27: 1189687.834 | K27: =SUM(K26,K10) -> 1604.981605 | L27: 2019.344418 | M27: 2202.834101 | N27: 2530.076578 | O27: 2853.220342 | P27: 11210.45704 | R27: =SUM(R26,R10) -> 254136.1319 | S27: 260601.6251 | T27: 239628.6223 | U27: 229105.2611 | V27: 217426.6506 | W27: 1200898.291
A29: Gross Network Capex | D29: =SUM(D7:D9,D11:D17) -> 254122.2032 | E29: =SUM(E7:E9,E11:E17) -> 258469.4412 | F29: 253933.5388 | G29: 250689.7386 | H29: 241960.1698 | I29: =SUM(I7:I9,I11:I17) -> 1259175.092 | K29: =SUM(K7:K9,K11:K17) -> 2001.064601 | L29: =SUM(L7:L9,L11:L17) -> 2515.346901 | M29: 2903.872675 | N29: 3434.690374 | O29: 3849.187019 | P29: =SUM(P7:P9,P11:P17) -> 14704.16157 | R29: =SUM(R7:R9,R11:R17) -> 256123.2678 | S29: =SUM(S7:S9,S11:S17) -> 260984.7881 | T29: 256837.4115 | U29: 254124.4289 | V29: 245809.3568 | W29: =SUM(W7:W9,W11:W17) -> 1273879.253
A30: Net Network Capex | D30: =D29+D10 -> 187500.6929 | E30: =E29+E10 -> 192609.4312 | F30: 188022.326 | G30: 185305.5066 | H30: 179533.6657 | I30: 932971.6223 | K30: =K29+K10 -> 1462.303863 | L30: =L29+L10 -> 1857.740955 | M30: =M29+M10 -> 2130.785631 | N30: =N29+N10 -> 2516.289652 | O30: =O29+O10 -> 2830.797154 | P30: =P29+P10 -> 10797.91725 | R30: =R29+R10 -> 188962.9968 | S30: =S29+S10 -> 194467.1721 | T30: =T29+T10 -> 190153.1116 | U30: =U29+U10 -> 187821.7962 | V30: =V29+V10 -> 182364.4629 | W30: =W29+W10 -> 943769.5396
D34: Network Business Overheads Excluding Real Price Escalation | K34: =K2 -> Real Price Escalation | R34: Network Business Overheads Including Real Price Escalation
A35: =A7 -> C-1 | B35: =B7 -> Repex | C35: Asset Replacement and Refurbishment | D35: ='Direct Capex Plus Ohds'!Y7 -> 4965.304462 | E35: ='Direct Capex Plus Ohds'!Z7 -> 5075.282173 | F35: ='Direct Capex Plus Ohds'!AA7 -> 5084.960123 | G35: ='Direct Capex Plus Ohds'!AB7 -> 5041.106727 | H35: ='Direct Capex Plus Ohds'!AC7 -> 5005.687924 | I35: =SUM(D35:H35) -> 25172.34141 | K35: =D35*('Misc Data'!$D6*'General Inputs'!N$34+'Misc Data'!$E6*'General Inputs'!N$35+'Misc Data'!$F6*'General Inputs'!N$36+'Misc Data'!$G6*'General Inputs'!N$37+'Misc Data'!$I6*'General Inputs'!N$38+'Misc Data'!$H6*'General Inputs'!N$39) -> 36.94155536 | L35: =E35*('Misc Data'!$D6*'General Inputs'!O$34+'Misc Data'!$E6*'General Inputs'!O$35+'Misc Data'!$F6*'General Inputs'!O$36+'Misc Data'!$G6*'General Inputs'!O$37+'Misc Data'!$I6*'General Inputs'!O$38+'Misc Data'!$H6*'General Inputs'!O$39) -> 46.62211367 | M35: =F35*('Misc Data'!$D6*'General Inputs'!P$34+'Misc Data'!$E6*'General Inputs'!P$35+'Misc Data'!$F6*'General Inputs'!P$36+'Misc Data'!$G6*'General Inputs'!P$37+'Misc Data'!$I6*'General Inputs'!P$38+'Misc Data'!$H6*'General Inputs'!P$39) -> 54.87120155 | N35: =G35*('Misc Data'!$D6*'General Inputs'!Q$34+'Misc Data'!$E6*'General Inputs'!Q$35+'Misc Data'!$F6*'General Inputs'!Q$36+'Misc Data'!$G6*'General Inputs'!Q$37+'Misc Data'!$I6*'General Inputs'!Q$38+'Misc Data'!$H6*'General Inputs'!Q$39) -> 65.1437731 | O35: =H35*('Misc Data'!$D6*'General Inputs'!R$34+'Misc Data'!$E6*'General Inputs'!R$35+'Misc Data'!$F6*'General Inputs'!R$36+'Misc Data'!$G6*'General Inputs'!R$37+'Misc Data'!$I6*'General Inputs'!R$38+'Misc Data'!$H6*'General Inputs'!R$39) -> 75.12710465 | P35: =SUM(K35:O35) -> 278.7057483 | R35: =SUM(D35,K35) -> 5002.246017 | S35: =SUM(E35,L35) -> 5121.904286 | T35: =SUM(F35,M35) -> 5139.831324 | U35: =SUM(G35,N35) -> 5106.2505 | V35: =SUM(H35,O35) -> 5080.815029 | W35: =SUM(R35:V35) -> 25451.04716
A36: =A8 -> C-2 | B36: Augex | C36: Augmentation/Capacity | D36: ='Direct Capex Plus Ohds'!Y8 -> 1293.577466 | E36: ='Direct Capex Plus Ohds'!Z8 -> 1192.028976 | F36: ='Direct Capex Plus Ohds'!AA8 -> 1040.960096 | G36: ='Direct Capex Plus Ohds'!AB8 -> 984.1294236 | H36: ='Direct Capex Plus Ohds'!AC8 -> 901.4095682 | I36: 5412.10553 | K36: =D36*('Misc Data'!$D7*'General Inputs'!N$34+'Misc Data'!$E7*'General Inputs'!N$35+'Misc Data'!$F7*'General Inputs'!N$36+'Misc Data'!$G7*'General Inputs'!N$37+'Misc Data'!$I7*'General Inputs'!N$38+'Misc Data'!$H7*'General Inputs'!N$39) -> 8.996474606 | L36: =E36*('Misc Data'!$D7*'General Inputs'!O$34+'Misc Data'!$E7*'General Inputs'!O$35+'Misc Data'!$F7*'General Inputs'!O$36+'Misc Data'!$G7*'General Inputs'!O$37+'Misc Data'!$I7*'General Inputs'!O$38+'Misc Data'!$H7*'General Inputs'!O$39) -> 10.23597466 | M36: =F36*('Misc Data'!$D7*'General Inputs'!P$34+'Misc Data'!$E7*'General Inputs'!P$35+'Misc Data'!$F7*'General Inputs'!P$36+'Misc Data'!$G7*'General Inputs'!P$37+'Misc Data'!$I7*'General Inputs'!P$38+'Misc Data'!$H7*'General Inputs'!P$39) -> 10.500298 | N36: =G36*('Misc Data'!$D7*'General Inputs'!Q$34+'Misc Data'!$E7*'General Inputs'!Q$35+'Misc Data'!$F7*'General Inputs'!Q$36+'Misc Data'!$G7*'General Inputs'!Q$37+'Misc Data'!$I7*'General Inputs'!Q$38+'Misc Data'!$H7*'General Inputs'!Q$39) -> 11.88802904 | O36: =H36*('Misc Data'!$D7*'General Inputs'!R$34+'Misc Data'!$E7*'General Inputs'!R$35+'Misc Data'!$F7*'General Inputs'!R$36+'Misc Data'!$G7*'General Inputs'!R$37+'Misc Data'!$I7*'General Inputs'!R$38+'Misc Data'!$H7*'General Inputs'!R$39) -> 12.64636374 | P36: =SUM(K36:O36) -> 54.26714005 | R36: =SUM(D36,K36) -> 1302.57394 | S36: 1202.264951 | T36: 1051.460394 | U36: 996.0174527 | V36: 914.0559319 | W36: =SUM(R36:V36) -> 5466.37267
A37: C-3 | B37: Connections | C37: Connections | D37: ='Direct Capex Plus Ohds'!Y9 -> 5489.562691 | E37: ='Direct Capex Plus Ohds'!Z9 -> 5516.970987 | F37: ='Direct Capex Plus Ohds'!AA9 -> 5525.028888 | G37: ='Direct Capex Plus Ohds'!AB9 -> 5471.334656 | H37: ='Direct Capex Plus Ohds'!AC9 -> 5325.485096 | I37: 27328.38232 | K37: =D37*('Misc Data'!$D8*'General Inputs'!N$34+'Misc Data'!$E8*'General Inputs'!N$35+'Misc Data'!$F8*'General Inputs'!N$36+'Misc Data'!$G8*'General Inputs'!N$37+'Misc Data'!$I8*'General Inputs'!N$38+'Misc Data'!$H8*'General Inputs'!N$39) -> 46.16922177 | L37: =E37*('Misc Data'!$D8*'General Inputs'!O$34+'Misc Data'!$E8*'General Inputs'!O$35+'Misc Data'!$F8*'General Inputs'!O$36+'Misc Data'!$G8*'General Inputs'!O$37+'Misc Data'!$I8*'General Inputs'!O$38+'Misc Data'!$H8*'General Inputs'!O$39) -> 57.28988864 | M37: =F37*('Misc Data'!$D8*'General Inputs'!P$34+'Misc Data'!$E8*'General Inputs'!P$35+'Misc Data'!$F8*'General Inputs'!P$36+'Misc Data'!$G8*'General Inputs'!P$37+'Misc Data'!$I8*'General Inputs'!P$38+'Misc Data'!$H8*'General Inputs'!P$39) -> 67.39644419 | N37: =G37*('Misc Data'!$D8*'General Inputs'!Q$34+'Misc Data'!$E8*'General Inputs'!Q$35+'Misc Data'!$F8*'General Inputs'!Q$36+'Misc Data'!$G8*'General Inputs'!Q$37+'Misc Data'!$I8*'General Inputs'!Q$38+'Misc Data'!$H8*'General Inputs'!Q$39) -> 79.92558215 | O37: =H37*('Misc Data'!$D8*'General Inputs'!R$34+'Misc Data'!$E8*'General Inputs'!R$35+'Misc Data'!$F8*'General Inputs'!R$36+'Misc Data'!$G8*'General Inputs'!R$37+'Misc Data'!$I8*'General Inputs'!R$38+'Misc Data'!$H8*'General Inputs'!R$39) -> 90.35195768 | P37: 341.1330944 | R37: 5535.731913 | S37: 5574.260876 | T37: 5592.425332 | U37: 5551.260238 | V37: 5415.837054 | W37: 27669.51541
A38: C-4 | B38: Connections | C38: Contributions | D38: ='Direct Capex Plus Ohds'!Y10 -> -3715.768673 | E38: ='Direct Capex Plus Ohds'!Z10 -> -3653.940488 | F38: ='Direct Capex Plus Ohds'!AA10 -> -3649.022818 | G38: ='Direct Capex Plus Ohds'!AB10 -> -3619.450685 | H38: ='Direct Capex Plus Ohds'!AC10 -> -3492.032229 | I38: -18130.21489 | K38: =D38*('Misc Data'!$D9*'General Inputs'!N$34+'Misc Data'!$E9*'General Inputs'!N$35+'Misc Data'!$F9*'General Inputs'!N$36+'Misc Data'!$G9*'General Inputs'!N$37+'Misc Data'!$I9*'General Inputs'!N$38+'Misc Data'!$H9*'General Inputs'!N$39) -> -30.04900768 | L38: =E38*('Misc Data'!$D9*'General Inputs'!O$34+'Misc Data'!$E9*'General Inputs'!O$35+'Misc Data'!$F9*'General Inputs'!O$36+'Misc Data'!$G9*'General Inputs'!O$37+'Misc Data'!$I9*'General Inputs'!O$38+'Misc Data'!$H9*'General Inputs'!O$39) -> -36.48424877 | M38: =F38*('Misc Data'!$D9*'General Inputs'!P$34+'Misc Data'!$E9*'General Inputs'!P$35+'Misc Data'!$F9*'General Inputs'!P$36+'Misc Data'!$G9*'General Inputs'!P$37+'Misc Data'!$I9*'General Inputs'!P$38+'Misc Data'!$H9*'General Inputs'!P$39) -> -42.8001874 | N38: =G38*('Misc Data'!$D9*'General Inputs'!Q$34+'Misc Data'!$E9*'General Inputs'!Q$35+'Misc Data'!$F9*'General Inputs'!Q$36+'Misc Data'!$G9*'General Inputs'!Q$37+'Misc Data'!$I9*'General Inputs'!Q$38+'Misc Data'!$H9*'General Inputs'!Q$39) -> -50.83956821 | O38: =H38*('Misc Data'!$D9*'General Inputs'!R$34+'Misc Data'!$E9*'General Inputs'!R$35+'Misc Data'!$F9*'General Inputs'!R$36+'Misc Data'!$G9*'General Inputs'!R$37+'Misc Data'!$I9*'General Inputs'!R$38+'Misc Data'!$H9*'General Inputs'!R$39) -> -56.9669932 | P38: -217.1400053 | R38: -3745.817681 | S38: -3690.424736 | T38: -3691.823005 | U38: -3670.290254 | V38: -3548.999223 | W38: -18347.3549
A39: C-5 | B39: Augex | C39: Reliability | D39: ='Direct Capex Plus Ohds'!Y11 -> 340.0210954 | E39: ='Direct Capex Plus Ohds'!Z11 -> 338.1241482 | F39: ='Direct Capex Plus Ohds'!AA11 -> 337.3647219 | G39: ='Direct Capex Plus Ohds'!AB11 -> 337.325549 | H39: ='Direct Capex Plus Ohds'!AC11 -> 341.0800578 | I39: 1693.915572 | K39: =D39*('Misc Data'!$D10*'General Inputs'!N$34+'Misc Data'!$E10*'General Inputs'!N$35+'Misc Data'!$F10*'General Inputs'!N$36+'Misc Data'!$G10*'General Inputs'!N$37+'Misc Data'!$I10*'General Inputs'!N$38+'Misc Data'!$H10*'General Inputs'!N$39) -> 4.179563384 | L39: =E39*('Misc Data'!$D10*'General Inputs'!O$34+'Misc Data'!$E10*'General Inputs'!O$35+'Misc Data'!$F10*'General Inputs'!O$36+'Misc Data'!$G10*'General Inputs'!O$37+'Misc Data'!$I10*'General Inputs'!O$38+'Misc Data'!$H10*'General Inputs'!O$39) -> 5.131729014 | M39: =F39*('Misc Data'!$D10*'General Inputs'!P$34+'Misc Data'!$E10*'General Inputs'!P$35+'Misc Data'!$F10*'General Inputs'!P$36+'Misc Data'!$G10*'General Inputs'!P$37+'Misc Data'!$I10*'General Inputs'!P$38+'Misc Data'!$H10*'General Inputs'!P$39) -> 6.014677502 | N39: =G39*('Misc Data'!$D10*'General Inputs'!Q$34+'Misc Data'!$E10*'General Inputs'!Q$35+'Misc Data'!$F10*'General Inputs'!Q$36+'Misc Data'!$G10*'General Inputs'!Q$37+'Misc Data'!$I10*'General Inputs'!Q$38+'Misc Data'!$H10*'General Inputs'!Q$39) -> 7.201981697 | O39: =H39*('Misc Data'!$D10*'General Inputs'!R$34+'Misc Data'!$E10*'General Inputs'!R$35+'Misc Data'!$F10*'General Inputs'!R$36+'Misc Data'!$G10*'General Inputs'!R$37+'Misc Data'!$I10*'General Inputs'!R$38+'Misc Data'!$H10*'General Inputs'!R$39) -> 8.457557711 | P39: 30.98550931 | R39: 344.2006588 | S39: 343.2558772 | T39: 343.3793994 | U39: 344.5275307 | V39: 349.5376155 | W39: 1724.901081
A40: C-6 | B40: Augex | C40: Environmental | D40: ='Direct Capex Plus Ohds'!Y12 -> 102.055607 | E40: ='Direct Capex Plus Ohds'!Z12 -> 101.4862479 | F40: ='Direct Capex Plus Ohds'!AA12 -> 101.25831 | G40: ='Direct Capex Plus Ohds'!AB12 -> 101.2465524 | H40: ='Direct Capex Plus Ohds'!AC12 -> 102.3734492 | I40: 508.4201667 | K40: =D40*('Misc Data'!$D11*'General Inputs'!N$34+'Misc Data'!$E11*'General Inputs'!N$35+'Misc Data'!$F11*'General Inputs'!N$36+'Misc Data'!$G11*'General Inputs'!N$37+'Misc Data'!$I11*'General Inputs'!N$38+'Misc Data'!$H11*'General Inputs'!N$39) -> 0.6272373745 | L40: =E40*('Misc Data'!$D11*'General Inputs'!O$34+'Misc Data'!$E11*'General Inputs'!O$35+'Misc Data'!$F11*'General Inputs'!O$36+'Misc Data'!$G11*'General Inputs'!O$37+'Misc Data'!$I11*'General Inputs'!O$38+'Misc Data'!$H11*'General Inputs'!O$39) -> 0.7701312165 | M40: =F40*('Misc Data'!$D11*'General Inputs'!P$34+'Misc Data'!$E11*'General Inputs'!P$35+'Misc Data'!$F11*'General Inputs'!P$36+'Misc Data'!$G11*'General Inputs'!P$37+'Misc Data'!$I11*'General Inputs'!P$38+'Misc Data'!$H11*'General Inputs'!P$39) -> 0.9026374714 | N40: =G40*('Misc Data'!$D11*'General Inputs'!Q$34+'Misc Data'!$E11*'General Inputs'!Q$35+'Misc Data'!$F11*'General Inputs'!Q$36+'Misc Data'!$G11*'General Inputs'!Q$37+'Misc Data'!$I11*'General Inputs'!Q$38+'Misc Data'!$H11*'General Inputs'!Q$39) -> 1.080819137 | O40: =H40*('Misc Data'!$D11*'General Inputs'!R$34+'Misc Data'!$E11*'General Inputs'!R$35+'Misc Data'!$F11*'General Inputs'!R$36+'Misc Data'!$G11*'General Inputs'!R$37+'Misc Data'!$I11*'General Inputs'!R$38+'Misc Data'!$H11*'General Inputs'!R$39) -> 1.269246523 | P40: 4.650071723 | R40: 102.6828444 | S40: 102.2563792 | T40: 102.1609475 | U40: 102.3273716 | V40: 103.6426958 | W40: 513.0702384
A41: C-7 | B41: Augex | C41: Safety Augex | D41: ='Direct Capex Plus Ohds'!Y13 -> 278.8361411 | E41: ='Direct Capex Plus Ohds'!Z13 -> 277.2805392 | F41: ='Direct Capex Plus Ohds'!AA13 -> 276.6577676 | G41: ='Direct Capex Plus Ohds'!AB13 -> 276.6256436 | H41: ='Direct Capex Plus Ohds'!AC13 -> 279.704549 | I41: 1389.10464 | K41: =D41*('Misc Data'!$D12*'General Inputs'!N$34+'Misc Data'!$E12*'General Inputs'!N$35+'Misc Data'!$F12*'General Inputs'!N$36+'Misc Data'!$G12*'General Inputs'!N$37+'Misc Data'!$I12*'General Inputs'!N$38+'Misc Data'!$H12*'General Inputs'!N$39) -> 2.705900205 | L41: =E41*('Misc Data'!$D12*'General Inputs'!O$34+'Misc Data'!$E12*'General Inputs'!O$35+'Misc Data'!$F12*'General Inputs'!O$36+'Misc Data'!$G12*'General Inputs'!O$37+'Misc Data'!$I12*'General Inputs'!O$38+'Misc Data'!$H12*'General Inputs'!O$39) -> 3.322343822 | M41: =F41*('Misc Data'!$D12*'General Inputs'!P$34+'Misc Data'!$E12*'General Inputs'!P$35+'Misc Data'!$F12*'General Inputs'!P$36+'Misc Data'!$G12*'General Inputs'!P$37+'Misc Data'!$I12*'General Inputs'!P$38+'Misc Data'!$H12*'General Inputs'!P$39) -> 3.89397542 | N41: =G41*('Misc Data'!$D12*'General Inputs'!Q$34+'Misc Data'!$E12*'General Inputs'!Q$35+'Misc Data'!$F12*'General Inputs'!Q$36+'Misc Data'!$G12*'General Inputs'!Q$37+'Misc Data'!$I12*'General Inputs'!Q$38+'Misc Data'!$H12*'General Inputs'!Q$39) -> 4.662650607 | O41: =H41*('Misc Data'!$D12*'General Inputs'!R$34+'Misc Data'!$E12*'General Inputs'!R$35+'Misc Data'!$F12*'General Inputs'!R$36+'Misc Data'!$G12*'General Inputs'!R$37+'Misc Data'!$I12*'General Inputs'!R$38+'Misc Data'!$H12*'General Inputs'!R$39) -> 5.4755258 | P41: 20.06039585 | R41: 281.5420413 | S41: 280.6028831 | T41: 280.551743 | U41: 281.2882942 | V41: 285.1800748 | W41: 1409.165036
A42: C-8 | B42: Repex | C42: Safety Repex | D42: ='Direct Capex Plus Ohds'!Y14 -> 618.3320122 | E42: ='Direct Capex Plus Ohds'!Z14 -> 594.1046096 | F42: ='Direct Capex Plus Ohds'!AA14 -> 570.7236285 | G42: ='Direct Capex Plus Ohds'!AB14 -> 588.4507567 | H42: ='Direct Capex Plus Ohds'!AC14 -> 601.0641223 | I42: 2972.675129 | K42: =D42*('Misc Data'!$D13*'General Inputs'!N$34+'Misc Data'!$E13*'General Inputs'!N$35+'Misc Data'!$F13*'General Inputs'!N$36+'Misc Data'!$G13*'General Inputs'!N$37+'Misc Data'!$I13*'General Inputs'!N$38+'Misc Data'!$H13*'General Inputs'!N$39) -> 6.000458592 | L42: =E42*('Misc Data'!$D13*'General Inputs'!O$34+'Misc Data'!$E13*'General Inputs'!O$35+'Misc Data'!$F13*'General Inputs'!O$36+'Misc Data'!$G13*'General Inputs'!O$37+'Misc Data'!$I13*'General Inputs'!O$38+'Misc Data'!$H13*'General Inputs'!O$39) -> 7.118493729 | M42: =F42*('Misc Data'!$D13*'General Inputs'!P$34+'Misc Data'!$E13*'General Inputs'!P$35+'Misc Data'!$F13*'General Inputs'!P$36+'Misc Data'!$G13*'General Inputs'!P$37+'Misc Data'!$I13*'General Inputs'!P$38+'Misc Data'!$H13*'General Inputs'!P$39) -> 8.032970845 | N42: =G42*('Misc Data'!$D13*'General Inputs'!Q$34+'Misc Data'!$E13*'General Inputs'!Q$35+'Misc Data'!$F13*'General Inputs'!Q$36+'Misc Data'!$G13*'General Inputs'!Q$37+'Misc Data'!$I13*'General Inputs'!Q$38+'Misc Data'!$H13*'General Inputs'!Q$39) -> 9.918604226 | O42: =H42*('Misc Data'!$D13*'General Inputs'!R$34+'Misc Data'!$E13*'General Inputs'!R$35+'Misc Data'!$F13*'General Inputs'!R$36+'Misc Data'!$G13*'General Inputs'!R$37+'Misc Data'!$I13*'General Inputs'!R$38+'Misc Data'!$H13*'General Inputs'!R$39) -> 11.76649476 | P42: 42.83702215 | R42: 624.3324708 | S42: 601.2231034 | T42: 578.7565994 | U42: 598.369361 | V42: 612.8306171 | W42: 3015.512152
A43: C-10 | B43: Augex | C43: PLEC (Undergrounding) | D43: ='Direct Capex Plus Ohds'!Y15 -> 566.7018256 | E43: ='Direct Capex Plus Ohds'!Z15 -> 563.5402469 | F43: ='Direct Capex Plus Ohds'!AA15 -> 562.2745364 | G43: ='Direct Capex Plus Ohds'!AB15 -> 562.2092483 | H43: ='Direct Capex Plus Ohds'!AC15 -> 568.466763 | I43: 2823.19262 | K43: =D43*('Misc Data'!$D14*'General Inputs'!N$34+'Misc Data'!$E14*'General Inputs'!N$35+'Misc Data'!$F14*'General Inputs'!N$36+'Misc Data'!$G14*'General Inputs'!N$37+'Misc Data'!$I14*'General Inputs'!N$38+'Misc Data'!$H14*'General Inputs'!N$39) -> 1.466513468 | L43: =E43*('Misc Data'!$D14*'General Inputs'!O$34+'Misc Data'!$E14*'General Inputs'!O$35+'Misc Data'!$F14*'General Inputs'!O$36+'Misc Data'!$G14*'General Inputs'!O$37+'Misc Data'!$I14*'General Inputs'!O$38+'Misc Data'!$H14*'General Inputs'!O$39) -> 1.800606672 | M43: =F43*('Misc Data'!$D14*'General Inputs'!P$34+'Misc Data'!$E14*'General Inputs'!P$35+'Misc Data'!$F14*'General Inputs'!P$36+'Misc Data'!$G14*'General Inputs'!P$37+'Misc Data'!$I14*'General Inputs'!P$38+'Misc Data'!$H14*'General Inputs'!P$39) -> 2.110413158 | N43: =G43*('Misc Data'!$D14*'General Inputs'!Q$34+'Misc Data'!$E14*'General Inputs'!Q$35+'Misc Data'!$F14*'General Inputs'!Q$36+'Misc Data'!$G14*'General Inputs'!Q$37+'Misc Data'!$I14*'General Inputs'!Q$38+'Misc Data'!$H14*'General Inputs'!Q$39) -> 2.527011122 | O43: =H43*('Misc Data'!$D14*'General Inputs'!R$34+'Misc Data'!$E14*'General Inputs'!R$35+'Misc Data'!$F14*'General Inputs'!R$36+'Misc Data'!$G14*'General Inputs'!R$37+'Misc Data'!$I14*'General Inputs'!R$38+'Misc Data'!$H14*'General Inputs'!R$39) -> 2.967564109 | P43: 10.87210853 | R43: 568.1683391 | S43: 565.3408536 | T43: 564.3849496 | U43: 564.7362594 | V43: 571.4343271 | W43: 2834.064729
A44: C-15 | B44: Augex | C44: Strategic - Network Security | D44: ='Direct Capex Plus Ohds'!Y16 -> 399.1059205 | E44: ='Direct Capex Plus Ohds'!Z16 -> 563.6872574 | F44: ='Direct Capex Plus Ohds'!AA16 -> 440.8965767 | G44: ='Direct Capex Plus Ohds'!AB16 -> 398.0685917 | H44: ='Direct Capex Plus Ohds'!AC16 -> 292.1672003 | I44: 2093.925547 | K44: =D44*('Misc Data'!$D15*'General Inputs'!N$34+'Misc Data'!$E15*'General Inputs'!N$35+'Misc Data'!$F15*'General Inputs'!N$36+'Misc Data'!$G15*'General Inputs'!N$37+'Misc Data'!$I15*'General Inputs'!N$38+'Misc Data'!$H15*'General Inputs'!N$39) -> 3.356626163 | L44: =E44*('Misc Data'!$D15*'General Inputs'!O$34+'Misc Data'!$E15*'General Inputs'!O$35+'Misc Data'!$F15*'General Inputs'!O$36+'Misc Data'!$G15*'General Inputs'!O$37+'Misc Data'!$I15*'General Inputs'!O$38+'Misc Data'!$H15*'General Inputs'!O$39) -> 5.853498284 | M44: =F44*('Misc Data'!$D15*'General Inputs'!P$34+'Misc Data'!$E15*'General Inputs'!P$35+'Misc Data'!$F15*'General Inputs'!P$36+'Misc Data'!$G15*'General Inputs'!P$37+'Misc Data'!$I15*'General Inputs'!P$38+'Misc Data'!$H15*'General Inputs'!P$39) -> 5.378227359 | N44: =G44*('Misc Data'!$D15*'General Inputs'!Q$34+'Misc Data'!$E15*'General Inputs'!Q$35+'Misc Data'!$F15*'General Inputs'!Q$36+'Misc Data'!$G15*'General Inputs'!Q$37+'Misc Data'!$I15*'General Inputs'!Q$38+'Misc Data'!$H15*'General Inputs'!Q$39) -> 5.815009669 | O44: =H44*('Misc Data'!$D15*'General Inputs'!R$34+'Misc Data'!$E15*'General Inputs'!R$35+'Misc Data'!$F15*'General Inputs'!R$36+'Misc Data'!$G15*'General Inputs'!R$37+'Misc Data'!$I15*'General Inputs'!R$38+'Misc Data'!$H15*'General Inputs'!R$39) -> 4.956896515 | P44: 25.36025799 | R44: 402.4625467 | S44: 569.5407557 | T44: 446.2748041 | U44: 403.8836013 | V44: 297.1240968 | W44: 2119.285805
A45: C-18 | B45: Augex | C45: Safety (Bushfire) | D45: ='Direct Capex Plus Ohds'!Y17 -> 119.9929518 | E45: ='Direct Capex Plus Ohds'!Z17 -> 117.4858906 | F45: ='Direct Capex Plus Ohds'!AA17 -> 118.3221198 | G45: ='Direct Capex Plus Ohds'!AB17 -> 116.8417481 | H45: ='Direct Capex Plus Ohds'!AC17 -> 117.4007445 | I45: 590.0434549 | K45: =D45*('Misc Data'!$D16*'General Inputs'!N$34+'Misc Data'!$E16*'General Inputs'!N$35+'Misc Data'!$F16*'General Inputs'!N$36+'Misc Data'!$G16*'General Inputs'!N$37+'Misc Data'!$I16*'General Inputs'!N$38+'Misc Data'!$H16*'General Inputs'!N$39) -> 1.164443574 | L45: =E45*('Misc Data'!$D16*'General Inputs'!O$34+'Misc Data'!$E16*'General Inputs'!O$35+'Misc Data'!$F16*'General Inputs'!O$36+'Misc Data'!$G16*'General Inputs'!O$37+'Misc Data'!$I16*'General Inputs'!O$38+'Misc Data'!$H16*'General Inputs'!O$39) -> 1.407702553 | M45: =F45*('Misc Data'!$D16*'General Inputs'!P$34+'Misc Data'!$E16*'General Inputs'!P$35+'Misc Data'!$F16*'General Inputs'!P$36+'Misc Data'!$G16*'General Inputs'!P$37+'Misc Data'!$I16*'General Inputs'!P$38+'Misc Data'!$H16*'General Inputs'!P$39) -> 1.665391253 | N45: =G45*('Misc Data'!$D16*'General Inputs'!Q$34+'Misc Data'!$E16*'General Inputs'!Q$35+'Misc Data'!$F16*'General Inputs'!Q$36+'Misc Data'!$G16*'General Inputs'!Q$37+'Misc Data'!$I16*'General Inputs'!Q$38+'Misc Data'!$H16*'General Inputs'!Q$39) -> 1.969420624 | O45: =H45*('Misc Data'!$D16*'General Inputs'!R$34+'Misc Data'!$E16*'General Inputs'!R$35+'Misc Data'!$F16*'General Inputs'!R$36+'Misc Data'!$G16*'General Inputs'!R$37+'Misc Data'!$I16*'General Inputs'!R$38+'Misc Data'!$H16*'General Inputs'!R$39) -> 2.298249378 | P45: 8.505207383 | R45: 121.1573953 | S45: 118.8935932 | T45: 119.9875111 | U45: 118.8111687 | V45: 119.6989939 | W45: 598.5486623
A46: C-19 | B46: Non-network | C46: Heavy Vehicle Fleet - 15yrs | D46: ='Direct Capex Plus Ohds'!Y18 -> 0 | E46: ='Direct Capex Plus Ohds'!Z18 -> 0 | F46: ='Direct Capex Plus Ohds'!AA18 -> 0 | G46: ='Direct Capex Plus Ohds'!AB18 -> 0 | H46: ='Direct Capex Plus Ohds'!AC18 -> 0 | I46: 0 | K46: =D46*('Misc Data'!$D17*'General Inputs'!N$34+'Misc Data'!$E17*'General Inputs'!N$35+'Misc Data'!$F17*'General Inputs'!N$36+'Misc Data'!$G17*'General Inputs'!N$37+'Misc Data'!$I17*'General Inputs'!N$38+'Misc Data'!$H17*'General Inputs'!N$39) -> 0 | L46: =E46*('Misc Data'!$D17*'General Inputs'!O$34+'Misc Data'!$E17*'General Inputs'!O$35+'Misc Data'!$F17*'General Inputs'!O$36+'Misc Data'!$G17*'General Inputs'!O$37+'Misc Data'!$I17*'General Inputs'!O$38+'Misc Data'!$H17*'General Inputs'!O$39) -> 0 | M46: =F46*('Misc Data'!$D17*'General Inputs'!P$34+'Misc Data'!$E17*'General Inputs'!P$35+'Misc Data'!$F17*'General Inputs'!P$36+'Misc Data'!$G17*'General Inputs'!P$37+'Misc Data'!$I17*'General Inputs'!P$38+'Misc Data'!$H17*'General Inputs'!P$39) -> 0 | N46: =G46*('Misc Data'!$D17*'General Inputs'!Q$34+'Misc Data'!$E17*'General Inputs'!Q$35+'Misc Data'!$F17*'General Inputs'!Q$36+'Misc Data'!$G17*'General Inputs'!Q$37+'Misc Data'!$I17*'General Inputs'!Q$38+'Misc Data'!$H17*'General Inputs'!Q$39) -> 0 | O46: =H46*('Misc Data'!$D17*'General Inputs'!R$34+'Misc Data'!$E17*'General Inputs'!R$35+'Misc Data'!$F17*'General Inputs'!R$36+'Misc Data'!$G17*'General Inputs'!R$37+'Misc Data'!$I17*'General Inputs'!R$38+'Misc Data'!$H17*'General Inputs'!R$39) -> 0 | P46: 0 | R46: 0 | S46: 0 | T46: 0 | U46: 0 | V46: 0 | W46: 0
A47: C-20 | B47: Non-network | C47: Heavy Vehicle Fleet - 10yrs | D47: ='Direct Capex Plus Ohds'!Y19 -> 0 | E47: ='Direct Capex Plus Ohds'!Z19 -> 0 | F47: ='Direct Capex Plus Ohds'!AA19 -> 0 | G47: ='Direct Capex Plus Ohds'!AB19 -> 0 | H47: ='Direct Capex Plus Ohds'!AC19 -> 0 | I47: 0 | K47: =D47*('Misc Data'!$D18*'General Inputs'!N$34+'Misc Data'!$E18*'General Inputs'!N$35+'Misc Data'!$F18*'General Inputs'!N$36+'Misc Data'!$G18*'General Inputs'!N$37+'Misc Data'!$I18*'General Inputs'!N$38+'Misc Data'!$H18*'General Inputs'!N$39) -> 0 | L47: =E47*('Misc Data'!$D18*'General Inputs'!O$34+'Misc Data'!$E18*'General Inputs'!O$35+'Misc Data'!$F18*'General Inputs'!O$36+'Misc Data'!$G18*'General Inputs'!O$37+'Misc Data'!$I18*'General Inputs'!O$38+'Misc Data'!$H18*'General Inputs'!O$39) -> 0 | M47: =F47*('Misc Data'!$D18*'General Inputs'!P$34+'Misc Data'!$E18*'General Inputs'!P$35+'Misc Data'!$F18*'General Inputs'!P$36+'Misc Data'!$G18*'General Inputs'!P$37+'Misc Data'!$I18*'General Inputs'!P$38+'Misc Data'!$H18*'General Inputs'!P$39) -> 0 | N47: =G47*('Misc Data'!$D18*'General Inputs'!Q$34+'Misc Data'!$E18*'General Inputs'!Q$35+'Misc Data'!$F18*'General Inputs'!Q$36+'Misc Data'!$G18*'General Inputs'!Q$37+'Misc Data'!$I18*'General Inputs'!Q$38+'Misc Data'!$H18*'General Inputs'!Q$39) -> 0 | O47: =H47*('Misc Data'!$D18*'General Inputs'!R$34+'Misc Data'!$E18*'General Inputs'!R$35+'Misc Data'!$F18*'General Inputs'!R$36+'Misc Data'!$G18*'General Inputs'!R$37+'Misc Data'!$I18*'General Inputs'!R$38+'Misc Data'!$H18*'General Inputs'!R$39) -> 0 | P47: 0 | R47: 0 | S47: 0 | T47: 0 | U47: 0 | V47: 0 | W47: 0
A48: C-21 | B48: Non-network | C48: Light Vehicle Fleet | D48: ='Direct Capex Plus Ohds'!Y20 -> 0 | E48: ='Direct Capex Plus Ohds'!Z20 -> 0 | F48: ='Direct Capex Plus Ohds'!AA20 -> 0 | G48: ='Direct Capex Plus Ohds'!AB20 -> 0 | H48: ='Direct Capex Plus Ohds'!AC20 -> 0 | I48: 0 | K48: =D48*('Misc Data'!$D19*'General Inputs'!N$34+'Misc Data'!$E19*'General Inputs'!N$35+'Misc Data'!$F19*'General Inputs'!N$36+'Misc Data'!$G19*'General Inputs'!N$37+'Misc Data'!$I19*'General Inputs'!N$38+'Misc Data'!$H19*'General Inputs'!N$39) -> 0 | L48: =E48*('Misc Data'!$D19*'General Inputs'!O$34+'Misc Data'!$E19*'General Inputs'!O$35+'Misc Data'!$F19*'General Inputs'!O$36+'Misc Data'!$G19*'General Inputs'!O$37+'Misc Data'!$I19*'General Inputs'!O$38+'Misc Data'!$H19*'General Inputs'!O$39) -> 0 | M48: =F48*('Misc Data'!$D19*'General Inputs'!P$34+'Misc Data'!$E19*'General Inputs'!P$35+'Misc Data'!$F19*'General Inputs'!P$36+'Misc Data'!$G19*'General Inputs'!P$37+'Misc Data'!$I19*'General Inputs'!P$38+'Misc Data'!$H19*'General Inputs'!P$39) -> 0 | N48: =G48*('Misc Data'!$D19*'General Inputs'!Q$34+'Misc Data'!$E19*'General Inputs'!Q$35+'Misc Data'!$F19*'General Inputs'!Q$36+'Misc Data'!$G19*'General Inputs'!Q$37+'Misc Data'!$I19*'General Inputs'!Q$38+'Misc Data'!$H19*'General Inputs'!Q$39) -> 0 | O48: =H48*('Misc Data'!$D19*'General Inputs'!R$34+'Misc Data'!$E19*'General Inputs'!R$35+'Misc Data'!$F19*'General Inputs'!R$36+'Misc Data'!$G19*'General Inputs'!R$37+'Misc Data'!$I19*'General Inputs'!R$38+'Misc Data'!$H19*'General Inputs'!R$39) -> 0 | P48: 0 | R48: 0 | S48: 0 | T48: 0 | U48: 0 | V48: 0 | W48: 0
A49: C-22 | B49: Non-network | C49: Plant and Tools | D49: ='Direct Capex Plus Ohds'!Y21 -> 0 | E49: ='Direct Capex Plus Ohds'!Z21 -> 0 | F49: ='Direct Capex Plus Ohds'!AA21 -> 0 | G49: ='Direct Capex Plus Ohds'!AB21 -> 0 | H49: ='Direct Capex Plus Ohds'!AC21 -> 0 | I49: 0 | K49: =D49*('Misc Data'!$D20*'General Inputs'!N$34+'Misc Data'!$E20*'General Inputs'!N$35+'Misc Data'!$F20*'General Inputs'!N$36+'Misc Data'!$G20*'General Inputs'!N$37+'Misc Data'!$I20*'General Inputs'!N$38+'Misc Data'!$H20*'General Inputs'!N$39) -> 0 | L49: =E49*('Misc Data'!$D20*'General Inputs'!O$34+'Misc Data'!$E20*'General Inputs'!O$35+'Misc Data'!$F20*'General Inputs'!O$36+'Misc Data'!$G20*'General Inputs'!O$37+'Misc Data'!$I20*'General Inputs'!O$38+'Misc Data'!$H20*'General Inputs'!O$39) -> 0 | M49: =F49*('Misc Data'!$D20*'General Inputs'!P$34+'Misc Data'!$E20*'General Inputs'!P$35+'Misc Data'!$F20*'General Inputs'!P$36+'Misc Data'!$G20*'General Inputs'!P$37+'Misc Data'!$I20*'General Inputs'!P$38+'Misc Data'!$H20*'General Inputs'!P$39) -> 0 | N49: =G49*('Misc Data'!$D20*'General Inputs'!Q$34+'Misc Data'!$E20*'General Inputs'!Q$35+'Misc Data'!$F20*'General Inputs'!Q$36+'Misc Data'!$G20*'General Inputs'!Q$37+'Misc Data'!$I20*'General Inputs'!Q$38+'Misc Data'!$H20*'General Inputs'!Q$39) -> 0 | O49: =H49*('Misc Data'!$D20*'General Inputs'!R$34+'Misc Data'!$E20*'General Inputs'!R$35+'Misc Data'!$F20*'General Inputs'!R$36+'Misc Data'!$G20*'General Inputs'!R$37+'Misc Data'!$I20*'General Inputs'!R$38+'Misc Data'!$H20*'General Inputs'!R$39) -> 0 | P49: 0 | R49: 0 | S49: 0 | T49: 0 | U49: 0 | V49: 0 | W49: 0
A50: C-24 | B50: Non-network | C50: Property | D50: ='Direct Capex Plus Ohds'!Y22 -> 0 | E50: ='Direct Capex Plus Ohds'!Z22 -> 0 | F50: ='Direct Capex Plus Ohds'!AA22 -> 0 | G50: ='Direct Capex Plus Ohds'!AB22 -> 0 | H50: ='Direct Capex Plus Ohds'!AC22 -> 0 | I50: 0 | K50: =D50*('Misc Data'!$D21*'General Inputs'!N$34+'Misc Data'!$E21*'General Inputs'!N$35+'Misc Data'!$F21*'General Inputs'!N$36+'Misc Data'!$G21*'General Inputs'!N$37+'Misc Data'!$I21*'General Inputs'!N$38+'Misc Data'!$H21*'General Inputs'!N$39) -> 0 | L50: =E50*('Misc Data'!$D21*'General Inputs'!O$34+'Misc Data'!$E21*'General Inputs'!O$35+'Misc Data'!$F21*'General Inputs'!O$36+'Misc Data'!$G21*'General Inputs'!O$37+'Misc Data'!$I21*'General Inputs'!O$38+'Misc Data'!$H21*'General Inputs'!O$39) -> 0 | M50: =F50*('Misc Data'!$D21*'General Inputs'!P$34+'Misc Data'!$E21*'General Inputs'!P$35+'Misc Data'!$F21*'General Inputs'!P$36+'Misc Data'!$G21*'General Inputs'!P$37+'Misc Data'!$I21*'General Inputs'!P$38+'Misc Data'!$H21*'General Inputs'!P$39) -> 0 | N50: =G50*('Misc Data'!$D21*'General Inputs'!Q$34+'Misc Data'!$E21*'General Inputs'!Q$35+'Misc Data'!$F21*'General Inputs'!Q$36+'Misc Data'!$G21*'General Inputs'!Q$37+'Misc Data'!$I21*'General Inputs'!Q$38+'Misc Data'!$H21*'General Inputs'!Q$39) -> 0 | O50: =H50*('Misc Data'!$D21*'General Inputs'!R$34+'Misc Data'!$E21*'General Inputs'!R$35+'Misc Data'!$F21*'General Inputs'!R$36+'Misc Data'!$G21*'General Inputs'!R$37+'Misc Data'!$I21*'General Inputs'!R$38+'Misc Data'!$H21*'General Inputs'!R$39) -> 0 | P50: 0 | R50: 0 | S50: 0 | T50: 0 | U50: 0 | V50: 0 | W50: 0
A51: C-25 | B51: Non-network | C51: Information Technology | D51: ='Direct Capex Plus Ohds'!Y23 -> 0 | E51: ='Direct Capex Plus Ohds'!Z23 -> 0 | F51: ='Direct Capex Plus Ohds'!AA23 -> 0 | G51: ='Direct Capex Plus Ohds'!AB23 -> 0 | H51: ='Direct Capex Plus Ohds'!AC23 -> 0 | I51: 0 | K51: =D51*('Misc Data'!$D22*'General Inputs'!N$34+'Misc Data'!$E22*'General Inputs'!N$35+'Misc Data'!$F22*'General Inputs'!N$36+'Misc Data'!$G22*'General Inputs'!N$37+'Misc Data'!$I22*'General Inputs'!N$38+'Misc Data'!$H22*'General Inputs'!N$39) -> 0 | L51: =E51*('Misc Data'!$D22*'General Inputs'!O$34+'Misc Data'!$E22*'General Inputs'!O$35+'Misc Data'!$F22*'General Inputs'!O$36+'Misc Data'!$G22*'General Inputs'!O$37+'Misc Data'!$I22*'General Inputs'!O$38+'Misc Data'!$H22*'General Inputs'!O$39) -> 0 | M51: =F51*('Misc Data'!$D22*'General Inputs'!P$34+'Misc Data'!$E22*'General Inputs'!P$35+'Misc Data'!$F22*'General Inputs'!P$36+'Misc Data'!$G22*'General Inputs'!P$37+'Misc Data'!$I22*'General Inputs'!P$38+'Misc Data'!$H22*'General Inputs'!P$39) -> 0 | N51: =G51*('Misc Data'!$D22*'General Inputs'!Q$34+'Misc Data'!$E22*'General Inputs'!Q$35+'Misc Data'!$F22*'General Inputs'!Q$36+'Misc Data'!$G22*'General Inputs'!Q$37+'Misc Data'!$I22*'General Inputs'!Q$38+'Misc Data'!$H22*'General Inputs'!Q$39) -> 0 | O51: =H51*('Misc Data'!$D22*'General Inputs'!R$34+'Misc Data'!$E22*'General Inputs'!R$35+'Misc Data'!$F22*'General Inputs'!R$36+'Misc Data'!$G22*'General Inputs'!R$37+'Misc Data'!$I22*'General Inputs'!R$38+'Misc Data'!$H22*'General Inputs'!R$39) -> 0 | P51: 0 | R51: 0 | S51: 0 | T51: 0 | U51: 0 | V51: 0 | W51: 0
A52: C-28 | B52: Non-network | C52: Superannuation | D52: ='Direct Capex Plus Ohds'!Y24 -> 0 | E52: ='Direct Capex Plus Ohds'!Z24 -> 0 | F52: ='Direct Capex Plus Ohds'!AA24 -> 0 | G52: ='Direct Capex Plus Ohds'!AB24 -> 0 | H52: ='Direct Capex Plus Ohds'!AC24 -> 0 | I52: 0 | K52: =D52*('Misc Data'!$D23*'General Inputs'!N$34+'Misc Data'!$E23*'General Inputs'!N$35+'Misc Data'!$F23*'General Inputs'!N$36+'Misc Data'!$G23*'General Inputs'!N$37+'Misc Data'!$I23*'General Inputs'!N$38+'Misc Data'!$H23*'General Inputs'!N$39) -> 0 | L52: =E52*('Misc Data'!$D23*'General Inputs'!O$34+'Misc Data'!$E23*'General Inputs'!O$35+'Misc Data'!$F23*'General Inputs'!O$36+'Misc Data'!$G23*'General Inputs'!O$37+'Misc Data'!$I23*'General Inputs'!O$38+'Misc Data'!$H23*'General Inputs'!O$39) -> 0 | M52: =F52*('Misc Data'!$D23*'General Inputs'!P$34+'Misc Data'!$E23*'General Inputs'!P$35+'Misc Data'!$F23*'General Inputs'!P$36+'Misc Data'!$G23*'General Inputs'!P$37+'Misc Data'!$I23*'General Inputs'!P$38+'Misc Data'!$H23*'General Inputs'!P$39) -> 0 | N52: =G52*('Misc Data'!$D23*'General Inputs'!Q$34+'Misc Data'!$E23*'General Inputs'!Q$35+'Misc Data'!$F23*'General Inputs'!Q$36+'Misc Data'!$G23*'General Inputs'!Q$37+'Misc Data'!$I23*'General Inputs'!Q$38+'Misc Data'!$H23*'General Inputs'!Q$39) -> 0 | O52: =H52*('Misc Data'!$D23*'General Inputs'!R$34+'Misc Data'!$E23*'General Inputs'!R$35+'Misc Data'!$F23*'General Inputs'!R$36+'Misc Data'!$G23*'General Inputs'!R$37+'Misc Data'!$I23*'General Inputs'!R$38+'Misc Data'!$H23*'General Inputs'!R$39) -> 0 | P52: 0 | R52: 0 | S52: 0 | T52: 0 | U52: 0 | V52: 0 | W52: 0
A53: C-29 | B53: Non-network | C53: Operational Information Technology | D53: ='Direct Capex Plus Ohds'!Y25 -> 144.7166578 | E53: ='Direct Capex Plus Ohds'!Z25 -> 96.12453089 | F53: ='Direct Capex Plus Ohds'!AA25 -> 105.3513135 | G53: ='Direct Capex Plus Ohds'!AB25 -> 147.977512 | H53: ='Direct Capex Plus Ohds'!AC25 -> 184.2543928 | I53: 678.424407 | K53: =D53*('Misc Data'!$D24*'General Inputs'!N$34+'Misc Data'!$E24*'General Inputs'!N$35+'Misc Data'!$F24*'General Inputs'!N$36+'Misc Data'!$G24*'General Inputs'!N$37+'Misc Data'!$I24*'General Inputs'!N$38+'Misc Data'!$H24*'General Inputs'!N$39) -> 0.8757487794 | L53: =E53*('Misc Data'!$D24*'General Inputs'!O$34+'Misc Data'!$E24*'General Inputs'!O$35+'Misc Data'!$F24*'General Inputs'!O$36+'Misc Data'!$G24*'General Inputs'!O$37+'Misc Data'!$I24*'General Inputs'!O$38+'Misc Data'!$H24*'General Inputs'!O$39) -> 0.7182203777 | M53: =F53*('Misc Data'!$D24*'General Inputs'!P$34+'Misc Data'!$E24*'General Inputs'!P$35+'Misc Data'!$F24*'General Inputs'!P$36+'Misc Data'!$G24*'General Inputs'!P$37+'Misc Data'!$I24*'General Inputs'!P$38+'Misc Data'!$H24*'General Inputs'!P$39) -> 0.9246738957 | N53: =G53*('Misc Data'!$D24*'General Inputs'!Q$34+'Misc Data'!$E24*'General Inputs'!Q$35+'Misc Data'!$F24*'General Inputs'!Q$36+'Misc Data'!$G24*'General Inputs'!Q$37+'Misc Data'!$I24*'General Inputs'!Q$38+'Misc Data'!$H24*'General Inputs'!Q$39) -> 1.555372663 | O53: =H53*('Misc Data'!$D24*'General Inputs'!R$34+'Misc Data'!$E24*'General Inputs'!R$35+'Misc Data'!$F24*'General Inputs'!R$36+'Misc Data'!$G24*'General Inputs'!R$37+'Misc Data'!$I24*'General Inputs'!R$38+'Misc Data'!$H24*'General Inputs'!R$39) -> 2.249274479 | P53: 6.323290194 | R53: 145.5924066 | S53: 96.84275127 | T53: 106.2759874 | U53: 149.5328846 | V53: 186.5036673 | W53: 684.7476972
A54: =A26 -> Total Gross Capex | D54: =SUM(D35:D37,D39:D53) -> 14318.20683 | E54: =SUM(E35:E37,E39:E53) -> 14436.11561 | F54: 14163.79808 | G54: 14025.31641 | H54: 13719.09387 | I54: 70662.53079 | K54: =SUM(K35:K37,K39:K53) -> 112.4837433 | L54: =SUM(L35:L37,L39:L53) -> 140.2707026 | M54: 161.6909107 | N54: 191.688254 | O54: 217.5662353 | P54: 823.699846 | R54: =SUM(R35:R37,R39:R53) -> 14430.69057 | S54: =SUM(S35:S37,S39:S53) -> 14576.38631 | T54: 14325.48899 | U54: 14217.00466 | V54: 13936.6601 | W54: 71486.23064
A55: =A27 -> Total Net Capex | D55: =SUM(D54,D38) -> 10602.43816 | E55: 10782.17512 | F55: 10514.77526 | G55: 10405.86572 | H55: 10227.06164 | I55: 52532.3159 | K55: =SUM(K54,K38) -> 82.4347356 | L55: 103.7864539 | M55: 118.8907232 | N55: 140.8486858 | O55: 160.5992421 | P55: 606.5598407 | R55: =SUM(R54,R38) -> 10684.87289 | S55: 10885.96157 | T55: 10633.66599 | U55: 10546.71441 | V55: 10387.66088 | W55: 53138.87574
C59: $2017-18 ($'000) | D59: Base Capex excluding Overheads | K59: =K2 -> Real Price Escalation | R59: Capex Including Real Price Escalation
D62: 2020/21 | E62: 2021/22 | F62: 2022/23 | G62: 2023/24 | H62: 2024/25 | I62: TOTAL | K62: =D62 -> 2020/21 | L62: =E62 -> 2021/22 | M62: =F62 -> 2022/23 | N62: =G62 -> 2023/24 | O62: =H62 -> 2024/25 | P62: =I62 -> TOTAL | R62: =K62 -> 2020/21 | S62: =L62 -> 2021/22 | T62: =M62 -> 2022/23 | U62: =N62 -> 2023/24 | V62: =O62 -> 2024/25 | W62: =P62 -> TOTAL
A63: =A35 -> C-1 | B63: =B35 -> Repex | C63: Asset Replacement and Refurbishment | D63: =D7-D35 -> 84059.63536 | E63: =E7-E35 -> 86403.52978 | F63: 86763.1608 | G63: 86024.89209 | H63: 84480.19791 | I63: =SUM(D63:H63) -> 427731.4159 | K63: =K7-K35 -> 625.3984418 | L63: =L7-L35 -> 793.7125563 | M63: 936.2509772 | N63: 1111.657887 | O63: 1267.908181 | P63: =SUM(K63:O63) -> 4734.928043 | R63: =R7-R35 -> 84685.0338 | S63: =S7-S35 -> 87197.24233 | T63: 87699.41178 | U63: 87136.54998 | V63: 85748.10609 | W63: =SUM(R63:V63) -> 432466.344
A64: =A36 -> C-2 | B64: Augex | C64: Augmentation/Capacity | D64: =D8-D36 -> 21899.49295 | E64: 20293.55366 | F64: 17761.59224 | G64: 16793.85739 | H64: 15212.94573 | I64: =SUM(D64:H64) -> 91961.44197 | K64: =K8-K36 -> 152.3049353 | L64: 174.2611173 | M64: 179.1634589 | N64: 202.8654561 | O64: 213.4306668 | P64: =SUM(K64:O64) -> 922.0256344 | R64: =R8-R36 -> 22051.79789 | S64: 20467.81478 | T64: 17940.75569 | U64: 16996.72285 | V64: 15426.37639 | W64: =SUM(R64:V64) -> 92883.4676
A65: =A37 -> C-3 | B65: Connections | C65: Connections | D65: =D9-D37 -> 92935.01368 | E65: 93923.00778 | F65: 94271.92313 | G65: 93366.59564 | H65: 89877.36385 | I65: 464373.9041 | K65: =K9-K37 -> 781.617316 | L65: 975.3248057 | M65: 1149.965464 | N65: 1363.904784 | O65: 1524.855601 | P65: 5795.66797 | R65: =R9-R37 -> 93716.63099 | S65: 94898.33258 | T65: 95421.8886 | U65: 94730.50042 | V65: 91402.21945 | W65: 470169.572
A66: =A38 -> C-4 | B66: Connections | C66: Contributions | D66: =D10-D38 -> -62905.74166 | E66: -62206.06954 | F66: -62262.19003 | G66: -61764.78133 | H66: -58934.47181 | I66: -308073.2544 | K66: =K10-K38 -> -508.7117311 | L66: -621.1216968 | M66: -730.2868562 | N66: -867.561154 | O66: -961.4228719 | P66: -3689.10431 | R66: =R10-R38 -> -63414.45339 | S66: -62827.19123 | T66: -62992.47689 | U66: -62632.34248 | V66: -59895.89468 | W66: -311762.3587
A67: =A39 -> C-5 | B67: Augex | C67: Reliability | D67: =D11-D39 -> 5756.353817 | E67: 5756.353817 | F67: 5756.353817 | G67: 5756.353817 | H67: 5756.353817 | I67: 28781.76908 | K67: =K11-K39 -> 70.75750877 | L67: 87.36450223 | M67: 102.6266517 | N67: 122.8995401 | O67: 142.7368546 | P67: 526.3850573 | R67: =R11-R39 -> 5827.111325 | S67: 5843.718319 | T67: 5858.980468 | U67: 5879.253357 | V67: 5899.090671 | W67: 29308.15414
A68: =A40 -> C-6 | B68: Augex | C68: Environmental | D68: =D12-D40 -> 1727.740399 | E68: 1727.740399 | F68: 1727.740399 | G68: 1727.740399 | H68: 1727.740399 | I68: 8638.701996 | K68: =K12-K40 -> 10.61875367 | L68: 13.11100609 | M68: 15.40143446 | N68: 18.44383678 | O68: 21.42087144 | P68: 78.99590244 | R68: =R12-R40 -> 1738.359153 | S68: 1740.851405 | T68: 1743.141834 | U68: 1746.184236 | V68: 1749.161271 | W68: 8717.697898
A69: =A41 -> C-7 | B69: Augex | C69: Safety Augex | D69: =D13-D41 -> 4720.529128 | E69: 4720.529128 | F69: 4720.529128 | G69: 4720.529128 | H69: 4720.529128 | I69: 23602.64564 | K69: =K13-K41 -> 45.80927237 | L69: 56.56084206 | M69: 66.44174337 | N69: 79.56665808 | O69: 92.40957692 | P69: 340.7880928 | R69: =R13-R41 -> 4766.3384 | S69: 4777.08997 | T69: 4786.970871 | U69: 4800.095786 | V69: 4812.938705 | W69: 23943.43373
A70: =A42 -> C-8 | B70: Repex | C70: Safety Repex | D70: =D14-D42 -> 10467.99121 | E70: 10114.26234 | F70: 9738.087372 | G70: 10041.72607 | H70: 10144.06347 | I70: 50506.13046 | K70: =K14-K42 -> 101.5841758 | L70: 121.1879387 | M70: 137.0641902 | N70: 169.2578444 | O70: 198.5812581 | P70: 727.6754072 | R70: =R14-R42 -> 10569.57539 | S70: 10235.45028 | T70: 9875.151562 | U70: 10210.98392 | V70: 10342.64473 | W70: 51233.80587
A71: =A43 -> C-10 | B71: Augex | C71: PLEC (Undergrounding) | D71: =D15-D43 -> 9593.923028 | E71: 9593.923028 | F71: 9593.923028 | G71: 9593.923028 | H71: 9593.923028 | I71: 47969.61514 | K71: =K15-K43 -> 24.82719606 | L71: 30.65421131 | M71: 36.00935146 | N71: 43.12264565 | O71: 50.08310687 | P71: 184.6965113 | R71: =R15-R43 -> 9618.750224 | S71: 9624.577239 | T71: 9629.932379 | U71: 9637.045673 | V71: 9644.006135 | W71: 48154.31165
A72: =A44 -> C-15 | B72: Augex | C72: Strategic - Network Security | D72: =D16-D44 -> 6756.624574 | E72: 9596.42579 | F72: 7522.887035 | G72: 6792.914631 | H72: 4930.859309 | I72: 35599.71134 | K72: =K16-K44 -> 56.82567373 | L72: 99.65217619 | M72: 91.76709235 | N72: 99.23130105 | O72: 83.65675306 | P72: 431.1329964 | R72: =R16-R44 -> 6813.450248 | S72: 9696.077967 | T72: 7614.654127 | U72: 6892.145932 | V72: 5014.516062 | W72: 36030.84434
A73: =A45 -> C-18 | B73: Augex | C73: Safety (Bushfire) | D73: =D17-D45 -> 2031.408919 | E73: 2000.124388 | F73: 2018.895107 | G73: 1993.867481 | H73: 1981.353669 | I73: 10025.64956 | K73: =K17-K45 -> 19.71333339 | L73: 23.96526248 | M73: 28.41607517 | N73: 33.60754014 | O73: 38.78718874 | P73: 144.4893999 | R73: =R17-R45 -> 2051.122253 | S73: 2024.08965 | T73: 2047.311182 | U73: 2027.475022 | V73: 2020.140858 | W73: 10170.13896
A74: =A46 -> C-19 | B74: Non-network | C74: Heavy Vehicle Fleet - 15yrs | D74: =D18-D46 -> 4818.998257 | E74: 8900.721913 | F74: 7074.771475 | G74: 7772.883119 | H74: 5621.661631 | I74: 34189.0364 | K74: =K18-K46 -> 0 | L74: 0 | M74: 0 | N74: 0 | O74: 0 | P74: 0 | R74: =R18-R46 -> 4818.998257 | S74: 8900.721913 | T74: 7074.771475 | U74: 7772.883119 | V74: 5621.661631 | W74: 34189.0364
A75: =A47 -> C-20 | B75: Non-network | C75: Heavy Vehicle Fleet - 10yrs | D75: =D19-D47 -> 1633.766855 | E75: 1336.718336 | F75: 1782.291115 | G75: 4158.679268 | H75: 2376.388153 | I75: 11287.84373 | K75: =K19-K47 -> 0 | L75: 0 | M75: 0 | N75: 0 | O75: 0 | P75: 0 | R75: =R19-R47 -> 1633.766855 | S75: 1336.718336 | T75: 1782.291115 | U75: 4158.679268 | V75: 2376.388153 | W75: 11287.84373
A76: =A48 -> C-21 | B76: Non-network | C76: Light Vehicle Fleet | D76: =D20-D48 -> 4872.130697 | E76: 5689.262349 | F76: 9201.959549 | G76: 7156.861682 | H76: 3632.513759 | I76: 30552.72804 | K76: =K20-K48 -> 0 | L76: 0 | M76: 0 | N76: 0 | O76: 0 | P76: 0 | R76: =R20-R48 -> 4872.130697 | S76: 5689.262349 | T76: 9201.959549 | U76: 7156.861682 | V76: 3632.513759 | W76: 30552.72804
A77: =A49 -> C-22 | B77: Non-network | C77: Plant and Tools | D77: =D21-D49 -> 5096.733333 | E77: 4245.733333 | F77: 3485.233333 | G77: 3220.4 | H77: 3712.4 | I77: 19760.5 | K77: =K21-K49 -> 0 | L77: 0 | M77: 0 | N77: 0 | O77: 0 | P77: 0 | R77: =R21-R49 -> 5096.733333 | S77: 4245.733333 | T77: 3485.233333 | U77: 3220.4 | V77: 3712.4 | W77: 19760.5
A78: =A50 -> C-24 | B78: Non-network | C78: Property | D78: =D22-D50 -> 0 | E78: 0 | F78: 0 | G78: 0 | H78: 0 | I78: 0 | K78: =K22-K50 -> 0 | L78: 0 | M78: 0 | N78: 0 | O78: 0 | P78: 0 | R78: =R22-R50 -> 0 | S78: 0 | T78: 0 | U78: 0 | V78: 0 | W78: 0
A79: =A51 -> C-25 | B79: Non-network | C79: Information Technology | D79: =D23-D51 -> 53913.6369 | E79: 50461.06019 | F79: 32300.7003 | G79: 24262.40137 | H79: 25109.0203 | I79: 186046.8191 | K79: =K23-K51 -> 245.0283924 | L79: 283.1630784 | M79: 212.9204353 | N79: 191.5266834 | O79: 230.203084 | P79: 1162.841673 | R79: =R23-R51 -> 54158.66529 | S79: 50744.22327 | T79: 32513.62073 | U79: 24453.92806 | V79: 25339.22339 | W79: 187209.6607
A80: =A52 -> C-28 | B80: Non-network | C80: Superannuation | D80: =D24-D52 -> -6939.995 | E80: -6939.995 | F80: -6939.995 | G80: -6939.995 | H80: -6939.995 | I80: -34699.975 | K80: =K24-K52 -> -112.2459342 | L80: -138.590382 | M80: -162.8014411 | N80: -194.9612689 | O80: -226.4301255 | P80: -835.0291517 | R80: =R24-R52 -> -7052.240934 | S80: -7078.585382 | T80: -7102.796441 | U80: -7134.956269 | V80: -7166.425126 | W80: -35535.00415
A81: =A53 -> C-29 | B81: Non-network | C81: Operational Information Technology | D81: =D25-D53 -> 1490.469652 | E81: 2183.223919 | F81: 2393.150118 | G81: 1490.469962 | H81: 1343.521257 | I81: 8900.834907 | K81: =K25-K53 -> 9.019535125 | L81: 16.31254679 | M81: 21.00480163 | N81: 15.66613874 | O81: 16.40095538 | P81: 78.40397767 | R81: =R25-R53 -> 1499.489187 | S81: 2199.536466 | T81: 2414.154919 | U81: 1506.136101 | V81: 1359.922212 | W81: 8979.238885
A82: Total Gross Capex | D82: =SUM(D63:D65,D67:D81) -> 304834.4538 | E82: =SUM(E63:E65,E67:E81) -> 310006.1751 | F82: 289173.2029 | G82: 277934.1001 | H82: 263280.8404 | I82: 1445228.772 | K82: =SUM(K63:K65,K67:K81) -> 2031.2586 | L82: =SUM(L63:L65,L67:L81) -> 2536.679661 | M82: 2814.230234 | N82: 3256.789046 | O82: 3654.043972 | P82: 14293.00151 | R82: =SUM(R63:R65,R67:R81) -> 306865.7124 | S82: 312542.8548 | T82: 291987.4332 | U82: 281190.8891 | V82: 266934.8844 | W82: 1459521.774
A83: Total Net Capex | D83: =SUM(D82,D66) -> 241928.7121 | E83: =SUM(E82,E66) -> 247800.1056 | F83: 226911.0129 | G83: 216169.3188 | H83: 204346.3686 | I83: 1137155.518 | K83: =SUM(K82,K66) -> 1522.546869 | L83: =SUM(L82,L66) -> 1915.557965 | M83: 2083.943378 | N83: 2389.227892 | O83: 2692.6211 | P83: 10603.8972 | R83: =SUM(R82,R66) -> 243451.259 | S83: =SUM(S82,S66) -> 249715.6636 | T83: 228994.9563 | U83: 218558.5466 | V83: 207038.9897 | W83: 1147759.415
A85: Gross Network Capex | D85: =SUM(D63:D65,D67:D73) -> 239948.7131 | E85: =SUM(E63:E65,E67:E73) -> 244129.4501 | F85: 239875.0921 | G85: 236812.3997 | H85: 228425.3303 | I85: =SUM(I63:I65,I67:I73) -> 1189190.985 | K85: =SUM(K63:K65,K67:K73) -> 1889.456607 | L85: =SUM(L63:L65,L67:L73) -> 2375.794418 | M85: 2743.106438 | N85: 3244.557493 | O85: 3633.870058 | P85: =SUM(P63:P65,P67:P73) -> 13886.78501 | R85: =SUM(R63:R65,R67:R73) -> 241838.1697 | S85: =SUM(S63:S65,S67:S73) -> 246505.2445 | T85: 242618.1985 | U85: 240056.9572 | V85: 232059.2004 | W85: =SUM(W63:W65,W67:W73) -> 1203077.77
A86: Net Network Capex | D86: =D85+D66 -> 177042.9714 | E86: =E85+E66 -> 181923.3806 | F86: 177612.902 | G86: 175047.6183 | H86: 169490.8585 | I86: 881117.7308 | K86: =K85+K66 -> 1380.744876 | L86: =L85+L66 -> 1754.672721 | M86: 2012.819582 | N86: 2376.996339 | O86: 2672.447186 | P86: 10197.6807 | R86: =R85+R66 -> 178423.7163 | S86: =S85+S66 -> 183678.0533 | T86: 179625.7216 | U86: 177424.6147 | V86: 172163.3057 | W86: 891315.4115

Sheet Total Capex $June2020
D2: ='Base Capex Incl Real Price Esc'!R2 -> Capex Including Overheads & Real Price Escalation
D3: $2017-18 ($'000)
P4: ='General Inputs'!C11 -> 1.051327913
D6: 2020/21 | E6: 2021/22 | F6: 2022/23 | G6: 2023/24 | H6: 2024/25 | I6: TOTAL | K6: 2020/21 | L6: 2021/22 | M6: 2022/23 | N6: 2023/24 | O6: 2024/25 | P6: TOTAL
A7: C-1 | B7: Repex | C7: Asset Replacement and Refurbishment | D7: ='Base Capex Incl Real Price Esc'!R7 -> 89687.27982 | E7: ='Base Capex Incl Real Price Esc'!S7 -> 92319.14662 | F7: ='Base Capex Incl Real Price Esc'!T7 -> 92839.2431 | G7: ='Base Capex Incl Real Price Esc'!U7 -> 92242.80048 | H7: ='Base Capex Incl Real Price Esc'!V7 -> 90828.92112 | I7: =SUM(D7:H7) -> 457917.3911 | K7: =D7*$P$4 -> 94290.74074 | L7: =E7*$P$4 -> 97057.69577 | M7: =F7*$P$4 -> 97604.48772 | N7: =G7*$P$4 -> 96977.43094 | O7: =H7*$P$4 -> 95490.9801 | P7: =SUM(K7:O7) -> 481421.3353
A8: C-2 | B8: Augex | C8: Augmentation/Capacity | D8: ='Base Capex Incl Real Price Esc'!R8 -> 23354.37183 | E8: ='Base Capex Incl Real Price Esc'!S8 -> 21670.07973 | F8: ='Base Capex Incl Real Price Esc'!T8 -> 18992.21609 | G8: ='Base Capex Incl Real Price Esc'!U8 -> 17992.7403 | H8: ='Base Capex Incl Real Price Esc'!V8 -> 16340.43233 | I8: =SUM(D8:H8) -> 98349.84027 | K8: =D8*$P$4 -> 24553.103 | L8: 22782.3597 | M8: 19967.04691 | N8: 18916.27011 | O8: 17179.15262 | P8: =SUM(K8:O8) -> 103397.9323
A9: C-3 | B9: Connections | C9: Connections | D9: ='Base Capex Incl Real Price Esc'!R9 -> 99252.36291 | E9: ='Base Capex Incl Real Price Esc'!S9 -> 100472.5935 | F9: ='Base Capex Incl Real Price Esc'!T9 -> 101014.3139 | G9: ='Base Capex Incl Real Price Esc'!U9 -> 100281.7607 | H9: ='Base Capex Incl Real Price Esc'!V9 -> 96818.0565 | I9: 497839.0875 | K9: 104346.7796 | L9: 105629.642 | M9: 106199.1679 | N9: 105429.0142 | O9: 101787.5253 | P9: 523392.129
A10: C-4 | B10: Connections | C10: Contributions | D10: ='Base Capex Incl Real Price Esc'!R10 -> -67160.27107 | E10: ='Base Capex Incl Real Price Esc'!S10 -> -66517.61597 | F10: ='Base Capex Incl Real Price Esc'!T10 -> -66684.2999 | G10: ='Base Capex Incl Real Price Esc'!U10 -> -66302.63273 | H10: ='Base Capex Incl Real Price Esc'!V10 -> -63444.8939 | I10: -330109.7136 | K10: -70607.46764 | L10: -69931.82639 | M10: -70107.06586 | N10: -69705.80852 | O10: -66701.38792 | P10: -347053.5563
A11: C-5 | B11: Augex | C11: Reliability | D11: ='Base Capex Incl Real Price Esc'!R11 -> 6171.311984 | E11: ='Base Capex Incl Real Price Esc'!S11 -> 6186.974196 | F11: ='Base Capex Incl Real Price Esc'!T11 -> 6202.359868 | G11: ='Base Capex Incl Real Price Esc'!U11 -> 6223.780887 | H11: ='Base Capex Incl Real Price Esc'!V11 -> 6248.628287 | I11: 31033.05522 | K11: 6488.072551 | L11: 6504.538671 | M11: 6520.714057 | N11: 6543.234573 | O11: 6569.357338 | P11: 32625.91719
A12: C-6 | B12: Augex | C12: Environmental | D12: ='Base Capex Incl Real Price Esc'!R12 -> 1841.041997 | E12: ='Base Capex Incl Real Price Esc'!S12 -> 1843.107784 | F12: ='Base Capex Incl Real Price Esc'!T12 -> 1845.302781 | G12: ='Base Capex Incl Real Price Esc'!U12 -> 1848.511608 | H12: ='Base Capex Incl Real Price Esc'!V12 -> 1852.803966 | I12: 9230.768137 | K12: 1935.538841 | L12: 1937.710661 | M12: 1940.018322 | N12: 1943.391851 | O12: 1947.904528 | P12: 9704.564203
A13: C-7 | B13: Augex | C13: Safety Augex | D13: ='Base Capex Incl Real Price Esc'!R13 -> 5047.880442 | E13: ='Base Capex Incl Real Price Esc'!S13 -> 5057.692853 | F13: ='Base Capex Incl Real Price Esc'!T13 -> 5067.522614 | G13: ='Base Capex Incl Real Price Esc'!U13 -> 5081.38408 | H13: ='Base Capex Incl Real Price Esc'!V13 -> 5098.11878 | I13: 25352.59877 | K13: 5306.977611 | L13: 5317.293673 | M13: 5327.627976 | N13: 5342.200922 | O13: 5359.794578 | P13: 26653.89476
A14: C-8 | B14: Repex | C14: Safety Repex | D14: ='Base Capex Incl Real Price Esc'!R14 -> 11193.90786 | E14: ='Base Capex Incl Real Price Esc'!S14 -> 10836.67338 | F14: ='Base Capex Incl Real Price Esc'!T14 -> 10453.90816 | G14: ='Base Capex Incl Real Price Esc'!U14 -> 10809.35328 | H14: ='Base Capex Incl Real Price Esc'!V14 -> 10955.47534 | I14: 54249.31802 | K14: 11768.46779 | L14: 11392.89721 | M14: 10990.48545 | N14: 11364.17482 | O14: 11517.79703 | P14: 57033.82231
A15: C-10 | B15: Augex | C15: PLEC (Undergrounding) | D15: ='Base Capex Incl Real Price Esc'!R15 -> 10186.91856 | E15: ='Base Capex Incl Real Price Esc'!S15 -> 10189.91809 | F15: ='Base Capex Incl Real Price Esc'!T15 -> 10194.31733 | G15: ='Base Capex Incl Real Price Esc'!U15 -> 10201.78193 | H15: ='Base Capex Incl Real Price Esc'!V15 -> 10215.44046 | I15: 50988.37638 | K15: 10709.79184 | L15: 10712.94532 | M15: 10717.57036 | N15: 10725.41811 | O15: 10739.7777 | P15: 53605.50334
A16: C-15 | B16: Augex | C16: Strategic - Network Security | D16: ='Base Capex Incl Real Price Esc'!R16 -> 7215.912794 | E16: ='Base Capex Incl Real Price Esc'!S16 -> 10265.61872 | F16: ='Base Capex Incl Real Price Esc'!T16 -> 8060.928931 | G16: ='Base Capex Incl Real Price Esc'!U16 -> 7296.029533 | H16: ='Base Capex Incl Real Price Esc'!V16 -> 5311.640159 | I16: 38150.13014 | K16: 7586.290541 | L16: 10792.53151 | M16: 8474.679593 | N16: 7670.519504 | O16: 5584.275564 | P16: 40108.29671
A17: C-18 | B17: Augex | C17: Safety (Bushfire) | D17: ='Base Capex Incl Real Price Esc'!R17 -> 2172.279648 | E17: ='Base Capex Incl Real Price Esc'!S17 -> 2142.983243 | F17: ='Base Capex Incl Real Price Esc'!T17 -> 2167.298693 | G17: ='Base Capex Incl Real Price Esc'!U17 -> 2146.28619 | H17: ='Base Capex Incl Real Price Esc'!V17 -> 2139.839851 | I17: 10768.68763 | K17: 2283.77823 | L17: 2252.978101 | M17: 2278.541612 | N17: 2256.450582 | O17: 2249.673366 | P17: 11321.42189
A18: C-19 | B18: Non-network | C18: Heavy Vehicle Fleet - 15yrs | D18: ='Base Capex Incl Real Price Esc'!R18 -> 4818.998257 | E18: ='Base Capex Incl Real Price Esc'!S18 -> 8900.721913 | F18: ='Base Capex Incl Real Price Esc'!T18 -> 7074.771475 | G18: ='Base Capex Incl Real Price Esc'!U18 -> 7772.883119 | H18: ='Base Capex Incl Real Price Esc'!V18 -> 5621.661631 | I18: 34189.0364 | K18: 5066.347382 | L18: 9357.577395 | M18: 7437.904732 | N18: 8171.84899 | O18: 5910.209792 | P18: 35943.88829
A19: C-20 | B19: Non-network | C19: Heavy Vehicle Fleet - 10yrs | D19: ='Base Capex Incl Real Price Esc'!R19 -> 1633.766855 | E19: ='Base Capex Incl Real Price Esc'!S19 -> 1336.718336 | F19: ='Base Capex Incl Real Price Esc'!T19 -> 1782.291115 | G19: ='Base Capex Incl Real Price Esc'!U19 -> 4158.679268 | H19: ='Base Capex Incl Real Price Esc'!V19 -> 2376.388153 | I19: 11287.84373 | K19: 1717.624699 | L19: 1405.329299 | M19: 1873.772399 | N19: 4372.135597 | O19: 2498.363198 | P19: 11867.22519
A20: C-21 | B20: Non-network | C20: Light Vehicle Fleet | D20: ='Base Capex Incl Real Price Esc'!R20 -> 4872.130697 | E20: ='Base Capex Incl Real Price Esc'!S20 -> 5689.262349 | F20: ='Base Capex Incl Real Price Esc'!T20 -> 9201.959549 | G20: ='Base Capex Incl Real Price Esc'!U20 -> 7156.861682 | H20: ='Base Capex Incl Real Price Esc'!V20 -> 3632.513759 | I20: 30552.72804 | K20: 5122.206999 | L20: 5981.280313 | M20: 9674.27693 | N20: 7524.208458 | O20: 3818.96311 | P20: 32120.93581
A21: C-22 | B21: Non-network | C21: Plant and Tools | D21: ='Base Capex Incl Real Price Esc'!R21 -> 5096.733333 | E21: ='Base Capex Incl Real Price Esc'!S21 -> 4245.733333 | F21: ='Base Capex Incl Real Price Esc'!T21 -> 3485.233333 | G21: ='Base Capex Incl Real Price Esc'!U21 -> 3220.4 | H21: ='Base Capex Incl Real Price Esc'!V21 -> 3712.4 | I21: 19760.5 | K21: 5358.33802 | L21: 4463.657966 | M21: 3664.123088 | N21: 3385.696412 | O21: 3902.949745 | P21: 20774.76523
A22: C-24 | B22: Non-network | C22: Property | D22: ='Base Capex Incl Real Price Esc'!R22 -> 0 | E22: ='Base Capex Incl Real Price Esc'!S22 -> 0 | F22: ='Base Capex Incl Real Price Esc'!T22 -> 0 | G22: ='Base Capex Incl Real Price Esc'!U22 -> 0 | H22: ='Base Capex Incl Real Price Esc'!V22 -> 0 | I22: 0 | K22: 0 | L22: 0 | M22: 0 | N22: 0 | O22: 0 | P22: 0
A23: C-25 | B23: Non-network | C23: Information Technology | D23: ='Base Capex Incl Real Price Esc'!R23 -> 54158.66529 | E23: ='Base Capex Incl Real Price Esc'!S23 -> 50744.22327 | F23: ='Base Capex Incl Real Price Esc'!T23 -> 32513.62073 | G23: ='Base Capex Incl Real Price Esc'!U23 -> 24453.92806 | H23: ='Base Capex Incl Real Price Esc'!V23 -> 25339.22339 | I23: 187209.6607 | K23: 56938.51656 | L23: 53348.81836 | M23: 34182.47704 | N23: 25709.09716 | O23: 26639.83285 | P23: 196818.742
A24: C-28 | B24: Non-network | C24: Superannuation | D24: ='Base Capex Incl Real Price Esc'!R24 -> -7052.240934 | E24: ='Base Capex Incl Real Price Esc'!S24 -> -7078.585382 | F24: ='Base Capex Incl Real Price Esc'!T24 -> -7102.796441 | G24: ='Base Capex Incl Real Price Esc'!U24 -> -7134.956269 | H24: ='Base Capex Incl Real Price Esc'!V24 -> -7166.425126 | I24: -35535.00415 | K24: -7414.217745 | L24: -7441.914399 | M24: -7467.368161 | N24: -7501.178686 | O24: -7534.262773 | P24: -37358.94176
A25: C-29 | B25: Non-network | C25: Operational Information Technology | D25: ='Base Capex Incl Real Price Esc'!R25 -> 1645.081593 | E25: ='Base Capex Incl Real Price Esc'!S25 -> 2296.379217 | F25: ='Base Capex Incl Real Price Esc'!T25 -> 2520.430907 | G25: ='Base Capex Incl Real Price Esc'!U25 -> 1655.668985 | H25: ='Base Capex Incl Real Price Esc'!V25 -> 1546.425879 | I25: 9663.986582 | K25: 1729.520199 | L25: 2414.24757 | M25: 2649.799366 | N25: 1740.651019 | O25: 1625.800693 | P25: 10160.01885
A26: Total Gross Capex | D26: =SUM(D7:D9,D11:D25) -> 321296.4029 | E26: =SUM(E7:E9,E11:E25) -> 327119.2411 | F26: 306312.9222 | G26: 295407.8938 | H26: 280871.5445 | I26: 1531008.004 | K26: =SUM(K7:K9,K11:K25) -> 337787.8768 | L26: =SUM(L7:L9,L11:L25) -> 343909.5892 | M26: 322035.3253 | N26: 310570.5645 | O26: 295288.0948 | P26: 1609591.451
A27: Total Net Capex | D27: =SUM(D26,D10) -> 254136.1319 | E27: 260601.6251 | F27: 239628.6223 | G27: 229105.2611 | H27: 217426.6506 | I27: 1200898.291 | K27: =SUM(K26,K10) -> 267180.4092 | L27: 273977.7628 | M27: 251928.2594 | N27: 240864.756 | O27: 228586.7068 | P27: 1262537.894
A29: Gross Network Capex | D29: =SUM(D7:D9,D11:D17) -> 256123.2678 | E29: 260984.7881 | F29: 256837.4115 | G29: 254124.4289 | H29: 245809.3568 | I29: 1273879.253 | K29: =SUM(K7:K9,K11:K17) -> 269269.5407 | L29: =SUM(L7:L9,L11:L17) -> 274380.5926 | M29: 270020.3399 | N29: 267168.1056 | O29: 258426.2381 | P29: 1339264.817
A30: Net Network Capex | D30: =D29+D10 -> 188962.9968 | E30: 194467.1721 | F30: 190153.1116 | G30: 187821.7962 | H30: 182364.4629 | I30: 943769.5396 | K30: =K29+K10 -> 198662.0731 | L30: 204448.7663 | M30: 199913.274 | N30: 197462.2971 | O30: 191724.8502 | P30: 992211.2607
D33: ='Base Capex Incl Real Price Esc'!R34 -> Network Business Overheads Including Real Price Escalation | K33: Total Network Overheads
D34: =D3 -> $2017-18 ($'000) | K34: =K41 -> $2019-20 ($'000)
A36: ='Base Capex Incl Real Price Esc'!A55 -> Total Net Capex | D36: ='Base Capex Incl Real Price Esc'!R55 -> 10684.87289 | E36: ='Base Capex Incl Real Price Esc'!S55 -> 10885.96157 | F36: ='Base Capex Incl Real Price Esc'!T55 -> 10633.66599 | G36: ='Base Capex Incl Real Price Esc'!U55 -> 10546.71441 | H36: ='Base Capex Incl Real Price Esc'!V55 -> 10387.66088 | I36: =SUM(D36:H36) -> 53138.87574 | K36: =D36*$P$4 -> 11233.30512 | L36: =E36*$P$4 -> 11444.71526 | M36: =F36*$P$4 -> 11179.46987 | N36: =G36*$P$4 -> 11088.05525 | O36: =H36*$P$4 -> 10920.83784 | P36: =SUM(K36:O36) -> 55866.38335
D40: Capex excluding Overheads but including Real Price Escalation | K40: Total capex - excluding overheads but including real cost escalations
D41: $2017-18 ($'000) | K41: $2019-20 ($'000)
D44: 2020/21 | E44: 2021/22 | F44: 2022/23 | G44: 2023/24 | H44: 2024/25 | I44: TOTAL | K44: 2020/21 | L44: 2021/22 | M44: 2022/23 | N44: 2023/24 | O44: 2024/25 | P44: TOTAL
A45: C-1 | B45: Repex | C45: Asset Replacement and Refurbishment | D45: ='Base Capex Incl Real Price Esc'!R63 -> 84685.0338 | E45: ='Base Capex Incl Real Price Esc'!S63 -> 87197.24233 | F45: ='Base Capex Incl Real Price Esc'!T63 -> 87699.41178 | G45: ='Base Capex Incl Real Price Esc'!U63 -> 87136.54998 | H45: ='Base Capex Incl Real Price Esc'!V63 -> 85748.10609 | I45: =SUM(D45:H45) -> 432466.344 | K45: =D45*$P$4 -> 89031.73987 | L45: =E45*$P$4 -> 91672.89483 | M45: =F45*$P$4 -> 92200.83958 | N45: =G45*$P$4 -> 91609.08726 | O45: =H45*$P$4 -> 90149.37744 | P45: =SUM(K45:O45) -> 454663.939
A46: C-2 | B46: Augex | C46: Augmentation/Capacity | D46: ='Base Capex Incl Real Price Esc'!R64 -> 22051.79789 | E46: ='Base Capex Incl Real Price Esc'!S64 -> 20467.81478 | F46: ='Base Capex Incl Real Price Esc'!T64 -> 17940.75569 | G46: ='Base Capex Incl Real Price Esc'!U64 -> 16996.72285 | H46: ='Base Capex Incl Real Price Esc'!V64 -> 15426.37639 | I46: =SUM(D46:H46) -> 92883.4676 | K46: =D46*$P$4 -> 23183.67066 | L46: 21518.385 | M46: 18861.61725 | N46: 17869.12916 | O46: 16218.1801 | P46: =SUM(K46:O46) -> 97650.98217
A47: C-3 | B47: Connections | C47: Connections | D47: ='Base Capex Incl Real Price Esc'!R65 -> 93716.63099 | E47: ='Base Capex Incl Real Price Esc'!S65 -> 94898.33258 | F47: ='Base Capex Incl Real Price Esc'!T65 -> 95421.8886 | G47: ='Base Capex Incl Real Price Esc'!U65 -> 94730.50042 | H47: ='Base Capex Incl Real Price Esc'!V65 -> 91402.21945 | I47: 470169.572 | K47: 98526.9101 | L47: 99769.26597 | M47: 100319.695 | N47: 99592.81933 | O47: 96093.70464 | P47: 494302.3951
A48: C-4 | B48: Connections | C48: Contributions | D48: ='Base Capex Incl Real Price Esc'!R66 -> -63414.45339 | E48: ='Base Capex Incl Real Price Esc'!S66 -> -62827.19123 | F48: ='Base Capex Incl Real Price Esc'!T66 -> -62992.47689 | G48: ='Base Capex Incl Real Price Esc'!U66 -> -62632.34248 | H48: ='Base Capex Incl Real Price Esc'!V66 -> -59895.89468 | I48: -311762.3587 | K48: -66669.38496 | L48: -66051.97986 | M48: -66225.74928 | N48: -65847.12992 | O48: -62970.22597 | P48: -327764.47
A49: C-5 | B49: Augex | C49: Reliability | D49: ='Base Capex Incl Real Price Esc'!R67 -> 5827.111325 | E49: ='Base Capex Incl Real Price Esc'!S67 -> 5843.718319 | F49: ='Base Capex Incl Real Price Esc'!T67 -> 5858.980468 | G49: ='Base Capex Incl Real Price Esc'!U67 -> 5879.253357 | H49: ='Base Capex Incl Real Price Esc'!V67 -> 5899.090671 | I49: 29308.15414 | K49: 6126.20479 | L49: 6143.664186 | M49: 6159.70971 | N49: 6181.023163 | O49: 6201.878686 | P49: 30812.48053
A50: C-6 | B50: Augex | C50: Environmental | D50: ='Base Capex Incl Real Price Esc'!R68 -> 1738.359153 | E50: ='Base Capex Incl Real Price Esc'!S68 -> 1740.851405 | F50: ='Base Capex Incl Real Price Esc'!T68 -> 1743.141834 | G50: ='Base Capex Incl Real Price Esc'!U68 -> 1746.184236 | H50: ='Base Capex Incl Real Price Esc'!V68 -> 1749.161271 | I50: 8717.697898 | K50: 1827.585501 | L50: 1830.205675 | M50: 1832.613667 | N50: 1835.812229 | O50: 1838.942069 | P50: 9165.15914
A51: C-7 | B51: Augex | C51: Safety Augex | D51: ='Base Capex Incl Real Price Esc'!R69 -> 4766.3384 | E51: ='Base Capex Incl Real Price Esc'!S69 -> 4777.08997 | F51: ='Base Capex Incl Real Price Esc'!T69 -> 4786.970871 | G51: ='Base Capex Incl Real Price Esc'!U69 -> 4800.095786 | H51: ='Base Capex Incl Real Price Esc'!V69 -> 4812.938705 | I51: 23943.43373 | K51: 5010.984604 | L51: 5022.28803 | M51: 5032.676097 | N51: 5046.474686 | O51: 5059.976805 | P51: 25172.40022
A52: C-8 | B52: Repex | C52: Safety Repex | D52: ='Base Capex Incl Real Price Esc'!R70 -> 10569.57539 | E52: ='Base Capex Incl Real Price Esc'!S70 -> 10235.45028 | F52: ='Base Capex Incl Real Price Esc'!T70 -> 9875.151562 | G52: ='Base Capex Incl Real Price Esc'!U70 -> 10210.98392 | H52: ='Base Capex Incl Real Price Esc'!V70 -> 10342.64473 | I52: 51233.80587 | K52: 11112.08964 | L52: 10760.81458 | M52: 10382.02248 | N52: 10735.09241 | O52: 10873.5111 | P52: 53863.53021
A53: C-10 | B53: Augex | C53: PLEC (Undergrounding) | D53: ='Base Capex Incl Real Price Esc'!R71 -> 9618.750224 | E53: ='Base Capex Incl Real Price Esc'!S71 -> 9624.577239 | F53: ='Base Capex Incl Real Price Esc'!T71 -> 9629.932379 | G53: ='Base Capex Incl Real Price Esc'!U71 -> 9637.045673 | H53: ='Base Capex Incl Real Price Esc'!V71 -> 9644.006135 | I53: 48154.31165 | K53: 10112.4606 | L53: 10118.5867 | M53: 10124.21671 | N53: 10131.69512 | O53: 10139.01285 | P53: 50625.97198
A54: C-15 | B54: Augex | C54: Strategic - Network Security | D54: ='Base Capex Incl Real Price Esc'!R72 -> 6813.450248 | E54: ='Base Capex Incl Real Price Esc'!S72 -> 9696.077967 | F54: ='Base Capex Incl Real Price Esc'!T72 -> 7614.654127 | G54: ='Base Capex Incl Real Price Esc'!U72 -> 6892.145932 | H54: ='Base Capex Incl Real Price Esc'!V72 -> 5014.516062 | I54: 36030.84434 | K54: 7163.170431 | L54: 10193.75742 | M54: 8005.498434 | N54: 7245.905401 | O54: 5271.900708 | P54: 37880.23239
A55: C-18 | B55: Augex | C55: Safety (Bushfire) | D55: ='Base Capex Incl Real Price Esc'!R73 -> 2051.122253 | E55: ='Base Capex Incl Real Price Esc'!S73 -> 2024.08965 | F55: ='Base Capex Incl Real Price Esc'!T73 -> 2047.311182 | G55: ='Base Capex Incl Real Price Esc'!U73 -> 2027.475022 | H55: ='Base Capex Incl Real Price Esc'!V73 -> 2020.140858 | I55: 10170.13896 | K55: 2156.402078 | L55: 2127.981948 | M55: 2152.395393 | N55: 2131.541084 | O55: 2123.830472 | P55: 10692.15097
A56: C-19 | B56: Non-network | C56: Heavy Vehicle Fleet - 15yrs | D56: ='Base Capex Incl Real Price Esc'!R74 -> 4818.998257 | E56: ='Base Capex Incl Real Price Esc'!S74 -> 8900.721913 | F56: ='Base Capex Incl Real Price Esc'!T74 -> 7074.771475 | G56: ='Base Capex Incl Real Price Esc'!U74 -> 7772.883119 | H56: ='Base Capex Incl Real Price Esc'!V74 -> 5621.661631 | I56: 34189.0364 | K56: 5066.347382 | L56: 9357.577395 | M56: 7437.904732 | N56: 8171.84899 | O56: 5910.209792 | P56: 35943.88829
A57: C-20 | B57: Non-network | C57: Heavy Vehicle Fleet - 10yrs | D57: ='Base Capex Incl Real Price Esc'!R75 -> 1633.766855 | E57: ='Base Capex Incl Real Price Esc'!S75 -> 1336.718336 | F57: ='Base Capex Incl Real Price Esc'!T75 -> 1782.291115 | G57: ='Base Capex Incl Real Price Esc'!U75 -> 4158.679268 | H57: ='Base Capex Incl Real Price Esc'!V75 -> 2376.388153 | I57: 11287.84373 | K57: 1717.624699 | L57: 1405.329299 | M57: 1873.772399 | N57: 4372.135597 | O57: 2498.363198 | P57: 11867.22519
A58: C-21 | B58: Non-network | C58: Light Vehicle Fleet | D58: ='Base Capex Incl Real Price Esc'!R76 -> 4872.130697 | E58: ='Base Capex Incl Real Price Esc'!S76 -> 5689.262349 | F58: ='Base Capex Incl Real Price Esc'!T76 -> 9201.959549 | G58: ='Base Capex Incl Real Price Esc'!U76 -> 7156.861682 | H58: ='Base Capex Incl Real Price Esc'!V76 -> 3632.513759 | I58: 30552.72804 | K58: 5122.206999 | L58: 5981.280313 | M58: 9674.27693 | N58: 7524.208458 | O58: 3818.96311 | P58: 32120.93581
A59: C-22 | B59: Non-network | C59: Plant and Tools | D59: ='Base Capex Incl Real Price Esc'!R77 -> 5096.733333 | E59: ='Base Capex Incl Real Price Esc'!S77 -> 4245.733333 | F59: ='Base Capex Incl Real Price Esc'!T77 -> 3485.233333 | G59: ='Base Capex Incl Real Price Esc'!U77 -> 3220.4 | H59: ='Base Capex Incl Real Price Esc'!V77 -> 3712.4 | I59: 19760.5 | K59: 5358.33802 | L59: 4463.657966 | M59: 3664.123088 | N59: 3385.696412 | O59: 3902.949745 | P59: 20774.76523
A60: C-24 | B60: Non-network | C60: Property | D60: ='Base Capex Incl Real Price Esc'!R78 -> 0 | E60: ='Base Capex Incl Real Price Esc'!S78 -> 0 | F60: ='Base Capex Incl Real Price Esc'!T78 -> 0 | G60: ='Base Capex Incl Real Price Esc'!U78 -> 0 | H60: ='Base Capex Incl Real Price Esc'!V78 -> 0 | I60: 0 | K60: 0 | L60: 0 | M60: 0 | N60: 0 | O60: 0 | P60: 0
A61: C-25 | B61: Non-network | C61: Information Technology | D61: ='Base Capex Incl Real Price Esc'!R79 -> 54158.66529 | E61: ='Base Capex Incl Real Price Esc'!S79 -> 50744.22327 | F61: ='Base Capex Incl Real Price Esc'!T79 -> 32513.62073 | G61: ='Base Capex Incl Real Price Esc'!U79 -> 24453.92806 | H61: ='Base Capex Incl Real Price Esc'!V79 -> 25339.22339 | I61: 187209.6607 | K61: 56938.51656 | L61: 53348.81836 | M61: 34182.47704 | N61: 25709.09716 | O61: 26639.83285 | P61: 196818.742
A62: C-28 | B62: Non-network | C62: Superannuation | D62: ='Base Capex Incl Real Price Esc'!R80 -> -7052.240934 | E62: ='Base Capex Incl Real Price Esc'!S80 -> -7078.585382 | F62: ='Base Capex Incl Real Price Esc'!T80 -> -7102.796441 | G62: ='Base Capex Incl Real Price Esc'!U80 -> -7134.956269 | H62: ='Base Capex Incl Real Price Esc'!V80 -> -7166.425126 | I62: -35535.00415 | K62: -7414.217745 | L62: -7441.914399 | M62: -7467.368161 | N62: -7501.178686 | O62: -7534.262773 | P62: -37358.94176
A63: C-29 | B63: Non-network | C63: Operational Information Technology | D63: ='Base Capex Incl Real Price Esc'!R81 -> 1499.489187 | E63: ='Base Capex Incl Real Price Esc'!S81 -> 2199.536466 | F63: ='Base Capex Incl Real Price Esc'!T81 -> 2414.154919 | G63: ='Base Capex Incl Real Price Esc'!U81 -> 1506.136101 | H63: ='Base Capex Incl Real Price Esc'!V81 -> 1359.922212 | I63: 8979.238885 | K63: 1576.454838 | L63: 2312.434083 | M63: 2538.068454 | N63: 1583.442924 | O63: 1429.724182 | P63: 9440.12448
A64: Total Gross Capex | D64: =SUM(D45:D47,D49:D63) -> 306865.7124 | E64: =SUM(E45:E47,E49:E63) -> 312542.8548 | F64: 291987.4332 | G64: 281190.8891 | H64: 266934.8844 | I64: 1459521.774 | K64: =SUM(K45:K47,K49:K63) -> 322616.489 | L64: =SUM(L45:L47,L49:L63) -> 328585.0274 | M64: 306974.5388 | N64: 295623.8307 | O64: 280636.095 | P64: 1534435.981
A65: Total Net Capex | D65: =SUM(D64,D48) -> 243451.259 | E65: 249715.6636 | F65: 228994.9563 | G65: 218558.5466 | H65: 207038.9897 | I65: 1147759.415 | K65: =SUM(K64,K48) -> 255947.1041 | L65: 262533.0475 | M65: 240748.7895 | N65: 229776.7008 | O65: 217665.869 | P65: 1206671.511
A67: Gross Network Capex | D67: =SUM(D45:D47,D49:D55) -> 241838.1697 | E67: 246505.2445 | F67: 242618.1985 | G67: 240056.9572 | H67: 232059.2004 | I67: 1203077.77 | K67: =SUM(K45:K47,K49:K55) -> 254251.2183 | L67: =SUM(L45:L47,L49:L55) -> 259157.8443 | M67: 255071.2843 | N67: 252378.5798 | O67: 243970.3149 | P67: 1264829.242
A68: Net Network Capex | D68: =D67+D48 -> 178423.7163 | E68: 183678.0533 | F68: 179625.7216 | G68: 177424.6147 | H68: 172163.3057 | I68: 891315.4115 | K68: =K67+K48 -> 187581.8333 | L68: 193105.8645 | M68: 188845.5351 | N68: 186531.4499 | O68: 181000.0889 | P68: 937064.7717

Sheet IT Capex $June2020
B2: Total IT Costs (IT does not attract Overheads) | C2: $2019-20 ($'000) | H2: ='Total Capex $June2020'!K42 -> 0 | I2: ='General Inputs'!C11 -> 1.051327913
B3: SAPN Business Case | C3: CA RIN Capex By Purpose | D3: 2020/21 | E3: 2021/22 | F3: 2022/23 | G3: 2023/24 | H3: 2024/25 | I3: Total
B4: IT Recurrent
B5: Maintain current levels of service and risk: maintain service | D5: =SUM(D6:D12) -> 28830.64591 | E5: =SUM(E6:E12) -> 37284.90382 | F5: 26908.04278 | G5: 24530.55456 | H5: 26539.47114 | I5: 144093.6182
B6: IT Applications Refresh | C6: Asset Replacement | D6: ='Non Network Base Capex'!D6*(1+D$29)*$I$2 -> 14280.88285 | E6: ='Non Network Base Capex'!E6*(1+E$29)*$I$2 -> 14857.45648 | F6: ='Non Network Base Capex'!F6*(1+F$29)*$I$2 -> 12777.98192 | G6: ='Non Network Base Capex'!G6*(1+G$29)*$I$2 -> 11528.97562 | H6: ='Non Network Base Capex'!H6*(1+H$29)*$I$2 -> 13620.32028 | I6: =SUM(D6:H6) -> 67065.61714
B7: IT Applications Refresh | C7: Asset Remediation | D7: ='Non Network Base Capex'!D7*(1+D$29)*$I$2 -> 830.9814162 | E7: ='Non Network Base Capex'!E7*(1+E$29)*$I$2 -> 794.9944917 | F7: ='Non Network Base Capex'!F7*(1+F$29)*$I$2 -> 507.4472043 | G7: ='Non Network Base Capex'!G7*(1+G$29)*$I$2 -> 508.1036493 | H7: ='Non Network Base Capex'!H7*(1+H$29)*$I$2 -> 508.7459902 | I7: 3150.272752
B8: IT Applications Refresh | C8: Asset Extension | D8: ='Non Network Base Capex'!D8*(1+D$29)*$I$2 -> 736.6040254 | E8: ='Non Network Base Capex'!E8*(1+E$29)*$I$2 -> 737.3861952 | F8: ='Non Network Base Capex'!F8*(1+F$29)*$I$2 -> 738.1050244 | G8: ='Non Network Base Capex'!G8*(1+G$29)*$I$2 -> 739.0598535 | H8: ='Non Network Base Capex'!H8*(1+H$29)*$I$2 -> 739.9941676 | I8: 3691.149266
B9: Client Device Refresh | C9: Asset Replacement | D9: ='Non Network Base Capex'!D9*(1+D$29)*$I$2 -> 4671.787564 | E9: ='Non Network Base Capex'!E9*(1+E$29)*$I$2 -> 5827.701056 | F9: ='Non Network Base Capex'!F9*(1+F$29)*$I$2 -> 5406.257263 | G9: ='Non Network Base Capex'!G9*(1+G$29)*$I$2 -> 4347.56226 | H9: ='Non Network Base Capex'!H9*(1+H$29)*$I$2 -> 4347.865469 | I9: 24601.17361
B10: Cyber Security | C10: Asset Extension | D10: ='Non Network Base Capex'!D10*(1+D$29)*$I$2 -> 2206.369474 | E10: ='Non Network Base Capex'!E10*(1+E$29)*$I$2 -> 2319.147944 | F10: ='Non Network Base Capex'!F10*(1+F$29)*$I$2 -> 2437.479165 | G10: ='Non Network Base Capex'!G10*(1+G$29)*$I$2 -> 2562.663959 | H10: ='Non Network Base Capex'!H10*(1+H$29)*$I$2 -> 2694.198844 | I10: 12219.85939
